Workbook

Sheet Contents

Sheet Summary
A1: Summary Sheet
M2: Growth Scenario | N2: =Scenario!F15 -> Downside Case | S2: First work on Structuring
M3: Average Toll Rates | N3: =Scenario!G15 -> 92 | S3: Then, Fix the Debt Repayment
B4: Uses of Funds | E4: Amount | F4: Pct | M4: Base Traffic | N4: =Assumptions!E14 -> 6500 | S4: After that, work on credit analysis
C5: EPC Cost | E5: ='Financial Model'!F48 -> 3000000 | F5: =E5/$E$11 -> 0.9443427609 | H5: Project IRR | I5: ='Financial Model'!G42 -> 2.980232239e-09
C6: Development Fees | E6: ='Financial Model'!F49 -> 160000 | F6: 0.05036494725 | H6: Debt IRR | L6: Debt Structure
C7: Owners Costs | E7: ='Financial Model'!F50 -> 0 | F7: 0 | H7: Equity IRR | I7: ='Financial Model'!G248 -> 2.980232239e-09 | M7: Max Debt | N7: =Assumptions!E51 -> 0.95
C8: Interests During Construction (IDC) | E8: ='Financial Model'!F51 -> 16812.6196 | F8: 0.005292291871 | M8: Min DSCR | N8: =Assumptions!E52 -> 1.2 | P8: ='Financial Model'!G279 -> Min DSCR Constraint
C9: Fees During Construction | E9: ='Financial Model'!F52 -> 0 | F9: 0 | I9: Ratio | J9: Pct Red | M9: Sweep | N9: =Assumptions!E80 -> 0
C10: DSRA | E10: ='Financial Model'!F53 -> 0 | F10: 0 | H10: DSCR Min | I10: ='Financial Model'!G258 -> 1.2 | J10: =(I10-1)/I10 -> 0.1666666667 | M10: Underlying Amort | N10: =Assumptions!E60 -> 20
C11: Total | E11: =SUM(E5:E10) -> 3176812.62 | F11: 1 | H11: LLCR | I11: ='Financial Model'!G265 -> 1.2 | J11: =(I11-1)/I11 -> 0.1666666667 | M11: Maturity | N11: =Assumptions!E61 -> 5
H12: PLCR | I12: ='Financial Model'!G270 -> 1.548622068 | J12: =(I12-1)/I12 -> 0.3542646586 | M12: Base Interest Rate | N12: =Assumptions!E73 -> 0.025
B13: Sources of Funds | H13: Final Repayment | J13: ='Financial Model'!E153 -> 2037-03-31 | M13: Base Credit Spread | N13: =Assumptions!E75 -> 0.02
C14: Debt | E14: ='Financial Model'!F57 -> 239555.3588 | F14: =E14/$E$16 -> 0.07540745632 | N14: =Assumptions!$E$62 -> TRUE
C15: Equity | E15: =E11-E14 -> 2937257.261 | F15: =E15/$E$16 -> 0.9245925437
C16: Total | E16: =SUM(E14:E15) -> 3176812.62 | F16: =E16/$E$16 -> 1

Sheet Scenario
C1: Code Number | D1: 4 | E1: Downside Case
C2: Min DSCR
C3: Max Debt/Cap
A5: Base Case
C7: Construction | D7: Base Traffic | E7: Traffic | F7: Traffic | H7: Construction | I7: Fixed | J7: Variable | L7: DSCR | M7: LLCR | N7: PLCR
C8: Months | D8: Vehicles | E8: Growth | F8: Growth | G8: Price | H8: Cost | I8: Cost | J8: Cost
A9: 1 | B9: Base Case | C9: 36 | D9: 15000 | E9: 1 | F9: =INDEX($B$22:$B$24,E9) -> Base Case | G9: 90 | H9: 3000000 | I9: 30000 | J9: 3
A10: 2 | B10: Downside Case | C10: 36 | D10: 10000 | E10: 2 | F10: =INDEX($B$22:$B$24,E10) -> Downside Case | G10: 80 | H10: 3000000 | I10: 30000 | J10: 4
A11: 3 | B11: Worst Case | C11: 36 | D11: 8000 | E11: 3 | F11: =INDEX($B$22:$B$24,E11) -> Worst Case | G11: 70 | H11: 3000000 | I11: 30000 | J11: 4
A12: 4 | B12: Break-Even Case | C12: 36 | D12: 6500 | E12: 2 | F12: Base Case | G12: 92 | H12: 3000000 | I12: 30000 | J12: 3
B15: =INDEX(B9:B14,D1) -> Break-Even Case | C15: =INDEX(C9:C14,$D$1) -> 36 | D15: =INDEX(D9:D14,$D$1) -> 6500 | E15: =INDEX(E9:E14,$D$1) -> 2 | F15: =INDEX(B22:B24,E15) -> Downside Case | G15: =INDEX(G9:G14,$D$1) -> 92 | H15: =INDEX(H9:H14,$D$1) -> 3000000 | I15: =INDEX(I9:I14,$D$1) -> 30000 | J15: =INDEX(J9:J14,$D$1) -> 3
A18: Time Series Scenarios
B19: Code for Traffic Growth | C19: =E15 -> 2
B21: Annual Traffic | C21: =Assumptions!E6 -> 2020-01-01 | D21: 2021-01-01 | E21: 2021-04-01 | F21: 2021-07-01 | G21: 2021-10-01 | H21: 2022-01-01 | I21: 2022-04-01 | J21: 2022-07-01 | K21: 2022-10-01
B22: Base Case | D22: 0.03 | E22: 0.05 | F22: 0.06 | G22: 0.06 | H22: 0.07 | I22: 0.03 | J22: 0.03 | K22: 0.04
B23: Downside Case | D23: 0.02 | E23: 0.02 | F23: 0.03 | G23: 0.03 | H23: 0.05 | I23: -0.01 | J23: -0.01 | K23: 0.005
B24: Worst Case | D24: 0.02 | E24: 0.03 | F24: 0.02 | G24: 0.01 | H24: 0.005 | I24: -0.02 | J24: -0.01 | K24: -0.005
B26: =INDEX(B22:B24,$C$19) -> Downside Case | D26: =INDEX(D22:D24,$C$19) -> 0.02 | E26: 0.02 | F26: 0.03 | G26: 0.03 | H26: 0.05 | I26: -0.01 | J26: -0.01 | K26: 0.005

Sheet Assumptions
A2: Timing Assumptions | GZ2: 1
B3: Concession Period | D3: Years | E3: 30
B4: Financial Close Date | D4: Date | E4: 2017-01-01
B5: Construction Period | D5: Months | E5: =Scenario!C15 -> 36
B6: Commercial Operation Date | D6: Date | E6: =EDATE(E4,E5) -> 2020-01-01
B7: Operating Period | D7: Months | E7: =E3*12-E5 -> 324
B8: End of Concession Period | D8: Date | E8: =EDATE(E6,E7) -> 2047-01-01
B9: Months Per Priod During Construction | D9: Months | E9: 1
B10: Months Per Priod After Construction | D10: Months | E10: 3
A12: Operating Assumptions
B13: Maximum Vehicles | D13: Vehicles | E13: 50000
B14: Base Traffic | D14: Vehicles | E14: =Scenario!D15 -> 6500
B15: Date | D15: Date | E15: =E4 -> 2017-01-01 | F15: =Scenario!D21 -> 2021-01-01 | G15: =EDATE(F15,3) -> 2021-04-01 | H15: 2021-07-01 | I15: 2021-10-01 | J15: 2022-01-01 | K15: 2022-04-01 | L15: 2022-07-01 | M15: 2022-10-01 | N15: 2023-01-01
B16: Annual Growth Rate | D16: Percentage | G16: =Scenario!D26 -> 0.02 | H16: =Scenario!E26 -> 0.02 | I16: =Scenario!F26 -> 0.03 | J16: =Scenario!G26 -> 0.03 | K16: =Scenario!H26 -> 0.05 | L16: =Scenario!I26 -> -0.01 | M16: =Scenario!J26 -> -0.01 | N16: =Scenario!K26 -> 0.005
B17: Period Growth Rate | D17: Percentage | G17: =(1+G16)^(1/4)-1 -> 0.004962931573 | H17: 0.004962931573 | I17: 0.007417071778 | J17: 0.007417071778 | K17: 0.01227223443 | L17: -0.002509430066 | M17: -0.002509430066 | N17: 0.001247663063
B18: Quarter | E18: 1 | F18: 2 | G18: 3 | H18: 4
B19: Seasonality Factor | E19: 1 | F19: 1 | G19: 1 | H19: 1
B22: Constructions Assumptions
C23: Construction Costs | D23: $ 000s | E23: 3000000
C24: S-Curve Average | E24: 18
C25: S-Curve Deviation | E25: 10
C26: Construction Period | E26: 1 | F26: 2 | G26: 3 | H26: 4 | I26: 5 | J26: 6 | K26: 7 | L26: 8 | M26: 9 | N26: 10 | O26: 11 | P26: 12 | Q26: 13 | R26: 14 | S26: 15 | T26: 16 | U26: 17 | V26: 18 | W26: 19 | X26: 20 | Y26: 21 | Z26: 22 | AA26: 23 | AB26: 24 | AC26: 25 | AD26: 26 | AE26: 27 | AF26: 28 | AG26: 29 | AH26: 30 | AI26: 31 | AJ26: 32 | AK26: 33 | AL26: 34 | AM26: 35 | AN26: 36 | AO26: 37
C27: Normal | E27: =_xlfn.NORM.DIST(E26,$E$24,$E$25,0) -> 0.009404907738 | F27: =_xlfn.NORM.DIST(F26,$E$24,$E$25,0) -> 0.01109208347 | G27: 0.01295175957 | H27: 0.01497274656 | I27: 0.0171368592 | J27: 0.0194186055 | K27: 0.0217852177 | L27: 0.02419707245 | M27: 0.02660852499 | N27: 0.02896915528 | O27: 0.03122539334 | P27: 0.03332246029 | Q27: 0.03520653268 | R27: 0.03682701403 | S27: 0.03813878155 | T27: 0.0391042694 | U27: 0.03969525475 | V27: 0.03989422804 | W27: 0.03969525475 | X27: 0.0391042694 | Y27: 0.03813878155 | Z27: 0.03682701403 | AA27: 0.03520653268 | AB27: 0.03332246029 | AC27: 0.03122539334 | AD27: 0.02896915528 | AE27: 0.02660852499 | AF27: 0.02419707245 | AG27: 0.0217852177 | AH27: 0.0194186055 | AI27: 0.0171368592 | AJ27: 0.01497274656 | AK27: 0.01295175957 | AL27: 0.01109208347 | AM27: 0.009404907738 | AN27: 0.00789501583 | AO27: 0
C28: S-Curve | E28: =E27/SUM(27:27) -> 0.01013566353 | F28: =F27/SUM(27:27) -> 0.01195393182 | G28: 0.01395810365 | H28: 0.01613612015 | I28: 0.01846838307 | J28: 0.0209274197 | K28: 0.02347791628 | L28: 0.02607717072 | M28: 0.0286759917 | N28: 0.03122004157 | O28: 0.033651588 | P28: 0.03591159582 | Q28: 0.03794205952 | R28: 0.03968845132 | S28: 0.0411021424 | T28: 0.04214264809 | U28: 0.04277955265 | V28: 0.04299398605 | W28: 0.04277955265 | X28: 0.04214264809 | Y28: 0.0411021424 | Z28: 0.03968845132 | AA28: 0.03794205952 | AB28: 0.03591159582 | AC28: 0.033651588 | AD28: 0.03122004157 | AE28: 0.0286759917 | AF28: 0.02607717072 | AG28: 0.02347791628 | AH28: 0.0209274197 | AI28: 0.01846838307 | AJ28: 0.01613612015 | AK28: 0.01395810365 | AL28: 0.01195393182 | AM28: 0.01013566353 | AN28: 0.008508453908 | AO28: 0
C30: Development Cost | D30: $ 000s | E30: =G30*1000 -> 160000 | G30: 160
B32: Revenue Assumptions
C33: Price | D33: $ per vehicle pa | E33: =Scenario!$G$15 -> 92
B35: Operating Expense Assumptions
C36: Ongoing Maintenance
D37: $ per vehicle | E37: 4
D38: $000s pa | E38: 30000
B40: Extraordinary Maintenance | D40: FALSE | E40: =E6 -> 2020-01-01 | F40: =EDATE(E40,5*12) -> 2025-01-01 | G40: =EDATE(F40,7*12) -> 2032-01-01 | H40: =EDATE(G40,7*12) -> 2039-01-01 | I40: =EDATE(H40,7*12) -> 2046-01-01
F41: 35000 | G41: 40000 | H41: 45000 | I41: 45000
B43: Working Capital Assumptions
B45: Deprecaion Life | D45: Years | E45: 20
A48: Financing Assumptions
B49: Debt Size
C50: Input | D50: Amount | E50: 239555.3588
C51: Max Debt to Capital | D51: Percent | E51: =F51/100 -> 0.95 | F51: 95
C52: Min DSCR | D52: Times | E52: =F52/100 -> 1.2 | F52: 120
B54: Debt Funding
C55: Equity Based Loan (EBL) | D55: Switch | E55: FALSE
C56: Pro-Rata | D56: Switch | E56: TRUE
C57: Equity First | D57: Switch | E57: FALSE
B59: Debt Repayment
C60: Underlying Amortization | D60: Years | E60: 20
C61: Maturity | D61: Years | E61: 5
C62: Apply Mini-perm Sweep | D62: Switch | E62: TRUE
C63: Date of Refinancing Requirement | D63: Date | E63: =EDATE(E6,E61*12) -> 2025-01-01
C64: Final Debt Repayment | D64: Date | E64: =EDATE(E6,E60*12) -> 2040-01-01
C66: Repayment Type / Level | D66: Switch | E66: FALSE | F66: 1
C67: Repayment Type / Sculpted | D67: Switch | E67: =NOT(E66) -> TRUE | F67: 2
C69: Fixed Debt Repayment | D69: Switch | E69: TRUE | F69: fix
C70: Repay Code | D70: Num | E70: =repay_type*F66+E67*F67+fix*1 -> 3 | F70: repay_code
B72: Interests & Fees
C73: Base Rate | D73: % pa | E73: =F73/1000 -> 0.025 | F73: 25
E74: =E4 -> 2017-01-01 | F74: =E6 -> 2020-01-01 | G74: =EDATE(F74,12*3) -> 2023-01-01 | H74: =EDATE(G74,12*3) -> 2026-01-01 | I74: =EDATE(H74,12*3) -> 2029-01-01 | J74: =EDATE(I74,12*3) -> 2032-01-01
C75: Credit Spread | E75: =L75/1000 -> 0.02 | F75: =E75+0.25% -> 0.0225 | G75: =F75+0.25% -> 0.025 | H75: 0.0275 | I75: 0.03 | J75: 0.0325 | L75: 20
C76: Default Spread | D76: 0.01 | E76: =E75+$D$76 -> 0.03 | F76: =F75+$D$76 -> 0.0325 | G76: 0.035 | H76: 0.0375 | I76: 0.04 | J76: 0.0425
B78: Credit Enhancements
C79: Cash Sweep Criteria | D79: Times | E79: 1.25
C80: Cash Sweep % | D80: % | E80: =F80/100 -> 0 | F80: 0
C81: Cash Trap Covenant | D81: Times | E81: 1.1
C82: DSRA | D82: Months | E82: 6

Sheet Financial Model
A1: Timeline
B2: Period | E2: =Audit!E7 ->  | J2: 1 | K2: 2 | L2: 3 | M2: 4 | N2: 5 | O2: 6 | P2: 7 | Q2: 8 | R2: 9 | S2: 10 | T2: 11 | U2: 12 | V2: 13 | W2: 14 | X2: 15 | Y2: 16 | Z2: 17 | AA2: 18 | AB2: 19 | AC2: 20 | AD2: 21 | AE2: 22 | AF2: 23 | AG2: 24 | AH2: 25 | AI2: 26 | AJ2: 27 | AK2: 28 | AL2: 29 | AM2: 30 | AN2: 31 | AO2: 32 | AP2: 33 | AQ2: 34 | AR2: 35 | AS2: 36 | AT2: 37 | AU2: 38 | AV2: 39 | AW2: 40 | AX2: 41 | AY2: 42 | AZ2: 43 | BA2: 44 | BB2: 45 | BC2: 46 | BD2: 47 | BE2: 48 | BF2: 49 | BG2: 50 | BH2: 51 | BI2: 52 | BJ2: 53 | BK2: 54 | BL2: 55 | BM2: 56 | BN2: 57 | BO2: 58 | BP2: 59 | BQ2: 60 | BR2: 61 | BS2: 62 | BT2: 63 | BU2: 64 | BV2: 65 | BW2: 66 | BX2: 67 | BY2: 68 | BZ2: 69 | CA2: 70 | CB2: 71 | CC2: 72 | CD2: 73 | CE2: 74 | CF2: 75 | CG2: 76 | CH2: 77 | CI2: 78 | CJ2: 79 | CK2: 80 | CL2: 81 | CM2: 82 | CN2: 83 | CO2: 84 | CP2: 85 | CQ2: 86 | CR2: 87 | CS2: 88 | CT2: 89 | CU2: 90 | CV2: 91 | CW2: 92 | CX2: 93 | CY2: 94 | CZ2: 95 | DA2: 96 | DB2: 97 | DC2: 98 | DD2: 99 | DE2: 100 | DF2: 101 | DG2: 102 | DH2: 103 | DI2: 104 | DJ2: 105 | DK2: 106 | DL2: 107 | DM2: 108 | DN2: 109 | DO2: 110 | DP2: 111 | DQ2: 112 | DR2: 113 | DS2: 114 | DT2: 115 | DU2: 116 | DV2: 117 | DW2: 118 | DX2: 119 | DY2: 120 | DZ2: 121 | EA2: 122 | EB2: 123 | EC2: 124 | ED2: 125 | EE2: 126 | EF2: 127 | EG2: 128 | EH2: 129 | EI2: 130 | EJ2: 131 | EK2: 132 | EL2: 133 | EM2: 134 | EN2: 135 | EO2: 136 | EP2: 137 | EQ2: 138 | ER2: 139 | ES2: 140 | ET2: 141 | EU2: 142 | EV2: 143 | EW2: 144 | EX2: 145 | EY2: 146 | EZ2: 147 | FA2: 148 | FB2: 149 | FC2: 150 | FD2: 151 | FE2: 152 | FF2: 153 | FG2: 154 | FH2: 155 | FI2: 156 | FJ2: 157 | FK2: 158 | FL2: 159 | FM2: 160 | FN2: 161 | FO2: 162 | FP2: 163 | FQ2: 164 | FR2: 165 | FS2: 166 | FT2: 167 | FU2: 168 | FV2: 169 | FW2: 170 | FX2: 171 | FY2: 172 | FZ2: 173 | GA2: 174 | GB2: 175 | GC2: 176 | GD2: 177 | GE2: 178 | GF2: 179 | GG2: 180 | GH2: 181 | GI2: 182 | GJ2: 183 | GK2: 184 | GL2: 185 | GM2: 186 | GN2: 187 | GO2: 188 | GP2: 189 | GQ2: 190 | GR2: 191 | GS2: 192 | GT2: 193 | GU2: 194 | GV2: 195 | GW2: 196 | GX2: 197 | GY2: 198 | GZ2: 199 | HA2: 200
B3: Pre-COD Switch | G3: =Assumptions!E5 -> 36 | J3: =J2<=$G$3 -> TRUE | K3: TRUE | L3: TRUE | M3: TRUE | N3: TRUE | O3: TRUE | P3: TRUE | Q3: TRUE | R3: TRUE | S3: TRUE | T3: TRUE | U3: TRUE | V3: TRUE | W3: TRUE | X3: TRUE | Y3: TRUE | Z3: TRUE | AA3: TRUE | AB3: TRUE | AC3: TRUE | AD3: TRUE | AE3: TRUE | AF3: TRUE | AG3: TRUE | AH3: TRUE | AI3: TRUE | AJ3: TRUE | AK3: TRUE | AL3: TRUE | AM3: TRUE | AN3: TRUE | AO3: TRUE | AP3: =AP2<=$G$3 -> TRUE | AQ3: TRUE | AR3: TRUE | AS3: TRUE | AT3: FALSE | AU3: FALSE | AV3: FALSE | AW3: FALSE | AX3: FALSE | AY3: FALSE | AZ3: FALSE | BA3: FALSE | BB3: FALSE | BC3: FALSE | BD3: FALSE | BE3: FALSE | BF3: FALSE | BG3: FALSE | BH3: FALSE | BI3: FALSE | BJ3: FALSE | BK3: FALSE | BL3: FALSE | BM3: FALSE | BN3: FALSE | BO3: FALSE | BP3: FALSE | BQ3: FALSE | BR3: FALSE | BS3: FALSE | BT3: FALSE | BU3: FALSE | BV3: =BV2<=$G$3 -> FALSE | BW3: FALSE | BX3: FALSE | BY3: FALSE | BZ3: FALSE | CA3: FALSE | CB3: FALSE | CC3: FALSE | CD3: FALSE | CE3: FALSE | CF3: FALSE | CG3: FALSE | CH3: FALSE | CI3: FALSE | CJ3: FALSE | CK3: FALSE | CL3: FALSE | CM3: FALSE | CN3: FALSE | CO3: FALSE | CP3: FALSE | CQ3: FALSE | CR3: FALSE | CS3: FALSE | CT3: FALSE | CU3: FALSE | CV3: FALSE | CW3: FALSE | CX3: FALSE | CY3: FALSE | CZ3: FALSE | DA3: FALSE | DB3: =DB2<=$G$3 -> FALSE | DC3: FALSE | DD3: FALSE | DE3: FALSE | DF3: FALSE | DG3: FALSE | DH3: FALSE | DI3: FALSE | DJ3: FALSE | DK3: FALSE | DL3: FALSE | DM3: FALSE | DN3: FALSE | DO3: FALSE | DP3: FALSE | DQ3: FALSE | DR3: FALSE | DS3: FALSE | DT3: FALSE | DU3: FALSE | DV3: FALSE | DW3: FALSE | DX3: FALSE | DY3: FALSE | DZ3: FALSE | EA3: FALSE | EB3: FALSE | EC3: FALSE | ED3: FALSE | EE3: FALSE | EF3: FALSE | EG3: FALSE | EH3: =EH2<=$G$3 -> FALSE | EI3: FALSE | EJ3: FALSE | EK3: FALSE | EL3: FALSE | EM3: FALSE | EN3: FALSE | EO3: FALSE | EP3: FALSE | EQ3: FALSE | ER3: FALSE | ES3: FALSE | ET3: FALSE | EU3: FALSE | EV3: FALSE | EW3: FALSE | EX3: FALSE | EY3: FALSE | EZ3: FALSE | FA3: FALSE | FB3: FALSE | FC3: FALSE | FD3: FALSE | FE3: FALSE | FF3: FALSE | FG3: FALSE | FH3: FALSE | FI3: FALSE | FJ3: FALSE | FK3: FALSE | FL3: FALSE | FM3: FALSE | FN3: =FN2<=$G$3 -> FALSE | FO3: FALSE | FP3: FALSE | FQ3: FALSE | FR3: FALSE | FS3: FALSE | FT3: FALSE | FU3: FALSE | FV3: FALSE | FW3: FALSE | FX3: FALSE | FY3: FALSE | FZ3: FALSE | GA3: FALSE | GB3: FALSE | GC3: FALSE | GD3: FALSE | GE3: FALSE | GF3: FALSE | GG3: FALSE | GH3: FALSE | GI3: FALSE | GJ3: FALSE | GK3: FALSE | GL3: FALSE | GM3: FALSE | GN3: FALSE | GO3: FALSE | GP3: FALSE | GQ3: FALSE | GR3: FALSE | GS3: FALSE | GT3: =GT2<=$G$3 -> FALSE | GU3: FALSE | GV3: FALSE | GW3: FALSE | GX3: FALSE | GY3: FALSE | GZ3: FALSE | HA3: FALSE
B4: Months Per Period | G4: 1 | H4: 3 | J4: =IF(J3,$G$4,$H$4) -> 1 | K4: 1 | L4: 1 | M4: 1 | N4: 1 | O4: 1 | P4: 1 | Q4: 1 | R4: 1 | S4: 1 | T4: 1 | U4: 1 | V4: 1 | W4: 1 | X4: 1 | Y4: 1 | Z4: 1 | AA4: 1 | AB4: 1 | AC4: 1 | AD4: 1 | AE4: 1 | AF4: 1 | AG4: 1 | AH4: 1 | AI4: 1 | AJ4: 1 | AK4: 1 | AL4: 1 | AM4: 1 | AN4: 1 | AO4: 1 | AP4: =IF(AP3,$G$4,$H$4) -> 1 | AQ4: 1 | AR4: 1 | AS4: 1 | AT4: 3 | AU4: 3 | AV4: 3 | AW4: 3 | AX4: 3 | AY4: 3 | AZ4: 3 | BA4: 3 | BB4: 3 | BC4: 3 | BD4: 3 | BE4: 3 | BF4: 3 | BG4: 3 | BH4: 3 | BI4: 3 | BJ4: 3 | BK4: 3 | BL4: 3 | BM4: 3 | BN4: 3 | BO4: 3 | BP4: 3 | BQ4: 3 | BR4: 3 | BS4: 3 | BT4: 3 | BU4: 3 | BV4: =IF(BV3,$G$4,$H$4) -> 3 | BW4: 3 | BX4: 3 | BY4: 3 | BZ4: 3 | CA4: 3 | CB4: 3 | CC4: 3 | CD4: 3 | CE4: 3 | CF4: 3 | CG4: 3 | CH4: 3 | CI4: 3 | CJ4: 3 | CK4: 3 | CL4: 3 | CM4: 3 | CN4: 3 | CO4: 3 | CP4: 3 | CQ4: 3 | CR4: 3 | CS4: 3 | CT4: 3 | CU4: 3 | CV4: 3 | CW4: 3 | CX4: 3 | CY4: 3 | CZ4: 3 | DA4: 3 | DB4: =IF(DB3,$G$4,$H$4) -> 3 | DC4: 3 | DD4: 3 | DE4: 3 | DF4: 3 | DG4: 3 | DH4: 3 | DI4: 3 | DJ4: 3 | DK4: 3 | DL4: 3 | DM4: 3 | DN4: 3 | DO4: 3 | DP4: 3 | DQ4: 3 | DR4: 3 | DS4: 3 | DT4: 3 | DU4: 3 | DV4: 3 | DW4: 3 | DX4: 3 | DY4: 3 | DZ4: 3 | EA4: 3 | EB4: 3 | EC4: 3 | ED4: 3 | EE4: 3 | EF4: 3 | EG4: 3 | EH4: =IF(EH3,$G$4,$H$4) -> 3 | EI4: 3 | EJ4: 3 | EK4: 3 | EL4: 3 | EM4: 3 | EN4: 3 | EO4: 3 | EP4: 3 | EQ4: 3 | ER4: 3 | ES4: 3 | ET4: 3 | EU4: 3 | EV4: 3 | EW4: 3 | EX4: 3 | EY4: 3 | EZ4: 3 | FA4: 3 | FB4: 3 | FC4: 3 | FD4: 3 | FE4: 3 | FF4: 3 | FG4: 3 | FH4: 3 | FI4: 3 | FJ4: 3 | FK4: 3 | FL4: 3 | FM4: 3 | FN4: =IF(FN3,$G$4,$H$4) -> 3 | FO4: 3 | FP4: 3 | FQ4: 3 | FR4: 3 | FS4: 3 | FT4: 3 | FU4: 3 | FV4: 3 | FW4: 3 | FX4: 3 | FY4: 3 | FZ4: 3 | GA4: 3 | GB4: 3 | GC4: 3 | GD4: 3 | GE4: 3 | GF4: 3 | GG4: 3 | GH4: 3 | GI4: 3 | GJ4: 3 | GK4: 3 | GL4: 3 | GM4: 3 | GN4: 3 | GO4: 3 | GP4: 3 | GQ4: 3 | GR4: 3 | GS4: 3 | GT4: =IF(GT3,$G$4,$H$4) -> 3 | GU4: 3 | GV4: 3 | GW4: 3 | GX4: 3 | GY4: 3 | GZ4: 3 | HA4: 3
B5: Statrt of Period | J5: =H6+1 -> 2017-01-01 | K5: =J6+1 -> 2017-02-01 | L5: 2017-03-01 | M5: 2017-04-01 | N5: 2017-05-01 | O5: 2017-06-01 | P5: 2017-07-01 | Q5: 2017-08-01 | R5: 2017-09-01 | S5: 2017-10-01 | T5: 2017-11-01 | U5: 2017-12-01 | V5: 2018-01-01 | W5: 2018-02-01 | X5: 2018-03-01 | Y5: 2018-04-01 | Z5: 2018-05-01 | AA5: 2018-06-01 | AB5: 2018-07-01 | AC5: 2018-08-01 | AD5: 2018-09-01 | AE5: 2018-10-01 | AF5: 2018-11-01 | AG5: 2018-12-01 | AH5: 2019-01-01 | AI5: 2019-02-01 | AJ5: 2019-03-01 | AK5: 2019-04-01 | AL5: 2019-05-01 | AM5: 2019-06-01 | AN5: 2019-07-01 | AO5: 2019-08-01 | AP5: 2019-09-01 | AQ5: =AP6+1 -> 2019-10-01 | AR5: 2019-11-01 | AS5: 2019-12-01 | AT5: 2020-01-01 | AU5: 2020-04-01 | AV5: 2020-07-01 | AW5: 2020-10-01 | AX5: 2021-01-01 | AY5: 2021-04-01 | AZ5: 2021-07-01 | BA5: 2021-10-01 | BB5: 2022-01-01 | BC5: 2022-04-01 | BD5: 2022-07-01 | BE5: 2022-10-01 | BF5: 2023-01-01 | BG5: 2023-04-01 | BH5: 2023-07-01 | BI5: 2023-10-01 | BJ5: 2024-01-01 | BK5: 2024-04-01 | BL5: 2024-07-01 | BM5: 2024-10-01 | BN5: 2025-01-01 | BO5: 2025-04-01 | BP5: 2025-07-01 | BQ5: 2025-10-01 | BR5: 2026-01-01 | BS5: 2026-04-01 | BT5: 2026-07-01 | BU5: 2026-10-01 | BV5: 2027-01-01 | BW5: =BV6+1 -> 2027-04-01 | BX5: 2027-07-01 | BY5: 2027-10-01 | BZ5: 2028-01-01 | CA5: 2028-04-01 | CB5: 2028-07-01 | CC5: 2028-10-01 | CD5: 2029-01-01 | CE5: 2029-04-01 | CF5: 2029-07-01 | CG5: 2029-10-01 | CH5: 2030-01-01 | CI5: 2030-04-01 | CJ5: 2030-07-01 | CK5: 2030-10-01 | CL5: 2031-01-01 | CM5: 2031-04-01 | CN5: 2031-07-01 | CO5: 2031-10-01 | CP5: 2032-01-01 | CQ5: 2032-04-01 | CR5: 2032-07-01 | CS5: 2032-10-01 | CT5: 2033-01-01 | CU5: 2033-04-01 | CV5: 2033-07-01 | CW5: 2033-10-01 | CX5: 2034-01-01 | CY5: 2034-04-01 | CZ5: 2034-07-01 | DA5: 2034-10-01 | DB5: 2035-01-01 | DC5: =DB6+1 -> 2035-04-01 | DD5: 2035-07-01 | DE5: 2035-10-01 | DF5: 2036-01-01 | DG5: 2036-04-01 | DH5: 2036-07-01 | DI5: 2036-10-01 | DJ5: 2037-01-01 | DK5: 2037-04-01 | DL5: 2037-07-01 | DM5: 2037-10-01 | DN5: 2038-01-01 | DO5: 2038-04-01 | DP5: 2038-07-01 | DQ5: 2038-10-01 | DR5: 2039-01-01 | DS5: 2039-04-01 | DT5: 2039-07-01 | DU5: 2039-10-01 | DV5: 2040-01-01 | DW5: 2040-04-01 | DX5: 2040-07-01 | DY5: 2040-10-01 | DZ5: 2041-01-01 | EA5: 2041-04-01 | EB5: 2041-07-01 | EC5: 2041-10-01 | ED5: 2042-01-01 | EE5: 2042-04-01 | EF5: 2042-07-01 | EG5: 2042-10-01 | EH5: 2043-01-01 | EI5: =EH6+1 -> 2043-04-01 | EJ5: 2043-07-01 | EK5: 2043-10-01 | EL5: 2044-01-01 | EM5: 2044-04-01 | EN5: 2044-07-01 | EO5: 2044-10-01 | EP5: 2045-01-01 | EQ5: 2045-04-01 | ER5: 2045-07-01 | ES5: 2045-10-01 | ET5: 2046-01-01 | EU5: 2046-04-01 | EV5: 2046-07-01 | EW5: 2046-10-01 | EX5: 2047-01-01 | EY5: 2047-04-01 | EZ5: 2047-07-01 | FA5: 2047-10-01 | FB5: 2048-01-01 | FC5: 2048-04-01 | FD5: 2048-07-01 | FE5: 2048-10-01 | FF5: 2049-01-01 | FG5: 2049-04-01 | FH5: 2049-07-01 | FI5: 2049-10-01 | FJ5: 2050-01-01 | FK5: 2050-04-01 | FL5: 2050-07-01 | FM5: 2050-10-01 | FN5: 2051-01-01 | FO5: =FN6+1 -> 2051-04-01 | FP5: 2051-07-01 | FQ5: 2051-10-01 | FR5: 2052-01-01 | FS5: 2052-04-01 | FT5: 2052-07-01 | FU5: 2052-10-01 | FV5: 2053-01-01 | FW5: 2053-04-01 | FX5: 2053-07-01 | FY5: 2053-10-01 | FZ5: 2054-01-01 | GA5: 2054-04-01 | GB5: 2054-07-01 | GC5: 2054-10-01 | GD5: 2055-01-01 | GE5: 2055-04-01 | GF5: 2055-07-01 | GG5: 2055-10-01 | GH5: 2056-01-01 | GI5: 2056-04-01 | GJ5: 2056-07-01 | GK5: 2056-10-01 | GL5: 2057-01-01 | GM5: 2057-04-01 | GN5: 2057-07-01 | GO5: 2057-10-01 | GP5: 2058-01-01 | GQ5: 2058-04-01 | GR5: 2058-07-01 | GS5: 2058-10-01 | GT5: 2059-01-01 | GU5: =GT6+1 -> 2059-04-01 | GV5: 2059-07-01 | GW5: 2059-10-01 | GX5: 2060-01-01 | GY5: 2060-04-01 | GZ5: 2060-07-01 | HA5: 2060-10-01
B6: End of Period | H6: =Assumptions!E4-1 -> 2016-12-31 | J6: =EDATE(J5,J4)-1 -> 2017-01-31 | K6: 2017-02-28 | L6: 2017-03-31 | M6: 2017-04-30 | N6: 2017-05-31 | O6: 2017-06-30 | P6: 2017-07-31 | Q6: 2017-08-31 | R6: 2017-09-30 | S6: 2017-10-31 | T6: 2017-11-30 | U6: 2017-12-31 | V6: 2018-01-31 | W6: 2018-02-28 | X6: 2018-03-31 | Y6: 2018-04-30 | Z6: 2018-05-31 | AA6: 2018-06-30 | AB6: 2018-07-31 | AC6: 2018-08-31 | AD6: 2018-09-30 | AE6: 2018-10-31 | AF6: 2018-11-30 | AG6: 2018-12-31 | AH6: 2019-01-31 | AI6: 2019-02-28 | AJ6: 2019-03-31 | AK6: 2019-04-30 | AL6: 2019-05-31 | AM6: 2019-06-30 | AN6: 2019-07-31 | AO6: 2019-08-31 | AP6: =EDATE(AP5,AP4)-1 -> 2019-09-30 | AQ6: 2019-10-31 | AR6: 2019-11-30 | AS6: 2019-12-31 | AT6: 2020-03-31 | AU6: 2020-06-30 | AV6: 2020-09-30 | AW6: 2020-12-31 | AX6: 2021-03-31 | AY6: 2021-06-30 | AZ6: 2021-09-30 | BA6: 2021-12-31 | BB6: 2022-03-31 | BC6: 2022-06-30 | BD6: 2022-09-30 | BE6: 2022-12-31 | BF6: 2023-03-31 | BG6: 2023-06-30 | BH6: 2023-09-30 | BI6: 2023-12-31 | BJ6: 2024-03-31 | BK6: 2024-06-30 | BL6: 2024-09-30 | BM6: 2024-12-31 | BN6: 2025-03-31 | BO6: 2025-06-30 | BP6: 2025-09-30 | BQ6: 2025-12-31 | BR6: 2026-03-31 | BS6: 2026-06-30 | BT6: 2026-09-30 | BU6: 2026-12-31 | BV6: =EDATE(BV5,BV4)-1 -> 2027-03-31 | BW6: 2027-06-30 | BX6: 2027-09-30 | BY6: 2027-12-31 | BZ6: 2028-03-31 | CA6: 2028-06-30 | CB6: 2028-09-30 | CC6: 2028-12-31 | CD6: 2029-03-31 | CE6: 2029-06-30 | CF6: 2029-09-30 | CG6: 2029-12-31 | CH6: 2030-03-31 | CI6: 2030-06-30 | CJ6: 2030-09-30 | CK6: 2030-12-31 | CL6: 2031-03-31 | CM6: 2031-06-30 | CN6: 2031-09-30 | CO6: 2031-12-31 | CP6: 2032-03-31 | CQ6: 2032-06-30 | CR6: 2032-09-30 | CS6: 2032-12-31 | CT6: 2033-03-31 | CU6: 2033-06-30 | CV6: 2033-09-30 | CW6: 2033-12-31 | CX6: 2034-03-31 | CY6: 2034-06-30 | CZ6: 2034-09-30 | DA6: 2034-12-31 | DB6: =EDATE(DB5,DB4)-1 -> 2035-03-31 | DC6: 2035-06-30 | DD6: 2035-09-30 | DE6: 2035-12-31 | DF6: 2036-03-31 | DG6: 2036-06-30 | DH6: 2036-09-30 | DI6: 2036-12-31 | DJ6: 2037-03-31 | DK6: 2037-06-30 | DL6: 2037-09-30 | DM6: 2037-12-31 | DN6: 2038-03-31 | DO6: 2038-06-30 | DP6: 2038-09-30 | DQ6: 2038-12-31 | DR6: 2039-03-31 | DS6: 2039-06-30 | DT6: 2039-09-30 | DU6: 2039-12-31 | DV6: 2040-03-31 | DW6: 2040-06-30 | DX6: 2040-09-30 | DY6: 2040-12-31 | DZ6: 2041-03-31 | EA6: 2041-06-30 | EB6: 2041-09-30 | EC6: 2041-12-31 | ED6: 2042-03-31 | EE6: 2042-06-30 | EF6: 2042-09-30 | EG6: 2042-12-31 | EH6: =EDATE(EH5,EH4)-1 -> 2043-03-31 | EI6: 2043-06-30 | EJ6: 2043-09-30 | EK6: 2043-12-31 | EL6: 2044-03-31 | EM6: 2044-06-30 | EN6: 2044-09-30 | EO6: 2044-12-31 | EP6: 2045-03-31 | EQ6: 2045-06-30 | ER6: 2045-09-30 | ES6: 2045-12-31 | ET6: 2046-03-31 | EU6: 2046-06-30 | EV6: 2046-09-30 | EW6: 2046-12-31 | EX6: 2047-03-31 | EY6: 2047-06-30 | EZ6: 2047-09-30 | FA6: 2047-12-31 | FB6: 2048-03-31 | FC6: 2048-06-30 | FD6: 2048-09-30 | FE6: 2048-12-31 | FF6: 2049-03-31 | FG6: 2049-06-30 | FH6: 2049-09-30 | FI6: 2049-12-31 | FJ6: 2050-03-31 | FK6: 2050-06-30 | FL6: 2050-09-30 | FM6: 2050-12-31 | FN6: =EDATE(FN5,FN4)-1 -> 2051-03-31 | FO6: 2051-06-30 | FP6: 2051-09-30 | FQ6: 2051-12-31 | FR6: 2052-03-31 | FS6: 2052-06-30 | FT6: 2052-09-30 | FU6: 2052-12-31 | FV6: 2053-03-31 | FW6: 2053-06-30 | FX6: 2053-09-30 | FY6: 2053-12-31 | FZ6: 2054-03-31 | GA6: 2054-06-30 | GB6: 2054-09-30 | GC6: 2054-12-31 | GD6: 2055-03-31 | GE6: 2055-06-30 | GF6: 2055-09-30 | GG6: 2055-12-31 | GH6: 2056-03-31 | GI6: 2056-06-30 | GJ6: 2056-09-30 | GK6: 2056-12-31 | GL6: 2057-03-31 | GM6: 2057-06-30 | GN6: 2057-09-30 | GO6: 2057-12-31 | GP6: 2058-03-31 | GQ6: 2058-06-30 | GR6: 2058-09-30 | GS6: 2058-12-31 | GT6: =EDATE(GT5,GT4)-1 -> 2059-03-31 | GU6: 2059-06-30 | GV6: 2059-09-30 | GW6: 2059-12-31 | GX6: 2060-03-31 | GY6: 2060-06-30 | GZ6: 2060-09-30 | HA6: 2060-12-31
B7: Year | J7: =YEAR(J5) -> 2017 | K7: 2017 | L7: 2017 | M7: 2017 | N7: 2017 | O7: 2017 | P7: 2017 | Q7: 2017 | R7: 2017 | S7: 2017 | T7: 2017 | U7: 2017 | V7: 2018 | W7: 2018 | X7: 2018 | Y7: 2018 | Z7: 2018 | AA7: 2018 | AB7: 2018 | AC7: 2018 | AD7: 2018 | AE7: 2018 | AF7: 2018 | AG7: 2018 | AH7: 2019 | AI7: 2019 | AJ7: 2019 | AK7: 2019 | AL7: 2019 | AM7: 2019 | AN7: 2019 | AO7: 2019 | AP7: =YEAR(AP5) -> 2019 | AQ7: 2019 | AR7: 2019 | AS7: 2019 | AT7: 2020 | AU7: 2020 | AV7: 2020 | AW7: 2020 | AX7: 2021 | AY7: 2021 | AZ7: 2021 | BA7: 2021 | BB7: 2022 | BC7: 2022 | BD7: 2022 | BE7: 2022 | BF7: 2023 | BG7: 2023 | BH7: 2023 | BI7: 2023 | BJ7: 2024 | BK7: 2024 | BL7: 2024 | BM7: 2024 | BN7: 2025 | BO7: 2025 | BP7: 2025 | BQ7: 2025 | BR7: 2026 | BS7: 2026 | BT7: 2026 | BU7: 2026 | BV7: =YEAR(BV5) -> 2027 | BW7: 2027 | BX7: 2027 | BY7: 2027 | BZ7: 2028 | CA7: 2028 | CB7: 2028 | CC7: 2028 | CD7: 2029 | CE7: 2029 | CF7: 2029 | CG7: 2029 | CH7: 2030 | CI7: 2030 | CJ7: 2030 | CK7: 2030 | CL7: 2031 | CM7: 2031 | CN7: 2031 | CO7: 2031 | CP7: 2032 | CQ7: 2032 | CR7: 2032 | CS7: 2032 | CT7: 2033 | CU7: 2033 | CV7: 2033 | CW7: 2033 | CX7: 2034 | CY7: 2034 | CZ7: 2034 | DA7: 2034 | DB7: =YEAR(DB5) -> 2035 | DC7: 2035 | DD7: 2035 | DE7: 2035 | DF7: 2036 | DG7: 2036 | DH7: 2036 | DI7: 2036 | DJ7: 2037 | DK7: 2037 | DL7: 2037 | DM7: 2037 | DN7: 2038 | DO7: 2038 | DP7: 2038 | DQ7: 2038 | DR7: 2039 | DS7: 2039 | DT7: 2039 | DU7: 2039 | DV7: 2040 | DW7: 2040 | DX7: 2040 | DY7: 2040 | DZ7: 2041 | EA7: 2041 | EB7: 2041 | EC7: 2041 | ED7: 2042 | EE7: 2042 | EF7: 2042 | EG7: 2042 | EH7: =YEAR(EH5) -> 2043 | EI7: 2043 | EJ7: 2043 | EK7: 2043 | EL7: 2044 | EM7: 2044 | EN7: 2044 | EO7: 2044 | EP7: 2045 | EQ7: 2045 | ER7: 2045 | ES7: 2045 | ET7: 2046 | EU7: 2046 | EV7: 2046 | EW7: 2046 | EX7: 2047 | EY7: 2047 | EZ7: 2047 | FA7: 2047 | FB7: 2048 | FC7: 2048 | FD7: 2048 | FE7: 2048 | FF7: 2049 | FG7: 2049 | FH7: 2049 | FI7: 2049 | FJ7: 2050 | FK7: 2050 | FL7: 2050 | FM7: 2050 | FN7: =YEAR(FN5) -> 2051 | FO7: 2051 | FP7: 2051 | FQ7: 2051 | FR7: 2052 | FS7: 2052 | FT7: 2052 | FU7: 2052 | FV7: 2053 | FW7: 2053 | FX7: 2053 | FY7: 2053 | FZ7: 2054 | GA7: 2054 | GB7: 2054 | GC7: 2054 | GD7: 2055 | GE7: 2055 | GF7: 2055 | GG7: 2055 | GH7: 2056 | GI7: 2056 | GJ7: 2056 | GK7: 2056 | GL7: 2057 | GM7: 2057 | GN7: 2057 | GO7: 2057 | GP7: 2058 | GQ7: 2058 | GR7: 2058 | GS7: 2058 | GT7: =YEAR(GT5) -> 2059 | GU7: 2059 | GV7: 2059 | GW7: 2059 | GX7: 2060 | GY7: 2060 | GZ7: 2060 | HA7: 2060
B8: Operation Phase | G8: =Assumptions!E6 -> 2020-01-01 | H8: =Assumptions!E8 -> 2047-01-01 | I8: =COUNTIF(J8:HA8,TRUE)/4 -> 27 | J8: =AND(J5>=$G$8,J5<$H$8) -> FALSE | K8: FALSE | L8: FALSE | M8: FALSE | N8: FALSE | O8: FALSE | P8: FALSE | Q8: FALSE | R8: FALSE | S8: FALSE | T8: FALSE | U8: FALSE | V8: FALSE | W8: FALSE | X8: FALSE | Y8: FALSE | Z8: FALSE | AA8: FALSE | AB8: FALSE | AC8: FALSE | AD8: FALSE | AE8: FALSE | AF8: FALSE | AG8: FALSE | AH8: FALSE | AI8: FALSE | AJ8: FALSE | AK8: FALSE | AL8: FALSE | AM8: FALSE | AN8: FALSE | AO8: FALSE | AP8: =AND(AP5>=$G$8,AP5<$H$8) -> FALSE | AQ8: FALSE | AR8: FALSE | AS8: FALSE | AT8: TRUE | AU8: TRUE | AV8: TRUE | AW8: TRUE | AX8: TRUE | AY8: TRUE | AZ8: TRUE | BA8: TRUE | BB8: TRUE | BC8: TRUE | BD8: TRUE | BE8: TRUE | BF8: TRUE | BG8: TRUE | BH8: TRUE | BI8: TRUE | BJ8: TRUE | BK8: TRUE | BL8: TRUE | BM8: TRUE | BN8: TRUE | BO8: TRUE | BP8: TRUE | BQ8: TRUE | BR8: TRUE | BS8: TRUE | BT8: TRUE | BU8: TRUE | BV8: =AND(BV5>=$G$8,BV5<$H$8) -> TRUE | BW8: TRUE | BX8: TRUE | BY8: TRUE | BZ8: TRUE | CA8: TRUE | CB8: TRUE | CC8: TRUE | CD8: TRUE | CE8: TRUE | CF8: TRUE | CG8: TRUE | CH8: TRUE | CI8: TRUE | CJ8: TRUE | CK8: TRUE | CL8: TRUE | CM8: TRUE | CN8: TRUE | CO8: TRUE | CP8: TRUE | CQ8: TRUE | CR8: TRUE | CS8: TRUE | CT8: TRUE | CU8: TRUE | CV8: TRUE | CW8: TRUE | CX8: TRUE | CY8: TRUE | CZ8: TRUE | DA8: TRUE | DB8: =AND(DB5>=$G$8,DB5<$H$8) -> TRUE | DC8: TRUE | DD8: TRUE | DE8: TRUE | DF8: TRUE | DG8: TRUE | DH8: TRUE | DI8: TRUE | DJ8: TRUE | DK8: TRUE | DL8: TRUE | DM8: TRUE | DN8: TRUE | DO8: TRUE | DP8: TRUE | DQ8: TRUE | DR8: TRUE | DS8: TRUE | DT8: TRUE | DU8: TRUE | DV8: TRUE | DW8: TRUE | DX8: TRUE | DY8: TRUE | DZ8: TRUE | EA8: TRUE | EB8: TRUE | EC8: TRUE | ED8: TRUE | EE8: TRUE | EF8: TRUE | EG8: TRUE | EH8: =AND(EH5>=$G$8,EH5<$H$8) -> TRUE | EI8: TRUE | EJ8: TRUE | EK8: TRUE | EL8: TRUE | EM8: TRUE | EN8: TRUE | EO8: TRUE | EP8: TRUE | EQ8: TRUE | ER8: TRUE | ES8: TRUE | ET8: TRUE | EU8: TRUE | EV8: TRUE | EW8: TRUE | EX8: FALSE | EY8: FALSE | EZ8: FALSE | FA8: FALSE | FB8: FALSE | FC8: FALSE | FD8: FALSE | FE8: FALSE | FF8: FALSE | FG8: FALSE | FH8: FALSE | FI8: FALSE | FJ8: FALSE | FK8: FALSE | FL8: FALSE | FM8: FALSE | FN8: =AND(FN5>=$G$8,FN5<$H$8) -> FALSE | FO8: FALSE | FP8: FALSE | FQ8: FALSE | FR8: FALSE | FS8: FALSE | FT8: FALSE | FU8: FALSE | FV8: FALSE | FW8: FALSE | FX8: FALSE | FY8: FALSE | FZ8: FALSE | GA8: FALSE | GB8: FALSE | GC8: FALSE | GD8: FALSE | GE8: FALSE | GF8: FALSE | GG8: FALSE | GH8: FALSE | GI8: FALSE | GJ8: FALSE | GK8: FALSE | GL8: FALSE | GM8: FALSE | GN8: FALSE | GO8: FALSE | GP8: FALSE | GQ8: FALSE | GR8: FALSE | GS8: FALSE | GT8: =AND(GT5>=$G$8,GT5<$H$8) -> FALSE | GU8: FALSE | GV8: FALSE | GW8: FALSE | GX8: FALSE | GY8: FALSE | GZ8: FALSE | HA8: FALSE
A11: Operating Analysis
C12: Capacity of Road | H12: =Assumptions!E13 -> 50000 | J12: =$H$12*J8 -> 0 | K12: 0 | L12: 0 | M12: 0 | N12: 0 | O12: 0 | P12: 0 | Q12: 0 | R12: 0 | S12: 0 | T12: 0 | U12: 0 | V12: 0 | W12: 0 | X12: 0 | Y12: 0 | Z12: 0 | AA12: 0 | AB12: 0 | AC12: 0 | AD12: 0 | AE12: 0 | AF12: 0 | AG12: 0 | AH12: 0 | AI12: 0 | AJ12: 0 | AK12: 0 | AL12: 0 | AM12: 0 | AN12: 0 | AO12: 0 | AP12: =$H$12*AP8 -> 0 | AQ12: 0 | AR12: 0 | AS12: 0 | AT12: 50000 | AU12: 50000 | AV12: 50000 | AW12: 50000 | AX12: 50000 | AY12: 50000 | AZ12: 50000 | BA12: 50000 | BB12: 50000 | BC12: 50000 | BD12: 50000 | BE12: 50000 | BF12: 50000 | BG12: 50000 | BH12: 50000 | BI12: 50000 | BJ12: 50000 | BK12: 50000 | BL12: 50000 | BM12: 50000 | BN12: 50000 | BO12: 50000 | BP12: 50000 | BQ12: 50000 | BR12: 50000 | BS12: 50000 | BT12: 50000 | BU12: 50000 | BV12: =$H$12*BV8 -> 50000 | BW12: 50000 | BX12: 50000 | BY12: 50000 | BZ12: 50000 | CA12: 50000 | CB12: 50000 | CC12: 50000 | CD12: 50000 | CE12: 50000 | CF12: 50000 | CG12: 50000 | CH12: 50000 | CI12: 50000 | CJ12: 50000 | CK12: 50000 | CL12: 50000 | CM12: 50000 | CN12: 50000 | CO12: 50000 | CP12: 50000 | CQ12: 50000 | CR12: 50000 | CS12: 50000 | CT12: 50000 | CU12: 50000 | CV12: 50000 | CW12: 50000 | CX12: 50000 | CY12: 50000 | CZ12: 50000 | DA12: 50000 | DB12: =$H$12*DB8 -> 50000 | DC12: 50000 | DD12: 50000 | DE12: 50000 | DF12: 50000 | DG12: 50000 | DH12: 50000 | DI12: 50000 | DJ12: 50000 | DK12: 50000 | DL12: 50000 | DM12: 50000 | DN12: 50000 | DO12: 50000 | DP12: 50000 | DQ12: 50000 | DR12: 50000 | DS12: 50000 | DT12: 50000 | DU12: 50000 | DV12: 50000 | DW12: 50000 | DX12: 50000 | DY12: 50000 | DZ12: 50000 | EA12: 50000 | EB12: 50000 | EC12: 50000 | ED12: 50000 | EE12: 50000 | EF12: 50000 | EG12: 50000 | EH12: =$H$12*EH8 -> 50000 | EI12: 50000 | EJ12: 50000 | EK12: 50000 | EL12: 50000 | EM12: 50000 | EN12: 50000 | EO12: 50000 | EP12: 50000 | EQ12: 50000 | ER12: 50000 | ES12: 50000 | ET12: 50000 | EU12: 50000 | EV12: 50000 | EW12: 50000 | EX12: 0 | EY12: 0 | EZ12: 0 | FA12: 0 | FB12: 0 | FC12: 0 | FD12: 0 | FE12: 0 | FF12: 0 | FG12: 0 | FH12: 0 | FI12: 0 | FJ12: 0 | FK12: 0 | FL12: 0 | FM12: 0 | FN12: =$H$12*FN8 -> 0 | FO12: 0 | FP12: 0 | FQ12: 0 | FR12: 0 | FS12: 0 | FT12: 0 | FU12: 0 | FV12: 0 | FW12: 0 | FX12: 0 | FY12: 0 | FZ12: 0 | GA12: 0 | GB12: 0 | GC12: 0 | GD12: 0 | GE12: 0 | GF12: 0 | GG12: 0 | GH12: 0 | GI12: 0 | GJ12: 0 | GK12: 0 | GL12: 0 | GM12: 0 | GN12: 0 | GO12: 0 | GP12: 0 | GQ12: 0 | GR12: 0 | GS12: 0 | GT12: =$H$12*GT8 -> 0 | GU12: 0 | GV12: 0 | GW12: 0 | GX12: 0 | GY12: 0 | GZ12: 0 | HA12: 0
C13: Base Trafic | H13: =Scenario!D15/3 -> 2166.666667 | J13: =$H$13*J8 -> 0 | K13: 0 | L13: 0 | M13: 0 | N13: 0 | O13: 0 | P13: 0 | Q13: 0 | R13: 0 | S13: 0 | T13: 0 | U13: 0 | V13: 0 | W13: 0 | X13: 0 | Y13: 0 | Z13: 0 | AA13: 0 | AB13: 0 | AC13: 0 | AD13: 0 | AE13: 0 | AF13: 0 | AG13: 0 | AH13: 0 | AI13: 0 | AJ13: 0 | AK13: 0 | AL13: 0 | AM13: 0 | AN13: 0 | AO13: 0 | AP13: =$H$13*AP8 -> 0 | AQ13: 0 | AR13: 0 | AS13: 0 | AT13: 2166.666667 | AU13: 2166.666667 | AV13: 2166.666667 | AW13: 2166.666667 | AX13: 2166.666667 | AY13: 2166.666667 | AZ13: 2166.666667 | BA13: 2166.666667 | BB13: 2166.666667 | BC13: 2166.666667 | BD13: 2166.666667 | BE13: 2166.666667 | BF13: 2166.666667 | BG13: 2166.666667 | BH13: 2166.666667 | BI13: 2166.666667 | BJ13: 2166.666667 | BK13: 2166.666667 | BL13: 2166.666667 | BM13: 2166.666667 | BN13: 2166.666667 | BO13: 2166.666667 | BP13: 2166.666667 | BQ13: 2166.666667 | BR13: 2166.666667 | BS13: 2166.666667 | BT13: 2166.666667 | BU13: 2166.666667 | BV13: =$H$13*BV8 -> 2166.666667 | BW13: 2166.666667 | BX13: 2166.666667 | BY13: 2166.666667 | BZ13: 2166.666667 | CA13: 2166.666667 | CB13: 2166.666667 | CC13: 2166.666667 | CD13: 2166.666667 | CE13: 2166.666667 | CF13: 2166.666667 | CG13: 2166.666667 | CH13: 2166.666667 | CI13: 2166.666667 | CJ13: 2166.666667 | CK13: 2166.666667 | CL13: 2166.666667 | CM13: 2166.666667 | CN13: 2166.666667 | CO13: 2166.666667 | CP13: 2166.666667 | CQ13: 2166.666667 | CR13: 2166.666667 | CS13: 2166.666667 | CT13: 2166.666667 | CU13: 2166.666667 | CV13: 2166.666667 | CW13: 2166.666667 | CX13: 2166.666667 | CY13: 2166.666667 | CZ13: 2166.666667 | DA13: 2166.666667 | DB13: =$H$13*DB8 -> 2166.666667 | DC13: 2166.666667 | DD13: 2166.666667 | DE13: 2166.666667 | DF13: 2166.666667 | DG13: 2166.666667 | DH13: 2166.666667 | DI13: 2166.666667 | DJ13: 2166.666667 | DK13: 2166.666667 | DL13: 2166.666667 | DM13: 2166.666667 | DN13: 2166.666667 | DO13: 2166.666667 | DP13: 2166.666667 | DQ13: 2166.666667 | DR13: 2166.666667 | DS13: 2166.666667 | DT13: 2166.666667 | DU13: 2166.666667 | DV13: 2166.666667 | DW13: 2166.666667 | DX13: 2166.666667 | DY13: 2166.666667 | DZ13: 2166.666667 | EA13: 2166.666667 | EB13: 2166.666667 | EC13: 2166.666667 | ED13: 2166.666667 | EE13: 2166.666667 | EF13: 2166.666667 | EG13: 2166.666667 | EH13: =$H$13*EH8 -> 2166.666667 | EI13: 2166.666667 | EJ13: 2166.666667 | EK13: 2166.666667 | EL13: 2166.666667 | EM13: 2166.666667 | EN13: 2166.666667 | EO13: 2166.666667 | EP13: 2166.666667 | EQ13: 2166.666667 | ER13: 2166.666667 | ES13: 2166.666667 | ET13: 2166.666667 | EU13: 2166.666667 | EV13: 2166.666667 | EW13: 2166.666667 | EX13: 0 | EY13: 0 | EZ13: 0 | FA13: 0 | FB13: 0 | FC13: 0 | FD13: 0 | FE13: 0 | FF13: 0 | FG13: 0 | FH13: 0 | FI13: 0 | FJ13: 0 | FK13: 0 | FL13: 0 | FM13: 0 | FN13: =$H$13*FN8 -> 0 | FO13: 0 | FP13: 0 | FQ13: 0 | FR13: 0 | FS13: 0 | FT13: 0 | FU13: 0 | FV13: 0 | FW13: 0 | FX13: 0 | FY13: 0 | FZ13: 0 | GA13: 0 | GB13: 0 | GC13: 0 | GD13: 0 | GE13: 0 | GF13: 0 | GG13: 0 | GH13: 0 | GI13: 0 | GJ13: 0 | GK13: 0 | GL13: 0 | GM13: 0 | GN13: 0 | GO13: 0 | GP13: 0 | GQ13: 0 | GR13: 0 | GS13: 0 | GT13: =$H$13*GT8 -> 0 | GU13: 0 | GV13: 0 | GW13: 0 | GX13: 0 | GY13: 0 | GZ13: 0 | HA13: 0
C14: Growth Rate | J14: =LOOKUP(J5,Assumptions!15:15,Assumptions!17:17) -> 0 | K14: =LOOKUP(K5,Assumptions!15:15,Assumptions!17:17) -> 0 | L14: =LOOKUP(L5,Assumptions!15:15,Assumptions!17:17) -> 0 | M14: =LOOKUP(M5,Assumptions!15:15,Assumptions!17:17) -> 0 | N14: =LOOKUP(N5,Assumptions!15:15,Assumptions!17:17) -> 0 | O14: =LOOKUP(O5,Assumptions!15:15,Assumptions!17:17) -> 0 | P14: =LOOKUP(P5,Assumptions!15:15,Assumptions!17:17) -> 0 | Q14: =LOOKUP(Q5,Assumptions!15:15,Assumptions!17:17) -> 0 | R14: =LOOKUP(R5,Assumptions!15:15,Assumptions!17:17) -> 0 | S14: =LOOKUP(S5,Assumptions!15:15,Assumptions!17:17) -> 0 | T14: =LOOKUP(T5,Assumptions!15:15,Assumptions!17:17) -> 0 | U14: =LOOKUP(U5,Assumptions!15:15,Assumptions!17:17) -> 0 | V14: =LOOKUP(V5,Assumptions!15:15,Assumptions!17:17) -> 0 | W14: =LOOKUP(W5,Assumptions!15:15,Assumptions!17:17) -> 0 | X14: =LOOKUP(X5,Assumptions!15:15,Assumptions!17:17) -> 0 | Y14: =LOOKUP(Y5,Assumptions!15:15,Assumptions!17:17) -> 0 | Z14: =LOOKUP(Z5,Assumptions!15:15,Assumptions!17:17) -> 0 | AA14: =LOOKUP(AA5,Assumptions!15:15,Assumptions!17:17) -> 0 | AB14: =LOOKUP(AB5,Assumptions!15:15,Assumptions!17:17) -> 0 | AC14: =LOOKUP(AC5,Assumptions!15:15,Assumptions!17:17) -> 0 | AD14: =LOOKUP(AD5,Assumptions!15:15,Assumptions!17:17) -> 0 | AE14: =LOOKUP(AE5,Assumptions!15:15,Assumptions!17:17) -> 0 | AF14: =LOOKUP(AF5,Assumptions!15:15,Assumptions!17:17) -> 0 | AG14: =LOOKUP(AG5,Assumptions!15:15,Assumptions!17:17) -> 0 | AH14: =LOOKUP(AH5,Assumptions!15:15,Assumptions!17:17) -> 0 | AI14: =LOOKUP(AI5,Assumptions!15:15,Assumptions!17:17) -> 0 | AJ14: =LOOKUP(AJ5,Assumptions!15:15,Assumptions!17:17) -> 0 | AK14: =LOOKUP(AK5,Assumptions!15:15,Assumptions!17:17) -> 0 | AL14: =LOOKUP(AL5,Assumptions!15:15,Assumptions!17:17) -> 0 | AM14: =LOOKUP(AM5,Assumptions!15:15,Assumptions!17:17) -> 0 | AN14: =LOOKUP(AN5,Assumptions!15:15,Assumptions!17:17) -> 0 | AO14: =LOOKUP(AO5,Assumptions!15:15,Assumptions!17:17) -> 0 | AP14: =LOOKUP(AP5,Assumptions!15:15,Assumptions!17:17) -> 0 | AQ14: =LOOKUP(AQ5,Assumptions!15:15,Assumptions!17:17) -> 0 | AR14: =LOOKUP(AR5,Assumptions!15:15,Assumptions!17:17) -> 0 | AS14: =LOOKUP(AS5,Assumptions!15:15,Assumptions!17:17) -> 0 | AT14: =LOOKUP(AT5,Assumptions!15:15,Assumptions!17:17) -> 0 | AU14: =LOOKUP(AU5,Assumptions!15:15,Assumptions!17:17) -> 0 | AV14: =LOOKUP(AV5,Assumptions!15:15,Assumptions!17:17) -> 0 | AW14: =LOOKUP(AW5,Assumptions!15:15,Assumptions!17:17) -> 0 | AX14: =LOOKUP(AX5,Assumptions!15:15,Assumptions!17:17) -> 0 | AY14: =LOOKUP(AY5,Assumptions!15:15,Assumptions!17:17) -> 0.004962931573 | AZ14: =LOOKUP(AZ5,Assumptions!15:15,Assumptions!17:17) -> 0.004962931573 | BA14: =LOOKUP(BA5,Assumptions!15:15,Assumptions!17:17) -> 0.007417071778 | BB14: =LOOKUP(BB5,Assumptions!15:15,Assumptions!17:17) -> 0.007417071778 | BC14: =LOOKUP(BC5,Assumptions!15:15,Assumptions!17:17) -> 0.01227223443 | BD14: =LOOKUP(BD5,Assumptions!15:15,Assumptions!17:17) -> -0.002509430066 | BE14: =LOOKUP(BE5,Assumptions!15:15,Assumptions!17:17) -> -0.002509430066 | BF14: =LOOKUP(BF5,Assumptions!15:15,Assumptions!17:17) -> 0.001247663063 | BG14: =LOOKUP(BG5,Assumptions!15:15,Assumptions!17:17) -> 0.001247663063 | BH14: =LOOKUP(BH5,Assumptions!15:15,Assumptions!17:17) -> 0.001247663063 | BI14: =LOOKUP(BI5,Assumptions!15:15,Assumptions!17:17) -> 0.001247663063 | BJ14: =LOOKUP(BJ5,Assumptions!15:15,Assumptions!17:17) -> 0.001247663063 | BK14: =LOOKUP(BK5,Assumptions!15:15,Assumptions!17:17) -> 0.001247663063 | BL14: =LOOKUP(BL5,Assumptions!15:15,Assumptions!17:17) -> 0.001247663063 | BM14: =LOOKUP(BM5,Assumptions!15:15,Assumptions!17:17) -> 0.001247663063 | BN14: =LOOKUP(BN5,Assumptions!15:15,Assumptions!17:17) -> 0.001247663063 | BO14: =LOOKUP(BO5,Assumptions!15:15,Assumptions!17:17) -> 0.001247663063 | BP14: =LOOKUP(BP5,Assumptions!15:15,Assumptions!17:17) -> 0.001247663063 | BQ14: =LOOKUP(BQ5,Assumptions!15:15,Assumptions!17:17) -> 0.001247663063 | BR14: =LOOKUP(BR5,Assumptions!15:15,Assumptions!17:17) -> 0.001247663063 | BS14: =LOOKUP(BS5,Assumptions!15:15,Assumptions!17:17) -> 0.001247663063 | BT14: =LOOKUP(BT5,Assumptions!15:15,Assumptions!17:17) -> 0.001247663063 | BU14: =LOOKUP(BU5,Assumptions!15:15,Assumptions!17:17) -> 0.001247663063 | BV14: =LOOKUP(BV5,Assumptions!15:15,Assumptions!17:17) -> 0.001247663063 | BW14: =LOOKUP(BW5,Assumptions!15:15,Assumptions!17:17) -> 0.001247663063 | BX14: =LOOKUP(BX5,Assumptions!15:15,Assumptions!17:17) -> 0.001247663063 | BY14: =LOOKUP(BY5,Assumptions!15:15,Assumptions!17:17) -> 0.001247663063 | BZ14: =LOOKUP(BZ5,Assumptions!15:15,Assumptions!17:17) -> 0.001247663063 | CA14: =LOOKUP(CA5,Assumptions!15:15,Assumptions!17:17) -> 0.001247663063 | CB14: =LOOKUP(CB5,Assumptions!15:15,Assumptions!17:17) -> 0.001247663063 | CC14: =LOOKUP(CC5,Assumptions!15:15,Assumptions!17:17) -> 0.001247663063 | CD14: =LOOKUP(CD5,Assumptions!15:15,Assumptions!17:17) -> 0.001247663063 | CE14: =LOOKUP(CE5,Assumptions!15:15,Assumptions!17:17) -> 0.001247663063 | CF14: =LOOKUP(CF5,Assumptions!15:15,Assumptions!17:17) -> 0.001247663063 | CG14: =LOOKUP(CG5,Assumptions!15:15,Assumptions!17:17) -> 0.001247663063 | CH14: =LOOKUP(CH5,Assumptions!15:15,Assumptions!17:17) -> 0.001247663063 | CI14: =LOOKUP(CI5,Assumptions!15:15,Assumptions!17:17) -> 0.001247663063 | CJ14: =LOOKUP(CJ5,Assumptions!15:15,Assumptions!17:17) -> 0.001247663063 | CK14: =LOOKUP(CK5,Assumptions!15:15,Assumptions!17:17) -> 0.001247663063 | CL14: =LOOKUP(CL5,Assumptions!15:15,Assumptions!17:17) -> 0.001247663063 | CM14: =LOOKUP(CM5,Assumptions!15:15,Assumptions!17:17) -> 0.001247663063 | CN14: =LOOKUP(CN5,Assumptions!15:15,Assumptions!17:17) -> 0.001247663063 | CO14: =LOOKUP(CO5,Assumptions!15:15,Assumptions!17:17) -> 0.001247663063 | CP14: =LOOKUP(CP5,Assumptions!15:15,Assumptions!17:17) -> 0.001247663063 | CQ14: =LOOKUP(CQ5,Assumptions!15:15,Assumptions!17:17) -> 0.001247663063 | CR14: =LOOKUP(CR5,Assumptions!15:15,Assumptions!17:17) -> 0.001247663063 | CS14: =LOOKUP(CS5,Assumptions!15:15,Assumptions!17:17) -> 0.001247663063 | CT14: =LOOKUP(CT5,Assumptions!15:15,Assumptions!17:17) -> 0.001247663063 | CU14: =LOOKUP(CU5,Assumptions!15:15,Assumptions!17:17) -> 0.001247663063 | CV14: =LOOKUP(CV5,Assumptions!15:15,Assumptions!17:17) -> 0.001247663063 | CW14: =LOOKUP(CW5,Assumptions!15:15,Assumptions!17:17) -> 0.001247663063 | CX14: =LOOKUP(CX5,Assumptions!15:15,Assumptions!17:17) -> 0.001247663063 | CY14: =LOOKUP(CY5,Assumptions!15:15,Assumptions!17:17) -> 0.001247663063 | CZ14: =LOOKUP(CZ5,Assumptions!15:15,Assumptions!17:17) -> 0.001247663063 | DA14: =LOOKUP(DA5,Assumptions!15:15,Assumptions!17:17) -> 0.001247663063 | DB14: =LOOKUP(DB5,Assumptions!15:15,Assumptions!17:17) -> 0.001247663063 | DC14: =LOOKUP(DC5,Assumptions!15:15,Assumptions!17:17) -> 0.001247663063 | DD14: =LOOKUP(DD5,Assumptions!15:15,Assumptions!17:17) -> 0.001247663063 | DE14: =LOOKUP(DE5,Assumptions!15:15,Assumptions!17:17) -> 0.001247663063 | DF14: =LOOKUP(DF5,Assumptions!15:15,Assumptions!17:17) -> 0.001247663063 | DG14: =LOOKUP(DG5,Assumptions!15:15,Assumptions!17:17) -> 0.001247663063 | DH14: =LOOKUP(DH5,Assumptions!15:15,Assumptions!17:17) -> 0.001247663063 | DI14: =LOOKUP(DI5,Assumptions!15:15,Assumptions!17:17) -> 0.001247663063 | DJ14: =LOOKUP(DJ5,Assumptions!15:15,Assumptions!17:17) -> 0.001247663063 | DK14: =LOOKUP(DK5,Assumptions!15:15,Assumptions!17:17) -> 0.001247663063 | DL14: =LOOKUP(DL5,Assumptions!15:15,Assumptions!17:17) -> 0.001247663063 | DM14: =LOOKUP(DM5,Assumptions!15:15,Assumptions!17:17) -> 0.001247663063 | DN14: =LOOKUP(DN5,Assumptions!15:15,Assumptions!17:17) -> 0.001247663063 | DO14: =LOOKUP(DO5,Assumptions!15:15,Assumptions!17:17) -> 0.001247663063 | DP14: =LOOKUP(DP5,Assumptions!15:15,Assumptions!17:17) -> 0.001247663063 | DQ14: =LOOKUP(DQ5,Assumptions!15:15,Assumptions!17:17) -> 0.001247663063 | DR14: =LOOKUP(DR5,Assumptions!15:15,Assumptions!17:17) -> 0.001247663063 | DS14: =LOOKUP(DS5,Assumptions!15:15,Assumptions!17:17) -> 0.001247663063 | DT14: =LOOKUP(DT5,Assumptions!15:15,Assumptions!17:17) -> 0.001247663063 | DU14: =LOOKUP(DU5,Assumptions!15:15,Assumptions!17:17) -> 0.001247663063 | DV14: =LOOKUP(DV5,Assumptions!15:15,Assumptions!17:17) -> 0.001247663063 | DW14: =LOOKUP(DW5,Assumptions!15:15,Assumptions!17:17) -> 0.001247663063 | DX14: =LOOKUP(DX5,Assumptions!15:15,Assumptions!17:17) -> 0.001247663063 | DY14: =LOOKUP(DY5,Assumptions!15:15,Assumptions!17:17) -> 0.001247663063 | DZ14: =LOOKUP(DZ5,Assumptions!15:15,Assumptions!17:17) -> 0.001247663063 | EA14: =LOOKUP(EA5,Assumptions!15:15,Assumptions!17:17) -> 0.001247663063 | EB14: =LOOKUP(EB5,Assumptions!15:15,Assumptions!17:17) -> 0.001247663063 | EC14: =LOOKUP(EC5,Assumptions!15:15,Assumptions!17:17) -> 0.001247663063 | ED14: =LOOKUP(ED5,Assumptions!15:15,Assumptions!17:17) -> 0.001247663063 | EE14: =LOOKUP(EE5,Assumptions!15:15,Assumptions!17:17) -> 0.001247663063 | EF14: =LOOKUP(EF5,Assumptions!15:15,Assumptions!17:17) -> 0.001247663063 | EG14: =LOOKUP(EG5,Assumptions!15:15,Assumptions!17:17) -> 0.001247663063 | EH14: =LOOKUP(EH5,Assumptions!15:15,Assumptions!17:17) -> 0.001247663063 | EI14: =LOOKUP(EI5,Assumptions!15:15,Assumptions!17:17) -> 0.001247663063 | EJ14: =LOOKUP(EJ5,Assumptions!15:15,Assumptions!17:17) -> 0.001247663063 | EK14: =LOOKUP(EK5,Assumptions!15:15,Assumptions!17:17) -> 0.001247663063 | EL14: =LOOKUP(EL5,Assumptions!15:15,Assumptions!17:17) -> 0.001247663063 | EM14: =LOOKUP(EM5,Assumptions!15:15,Assumptions!17:17) -> 0.001247663063 | EN14: =LOOKUP(EN5,Assumptions!15:15,Assumptions!17:17) -> 0.001247663063 | EO14: =LOOKUP(EO5,Assumptions!15:15,Assumptions!17:17) -> 0.001247663063 | EP14: =LOOKUP(EP5,Assumptions!15:15,Assumptions!17:17) -> 0.001247663063 | EQ14: =LOOKUP(EQ5,Assumptions!15:15,Assumptions!17:17) -> 0.001247663063 | ER14: =LOOKUP(ER5,Assumptions!15:15,Assumptions!17:17) -> 0.001247663063 | ES14: =LOOKUP(ES5,Assumptions!15:15,Assumptions!17:17) -> 0.001247663063 | ET14: =LOOKUP(ET5,Assumptions!15:15,Assumptions!17:17) -> 0.001247663063 | EU14: =LOOKUP(EU5,Assumptions!15:15,Assumptions!17:17) -> 0.001247663063 | EV14: =LOOKUP(EV5,Assumptions!15:15,Assumptions!17:17) -> 0.001247663063 | EW14: =LOOKUP(EW5,Assumptions!15:15,Assumptions!17:17) -> 0.001247663063 | EX14: =LOOKUP(EX5,Assumptions!15:15,Assumptions!17:17) -> 0.001247663063 | EY14: =LOOKUP(EY5,Assumptions!15:15,Assumptions!17:17) -> 0.001247663063 | EZ14: =LOOKUP(EZ5,Assumptions!15:15,Assumptions!17:17) -> 0.001247663063 | FA14: =LOOKUP(FA5,Assumptions!15:15,Assumptions!17:17) -> 0.001247663063 | FB14: =LOOKUP(FB5,Assumptions!15:15,Assumptions!17:17) -> 0.001247663063 | FC14: =LOOKUP(FC5,Assumptions!15:15,Assumptions!17:17) -> 0.001247663063 | FD14: =LOOKUP(FD5,Assumptions!15:15,Assumptions!17:17) -> 0.001247663063 | FE14: =LOOKUP(FE5,Assumptions!15:15,Assumptions!17:17) -> 0.001247663063 | FF14: =LOOKUP(FF5,Assumptions!15:15,Assumptions!17:17) -> 0.001247663063 | FG14: =LOOKUP(FG5,Assumptions!15:15,Assumptions!17:17) -> 0.001247663063 | FH14: =LOOKUP(FH5,Assumptions!15:15,Assumptions!17:17) -> 0.001247663063 | FI14: =LOOKUP(FI5,Assumptions!15:15,Assumptions!17:17) -> 0.001247663063 | FJ14: =LOOKUP(FJ5,Assumptions!15:15,Assumptions!17:17) -> 0.001247663063 | FK14: =LOOKUP(FK5,Assumptions!15:15,Assumptions!17:17) -> 0.001247663063 | FL14: =LOOKUP(FL5,Assumptions!15:15,Assumptions!17:17) -> 0.001247663063 | FM14: =LOOKUP(FM5,Assumptions!15:15,Assumptions!17:17) -> 0.001247663063 | FN14: =LOOKUP(FN5,Assumptions!15:15,Assumptions!17:17) -> 0.001247663063 | FO14: =LOOKUP(FO5,Assumptions!15:15,Assumptions!17:17) -> 0.001247663063 | FP14: =LOOKUP(FP5,Assumptions!15:15,Assumptions!17:17) -> 0.001247663063 | FQ14: =LOOKUP(FQ5,Assumptions!15:15,Assumptions!17:17) -> 0.001247663063 | FR14: =LOOKUP(FR5,Assumptions!15:15,Assumptions!17:17) -> 0.001247663063 | FS14: =LOOKUP(FS5,Assumptions!15:15,Assumptions!17:17) -> 0.001247663063 | FT14: =LOOKUP(FT5,Assumptions!15:15,Assumptions!17:17) -> 0.001247663063 | FU14: =LOOKUP(FU5,Assumptions!15:15,Assumptions!17:17) -> 0.001247663063 | FV14: =LOOKUP(FV5,Assumptions!15:15,Assumptions!17:17) -> 0.001247663063 | FW14: =LOOKUP(FW5,Assumptions!15:15,Assumptions!17:17) -> 0.001247663063 | FX14: =LOOKUP(FX5,Assumptions!15:15,Assumptions!17:17) -> 0.001247663063 | FY14: =LOOKUP(FY5,Assumptions!15:15,Assumptions!17:17) -> 0.001247663063 | FZ14: =LOOKUP(FZ5,Assumptions!15:15,Assumptions!17:17) -> 0.001247663063 | GA14: =LOOKUP(GA5,Assumptions!15:15,Assumptions!17:17) -> 0.001247663063 | GB14: =LOOKUP(GB5,Assumptions!15:15,Assumptions!17:17) -> 0.001247663063 | GC14: =LOOKUP(GC5,Assumptions!15:15,Assumptions!17:17) -> 0.001247663063 | GD14: =LOOKUP(GD5,Assumptions!15:15,Assumptions!17:17) -> 0.001247663063 | GE14: =LOOKUP(GE5,Assumptions!15:15,Assumptions!17:17) -> 0.001247663063 | GF14: =LOOKUP(GF5,Assumptions!15:15,Assumptions!17:17) -> 0.001247663063 | GG14: =LOOKUP(GG5,Assumptions!15:15,Assumptions!17:17) -> 0.001247663063 | GH14: =LOOKUP(GH5,Assumptions!15:15,Assumptions!17:17) -> 0.001247663063 | GI14: =LOOKUP(GI5,Assumptions!15:15,Assumptions!17:17) -> 0.001247663063 | GJ14: =LOOKUP(GJ5,Assumptions!15:15,Assumptions!17:17) -> 0.001247663063 | GK14: =LOOKUP(GK5,Assumptions!15:15,Assumptions!17:17) -> 0.001247663063 | GL14: =LOOKUP(GL5,Assumptions!15:15,Assumptions!17:17) -> 0.001247663063 | GM14: =LOOKUP(GM5,Assumptions!15:15,Assumptions!17:17) -> 0.001247663063 | GN14: =LOOKUP(GN5,Assumptions!15:15,Assumptions!17:17) -> 0.001247663063 | GO14: =LOOKUP(GO5,Assumptions!15:15,Assumptions!17:17) -> 0.001247663063 | GP14: =LOOKUP(GP5,Assumptions!15:15,Assumptions!17:17) -> 0.001247663063 | GQ14: =LOOKUP(GQ5,Assumptions!15:15,Assumptions!17:17) -> 0.001247663063 | GR14: =LOOKUP(GR5,Assumptions!15:15,Assumptions!17:17) -> 0.001247663063 | GS14: =LOOKUP(GS5,Assumptions!15:15,Assumptions!17:17) -> 0.001247663063 | GT14: =LOOKUP(GT5,Assumptions!15:15,Assumptions!17:17) -> 0.001247663063 | GU14: =LOOKUP(GU5,Assumptions!15:15,Assumptions!17:17) -> 0.001247663063 | GV14: =LOOKUP(GV5,Assumptions!15:15,Assumptions!17:17) -> 0.001247663063 | GW14: =LOOKUP(GW5,Assumptions!15:15,Assumptions!17:17) -> 0.001247663063 | GX14: =LOOKUP(GX5,Assumptions!15:15,Assumptions!17:17) -> 0.001247663063 | GY14: =LOOKUP(GY5,Assumptions!15:15,Assumptions!17:17) -> 0.001247663063 | GZ14: =LOOKUP(GZ5,Assumptions!15:15,Assumptions!17:17) -> 0.001247663063 | HA14: =LOOKUP(HA5,Assumptions!15:15,Assumptions!17:17) -> 0.001247663063
C15: Growth Index | I15: =Scenario!J15 -> 3 | J15: =I15*(1+J14) -> 3 | K15: =J15*(1+K14) -> 3 | L15: =K15*(1+L14) -> 3 | M15: 3 | N15: 3 | O15: 3 | P15: 3 | Q15: 3 | R15: 3 | S15: 3 | T15: 3 | U15: 3 | V15: 3 | W15: 3 | X15: 3 | Y15: 3 | Z15: 3 | AA15: 3 | AB15: 3 | AC15: 3 | AD15: 3 | AE15: 3 | AF15: 3 | AG15: 3 | AH15: 3 | AI15: 3 | AJ15: 3 | AK15: 3 | AL15: 3 | AM15: 3 | AN15: 3 | AO15: 3 | AP15: 3 | AQ15: 3 | AR15: 3 | AS15: 3 | AT15: 3 | AU15: 3 | AV15: 3 | AW15: 3 | AX15: 3 | AY15: 3.014888795 | AZ15: 3.029851482 | BA15: 3.052324107 | BB15: 3.074963414 | BC15: 3.112700086 | BD15: 3.104888983 | BE15: 3.097097481 | BF15: 3.100961615 | BG15: 3.104830571 | BH15: 3.108704353 | BI15: 3.112582969 | BJ15: 3.116466424 | BK15: 3.120354724 | BL15: 3.124247875 | BM15: 3.128145884 | BN15: 3.132048756 | BO15: 3.135956497 | BP15: 3.139869114 | BQ15: 3.143786613 | BR15: 3.147708999 | BS15: 3.15163628 | BT15: 3.15556846 | BU15: 3.159505546 | BV15: 3.163447544 | BW15: =BV15*(1+BW14) -> 3.167394461 | BX15: 3.171346302 | BY15: 3.175303074 | BZ15: 3.179264782 | CA15: 3.183231433 | CB15: 3.187203034 | CC15: 3.191179589 | CD15: 3.195161106 | CE15: 3.199147591 | CF15: 3.203139049 | CG15: 3.207135487 | CH15: 3.211136912 | CI15: 3.215143329 | CJ15: 3.219154744 | CK15: 3.223171165 | CL15: 3.227192596 | CM15: 3.231219045 | CN15: 3.235250518 | CO15: 3.23928702 | CP15: 3.243328559 | CQ15: 3.24737514 | CR15: 3.25142677 | CS15: 3.255483455 | CT15: 3.259545202 | CU15: 3.263612016 | CV15: 3.267683904 | CW15: 3.271760873 | CX15: 3.275842928 | CY15: 3.279930076 | CZ15: 3.284022324 | DA15: 3.288119677 | DB15: 3.292222143 | DC15: 3.296329727 | DD15: 3.300442435 | DE15: 3.304560276 | DF15: 3.308683253 | DG15: 3.312811375 | DH15: 3.316944648 | DI15: 3.321083077 | DJ15: 3.32522667 | DK15: 3.329375432 | DL15: 3.333529371 | DM15: 3.337688492 | DN15: 3.341852803 | DO15: 3.346022309 | DP15: 3.350197018 | DQ15: 3.354376935 | DR15: 3.358562067 | DS15: 3.362752421 | DT15: 3.366948003 | DU15: 3.371148819 | DV15: 3.375354877 | DW15: 3.379566183 | DX15: 3.383782743 | DY15: 3.388004564 | DZ15: 3.392231652 | EA15: 3.396464014 | EB15: 3.400701656 | EC15: 3.404944586 | ED15: 3.40919281 | EE15: 3.413446334 | EF15: 3.417705165 | EG15: 3.421969309 | EH15: 3.426238774 | EI15: =EH15*(1+EI14) -> 3.430513566 | EJ15: 3.434793691 | EK15: 3.439079156 | EL15: 3.443369968 | EM15: 3.447666133 | EN15: 3.451967659 | EO15: 3.456274552 | EP15: 3.460586818 | EQ15: 3.464904464 | ER15: 3.469227497 | ES15: 3.473555924 | ET15: 3.477889752 | EU15: 3.482228986 | EV15: 3.486573635 | EW15: 3.490923704 | EX15: 3.495279201 | EY15: 3.499640131 | EZ15: 3.504006503 | FA15: 3.508378322 | FB15: 3.512755597 | FC15: 3.517138332 | FD15: 3.521526536 | FE15: 3.525920214 | FF15: 3.530319375 | FG15: 3.534724024 | FH15: 3.539134168 | FI15: 3.543549815 | FJ15: 3.547970971 | FK15: 3.552397644 | FL15: 3.556829839 | FM15: 3.561267564 | FN15: 3.565710826 | FO15: 3.570159632 | FP15: 3.574613988 | FQ15: 3.579073902 | FR15: 3.58353938 | FS15: 3.58801043 | FT15: 3.592487058 | FU15: 3.596969272 | FV15: 3.601457077 | FW15: 3.605950482 | FX15: 3.610449493 | FY15: 3.614954118 | FZ15: 3.619464363 | GA15: 3.623980235 | GB15: 3.628501741 | GC15: 3.633028889 | GD15: 3.637561684 | GE15: 3.642100136 | GF15: 3.64664425 | GG15: 3.651194033 | GH15: 3.655749493 | GI15: 3.660310636 | GJ15: 3.664877471 | GK15: 3.669450003 | GL15: 3.67402824 | GM15: 3.67861219 | GN15: 3.683201858 | GO15: 3.687797253 | GP15: 3.692398382 | GQ15: 3.697005251 | GR15: 3.701617868 | GS15: 3.706236239 | GT15: 3.710860373 | GU15: =GT15*(1+GU14) -> 3.715490277 | GV15: 3.720125957 | GW15: 3.724767421 | GX15: 3.729414675 | GY15: 3.734067728 | GZ15: 3.738726587 | HA15: 3.743391258
C16: Traffic Before Seasonality | J16: =J13*J15 -> 0 | K16: =K13*K15 -> 0 | L16: 0 | M16: 0 | N16: 0 | O16: 0 | P16: 0 | Q16: 0 | R16: 0 | S16: 0 | T16: 0 | U16: 0 | V16: 0 | W16: 0 | X16: 0 | Y16: 0 | Z16: 0 | AA16: 0 | AB16: 0 | AC16: 0 | AD16: 0 | AE16: 0 | AF16: 0 | AG16: 0 | AH16: 0 | AI16: 0 | AJ16: 0 | AK16: 0 | AL16: 0 | AM16: 0 | AN16: 0 | AO16: 0 | AP16: 0 | AQ16: 0 | AR16: 0 | AS16: 0 | AT16: 6500 | AU16: 6500 | AV16: 6500 | AW16: 6500 | AX16: 6500 | AY16: 6532.259055 | AZ16: 6564.67821 | BA16: 6613.368899 | BB16: 6662.420731 | BC16: 6744.18352 | BD16: 6727.259463 | BE16: 6710.377876 | BF16: 6718.750167 | BG16: 6727.132903 | BH16: 6735.526099 | BI16: 6743.929766 | BJ16: 6752.343918 | BK16: 6760.768568 | BL16: 6769.203729 | BM16: 6777.649414 | BN16: 6786.105637 | BO16: 6794.572411 | BP16: 6803.049748 | BQ16: 6811.537662 | BR16: 6820.036165 | BS16: 6828.545273 | BT16: 6837.064996 | BU16: 6845.59535 | BV16: 6854.136346 | BW16: =BW13*BW15 -> 6862.687999 | BX16: 6871.250321 | BY16: 6879.823327 | BZ16: 6888.407028 | CA16: 6897.001439 | CB16: 6905.606573 | CC16: 6914.222443 | CD16: 6922.849063 | CE16: 6931.486446 | CF16: 6940.134606 | CG16: 6948.793555 | CH16: 6957.463308 | CI16: 6966.143878 | CJ16: 6974.835279 | CK16: 6983.537523 | CL16: 6992.250625 | CM16: 7000.974598 | CN16: 7009.709455 | CO16: 7018.455211 | CP16: 7027.211878 | CQ16: 7035.979471 | CR16: 7044.758003 | CS16: 7053.547487 | CT16: 7062.347938 | CU16: 7071.159368 | CV16: 7079.981793 | CW16: 7088.815224 | CX16: 7097.659677 | CY16: 7106.515165 | CZ16: 7115.381702 | DA16: 7124.2593 | DB16: 7133.147976 | DC16: 7142.047741 | DD16: 7150.95861 | DE16: 7159.880597 | DF16: 7168.813716 | DG16: 7177.75798 | DH16: 7186.713403 | DI16: 7195.68 | DJ16: 7204.657784 | DK16: 7213.646769 | DL16: 7222.64697 | DM16: 7231.6584 | DN16: 7240.681073 | DO16: 7249.715003 | DP16: 7258.760205 | DQ16: 7267.816692 | DR16: 7276.884478 | DS16: 7285.963578 | DT16: 7295.054006 | DU16: 7304.155775 | DV16: 7313.268901 | DW16: 7322.393396 | DX16: 7331.529276 | DY16: 7340.676554 | DZ16: 7349.835245 | EA16: 7359.005363 | EB16: 7368.186922 | EC16: 7377.379937 | ED16: 7386.584421 | EE16: 7395.80039 | EF16: 7405.027857 | EG16: 7414.266837 | EH16: 7423.517344 | EI16: =EI13*EI15 -> 7432.779392 | EJ16: 7442.052996 | EK16: 7451.338171 | EL16: 7460.63493 | EM16: 7469.943289 | EN16: 7479.263261 | EO16: 7488.594862 | EP16: 7497.938105 | EQ16: 7507.293005 | ER16: 7516.659578 | ES16: 7526.037836 | ET16: 7535.427795 | EU16: 7544.82947 | EV16: 7554.242875 | EW16: 7563.668025 | EX16: 0 | EY16: 0 | EZ16: 0 | FA16: 0 | FB16: 0 | FC16: 0 | FD16: 0 | FE16: 0 | FF16: 0 | FG16: 0 | FH16: 0 | FI16: 0 | FJ16: 0 | FK16: 0 | FL16: 0 | FM16: 0 | FN16: 0 | FO16: 0 | FP16: 0 | FQ16: 0 | FR16: 0 | FS16: 0 | FT16: 0 | FU16: 0 | FV16: 0 | FW16: 0 | FX16: 0 | FY16: 0 | FZ16: 0 | GA16: 0 | GB16: 0 | GC16: 0 | GD16: 0 | GE16: 0 | GF16: 0 | GG16: 0 | GH16: 0 | GI16: 0 | GJ16: 0 | GK16: 0 | GL16: 0 | GM16: 0 | GN16: 0 | GO16: 0 | GP16: 0 | GQ16: 0 | GR16: 0 | GS16: 0 | GT16: 0 | GU16: =GU13*GU15 -> 0 | GV16: 0 | GW16: 0 | GX16: 0 | GY16: 0 | GZ16: 0 | HA16: 0
C17: Month | J17: =MONTH(J5) -> 1 | K17: 2 | L17: 3 | M17: 4 | N17: 5 | O17: 6 | P17: 7 | Q17: 8 | R17: 9 | S17: 10 | T17: 11 | U17: 12 | V17: 1 | W17: 2 | X17: 3 | Y17: 4 | Z17: 5 | AA17: 6 | AB17: 7 | AC17: 8 | AD17: 9 | AE17: 10 | AF17: 11 | AG17: 12 | AH17: 1 | AI17: 2 | AJ17: 3 | AK17: 4 | AL17: 5 | AM17: 6 | AN17: 7 | AO17: 8 | AP17: =MONTH(AP5) -> 9 | AQ17: 10 | AR17: 11 | AS17: 12 | AT17: 1 | AU17: 4 | AV17: 7 | AW17: 10 | AX17: 1 | AY17: 4 | AZ17: 7 | BA17: 10 | BB17: 1 | BC17: 4 | BD17: 7 | BE17: 10 | BF17: 1 | BG17: 4 | BH17: 7 | BI17: 10 | BJ17: 1 | BK17: 4 | BL17: 7 | BM17: 10 | BN17: 1 | BO17: 4 | BP17: 7 | BQ17: 10 | BR17: 1 | BS17: 4 | BT17: 7 | BU17: 10 | BV17: =MONTH(BV5) -> 1 | BW17: 4 | BX17: 7 | BY17: 10 | BZ17: 1 | CA17: 4 | CB17: 7 | CC17: 10 | CD17: 1 | CE17: 4 | CF17: 7 | CG17: 10 | CH17: 1 | CI17: 4 | CJ17: 7 | CK17: 10 | CL17: 1 | CM17: 4 | CN17: 7 | CO17: 10 | CP17: 1 | CQ17: 4 | CR17: 7 | CS17: 10 | CT17: 1 | CU17: 4 | CV17: 7 | CW17: 10 | CX17: 1 | CY17: 4 | CZ17: 7 | DA17: 10 | DB17: =MONTH(DB5) -> 1 | DC17: 4 | DD17: 7 | DE17: 10 | DF17: 1 | DG17: 4 | DH17: 7 | DI17: 10 | DJ17: 1 | DK17: 4 | DL17: 7 | DM17: 10 | DN17: 1 | DO17: 4 | DP17: 7 | DQ17: 10 | DR17: 1 | DS17: 4 | DT17: 7 | DU17: 10 | DV17: 1 | DW17: 4 | DX17: 7 | DY17: 10 | DZ17: 1 | EA17: 4 | EB17: 7 | EC17: 10 | ED17: 1 | EE17: 4 | EF17: 7 | EG17: 10 | EH17: =MONTH(EH5) -> 1 | EI17: 4 | EJ17: 7 | EK17: 10 | EL17: 1 | EM17: 4 | EN17: 7 | EO17: 10 | EP17: 1 | EQ17: 4 | ER17: 7 | ES17: 10 | ET17: 1 | EU17: 4 | EV17: 7 | EW17: 10 | EX17: 1 | EY17: 4 | EZ17: 7 | FA17: 10 | FB17: 1 | FC17: 4 | FD17: 7 | FE17: 10 | FF17: 1 | FG17: 4 | FH17: 7 | FI17: 10 | FJ17: 1 | FK17: 4 | FL17: 7 | FM17: 10 | FN17: =MONTH(FN5) -> 1 | FO17: 4 | FP17: 7 | FQ17: 10 | FR17: 1 | FS17: 4 | FT17: 7 | FU17: 10 | FV17: 1 | FW17: 4 | FX17: 7 | FY17: 10 | FZ17: 1 | GA17: 4 | GB17: 7 | GC17: 10 | GD17: 1 | GE17: 4 | GF17: 7 | GG17: 10 | GH17: 1 | GI17: 4 | GJ17: 7 | GK17: 10 | GL17: 1 | GM17: 4 | GN17: 7 | GO17: 10 | GP17: 1 | GQ17: 4 | GR17: 7 | GS17: 10 | GT17: =MONTH(GT5) -> 1 | GU17: 4 | GV17: 7 | GW17: 10 | GX17: 1 | GY17: 4 | GZ17: 7 | HA17: 10
C18: Quarter | J18: =ROUNDUP(J17/3,0) -> 1 | K18: =ROUNDUP(K17/3,0) -> 1 | L18: 1 | M18: 2 | N18: 2 | O18: 2 | P18: 3 | Q18: 3 | R18: 3 | S18: 4 | T18: 4 | U18: 4 | V18: 1 | W18: 1 | X18: 1 | Y18: 2 | Z18: 2 | AA18: 2 | AB18: 3 | AC18: 3 | AD18: 3 | AE18: 4 | AF18: 4 | AG18: 4 | AH18: 1 | AI18: 1 | AJ18: 1 | AK18: 2 | AL18: 2 | AM18: 2 | AN18: 3 | AO18: 3 | AP18: 3 | AQ18: 4 | AR18: 4 | AS18: 4 | AT18: 1 | AU18: 2 | AV18: 3 | AW18: 4 | AX18: 1 | AY18: 2 | AZ18: 3 | BA18: 4 | BB18: 1 | BC18: 2 | BD18: 3 | BE18: 4 | BF18: 1 | BG18: 2 | BH18: 3 | BI18: 4 | BJ18: 1 | BK18: 2 | BL18: 3 | BM18: 4 | BN18: 1 | BO18: 2 | BP18: 3 | BQ18: 4 | BR18: 1 | BS18: 2 | BT18: 3 | BU18: 4 | BV18: 1 | BW18: =ROUNDUP(BW17/3,0) -> 2 | BX18: 3 | BY18: 4 | BZ18: 1 | CA18: 2 | CB18: 3 | CC18: 4 | CD18: 1 | CE18: 2 | CF18: 3 | CG18: 4 | CH18: 1 | CI18: 2 | CJ18: 3 | CK18: 4 | CL18: 1 | CM18: 2 | CN18: 3 | CO18: 4 | CP18: 1 | CQ18: 2 | CR18: 3 | CS18: 4 | CT18: 1 | CU18: 2 | CV18: 3 | CW18: 4 | CX18: 1 | CY18: 2 | CZ18: 3 | DA18: 4 | DB18: 1 | DC18: 2 | DD18: 3 | DE18: 4 | DF18: 1 | DG18: 2 | DH18: 3 | DI18: 4 | DJ18: 1 | DK18: 2 | DL18: 3 | DM18: 4 | DN18: 1 | DO18: 2 | DP18: 3 | DQ18: 4 | DR18: 1 | DS18: 2 | DT18: 3 | DU18: 4 | DV18: 1 | DW18: 2 | DX18: 3 | DY18: 4 | DZ18: 1 | EA18: 2 | EB18: 3 | EC18: 4 | ED18: 1 | EE18: 2 | EF18: 3 | EG18: 4 | EH18: 1 | EI18: =ROUNDUP(EI17/3,0) -> 2 | EJ18: 3 | EK18: 4 | EL18: 1 | EM18: 2 | EN18: 3 | EO18: 4 | EP18: 1 | EQ18: 2 | ER18: 3 | ES18: 4 | ET18: 1 | EU18: 2 | EV18: 3 | EW18: 4 | EX18: 1 | EY18: 2 | EZ18: 3 | FA18: 4 | FB18: 1 | FC18: 2 | FD18: 3 | FE18: 4 | FF18: 1 | FG18: 2 | FH18: 3 | FI18: 4 | FJ18: 1 | FK18: 2 | FL18: 3 | FM18: 4 | FN18: 1 | FO18: 2 | FP18: 3 | FQ18: 4 | FR18: 1 | FS18: 2 | FT18: 3 | FU18: 4 | FV18: 1 | FW18: 2 | FX18: 3 | FY18: 4 | FZ18: 1 | GA18: 2 | GB18: 3 | GC18: 4 | GD18: 1 | GE18: 2 | GF18: 3 | GG18: 4 | GH18: 1 | GI18: 2 | GJ18: 3 | GK18: 4 | GL18: 1 | GM18: 2 | GN18: 3 | GO18: 4 | GP18: 1 | GQ18: 2 | GR18: 3 | GS18: 4 | GT18: 1 | GU18: =ROUNDUP(GU17/3,0) -> 2 | GV18: 3 | GW18: 4 | GX18: 1 | GY18: 2 | GZ18: 3 | HA18: 4
C19: Seasonality Factor | J19: =LOOKUP(J18,Assumptions!18:18,Assumptions!19:19) -> 1 | K19: =LOOKUP(K18,Assumptions!18:18,Assumptions!19:19) -> 1 | L19: =LOOKUP(L18,Assumptions!18:18,Assumptions!19:19) -> 1 | M19: =LOOKUP(M18,Assumptions!18:18,Assumptions!19:19) -> 1 | N19: =LOOKUP(N18,Assumptions!18:18,Assumptions!19:19) -> 1 | O19: =LOOKUP(O18,Assumptions!18:18,Assumptions!19:19) -> 1 | P19: =LOOKUP(P18,Assumptions!18:18,Assumptions!19:19) -> 1 | Q19: =LOOKUP(Q18,Assumptions!18:18,Assumptions!19:19) -> 1 | R19: =LOOKUP(R18,Assumptions!18:18,Assumptions!19:19) -> 1 | S19: =LOOKUP(S18,Assumptions!18:18,Assumptions!19:19) -> 1 | T19: =LOOKUP(T18,Assumptions!18:18,Assumptions!19:19) -> 1 | U19: =LOOKUP(U18,Assumptions!18:18,Assumptions!19:19) -> 1 | V19: =LOOKUP(V18,Assumptions!18:18,Assumptions!19:19) -> 1 | W19: =LOOKUP(W18,Assumptions!18:18,Assumptions!19:19) -> 1 | X19: =LOOKUP(X18,Assumptions!18:18,Assumptions!19:19) -> 1 | Y19: =LOOKUP(Y18,Assumptions!18:18,Assumptions!19:19) -> 1 | Z19: =LOOKUP(Z18,Assumptions!18:18,Assumptions!19:19) -> 1 | AA19: =LOOKUP(AA18,Assumptions!18:18,Assumptions!19:19) -> 1 | AB19: =LOOKUP(AB18,Assumptions!18:18,Assumptions!19:19) -> 1 | AC19: =LOOKUP(AC18,Assumptions!18:18,Assumptions!19:19) -> 1 | AD19: =LOOKUP(AD18,Assumptions!18:18,Assumptions!19:19) -> 1 | AE19: =LOOKUP(AE18,Assumptions!18:18,Assumptions!19:19) -> 1 | AF19: =LOOKUP(AF18,Assumptions!18:18,Assumptions!19:19) -> 1 | AG19: =LOOKUP(AG18,Assumptions!18:18,Assumptions!19:19) -> 1 | AH19: =LOOKUP(AH18,Assumptions!18:18,Assumptions!19:19) -> 1 | AI19: =LOOKUP(AI18,Assumptions!18:18,Assumptions!19:19) -> 1 | AJ19: =LOOKUP(AJ18,Assumptions!18:18,Assumptions!19:19) -> 1 | AK19: =LOOKUP(AK18,Assumptions!18:18,Assumptions!19:19) -> 1 | AL19: =LOOKUP(AL18,Assumptions!18:18,Assumptions!19:19) -> 1 | AM19: =LOOKUP(AM18,Assumptions!18:18,Assumptions!19:19) -> 1 | AN19: =LOOKUP(AN18,Assumptions!18:18,Assumptions!19:19) -> 1 | AO19: =LOOKUP(AO18,Assumptions!18:18,Assumptions!19:19) -> 1 | AP19: =LOOKUP(AP18,Assumptions!18:18,Assumptions!19:19) -> 1 | AQ19: =LOOKUP(AQ18,Assumptions!18:18,Assumptions!19:19) -> 1 | AR19: =LOOKUP(AR18,Assumptions!18:18,Assumptions!19:19) -> 1 | AS19: =LOOKUP(AS18,Assumptions!18:18,Assumptions!19:19) -> 1 | AT19: =LOOKUP(AT18,Assumptions!18:18,Assumptions!19:19) -> 1 | AU19: =LOOKUP(AU18,Assumptions!18:18,Assumptions!19:19) -> 1 | AV19: =LOOKUP(AV18,Assumptions!18:18,Assumptions!19:19) -> 1 | AW19: =LOOKUP(AW18,Assumptions!18:18,Assumptions!19:19) -> 1 | AX19: =LOOKUP(AX18,Assumptions!18:18,Assumptions!19:19) -> 1 | AY19: =LOOKUP(AY18,Assumptions!18:18,Assumptions!19:19) -> 1 | AZ19: =LOOKUP(AZ18,Assumptions!18:18,Assumptions!19:19) -> 1 | BA19: =LOOKUP(BA18,Assumptions!18:18,Assumptions!19:19) -> 1 | BB19: =LOOKUP(BB18,Assumptions!18:18,Assumptions!19:19) -> 1 | BC19: =LOOKUP(BC18,Assumptions!18:18,Assumptions!19:19) -> 1 | BD19: =LOOKUP(BD18,Assumptions!18:18,Assumptions!19:19) -> 1 | BE19: =LOOKUP(BE18,Assumptions!18:18,Assumptions!19:19) -> 1 | BF19: =LOOKUP(BF18,Assumptions!18:18,Assumptions!19:19) -> 1 | BG19: =LOOKUP(BG18,Assumptions!18:18,Assumptions!19:19) -> 1 | BH19: =LOOKUP(BH18,Assumptions!18:18,Assumptions!19:19) -> 1 | BI19: =LOOKUP(BI18,Assumptions!18:18,Assumptions!19:19) -> 1 | BJ19: =LOOKUP(BJ18,Assumptions!18:18,Assumptions!19:19) -> 1 | BK19: =LOOKUP(BK18,Assumptions!18:18,Assumptions!19:19) -> 1 | BL19: =LOOKUP(BL18,Assumptions!18:18,Assumptions!19:19) -> 1 | BM19: =LOOKUP(BM18,Assumptions!18:18,Assumptions!19:19) -> 1 | BN19: =LOOKUP(BN18,Assumptions!18:18,Assumptions!19:19) -> 1 | BO19: =LOOKUP(BO18,Assumptions!18:18,Assumptions!19:19) -> 1 | BP19: =LOOKUP(BP18,Assumptions!18:18,Assumptions!19:19) -> 1 | BQ19: =LOOKUP(BQ18,Assumptions!18:18,Assumptions!19:19) -> 1 | BR19: =LOOKUP(BR18,Assumptions!18:18,Assumptions!19:19) -> 1 | BS19: =LOOKUP(BS18,Assumptions!18:18,Assumptions!19:19) -> 1 | BT19: =LOOKUP(BT18,Assumptions!18:18,Assumptions!19:19) -> 1 | BU19: =LOOKUP(BU18,Assumptions!18:18,Assumptions!19:19) -> 1 | BV19: =LOOKUP(BV18,Assumptions!18:18,Assumptions!19:19) -> 1 | BW19: =LOOKUP(BW18,Assumptions!18:18,Assumptions!19:19) -> 1 | BX19: =LOOKUP(BX18,Assumptions!18:18,Assumptions!19:19) -> 1 | BY19: =LOOKUP(BY18,Assumptions!18:18,Assumptions!19:19) -> 1 | BZ19: =LOOKUP(BZ18,Assumptions!18:18,Assumptions!19:19) -> 1 | CA19: =LOOKUP(CA18,Assumptions!18:18,Assumptions!19:19) -> 1 | CB19: =LOOKUP(CB18,Assumptions!18:18,Assumptions!19:19) -> 1 | CC19: =LOOKUP(CC18,Assumptions!18:18,Assumptions!19:19) -> 1 | CD19: =LOOKUP(CD18,Assumptions!18:18,Assumptions!19:19) -> 1 | CE19: =LOOKUP(CE18,Assumptions!18:18,Assumptions!19:19) -> 1 | CF19: =LOOKUP(CF18,Assumptions!18:18,Assumptions!19:19) -> 1 | CG19: =LOOKUP(CG18,Assumptions!18:18,Assumptions!19:19) -> 1 | CH19: =LOOKUP(CH18,Assumptions!18:18,Assumptions!19:19) -> 1 | CI19: =LOOKUP(CI18,Assumptions!18:18,Assumptions!19:19) -> 1 | CJ19: =LOOKUP(CJ18,Assumptions!18:18,Assumptions!19:19) -> 1 | CK19: =LOOKUP(CK18,Assumptions!18:18,Assumptions!19:19) -> 1 | CL19: =LOOKUP(CL18,Assumptions!18:18,Assumptions!19:19) -> 1 | CM19: =LOOKUP(CM18,Assumptions!18:18,Assumptions!19:19) -> 1 | CN19: =LOOKUP(CN18,Assumptions!18:18,Assumptions!19:19) -> 1 | CO19: =LOOKUP(CO18,Assumptions!18:18,Assumptions!19:19) -> 1 | CP19: =LOOKUP(CP18,Assumptions!18:18,Assumptions!19:19) -> 1 | CQ19: =LOOKUP(CQ18,Assumptions!18:18,Assumptions!19:19) -> 1 | CR19: =LOOKUP(CR18,Assumptions!18:18,Assumptions!19:19) -> 1 | CS19: =LOOKUP(CS18,Assumptions!18:18,Assumptions!19:19) -> 1 | CT19: =LOOKUP(CT18,Assumptions!18:18,Assumptions!19:19) -> 1 | CU19: =LOOKUP(CU18,Assumptions!18:18,Assumptions!19:19) -> 1 | CV19: =LOOKUP(CV18,Assumptions!18:18,Assumptions!19:19) -> 1 | CW19: =LOOKUP(CW18,Assumptions!18:18,Assumptions!19:19) -> 1 | CX19: =LOOKUP(CX18,Assumptions!18:18,Assumptions!19:19) -> 1 | CY19: =LOOKUP(CY18,Assumptions!18:18,Assumptions!19:19) -> 1 | CZ19: =LOOKUP(CZ18,Assumptions!18:18,Assumptions!19:19) -> 1 | DA19: =LOOKUP(DA18,Assumptions!18:18,Assumptions!19:19) -> 1 | DB19: =LOOKUP(DB18,Assumptions!18:18,Assumptions!19:19) -> 1 | DC19: =LOOKUP(DC18,Assumptions!18:18,Assumptions!19:19) -> 1 | DD19: =LOOKUP(DD18,Assumptions!18:18,Assumptions!19:19) -> 1 | DE19: =LOOKUP(DE18,Assumptions!18:18,Assumptions!19:19) -> 1 | DF19: =LOOKUP(DF18,Assumptions!18:18,Assumptions!19:19) -> 1 | DG19: =LOOKUP(DG18,Assumptions!18:18,Assumptions!19:19) -> 1 | DH19: =LOOKUP(DH18,Assumptions!18:18,Assumptions!19:19) -> 1 | DI19: =LOOKUP(DI18,Assumptions!18:18,Assumptions!19:19) -> 1 | DJ19: =LOOKUP(DJ18,Assumptions!18:18,Assumptions!19:19) -> 1 | DK19: =LOOKUP(DK18,Assumptions!18:18,Assumptions!19:19) -> 1 | DL19: =LOOKUP(DL18,Assumptions!18:18,Assumptions!19:19) -> 1 | DM19: =LOOKUP(DM18,Assumptions!18:18,Assumptions!19:19) -> 1 | DN19: =LOOKUP(DN18,Assumptions!18:18,Assumptions!19:19) -> 1 | DO19: =LOOKUP(DO18,Assumptions!18:18,Assumptions!19:19) -> 1 | DP19: =LOOKUP(DP18,Assumptions!18:18,Assumptions!19:19) -> 1 | DQ19: =LOOKUP(DQ18,Assumptions!18:18,Assumptions!19:19) -> 1 | DR19: =LOOKUP(DR18,Assumptions!18:18,Assumptions!19:19) -> 1 | DS19: =LOOKUP(DS18,Assumptions!18:18,Assumptions!19:19) -> 1 | DT19: =LOOKUP(DT18,Assumptions!18:18,Assumptions!19:19) -> 1 | DU19: =LOOKUP(DU18,Assumptions!18:18,Assumptions!19:19) -> 1 | DV19: =LOOKUP(DV18,Assumptions!18:18,Assumptions!19:19) -> 1 | DW19: =LOOKUP(DW18,Assumptions!18:18,Assumptions!19:19) -> 1 | DX19: =LOOKUP(DX18,Assumptions!18:18,Assumptions!19:19) -> 1 | DY19: =LOOKUP(DY18,Assumptions!18:18,Assumptions!19:19) -> 1 | DZ19: =LOOKUP(DZ18,Assumptions!18:18,Assumptions!19:19) -> 1 | EA19: =LOOKUP(EA18,Assumptions!18:18,Assumptions!19:19) -> 1 | EB19: =LOOKUP(EB18,Assumptions!18:18,Assumptions!19:19) -> 1 | EC19: =LOOKUP(EC18,Assumptions!18:18,Assumptions!19:19) -> 1 | ED19: =LOOKUP(ED18,Assumptions!18:18,Assumptions!19:19) -> 1 | EE19: =LOOKUP(EE18,Assumptions!18:18,Assumptions!19:19) -> 1 | EF19: =LOOKUP(EF18,Assumptions!18:18,Assumptions!19:19) -> 1 | EG19: =LOOKUP(EG18,Assumptions!18:18,Assumptions!19:19) -> 1 | EH19: =LOOKUP(EH18,Assumptions!18:18,Assumptions!19:19) -> 1 | EI19: =LOOKUP(EI18,Assumptions!18:18,Assumptions!19:19) -> 1 | EJ19: =LOOKUP(EJ18,Assumptions!18:18,Assumptions!19:19) -> 1 | EK19: =LOOKUP(EK18,Assumptions!18:18,Assumptions!19:19) -> 1 | EL19: =LOOKUP(EL18,Assumptions!18:18,Assumptions!19:19) -> 1 | EM19: =LOOKUP(EM18,Assumptions!18:18,Assumptions!19:19) -> 1 | EN19: =LOOKUP(EN18,Assumptions!18:18,Assumptions!19:19) -> 1 | EO19: =LOOKUP(EO18,Assumptions!18:18,Assumptions!19:19) -> 1 | EP19: =LOOKUP(EP18,Assumptions!18:18,Assumptions!19:19) -> 1 | EQ19: =LOOKUP(EQ18,Assumptions!18:18,Assumptions!19:19) -> 1 | ER19: =LOOKUP(ER18,Assumptions!18:18,Assumptions!19:19) -> 1 | ES19: =LOOKUP(ES18,Assumptions!18:18,Assumptions!19:19) -> 1 | ET19: =LOOKUP(ET18,Assumptions!18:18,Assumptions!19:19) -> 1 | EU19: =LOOKUP(EU18,Assumptions!18:18,Assumptions!19:19) -> 1 | EV19: =LOOKUP(EV18,Assumptions!18:18,Assumptions!19:19) -> 1 | EW19: =LOOKUP(EW18,Assumptions!18:18,Assumptions!19:19) -> 1 | EX19: =LOOKUP(EX18,Assumptions!18:18,Assumptions!19:19) -> 1 | EY19: =LOOKUP(EY18,Assumptions!18:18,Assumptions!19:19) -> 1 | EZ19: =LOOKUP(EZ18,Assumptions!18:18,Assumptions!19:19) -> 1 | FA19: =LOOKUP(FA18,Assumptions!18:18,Assumptions!19:19) -> 1 | FB19: =LOOKUP(FB18,Assumptions!18:18,Assumptions!19:19) -> 1 | FC19: =LOOKUP(FC18,Assumptions!18:18,Assumptions!19:19) -> 1 | FD19: =LOOKUP(FD18,Assumptions!18:18,Assumptions!19:19) -> 1 | FE19: =LOOKUP(FE18,Assumptions!18:18,Assumptions!19:19) -> 1 | FF19: =LOOKUP(FF18,Assumptions!18:18,Assumptions!19:19) -> 1 | FG19: =LOOKUP(FG18,Assumptions!18:18,Assumptions!19:19) -> 1 | FH19: =LOOKUP(FH18,Assumptions!18:18,Assumptions!19:19) -> 1 | FI19: =LOOKUP(FI18,Assumptions!18:18,Assumptions!19:19) -> 1 | FJ19: =LOOKUP(FJ18,Assumptions!18:18,Assumptions!19:19) -> 1 | FK19: =LOOKUP(FK18,Assumptions!18:18,Assumptions!19:19) -> 1 | FL19: =LOOKUP(FL18,Assumptions!18:18,Assumptions!19:19) -> 1 | FM19: =LOOKUP(FM18,Assumptions!18:18,Assumptions!19:19) -> 1 | FN19: =LOOKUP(FN18,Assumptions!18:18,Assumptions!19:19) -> 1 | FO19: =LOOKUP(FO18,Assumptions!18:18,Assumptions!19:19) -> 1 | FP19: =LOOKUP(FP18,Assumptions!18:18,Assumptions!19:19) -> 1 | FQ19: =LOOKUP(FQ18,Assumptions!18:18,Assumptions!19:19) -> 1 | FR19: =LOOKUP(FR18,Assumptions!18:18,Assumptions!19:19) -> 1 | FS19: =LOOKUP(FS18,Assumptions!18:18,Assumptions!19:19) -> 1 | FT19: =LOOKUP(FT18,Assumptions!18:18,Assumptions!19:19) -> 1 | FU19: =LOOKUP(FU18,Assumptions!18:18,Assumptions!19:19) -> 1 | FV19: =LOOKUP(FV18,Assumptions!18:18,Assumptions!19:19) -> 1 | FW19: =LOOKUP(FW18,Assumptions!18:18,Assumptions!19:19) -> 1 | FX19: =LOOKUP(FX18,Assumptions!18:18,Assumptions!19:19) -> 1 | FY19: =LOOKUP(FY18,Assumptions!18:18,Assumptions!19:19) -> 1 | FZ19: =LOOKUP(FZ18,Assumptions!18:18,Assumptions!19:19) -> 1 | GA19: =LOOKUP(GA18,Assumptions!18:18,Assumptions!19:19) -> 1 | GB19: =LOOKUP(GB18,Assumptions!18:18,Assumptions!19:19) -> 1 | GC19: =LOOKUP(GC18,Assumptions!18:18,Assumptions!19:19) -> 1 | GD19: =LOOKUP(GD18,Assumptions!18:18,Assumptions!19:19) -> 1 | GE19: =LOOKUP(GE18,Assumptions!18:18,Assumptions!19:19) -> 1 | GF19: =LOOKUP(GF18,Assumptions!18:18,Assumptions!19:19) -> 1 | GG19: =LOOKUP(GG18,Assumptions!18:18,Assumptions!19:19) -> 1 | GH19: =LOOKUP(GH18,Assumptions!18:18,Assumptions!19:19) -> 1 | GI19: =LOOKUP(GI18,Assumptions!18:18,Assumptions!19:19) -> 1 | GJ19: =LOOKUP(GJ18,Assumptions!18:18,Assumptions!19:19) -> 1 | GK19: =LOOKUP(GK18,Assumptions!18:18,Assumptions!19:19) -> 1 | GL19: =LOOKUP(GL18,Assumptions!18:18,Assumptions!19:19) -> 1 | GM19: =LOOKUP(GM18,Assumptions!18:18,Assumptions!19:19) -> 1 | GN19: =LOOKUP(GN18,Assumptions!18:18,Assumptions!19:19) -> 1 | GO19: =LOOKUP(GO18,Assumptions!18:18,Assumptions!19:19) -> 1 | GP19: =LOOKUP(GP18,Assumptions!18:18,Assumptions!19:19) -> 1 | GQ19: =LOOKUP(GQ18,Assumptions!18:18,Assumptions!19:19) -> 1 | GR19: =LOOKUP(GR18,Assumptions!18:18,Assumptions!19:19) -> 1 | GS19: =LOOKUP(GS18,Assumptions!18:18,Assumptions!19:19) -> 1 | GT19: =LOOKUP(GT18,Assumptions!18:18,Assumptions!19:19) -> 1 | GU19: =LOOKUP(GU18,Assumptions!18:18,Assumptions!19:19) -> 1 | GV19: =LOOKUP(GV18,Assumptions!18:18,Assumptions!19:19) -> 1 | GW19: =LOOKUP(GW18,Assumptions!18:18,Assumptions!19:19) -> 1 | GX19: =LOOKUP(GX18,Assumptions!18:18,Assumptions!19:19) -> 1 | GY19: =LOOKUP(GY18,Assumptions!18:18,Assumptions!19:19) -> 1 | GZ19: =LOOKUP(GZ18,Assumptions!18:18,Assumptions!19:19) -> 1 | HA19: =LOOKUP(HA18,Assumptions!18:18,Assumptions!19:19) -> 1
C20: Traffic After Seasonality | J20: =J19*J16 -> 0 | K20: 0 | L20: 0 | M20: 0 | N20: 0 | O20: 0 | P20: 0 | Q20: 0 | R20: 0 | S20: 0 | T20: 0 | U20: 0 | V20: 0 | W20: 0 | X20: 0 | Y20: 0 | Z20: 0 | AA20: 0 | AB20: 0 | AC20: 0 | AD20: 0 | AE20: 0 | AF20: 0 | AG20: 0 | AH20: 0 | AI20: 0 | AJ20: 0 | AK20: 0 | AL20: 0 | AM20: 0 | AN20: 0 | AO20: 0 | AP20: =AP19*AP16 -> 0 | AQ20: 0 | AR20: 0 | AS20: 0 | AT20: 6500 | AU20: 6500 | AV20: 6500 | AW20: 6500 | AX20: 6500 | AY20: 6532.259055 | AZ20: 6564.67821 | BA20: 6613.368899 | BB20: 6662.420731 | BC20: 6744.18352 | BD20: 6727.259463 | BE20: 6710.377876 | BF20: 6718.750167 | BG20: 6727.132903 | BH20: 6735.526099 | BI20: 6743.929766 | BJ20: 6752.343918 | BK20: 6760.768568 | BL20: 6769.203729 | BM20: 6777.649414 | BN20: 6786.105637 | BO20: 6794.572411 | BP20: 6803.049748 | BQ20: 6811.537662 | BR20: 6820.036165 | BS20: 6828.545273 | BT20: 6837.064996 | BU20: 6845.59535 | BV20: =BV19*BV16 -> 6854.136346 | BW20: 6862.687999 | BX20: 6871.250321 | BY20: 6879.823327 | BZ20: 6888.407028 | CA20: 6897.001439 | CB20: 6905.606573 | CC20: 6914.222443 | CD20: 6922.849063 | CE20: 6931.486446 | CF20: 6940.134606 | CG20: 6948.793555 | CH20: 6957.463308 | CI20: 6966.143878 | CJ20: 6974.835279 | CK20: 6983.537523 | CL20: 6992.250625 | CM20: 7000.974598 | CN20: 7009.709455 | CO20: 7018.455211 | CP20: 7027.211878 | CQ20: 7035.979471 | CR20: 7044.758003 | CS20: 7053.547487 | CT20: 7062.347938 | CU20: 7071.159368 | CV20: 7079.981793 | CW20: 7088.815224 | CX20: 7097.659677 | CY20: 7106.515165 | CZ20: 7115.381702 | DA20: 7124.2593 | DB20: =DB19*DB16 -> 7133.147976 | DC20: 7142.047741 | DD20: 7150.95861 | DE20: 7159.880597 | DF20: 7168.813716 | DG20: 7177.75798 | DH20: 7186.713403 | DI20: 7195.68 | DJ20: 7204.657784 | DK20: 7213.646769 | DL20: 7222.64697 | DM20: 7231.6584 | DN20: 7240.681073 | DO20: 7249.715003 | DP20: 7258.760205 | DQ20: 7267.816692 | DR20: 7276.884478 | DS20: 7285.963578 | DT20: 7295.054006 | DU20: 7304.155775 | DV20: 7313.268901 | DW20: 7322.393396 | DX20: 7331.529276 | DY20: 7340.676554 | DZ20: 7349.835245 | EA20: 7359.005363 | EB20: 7368.186922 | EC20: 7377.379937 | ED20: 7386.584421 | EE20: 7395.80039 | EF20: 7405.027857 | EG20: 7414.266837 | EH20: =EH19*EH16 -> 7423.517344 | EI20: 7432.779392 | EJ20: 7442.052996 | EK20: 7451.338171 | EL20: 7460.63493 | EM20: 7469.943289 | EN20: 7479.263261 | EO20: 7488.594862 | EP20: 7497.938105 | EQ20: 7507.293005 | ER20: 7516.659578 | ES20: 7526.037836 | ET20: 7535.427795 | EU20: 7544.82947 | EV20: 7554.242875 | EW20: 7563.668025 | EX20: 0 | EY20: 0 | EZ20: 0 | FA20: 0 | FB20: 0 | FC20: 0 | FD20: 0 | FE20: 0 | FF20: 0 | FG20: 0 | FH20: 0 | FI20: 0 | FJ20: 0 | FK20: 0 | FL20: 0 | FM20: 0 | FN20: =FN19*FN16 -> 0 | FO20: 0 | FP20: 0 | FQ20: 0 | FR20: 0 | FS20: 0 | FT20: 0 | FU20: 0 | FV20: 0 | FW20: 0 | FX20: 0 | FY20: 0 | FZ20: 0 | GA20: 0 | GB20: 0 | GC20: 0 | GD20: 0 | GE20: 0 | GF20: 0 | GG20: 0 | GH20: 0 | GI20: 0 | GJ20: 0 | GK20: 0 | GL20: 0 | GM20: 0 | GN20: 0 | GO20: 0 | GP20: 0 | GQ20: 0 | GR20: 0 | GS20: 0 | GT20: =GT19*GT16 -> 0 | GU20: 0 | GV20: 0 | GW20: 0 | GX20: 0 | GY20: 0 | GZ20: 0 | HA20: 0
B22: Toll Rates | G22: =Assumptions!E33/10 -> 9.2 | J22: =$G$22 -> 9.2 | K22: =$G$22 -> 9.2 | L22: 9.2 | M22: 9.2 | N22: 9.2 | O22: 9.2 | P22: 9.2 | Q22: 9.2 | R22: 9.2 | S22: 9.2 | T22: 9.2 | U22: 9.2 | V22: 9.2 | W22: 9.2 | X22: 9.2 | Y22: 9.2 | Z22: 9.2 | AA22: 9.2 | AB22: 9.2 | AC22: 9.2 | AD22: 9.2 | AE22: 9.2 | AF22: 9.2 | AG22: 9.2 | AH22: 9.2 | AI22: 9.2 | AJ22: 9.2 | AK22: 9.2 | AL22: 9.2 | AM22: 9.2 | AN22: 9.2 | AO22: 9.2 | AP22: 9.2 | AQ22: 9.2 | AR22: 9.2 | AS22: 9.2 | AT22: 9.2 | AU22: 9.2 | AV22: 9.2 | AW22: 9.2 | AX22: 9.2 | AY22: 9.2 | AZ22: 9.2 | BA22: 9.2 | BB22: 9.2 | BC22: 9.2 | BD22: 9.2 | BE22: 9.2 | BF22: 9.2 | BG22: 9.2 | BH22: 9.2 | BI22: 9.2 | BJ22: 9.2 | BK22: 9.2 | BL22: 9.2 | BM22: 9.2 | BN22: 9.2 | BO22: 9.2 | BP22: 9.2 | BQ22: 9.2 | BR22: 9.2 | BS22: 9.2 | BT22: 9.2 | BU22: 9.2 | BV22: 9.2 | BW22: =$G$22 -> 9.2 | BX22: 9.2 | BY22: 9.2 | BZ22: 9.2 | CA22: 9.2 | CB22: 9.2 | CC22: 9.2 | CD22: 9.2 | CE22: 9.2 | CF22: 9.2 | CG22: 9.2 | CH22: 9.2 | CI22: 9.2 | CJ22: 9.2 | CK22: 9.2 | CL22: 9.2 | CM22: 9.2 | CN22: 9.2 | CO22: 9.2 | CP22: 9.2 | CQ22: 9.2 | CR22: 9.2 | CS22: 9.2 | CT22: 9.2 | CU22: 9.2 | CV22: 9.2 | CW22: 9.2 | CX22: 9.2 | CY22: 9.2 | CZ22: 9.2 | DA22: 9.2 | DB22: 9.2 | DC22: 9.2 | DD22: 9.2 | DE22: 9.2 | DF22: 9.2 | DG22: 9.2 | DH22: 9.2 | DI22: 9.2 | DJ22: 9.2 | DK22: 9.2 | DL22: 9.2 | DM22: 9.2 | DN22: 9.2 | DO22: 9.2 | DP22: 9.2 | DQ22: 9.2 | DR22: 9.2 | DS22: 9.2 | DT22: 9.2 | DU22: 9.2 | DV22: 9.2 | DW22: 9.2 | DX22: 9.2 | DY22: 9.2 | DZ22: 9.2 | EA22: 9.2 | EB22: 9.2 | EC22: 9.2 | ED22: 9.2 | EE22: 9.2 | EF22: 9.2 | EG22: 9.2 | EH22: 9.2 | EI22: =$G$22 -> 9.2 | EJ22: 9.2 | EK22: 9.2 | EL22: 9.2 | EM22: 9.2 | EN22: 9.2 | EO22: 9.2 | EP22: 9.2 | EQ22: 9.2 | ER22: 9.2 | ES22: 9.2 | ET22: 9.2 | EU22: 9.2 | EV22: 9.2 | EW22: 9.2 | EX22: 9.2 | EY22: 9.2 | EZ22: 9.2 | FA22: 9.2 | FB22: 9.2 | FC22: 9.2 | FD22: 9.2 | FE22: 9.2 | FF22: 9.2 | FG22: 9.2 | FH22: 9.2 | FI22: 9.2 | FJ22: 9.2 | FK22: 9.2 | FL22: 9.2 | FM22: 9.2 | FN22: 9.2 | FO22: 9.2 | FP22: 9.2 | FQ22: 9.2 | FR22: 9.2 | FS22: 9.2 | FT22: 9.2 | FU22: 9.2 | FV22: 9.2 | FW22: 9.2 | FX22: 9.2 | FY22: 9.2 | FZ22: 9.2 | GA22: 9.2 | GB22: 9.2 | GC22: 9.2 | GD22: 9.2 | GE22: 9.2 | GF22: 9.2 | GG22: 9.2 | GH22: 9.2 | GI22: 9.2 | GJ22: 9.2 | GK22: 9.2 | GL22: 9.2 | GM22: 9.2 | GN22: 9.2 | GO22: 9.2 | GP22: 9.2 | GQ22: 9.2 | GR22: 9.2 | GS22: 9.2 | GT22: 9.2 | GU22: =$G$22 -> 9.2 | GV22: 9.2 | GW22: 9.2 | GX22: 9.2 | GY22: 9.2 | GZ22: 9.2 | HA22: 9.2
B23: Revenues | J23: =J22*J20 -> 0 | K23: =K22*K20 -> 0 | L23: 0 | M23: 0 | N23: 0 | O23: 0 | P23: 0 | Q23: 0 | R23: 0 | S23: 0 | T23: 0 | U23: 0 | V23: 0 | W23: 0 | X23: 0 | Y23: 0 | Z23: 0 | AA23: 0 | AB23: 0 | AC23: 0 | AD23: 0 | AE23: 0 | AF23: 0 | AG23: 0 | AH23: 0 | AI23: 0 | AJ23: 0 | AK23: 0 | AL23: 0 | AM23: 0 | AN23: 0 | AO23: 0 | AP23: 0 | AQ23: 0 | AR23: 0 | AS23: 0 | AT23: 59800 | AU23: 59800 | AV23: 59800 | AW23: 59800 | AX23: 59800 | AY23: 60096.78331 | AZ23: 60395.03953 | BA23: 60842.99387 | BB23: 61294.27073 | BC23: 62046.48839 | BD23: 61890.78706 | BE23: 61735.47646 | BF23: 61812.50154 | BG23: 61889.62271 | BH23: 61966.84011 | BI23: 62044.15384 | BJ23: 62121.56404 | BK23: 62199.07082 | BL23: 62276.67431 | BM23: 62354.37461 | BN23: 62432.17186 | BO23: 62510.06618 | BP23: 62588.05768 | BQ23: 62666.14649 | BR23: 62744.33272 | BS23: 62822.61651 | BT23: 62900.99797 | BU23: 62979.47722 | BV23: 63058.05439 | BW23: =BW22*BW20 -> 63136.72959 | BX23: 63215.50296 | BY23: 63294.3746 | BZ23: 63373.34466 | CA23: 63452.41324 | CB23: 63531.58047 | CC23: 63610.84648 | CD23: 63690.21138 | CE23: 63769.67531 | CF23: 63849.23837 | CG23: 63928.90071 | CH23: 64008.66244 | CI23: 64088.52368 | CJ23: 64168.48457 | CK23: 64248.54521 | CL23: 64328.70575 | CM23: 64408.9663 | CN23: 64489.32699 | CO23: 64569.78794 | CP23: 64650.34928 | CQ23: 64731.01113 | CR23: 64811.77362 | CS23: 64892.63688 | CT23: 64973.60103 | CU23: 65054.66619 | CV23: 65135.83249 | CW23: 65217.10006 | CX23: 65298.46903 | CY23: 65379.93952 | CZ23: 65461.51165 | DA23: 65543.18556 | DB23: 65624.96138 | DC23: 65706.83922 | DD23: 65788.81921 | DE23: 65870.90149 | DF23: 65953.08618 | DG23: 66035.37341 | DH23: 66117.76331 | DI23: 66200.256 | DJ23: 66282.85161 | DK23: 66365.55028 | DL23: 66448.35212 | DM23: 66531.25728 | DN23: 66614.26587 | DO23: 66697.37803 | DP23: 66780.59389 | DQ23: 66863.91357 | DR23: 66947.3372 | DS23: 67030.86492 | DT23: 67114.49685 | DU23: 67198.23313 | DV23: 67282.07389 | DW23: 67366.01925 | DX23: 67450.06934 | DY23: 67534.2243 | DZ23: 67618.48426 | EA23: 67702.84934 | EB23: 67787.31969 | EC23: 67871.89542 | ED23: 67956.57668 | EE23: 68041.36359 | EF23: 68126.25628 | EG23: 68211.2549 | EH23: 68296.35956 | EI23: =EI22*EI20 -> 68381.57041 | EJ23: 68466.88757 | EK23: 68552.31117 | EL23: 68637.84136 | EM23: 68723.47826 | EN23: 68809.222 | EO23: 68895.07273 | EP23: 68981.03057 | EQ23: 69067.09565 | ER23: 69153.26811 | ES23: 69239.54809 | ET23: 69325.93572 | EU23: 69412.43113 | EV23: 69499.03445 | EW23: 69585.74583 | EX23: 0 | EY23: 0 | EZ23: 0 | FA23: 0 | FB23: 0 | FC23: 0 | FD23: 0 | FE23: 0 | FF23: 0 | FG23: 0 | FH23: 0 | FI23: 0 | FJ23: 0 | FK23: 0 | FL23: 0 | FM23: 0 | FN23: 0 | FO23: 0 | FP23: 0 | FQ23: 0 | FR23: 0 | FS23: 0 | FT23: 0 | FU23: 0 | FV23: 0 | FW23: 0 | FX23: 0 | FY23: 0 | FZ23: 0 | GA23: 0 | GB23: 0 | GC23: 0 | GD23: 0 | GE23: 0 | GF23: 0 | GG23: 0 | GH23: 0 | GI23: 0 | GJ23: 0 | GK23: 0 | GL23: 0 | GM23: 0 | GN23: 0 | GO23: 0 | GP23: 0 | GQ23: 0 | GR23: 0 | GS23: 0 | GT23: 0 | GU23: =GU22*GU20 -> 0 | GV23: 0 | GW23: 0 | GX23: 0 | GY23: 0 | GZ23: 0 | HA23: 0
B26: Construction
C27: EPC Costs | F27: =Scenario!H15 -> 3000000 | J27: =$F$27*J3 -> 3000000 | K27: 3000000 | L27: 3000000 | M27: 3000000 | N27: 3000000 | O27: 3000000 | P27: 3000000 | Q27: 3000000 | R27: 3000000 | S27: 3000000 | T27: 3000000 | U27: 3000000 | V27: 3000000 | W27: 3000000 | X27: 3000000 | Y27: 3000000 | Z27: 3000000 | AA27: 3000000 | AB27: 3000000 | AC27: 3000000 | AD27: 3000000 | AE27: 3000000 | AF27: 3000000 | AG27: 3000000 | AH27: 3000000 | AI27: 3000000 | AJ27: 3000000 | AK27: 3000000 | AL27: 3000000 | AM27: 3000000 | AN27: 3000000 | AO27: 3000000 | AP27: =$F$27*AP3 -> 3000000 | AQ27: 3000000 | AR27: 3000000 | AS27: 3000000 | AT27: 0 | AU27: 0 | AV27: 0 | AW27: 0 | AX27: 0 | AY27: 0 | AZ27: 0 | BA27: 0 | BB27: 0 | BC27: 0 | BD27: 0 | BE27: 0 | BF27: 0 | BG27: 0 | BH27: 0 | BI27: 0 | BJ27: 0 | BK27: 0 | BL27: 0 | BM27: 0 | BN27: 0 | BO27: 0 | BP27: 0 | BQ27: 0 | BR27: 0 | BS27: 0 | BT27: 0 | BU27: 0 | BV27: =$F$27*BV3 -> 0 | BW27: 0 | BX27: 0 | BY27: 0 | BZ27: 0 | CA27: 0 | CB27: 0 | CC27: 0 | CD27: 0 | CE27: 0 | CF27: 0 | CG27: 0 | CH27: 0 | CI27: 0 | CJ27: 0 | CK27: 0 | CL27: 0 | CM27: 0 | CN27: 0 | CO27: 0 | CP27: 0 | CQ27: 0 | CR27: 0 | CS27: 0 | CT27: 0 | CU27: 0 | CV27: 0 | CW27: 0 | CX27: 0 | CY27: 0 | CZ27: 0 | DA27: 0 | DB27: =$F$27*DB3 -> 0 | DC27: 0 | DD27: 0 | DE27: 0 | DF27: 0 | DG27: 0 | DH27: 0 | DI27: 0 | DJ27: 0 | DK27: 0 | DL27: 0 | DM27: 0 | DN27: 0 | DO27: 0 | DP27: 0 | DQ27: 0 | DR27: 0 | DS27: 0 | DT27: 0 | DU27: 0 | DV27: 0 | DW27: 0 | DX27: 0 | DY27: 0 | DZ27: 0 | EA27: 0 | EB27: 0 | EC27: 0 | ED27: 0 | EE27: 0 | EF27: 0 | EG27: 0 | EH27: =$F$27*EH3 -> 0 | EI27: 0 | EJ27: 0 | EK27: 0 | EL27: 0 | EM27: 0 | EN27: 0 | EO27: 0 | EP27: 0 | EQ27: 0 | ER27: 0 | ES27: 0 | ET27: 0 | EU27: 0 | EV27: 0 | EW27: 0 | EX27: 0 | EY27: 0 | EZ27: 0 | FA27: 0 | FB27: 0 | FC27: 0 | FD27: 0 | FE27: 0 | FF27: 0 | FG27: 0 | FH27: 0 | FI27: 0 | FJ27: 0 | FK27: 0 | FL27: 0 | FM27: 0 | FN27: =$F$27*FN3 -> 0 | FO27: 0 | FP27: 0 | FQ27: 0 | FR27: 0 | FS27: 0 | FT27: 0 | FU27: 0 | FV27: 0 | FW27: 0 | FX27: 0 | FY27: 0 | FZ27: 0 | GA27: 0 | GB27: 0 | GC27: 0 | GD27: 0 | GE27: 0 | GF27: 0 | GG27: 0 | GH27: 0 | GI27: 0 | GJ27: 0 | GK27: 0 | GL27: 0 | GM27: 0 | GN27: 0 | GO27: 0 | GP27: 0 | GQ27: 0 | GR27: 0 | GS27: 0 | GT27: =$F$27*GT3 -> 0 | GU27: 0 | GV27: 0 | GW27: 0 | GX27: 0 | GY27: 0 | GZ27: 0 | HA27: 0
C28: S-curve | I28: =SUM(J28:HA28) -> 1 | J28: =LOOKUP(J2,Assumptions!26:26,Assumptions!28:28) -> 0.01013566353 | K28: =LOOKUP(K2,Assumptions!26:26,Assumptions!28:28) -> 0.01195393182 | L28: =LOOKUP(L2,Assumptions!26:26,Assumptions!28:28) -> 0.01395810365 | M28: =LOOKUP(M2,Assumptions!26:26,Assumptions!28:28) -> 0.01613612015 | N28: =LOOKUP(N2,Assumptions!26:26,Assumptions!28:28) -> 0.01846838307 | O28: =LOOKUP(O2,Assumptions!26:26,Assumptions!28:28) -> 0.0209274197 | P28: =LOOKUP(P2,Assumptions!26:26,Assumptions!28:28) -> 0.02347791628 | Q28: =LOOKUP(Q2,Assumptions!26:26,Assumptions!28:28) -> 0.02607717072 | R28: =LOOKUP(R2,Assumptions!26:26,Assumptions!28:28) -> 0.0286759917 | S28: =LOOKUP(S2,Assumptions!26:26,Assumptions!28:28) -> 0.03122004157 | T28: =LOOKUP(T2,Assumptions!26:26,Assumptions!28:28) -> 0.033651588 | U28: =LOOKUP(U2,Assumptions!26:26,Assumptions!28:28) -> 0.03591159582 | V28: =LOOKUP(V2,Assumptions!26:26,Assumptions!28:28) -> 0.03794205952 | W28: =LOOKUP(W2,Assumptions!26:26,Assumptions!28:28) -> 0.03968845132 | X28: =LOOKUP(X2,Assumptions!26:26,Assumptions!28:28) -> 0.0411021424 | Y28: =LOOKUP(Y2,Assumptions!26:26,Assumptions!28:28) -> 0.04214264809 | Z28: =LOOKUP(Z2,Assumptions!26:26,Assumptions!28:28) -> 0.04277955265 | AA28: =LOOKUP(AA2,Assumptions!26:26,Assumptions!28:28) -> 0.04299398605 | AB28: =LOOKUP(AB2,Assumptions!26:26,Assumptions!28:28) -> 0.04277955265 | AC28: =LOOKUP(AC2,Assumptions!26:26,Assumptions!28:28) -> 0.04214264809 | AD28: =LOOKUP(AD2,Assumptions!26:26,Assumptions!28:28) -> 0.0411021424 | AE28: =LOOKUP(AE2,Assumptions!26:26,Assumptions!28:28) -> 0.03968845132 | AF28: =LOOKUP(AF2,Assumptions!26:26,Assumptions!28:28) -> 0.03794205952 | AG28: =LOOKUP(AG2,Assumptions!26:26,Assumptions!28:28) -> 0.03591159582 | AH28: =LOOKUP(AH2,Assumptions!26:26,Assumptions!28:28) -> 0.033651588 | AI28: =LOOKUP(AI2,Assumptions!26:26,Assumptions!28:28) -> 0.03122004157 | AJ28: =LOOKUP(AJ2,Assumptions!26:26,Assumptions!28:28) -> 0.0286759917 | AK28: =LOOKUP(AK2,Assumptions!26:26,Assumptions!28:28) -> 0.02607717072 | AL28: =LOOKUP(AL2,Assumptions!26:26,Assumptions!28:28) -> 0.02347791628 | AM28: =LOOKUP(AM2,Assumptions!26:26,Assumptions!28:28) -> 0.0209274197 | AN28: =LOOKUP(AN2,Assumptions!26:26,Assumptions!28:28) -> 0.01846838307 | AO28: =LOOKUP(AO2,Assumptions!26:26,Assumptions!28:28) -> 0.01613612015 | AP28: =LOOKUP(AP2,Assumptions!26:26,Assumptions!28:28) -> 0.01395810365 | AQ28: =LOOKUP(AQ2,Assumptions!26:26,Assumptions!28:28) -> 0.01195393182 | AR28: =LOOKUP(AR2,Assumptions!26:26,Assumptions!28:28) -> 0.01013566353 | AS28: =LOOKUP(AS2,Assumptions!26:26,Assumptions!28:28) -> 0.008508453908 | AT28: =LOOKUP(AT2,Assumptions!26:26,Assumptions!28:28) -> 0 | AU28: =LOOKUP(AU2,Assumptions!26:26,Assumptions!28:28) -> 0 | AV28: =LOOKUP(AV2,Assumptions!26:26,Assumptions!28:28) -> 0 | AW28: =LOOKUP(AW2,Assumptions!26:26,Assumptions!28:28) -> 0 | AX28: =LOOKUP(AX2,Assumptions!26:26,Assumptions!28:28) -> 0 | AY28: =LOOKUP(AY2,Assumptions!26:26,Assumptions!28:28) -> 0 | AZ28: =LOOKUP(AZ2,Assumptions!26:26,Assumptions!28:28) -> 0 | BA28: =LOOKUP(BA2,Assumptions!26:26,Assumptions!28:28) -> 0 | BB28: =LOOKUP(BB2,Assumptions!26:26,Assumptions!28:28) -> 0 | BC28: =LOOKUP(BC2,Assumptions!26:26,Assumptions!28:28) -> 0 | BD28: =LOOKUP(BD2,Assumptions!26:26,Assumptions!28:28) -> 0 | BE28: =LOOKUP(BE2,Assumptions!26:26,Assumptions!28:28) -> 0 | BF28: =LOOKUP(BF2,Assumptions!26:26,Assumptions!28:28) -> 0 | BG28: =LOOKUP(BG2,Assumptions!26:26,Assumptions!28:28) -> 0 | BH28: =LOOKUP(BH2,Assumptions!26:26,Assumptions!28:28) -> 0 | BI28: =LOOKUP(BI2,Assumptions!26:26,Assumptions!28:28) -> 0 | BJ28: =LOOKUP(BJ2,Assumptions!26:26,Assumptions!28:28) -> 0 | BK28: =LOOKUP(BK2,Assumptions!26:26,Assumptions!28:28) -> 0 | BL28: =LOOKUP(BL2,Assumptions!26:26,Assumptions!28:28) -> 0 | BM28: =LOOKUP(BM2,Assumptions!26:26,Assumptions!28:28) -> 0 | BN28: =LOOKUP(BN2,Assumptions!26:26,Assumptions!28:28) -> 0 | BO28: =LOOKUP(BO2,Assumptions!26:26,Assumptions!28:28) -> 0 | BP28: =LOOKUP(BP2,Assumptions!26:26,Assumptions!28:28) -> 0 | BQ28: =LOOKUP(BQ2,Assumptions!26:26,Assumptions!28:28) -> 0 | BR28: =LOOKUP(BR2,Assumptions!26:26,Assumptions!28:28) -> 0 | BS28: =LOOKUP(BS2,Assumptions!26:26,Assumptions!28:28) -> 0 | BT28: =LOOKUP(BT2,Assumptions!26:26,Assumptions!28:28) -> 0 | BU28: =LOOKUP(BU2,Assumptions!26:26,Assumptions!28:28) -> 0 | BV28: =LOOKUP(BV2,Assumptions!26:26,Assumptions!28:28) -> 0 | BW28: =LOOKUP(BW2,Assumptions!26:26,Assumptions!28:28) -> 0 | BX28: =LOOKUP(BX2,Assumptions!26:26,Assumptions!28:28) -> 0 | BY28: =LOOKUP(BY2,Assumptions!26:26,Assumptions!28:28) -> 0 | BZ28: =LOOKUP(BZ2,Assumptions!26:26,Assumptions!28:28) -> 0 | CA28: =LOOKUP(CA2,Assumptions!26:26,Assumptions!28:28) -> 0 | CB28: =LOOKUP(CB2,Assumptions!26:26,Assumptions!28:28) -> 0 | CC28: =LOOKUP(CC2,Assumptions!26:26,Assumptions!28:28) -> 0 | CD28: =LOOKUP(CD2,Assumptions!26:26,Assumptions!28:28) -> 0 | CE28: =LOOKUP(CE2,Assumptions!26:26,Assumptions!28:28) -> 0 | CF28: =LOOKUP(CF2,Assumptions!26:26,Assumptions!28:28) -> 0 | CG28: =LOOKUP(CG2,Assumptions!26:26,Assumptions!28:28) -> 0 | CH28: =LOOKUP(CH2,Assumptions!26:26,Assumptions!28:28) -> 0 | CI28: =LOOKUP(CI2,Assumptions!26:26,Assumptions!28:28) -> 0 | CJ28: =LOOKUP(CJ2,Assumptions!26:26,Assumptions!28:28) -> 0 | CK28: =LOOKUP(CK2,Assumptions!26:26,Assumptions!28:28) -> 0 | CL28: =LOOKUP(CL2,Assumptions!26:26,Assumptions!28:28) -> 0 | CM28: =LOOKUP(CM2,Assumptions!26:26,Assumptions!28:28) -> 0 | CN28: =LOOKUP(CN2,Assumptions!26:26,Assumptions!28:28) -> 0 | CO28: =LOOKUP(CO2,Assumptions!26:26,Assumptions!28:28) -> 0 | CP28: =LOOKUP(CP2,Assumptions!26:26,Assumptions!28:28) -> 0 | CQ28: =LOOKUP(CQ2,Assumptions!26:26,Assumptions!28:28) -> 0 | CR28: =LOOKUP(CR2,Assumptions!26:26,Assumptions!28:28) -> 0 | CS28: =LOOKUP(CS2,Assumptions!26:26,Assumptions!28:28) -> 0 | CT28: =LOOKUP(CT2,Assumptions!26:26,Assumptions!28:28) -> 0 | CU28: =LOOKUP(CU2,Assumptions!26:26,Assumptions!28:28) -> 0 | CV28: =LOOKUP(CV2,Assumptions!26:26,Assumptions!28:28) -> 0 | CW28: =LOOKUP(CW2,Assumptions!26:26,Assumptions!28:28) -> 0 | CX28: =LOOKUP(CX2,Assumptions!26:26,Assumptions!28:28) -> 0 | CY28: =LOOKUP(CY2,Assumptions!26:26,Assumptions!28:28) -> 0 | CZ28: =LOOKUP(CZ2,Assumptions!26:26,Assumptions!28:28) -> 0 | DA28: =LOOKUP(DA2,Assumptions!26:26,Assumptions!28:28) -> 0 | DB28: =LOOKUP(DB2,Assumptions!26:26,Assumptions!28:28) -> 0 | DC28: =LOOKUP(DC2,Assumptions!26:26,Assumptions!28:28) -> 0 | DD28: =LOOKUP(DD2,Assumptions!26:26,Assumptions!28:28) -> 0 | DE28: =LOOKUP(DE2,Assumptions!26:26,Assumptions!28:28) -> 0 | DF28: =LOOKUP(DF2,Assumptions!26:26,Assumptions!28:28) -> 0 | DG28: =LOOKUP(DG2,Assumptions!26:26,Assumptions!28:28) -> 0 | DH28: =LOOKUP(DH2,Assumptions!26:26,Assumptions!28:28) -> 0 | DI28: =LOOKUP(DI2,Assumptions!26:26,Assumptions!28:28) -> 0 | DJ28: =LOOKUP(DJ2,Assumptions!26:26,Assumptions!28:28) -> 0 | DK28: =LOOKUP(DK2,Assumptions!26:26,Assumptions!28:28) -> 0 | DL28: =LOOKUP(DL2,Assumptions!26:26,Assumptions!28:28) -> 0 | DM28: =LOOKUP(DM2,Assumptions!26:26,Assumptions!28:28) -> 0 | DN28: =LOOKUP(DN2,Assumptions!26:26,Assumptions!28:28) -> 0 | DO28: =LOOKUP(DO2,Assumptions!26:26,Assumptions!28:28) -> 0 | DP28: =LOOKUP(DP2,Assumptions!26:26,Assumptions!28:28) -> 0 | DQ28: =LOOKUP(DQ2,Assumptions!26:26,Assumptions!28:28) -> 0 | DR28: =LOOKUP(DR2,Assumptions!26:26,Assumptions!28:28) -> 0 | DS28: =LOOKUP(DS2,Assumptions!26:26,Assumptions!28:28) -> 0 | DT28: =LOOKUP(DT2,Assumptions!26:26,Assumptions!28:28) -> 0 | DU28: =LOOKUP(DU2,Assumptions!26:26,Assumptions!28:28) -> 0 | DV28: =LOOKUP(DV2,Assumptions!26:26,Assumptions!28:28) -> 0 | DW28: =LOOKUP(DW2,Assumptions!26:26,Assumptions!28:28) -> 0 | DX28: =LOOKUP(DX2,Assumptions!26:26,Assumptions!28:28) -> 0 | DY28: =LOOKUP(DY2,Assumptions!26:26,Assumptions!28:28) -> 0 | DZ28: =LOOKUP(DZ2,Assumptions!26:26,Assumptions!28:28) -> 0 | EA28: =LOOKUP(EA2,Assumptions!26:26,Assumptions!28:28) -> 0 | EB28: =LOOKUP(EB2,Assumptions!26:26,Assumptions!28:28) -> 0 | EC28: =LOOKUP(EC2,Assumptions!26:26,Assumptions!28:28) -> 0 | ED28: =LOOKUP(ED2,Assumptions!26:26,Assumptions!28:28) -> 0 | EE28: =LOOKUP(EE2,Assumptions!26:26,Assumptions!28:28) -> 0 | EF28: =LOOKUP(EF2,Assumptions!26:26,Assumptions!28:28) -> 0 | EG28: =LOOKUP(EG2,Assumptions!26:26,Assumptions!28:28) -> 0 | EH28: =LOOKUP(EH2,Assumptions!26:26,Assumptions!28:28) -> 0 | EI28: =LOOKUP(EI2,Assumptions!26:26,Assumptions!28:28) -> 0 | EJ28: =LOOKUP(EJ2,Assumptions!26:26,Assumptions!28:28) -> 0 | EK28: =LOOKUP(EK2,Assumptions!26:26,Assumptions!28:28) -> 0 | EL28: =LOOKUP(EL2,Assumptions!26:26,Assumptions!28:28) -> 0 | EM28: =LOOKUP(EM2,Assumptions!26:26,Assumptions!28:28) -> 0 | EN28: =LOOKUP(EN2,Assumptions!26:26,Assumptions!28:28) -> 0 | EO28: =LOOKUP(EO2,Assumptions!26:26,Assumptions!28:28) -> 0 | EP28: =LOOKUP(EP2,Assumptions!26:26,Assumptions!28:28) -> 0 | EQ28: =LOOKUP(EQ2,Assumptions!26:26,Assumptions!28:28) -> 0 | ER28: =LOOKUP(ER2,Assumptions!26:26,Assumptions!28:28) -> 0 | ES28: =LOOKUP(ES2,Assumptions!26:26,Assumptions!28:28) -> 0 | ET28: =LOOKUP(ET2,Assumptions!26:26,Assumptions!28:28) -> 0 | EU28: =LOOKUP(EU2,Assumptions!26:26,Assumptions!28:28) -> 0 | EV28: =LOOKUP(EV2,Assumptions!26:26,Assumptions!28:28) -> 0 | EW28: =LOOKUP(EW2,Assumptions!26:26,Assumptions!28:28) -> 0 | EX28: =LOOKUP(EX2,Assumptions!26:26,Assumptions!28:28) -> 0 | EY28: =LOOKUP(EY2,Assumptions!26:26,Assumptions!28:28) -> 0 | EZ28: =LOOKUP(EZ2,Assumptions!26:26,Assumptions!28:28) -> 0 | FA28: =LOOKUP(FA2,Assumptions!26:26,Assumptions!28:28) -> 0 | FB28: =LOOKUP(FB2,Assumptions!26:26,Assumptions!28:28) -> 0 | FC28: =LOOKUP(FC2,Assumptions!26:26,Assumptions!28:28) -> 0 | FD28: =LOOKUP(FD2,Assumptions!26:26,Assumptions!28:28) -> 0 | FE28: =LOOKUP(FE2,Assumptions!26:26,Assumptions!28:28) -> 0 | FF28: =LOOKUP(FF2,Assumptions!26:26,Assumptions!28:28) -> 0 | FG28: =LOOKUP(FG2,Assumptions!26:26,Assumptions!28:28) -> 0 | FH28: =LOOKUP(FH2,Assumptions!26:26,Assumptions!28:28) -> 0 | FI28: =LOOKUP(FI2,Assumptions!26:26,Assumptions!28:28) -> 0 | FJ28: =LOOKUP(FJ2,Assumptions!26:26,Assumptions!28:28) -> 0 | FK28: =LOOKUP(FK2,Assumptions!26:26,Assumptions!28:28) -> 0 | FL28: =LOOKUP(FL2,Assumptions!26:26,Assumptions!28:28) -> 0 | FM28: =LOOKUP(FM2,Assumptions!26:26,Assumptions!28:28) -> 0 | FN28: =LOOKUP(FN2,Assumptions!26:26,Assumptions!28:28) -> 0 | FO28: =LOOKUP(FO2,Assumptions!26:26,Assumptions!28:28) -> 0 | FP28: =LOOKUP(FP2,Assumptions!26:26,Assumptions!28:28) -> 0 | FQ28: =LOOKUP(FQ2,Assumptions!26:26,Assumptions!28:28) -> 0 | FR28: =LOOKUP(FR2,Assumptions!26:26,Assumptions!28:28) -> 0 | FS28: =LOOKUP(FS2,Assumptions!26:26,Assumptions!28:28) -> 0 | FT28: =LOOKUP(FT2,Assumptions!26:26,Assumptions!28:28) -> 0 | FU28: =LOOKUP(FU2,Assumptions!26:26,Assumptions!28:28) -> 0 | FV28: =LOOKUP(FV2,Assumptions!26:26,Assumptions!28:28) -> 0 | FW28: =LOOKUP(FW2,Assumptions!26:26,Assumptions!28:28) -> 0 | FX28: =LOOKUP(FX2,Assumptions!26:26,Assumptions!28:28) -> 0 | FY28: =LOOKUP(FY2,Assumptions!26:26,Assumptions!28:28) -> 0 | FZ28: =LOOKUP(FZ2,Assumptions!26:26,Assumptions!28:28) -> 0 | GA28: =LOOKUP(GA2,Assumptions!26:26,Assumptions!28:28) -> 0 | GB28: =LOOKUP(GB2,Assumptions!26:26,Assumptions!28:28) -> 0 | GC28: =LOOKUP(GC2,Assumptions!26:26,Assumptions!28:28) -> 0 | GD28: =LOOKUP(GD2,Assumptions!26:26,Assumptions!28:28) -> 0 | GE28: =LOOKUP(GE2,Assumptions!26:26,Assumptions!28:28) -> 0 | GF28: =LOOKUP(GF2,Assumptions!26:26,Assumptions!28:28) -> 0 | GG28: =LOOKUP(GG2,Assumptions!26:26,Assumptions!28:28) -> 0 | GH28: =LOOKUP(GH2,Assumptions!26:26,Assumptions!28:28) -> 0 | GI28: =LOOKUP(GI2,Assumptions!26:26,Assumptions!28:28) -> 0 | GJ28: =LOOKUP(GJ2,Assumptions!26:26,Assumptions!28:28) -> 0 | GK28: =LOOKUP(GK2,Assumptions!26:26,Assumptions!28:28) -> 0 | GL28: =LOOKUP(GL2,Assumptions!26:26,Assumptions!28:28) -> 0 | GM28: =LOOKUP(GM2,Assumptions!26:26,Assumptions!28:28) -> 0 | GN28: =LOOKUP(GN2,Assumptions!26:26,Assumptions!28:28) -> 0 | GO28: =LOOKUP(GO2,Assumptions!26:26,Assumptions!28:28) -> 0 | GP28: =LOOKUP(GP2,Assumptions!26:26,Assumptions!28:28) -> 0 | GQ28: =LOOKUP(GQ2,Assumptions!26:26,Assumptions!28:28) -> 0 | GR28: =LOOKUP(GR2,Assumptions!26:26,Assumptions!28:28) -> 0 | GS28: =LOOKUP(GS2,Assumptions!26:26,Assumptions!28:28) -> 0 | GT28: =LOOKUP(GT2,Assumptions!26:26,Assumptions!28:28) -> 0 | GU28: =LOOKUP(GU2,Assumptions!26:26,Assumptions!28:28) -> 0 | GV28: =LOOKUP(GV2,Assumptions!26:26,Assumptions!28:28) -> 0 | GW28: =LOOKUP(GW2,Assumptions!26:26,Assumptions!28:28) -> 0 | GX28: =LOOKUP(GX2,Assumptions!26:26,Assumptions!28:28) -> 0 | GY28: =LOOKUP(GY2,Assumptions!26:26,Assumptions!28:28) -> 0 | GZ28: =LOOKUP(GZ2,Assumptions!26:26,Assumptions!28:28) -> 0 | HA28: =LOOKUP(HA2,Assumptions!26:26,Assumptions!28:28) -> 0
C29: EPC Costs | I29: =SUM(J29:HA29)=F27 -> TRUE | J29: =J27*J28 -> 30406.99058 | K29: =K27*K28 -> 35861.79545 | L29: 41874.31096 | M29: 48408.36045 | N29: 55405.1492 | O29: 62782.25911 | P29: 70433.74885 | Q29: 78231.51217 | R29: 86027.97511 | S29: 93660.12472 | T29: 100954.764 | U29: 107734.7875 | V29: 113826.1786 | W29: 119065.354 | X29: 123306.4272 | Y29: 126427.9443 | Z29: 128338.658 | AA29: 128981.9582 | AB29: 128338.658 | AC29: 126427.9443 | AD29: 123306.4272 | AE29: 119065.354 | AF29: 113826.1786 | AG29: 107734.7875 | AH29: 100954.764 | AI29: 93660.12472 | AJ29: 86027.97511 | AK29: 78231.51217 | AL29: 70433.74885 | AM29: 62782.25911 | AN29: 55405.1492 | AO29: 48408.36045 | AP29: 41874.31096 | AQ29: 35861.79545 | AR29: 30406.99058 | AS29: 25525.36173 | AT29: 0 | AU29: 0 | AV29: 0 | AW29: 0 | AX29: 0 | AY29: 0 | AZ29: 0 | BA29: 0 | BB29: 0 | BC29: 0 | BD29: 0 | BE29: 0 | BF29: 0 | BG29: 0 | BH29: 0 | BI29: 0 | BJ29: 0 | BK29: 0 | BL29: 0 | BM29: 0 | BN29: 0 | BO29: 0 | BP29: 0 | BQ29: 0 | BR29: 0 | BS29: 0 | BT29: 0 | BU29: 0 | BV29: 0 | BW29: =BW27*BW28 -> 0 | BX29: 0 | BY29: 0 | BZ29: 0 | CA29: 0 | CB29: 0 | CC29: 0 | CD29: 0 | CE29: 0 | CF29: 0 | CG29: 0 | CH29: 0 | CI29: 0 | CJ29: 0 | CK29: 0 | CL29: 0 | CM29: 0 | CN29: 0 | CO29: 0 | CP29: 0 | CQ29: 0 | CR29: 0 | CS29: 0 | CT29: 0 | CU29: 0 | CV29: 0 | CW29: 0 | CX29: 0 | CY29: 0 | CZ29: 0 | DA29: 0 | DB29: 0 | DC29: 0 | DD29: 0 | DE29: 0 | DF29: 0 | DG29: 0 | DH29: 0 | DI29: 0 | DJ29: 0 | DK29: 0 | DL29: 0 | DM29: 0 | DN29: 0 | DO29: 0 | DP29: 0 | DQ29: 0 | DR29: 0 | DS29: 0 | DT29: 0 | DU29: 0 | DV29: 0 | DW29: 0 | DX29: 0 | DY29: 0 | DZ29: 0 | EA29: 0 | EB29: 0 | EC29: 0 | ED29: 0 | EE29: 0 | EF29: 0 | EG29: 0 | EH29: 0 | EI29: =EI27*EI28 -> 0 | EJ29: 0 | EK29: 0 | EL29: 0 | EM29: 0 | EN29: 0 | EO29: 0 | EP29: 0 | EQ29: 0 | ER29: 0 | ES29: 0 | ET29: 0 | EU29: 0 | EV29: 0 | EW29: 0 | EX29: 0 | EY29: 0 | EZ29: 0 | FA29: 0 | FB29: 0 | FC29: 0 | FD29: 0 | FE29: 0 | FF29: 0 | FG29: 0 | FH29: 0 | FI29: 0 | FJ29: 0 | FK29: 0 | FL29: 0 | FM29: 0 | FN29: 0 | FO29: 0 | FP29: 0 | FQ29: 0 | FR29: 0 | FS29: 0 | FT29: 0 | FU29: 0 | FV29: 0 | FW29: 0 | FX29: 0 | FY29: 0 | FZ29: 0 | GA29: 0 | GB29: 0 | GC29: 0 | GD29: 0 | GE29: 0 | GF29: 0 | GG29: 0 | GH29: 0 | GI29: 0 | GJ29: 0 | GK29: 0 | GL29: 0 | GM29: 0 | GN29: 0 | GO29: 0 | GP29: 0 | GQ29: 0 | GR29: 0 | GS29: 0 | GT29: 0 | GU29: =GU27*GU28 -> 0 | GV29: 0 | GW29: 0 | GX29: 0 | GY29: 0 | GZ29: 0 | HA29: 0
C30: Development Cost | J30: =Assumptions!E30 -> 160000
C31: Total Cap Exp | I31: =SUM(J31:HA31) -> 3160000 | J31: =J29+J30 -> 190406.9906 | K31: =K29+K30 -> 35861.79545 | L31: 41874.31096 | M31: 48408.36045 | N31: 55405.1492 | O31: 62782.25911 | P31: 70433.74885 | Q31: 78231.51217 | R31: 86027.97511 | S31: 93660.12472 | T31: 100954.764 | U31: 107734.7875 | V31: 113826.1786 | W31: 119065.354 | X31: 123306.4272 | Y31: 126427.9443 | Z31: 128338.658 | AA31: 128981.9582 | AB31: 128338.658 | AC31: 126427.9443 | AD31: 123306.4272 | AE31: 119065.354 | AF31: 113826.1786 | AG31: 107734.7875 | AH31: 100954.764 | AI31: 93660.12472 | AJ31: 86027.97511 | AK31: 78231.51217 | AL31: 70433.74885 | AM31: 62782.25911 | AN31: 55405.1492 | AO31: 48408.36045 | AP31: 41874.31096 | AQ31: 35861.79545 | AR31: 30406.99058 | AS31: 25525.36173 | AT31: 0 | AU31: 0 | AV31: 0 | AW31: 0 | AX31: 0 | AY31: 0 | AZ31: 0 | BA31: 0 | BB31: 0 | BC31: 0 | BD31: 0 | BE31: 0 | BF31: 0 | BG31: 0 | BH31: 0 | BI31: 0 | BJ31: 0 | BK31: 0 | BL31: 0 | BM31: 0 | BN31: 0 | BO31: 0 | BP31: 0 | BQ31: 0 | BR31: 0 | BS31: 0 | BT31: 0 | BU31: 0 | BV31: 0 | BW31: =BW29+BW30 -> 0 | BX31: 0 | BY31: 0 | BZ31: 0 | CA31: 0 | CB31: 0 | CC31: 0 | CD31: 0 | CE31: 0 | CF31: 0 | CG31: 0 | CH31: 0 | CI31: 0 | CJ31: 0 | CK31: 0 | CL31: 0 | CM31: 0 | CN31: 0 | CO31: 0 | CP31: 0 | CQ31: 0 | CR31: 0 | CS31: 0 | CT31: 0 | CU31: 0 | CV31: 0 | CW31: 0 | CX31: 0 | CY31: 0 | CZ31: 0 | DA31: 0 | DB31: 0 | DC31: 0 | DD31: 0 | DE31: 0 | DF31: 0 | DG31: 0 | DH31: 0 | DI31: 0 | DJ31: 0 | DK31: 0 | DL31: 0 | DM31: 0 | DN31: 0 | DO31: 0 | DP31: 0 | DQ31: 0 | DR31: 0 | DS31: 0 | DT31: 0 | DU31: 0 | DV31: 0 | DW31: 0 | DX31: 0 | DY31: 0 | DZ31: 0 | EA31: 0 | EB31: 0 | EC31: 0 | ED31: 0 | EE31: 0 | EF31: 0 | EG31: 0 | EH31: 0 | EI31: =EI29+EI30 -> 0 | EJ31: 0 | EK31: 0 | EL31: 0 | EM31: 0 | EN31: 0 | EO31: 0 | EP31: 0 | EQ31: 0 | ER31: 0 | ES31: 0 | ET31: 0 | EU31: 0 | EV31: 0 | EW31: 0 | EX31: 0 | EY31: 0 | EZ31: 0 | FA31: 0 | FB31: 0 | FC31: 0 | FD31: 0 | FE31: 0 | FF31: 0 | FG31: 0 | FH31: 0 | FI31: 0 | FJ31: 0 | FK31: 0 | FL31: 0 | FM31: 0 | FN31: 0 | FO31: 0 | FP31: 0 | FQ31: 0 | FR31: 0 | FS31: 0 | FT31: 0 | FU31: 0 | FV31: 0 | FW31: 0 | FX31: 0 | FY31: 0 | FZ31: 0 | GA31: 0 | GB31: 0 | GC31: 0 | GD31: 0 | GE31: 0 | GF31: 0 | GG31: 0 | GH31: 0 | GI31: 0 | GJ31: 0 | GK31: 0 | GL31: 0 | GM31: 0 | GN31: 0 | GO31: 0 | GP31: 0 | GQ31: 0 | GR31: 0 | GS31: 0 | GT31: 0 | GU31: =GU29+GU30 -> 0 | GV31: 0 | GW31: 0 | GX31: 0 | GY31: 0 | GZ31: 0 | HA31: 0
B33: Operation & Maintenance
C34: Maintenance Period | J34: =MATCH(J5,Assumptions!37:37,0) ->  | K34: =MATCH(K5,Assumptions!37:37,0) ->  | L34: =MATCH(L5,Assumptions!37:37,0) ->  | M34: =MATCH(M5,Assumptions!37:37,0) ->  | N34: =MATCH(N5,Assumptions!37:37,0) ->  | O34: =MATCH(O5,Assumptions!37:37,0) ->  | P34: =MATCH(P5,Assumptions!37:37,0) ->  | Q34: =MATCH(Q5,Assumptions!37:37,0) ->  | R34: =MATCH(R5,Assumptions!37:37,0) ->  | S34: =MATCH(S5,Assumptions!37:37,0) ->  | T34: =MATCH(T5,Assumptions!37:37,0) ->  | U34: =MATCH(U5,Assumptions!37:37,0) ->  | V34: =MATCH(V5,Assumptions!37:37,0) ->  | W34: =MATCH(W5,Assumptions!37:37,0) ->  | X34: =MATCH(X5,Assumptions!37:37,0) ->  | Y34: =MATCH(Y5,Assumptions!37:37,0) ->  | Z34: =MATCH(Z5,Assumptions!37:37,0) ->  | AA34: =MATCH(AA5,Assumptions!37:37,0) ->  | AB34: =MATCH(AB5,Assumptions!37:37,0) ->  | AC34: =MATCH(AC5,Assumptions!37:37,0) ->  | AD34: =MATCH(AD5,Assumptions!37:37,0) ->  | AE34: =MATCH(AE5,Assumptions!37:37,0) ->  | AF34: =MATCH(AF5,Assumptions!37:37,0) ->  | AG34: =MATCH(AG5,Assumptions!37:37,0) ->  | AH34: =MATCH(AH5,Assumptions!37:37,0) ->  | AI34: =MATCH(AI5,Assumptions!37:37,0) ->  | AJ34: =MATCH(AJ5,Assumptions!37:37,0) ->  | AK34: =MATCH(AK5,Assumptions!37:37,0) ->  | AL34: =MATCH(AL5,Assumptions!37:37,0) ->  | AM34: =MATCH(AM5,Assumptions!37:37,0) ->  | AN34: =MATCH(AN5,Assumptions!37:37,0) ->  | AO34: =MATCH(AO5,Assumptions!37:37,0) ->  | AP34: =MATCH(AP5,Assumptions!37:37,0) ->  | AQ34: =MATCH(AQ5,Assumptions!37:37,0) ->  | AR34: =MATCH(AR5,Assumptions!37:37,0) ->  | AS34: =MATCH(AS5,Assumptions!37:37,0) ->  | AT34: =MATCH(AT5,Assumptions!37:37,0) ->  | AU34: =MATCH(AU5,Assumptions!37:37,0) ->  | AV34: =MATCH(AV5,Assumptions!37:37,0) ->  | AW34: =MATCH(AW5,Assumptions!37:37,0) ->  | AX34: =MATCH(AX5,Assumptions!37:37,0) ->  | AY34: =MATCH(AY5,Assumptions!37:37,0) ->  | AZ34: =MATCH(AZ5,Assumptions!37:37,0) ->  | BA34: =MATCH(BA5,Assumptions!37:37,0) ->  | BB34: =MATCH(BB5,Assumptions!37:37,0) ->  | BC34: =MATCH(BC5,Assumptions!37:37,0) ->  | BD34: =MATCH(BD5,Assumptions!37:37,0) ->  | BE34: =MATCH(BE5,Assumptions!37:37,0) ->  | BF34: =MATCH(BF5,Assumptions!37:37,0) ->  | BG34: =MATCH(BG5,Assumptions!37:37,0) ->  | BH34: =MATCH(BH5,Assumptions!37:37,0) ->  | BI34: =MATCH(BI5,Assumptions!37:37,0) ->  | BJ34: =MATCH(BJ5,Assumptions!37:37,0) ->  | BK34: =MATCH(BK5,Assumptions!37:37,0) ->  | BL34: =MATCH(BL5,Assumptions!37:37,0) ->  | BM34: =MATCH(BM5,Assumptions!37:37,0) ->  | BN34: =MATCH(BN5,Assumptions!37:37,0) ->  | BO34: =MATCH(BO5,Assumptions!37:37,0) ->  | BP34: =MATCH(BP5,Assumptions!37:37,0) ->  | BQ34: =MATCH(BQ5,Assumptions!37:37,0) ->  | BR34: =MATCH(BR5,Assumptions!37:37,0) ->  | BS34: =MATCH(BS5,Assumptions!37:37,0) ->  | BT34: =MATCH(BT5,Assumptions!37:37,0) ->  | BU34: =MATCH(BU5,Assumptions!37:37,0) ->  | BV34: =MATCH(BV5,Assumptions!37:37,0) ->  | BW34: =MATCH(BW5,Assumptions!37:37,0) ->  | BX34: =MATCH(BX5,Assumptions!37:37,0) ->  | BY34: =MATCH(BY5,Assumptions!37:37,0) ->  | BZ34: =MATCH(BZ5,Assumptions!37:37,0) ->  | CA34: =MATCH(CA5,Assumptions!37:37,0) ->  | CB34: =MATCH(CB5,Assumptions!37:37,0) ->  | CC34: =MATCH(CC5,Assumptions!37:37,0) ->  | CD34: =MATCH(CD5,Assumptions!37:37,0) ->  | CE34: =MATCH(CE5,Assumptions!37:37,0) ->  | CF34: =MATCH(CF5,Assumptions!37:37,0) ->  | CG34: =MATCH(CG5,Assumptions!37:37,0) ->  | CH34: =MATCH(CH5,Assumptions!37:37,0) ->  | CI34: =MATCH(CI5,Assumptions!37:37,0) ->  | CJ34: =MATCH(CJ5,Assumptions!37:37,0) ->  | CK34: =MATCH(CK5,Assumptions!37:37,0) ->  | CL34: =MATCH(CL5,Assumptions!37:37,0) ->  | CM34: =MATCH(CM5,Assumptions!37:37,0) ->  | CN34: =MATCH(CN5,Assumptions!37:37,0) ->  | CO34: =MATCH(CO5,Assumptions!37:37,0) ->  | CP34: =MATCH(CP5,Assumptions!37:37,0) ->  | CQ34: =MATCH(CQ5,Assumptions!37:37,0) ->  | CR34: =MATCH(CR5,Assumptions!37:37,0) ->  | CS34: =MATCH(CS5,Assumptions!37:37,0) ->  | CT34: =MATCH(CT5,Assumptions!37:37,0) ->  | CU34: =MATCH(CU5,Assumptions!37:37,0) ->  | CV34: =MATCH(CV5,Assumptions!37:37,0) ->  | CW34: =MATCH(CW5,Assumptions!37:37,0) ->  | CX34: =MATCH(CX5,Assumptions!37:37,0) ->  | CY34: =MATCH(CY5,Assumptions!37:37,0) ->  | CZ34: =MATCH(CZ5,Assumptions!37:37,0) ->  | DA34: =MATCH(DA5,Assumptions!37:37,0) ->  | DB34: =MATCH(DB5,Assumptions!37:37,0) ->  | DC34: =MATCH(DC5,Assumptions!37:37,0) ->  | DD34: =MATCH(DD5,Assumptions!37:37,0) ->  | DE34: =MATCH(DE5,Assumptions!37:37,0) ->  | DF34: =MATCH(DF5,Assumptions!37:37,0) ->  | DG34: =MATCH(DG5,Assumptions!37:37,0) ->  | DH34: =MATCH(DH5,Assumptions!37:37,0) ->  | DI34: =MATCH(DI5,Assumptions!37:37,0) ->  | DJ34: =MATCH(DJ5,Assumptions!37:37,0) ->  | DK34: =MATCH(DK5,Assumptions!37:37,0) ->  | DL34: =MATCH(DL5,Assumptions!37:37,0) ->  | DM34: =MATCH(DM5,Assumptions!37:37,0) ->  | DN34: =MATCH(DN5,Assumptions!37:37,0) ->  | DO34: =MATCH(DO5,Assumptions!37:37,0) ->  | DP34: =MATCH(DP5,Assumptions!37:37,0) ->  | DQ34: =MATCH(DQ5,Assumptions!37:37,0) ->  | DR34: =MATCH(DR5,Assumptions!37:37,0) ->  | DS34: =MATCH(DS5,Assumptions!37:37,0) ->  | DT34: =MATCH(DT5,Assumptions!37:37,0) ->  | DU34: =MATCH(DU5,Assumptions!37:37,0) ->  | DV34: =MATCH(DV5,Assumptions!37:37,0) ->  | DW34: =MATCH(DW5,Assumptions!37:37,0) ->  | DX34: =MATCH(DX5,Assumptions!37:37,0) ->  | DY34: =MATCH(DY5,Assumptions!37:37,0) ->  | DZ34: =MATCH(DZ5,Assumptions!37:37,0) ->  | EA34: =MATCH(EA5,Assumptions!37:37,0) ->  | EB34: =MATCH(EB5,Assumptions!37:37,0) ->  | EC34: =MATCH(EC5,Assumptions!37:37,0) ->  | ED34: =MATCH(ED5,Assumptions!37:37,0) ->  | EE34: =MATCH(EE5,Assumptions!37:37,0) ->  | EF34: =MATCH(EF5,Assumptions!37:37,0) ->  | EG34: =MATCH(EG5,Assumptions!37:37,0) ->  | EH34: =MATCH(EH5,Assumptions!37:37,0) ->  | EI34: =MATCH(EI5,Assumptions!37:37,0) ->  | EJ34: =MATCH(EJ5,Assumptions!37:37,0) ->  | EK34: =MATCH(EK5,Assumptions!37:37,0) ->  | EL34: =MATCH(EL5,Assumptions!37:37,0) ->  | EM34: =MATCH(EM5,Assumptions!37:37,0) ->  | EN34: =MATCH(EN5,Assumptions!37:37,0) ->  | EO34: =MATCH(EO5,Assumptions!37:37,0) ->  | EP34: =MATCH(EP5,Assumptions!37:37,0) ->  | EQ34: =MATCH(EQ5,Assumptions!37:37,0) ->  | ER34: =MATCH(ER5,Assumptions!37:37,0) ->  | ES34: =MATCH(ES5,Assumptions!37:37,0) ->  | ET34: =MATCH(ET5,Assumptions!37:37,0) ->  | EU34: =MATCH(EU5,Assumptions!37:37,0) ->  | EV34: =MATCH(EV5,Assumptions!37:37,0) ->  | EW34: =MATCH(EW5,Assumptions!37:37,0) ->  | EX34: =MATCH(EX5,Assumptions!37:37,0) ->  | EY34: =MATCH(EY5,Assumptions!37:37,0) ->  | EZ34: =MATCH(EZ5,Assumptions!37:37,0) ->  | FA34: =MATCH(FA5,Assumptions!37:37,0) ->  | FB34: =MATCH(FB5,Assumptions!37:37,0) ->  | FC34: =MATCH(FC5,Assumptions!37:37,0) ->  | FD34: =MATCH(FD5,Assumptions!37:37,0) ->  | FE34: =MATCH(FE5,Assumptions!37:37,0) ->  | FF34: =MATCH(FF5,Assumptions!37:37,0) ->  | FG34: =MATCH(FG5,Assumptions!37:37,0) ->  | FH34: =MATCH(FH5,Assumptions!37:37,0) ->  | FI34: =MATCH(FI5,Assumptions!37:37,0) ->  | FJ34: =MATCH(FJ5,Assumptions!37:37,0) ->  | FK34: =MATCH(FK5,Assumptions!37:37,0) ->  | FL34: =MATCH(FL5,Assumptions!37:37,0) ->  | FM34: =MATCH(FM5,Assumptions!37:37,0) ->  | FN34: =MATCH(FN5,Assumptions!37:37,0) ->  | FO34: =MATCH(FO5,Assumptions!37:37,0) ->  | FP34: =MATCH(FP5,Assumptions!37:37,0) ->  | FQ34: =MATCH(FQ5,Assumptions!37:37,0) ->  | FR34: =MATCH(FR5,Assumptions!37:37,0) ->  | FS34: =MATCH(FS5,Assumptions!37:37,0) ->  | FT34: =MATCH(FT5,Assumptions!37:37,0) ->  | FU34: =MATCH(FU5,Assumptions!37:37,0) ->  | FV34: =MATCH(FV5,Assumptions!37:37,0) ->  | FW34: =MATCH(FW5,Assumptions!37:37,0) ->  | FX34: =MATCH(FX5,Assumptions!37:37,0) ->  | FY34: =MATCH(FY5,Assumptions!37:37,0) ->  | FZ34: =MATCH(FZ5,Assumptions!37:37,0) ->  | GA34: =MATCH(GA5,Assumptions!37:37,0) ->  | GB34: =MATCH(GB5,Assumptions!37:37,0) ->  | GC34: =MATCH(GC5,Assumptions!37:37,0) ->  | GD34: =MATCH(GD5,Assumptions!37:37,0) ->  | GE34: =MATCH(GE5,Assumptions!37:37,0) ->  | GF34: =MATCH(GF5,Assumptions!37:37,0) ->  | GG34: =MATCH(GG5,Assumptions!37:37,0) ->  | GH34: =MATCH(GH5,Assumptions!37:37,0) ->  | GI34: =MATCH(GI5,Assumptions!37:37,0) ->  | GJ34: =MATCH(GJ5,Assumptions!37:37,0) ->  | GK34: =MATCH(GK5,Assumptions!37:37,0) ->  | GL34: =MATCH(GL5,Assumptions!37:37,0) ->  | GM34: =MATCH(GM5,Assumptions!37:37,0) ->  | GN34: =MATCH(GN5,Assumptions!37:37,0) ->  | GO34: =MATCH(GO5,Assumptions!37:37,0) ->  | GP34: =MATCH(GP5,Assumptions!37:37,0) ->  | GQ34: =MATCH(GQ5,Assumptions!37:37,0) ->  | GR34: =MATCH(GR5,Assumptions!37:37,0) ->  | GS34: =MATCH(GS5,Assumptions!37:37,0) ->  | GT34: =MATCH(GT5,Assumptions!37:37,0) ->  | GU34: =MATCH(GU5,Assumptions!37:37,0) ->  | GV34: =MATCH(GV5,Assumptions!37:37,0) ->  | GW34: =MATCH(GW5,Assumptions!37:37,0) ->  | GX34: =MATCH(GX5,Assumptions!37:37,0) ->  | GY34: =MATCH(GY5,Assumptions!37:37,0) ->  | GZ34: =MATCH(GZ5,Assumptions!37:37,0) ->  | HA34: =MATCH(HA5,Assumptions!37:37,0) -> 
C35: Maintenance Cost | G35: =Assumptions!D40 -> FALSE | J35: =IFERROR(INDEX(Assumptions!38:38,J34),0)*$G$35 -> 0 | K35: =IFERROR(INDEX(Assumptions!38:38,K34),0)*$G$35 -> 0 | L35: =IFERROR(INDEX(Assumptions!38:38,L34),0)*$G$35 -> 0 | M35: =IFERROR(INDEX(Assumptions!38:38,M34),0)*$G$35 -> 0 | N35: =IFERROR(INDEX(Assumptions!38:38,N34),0)*$G$35 -> 0 | O35: =IFERROR(INDEX(Assumptions!38:38,O34),0)*$G$35 -> 0 | P35: =IFERROR(INDEX(Assumptions!38:38,P34),0)*$G$35 -> 0 | Q35: =IFERROR(INDEX(Assumptions!38:38,Q34),0)*$G$35 -> 0 | R35: =IFERROR(INDEX(Assumptions!38:38,R34),0)*$G$35 -> 0 | S35: =IFERROR(INDEX(Assumptions!38:38,S34),0)*$G$35 -> 0 | T35: =IFERROR(INDEX(Assumptions!38:38,T34),0)*$G$35 -> 0 | U35: =IFERROR(INDEX(Assumptions!38:38,U34),0)*$G$35 -> 0 | V35: =IFERROR(INDEX(Assumptions!38:38,V34),0)*$G$35 -> 0 | W35: =IFERROR(INDEX(Assumptions!38:38,W34),0)*$G$35 -> 0 | X35: =IFERROR(INDEX(Assumptions!38:38,X34),0)*$G$35 -> 0 | Y35: =IFERROR(INDEX(Assumptions!38:38,Y34),0)*$G$35 -> 0 | Z35: =IFERROR(INDEX(Assumptions!38:38,Z34),0)*$G$35 -> 0 | AA35: =IFERROR(INDEX(Assumptions!38:38,AA34),0)*$G$35 -> 0 | AB35: =IFERROR(INDEX(Assumptions!38:38,AB34),0)*$G$35 -> 0 | AC35: =IFERROR(INDEX(Assumptions!38:38,AC34),0)*$G$35 -> 0 | AD35: =IFERROR(INDEX(Assumptions!38:38,AD34),0)*$G$35 -> 0 | AE35: =IFERROR(INDEX(Assumptions!38:38,AE34),0)*$G$35 -> 0 | AF35: =IFERROR(INDEX(Assumptions!38:38,AF34),0)*$G$35 -> 0 | AG35: =IFERROR(INDEX(Assumptions!38:38,AG34),0)*$G$35 -> 0 | AH35: =IFERROR(INDEX(Assumptions!38:38,AH34),0)*$G$35 -> 0 | AI35: =IFERROR(INDEX(Assumptions!38:38,AI34),0)*$G$35 -> 0 | AJ35: =IFERROR(INDEX(Assumptions!38:38,AJ34),0)*$G$35 -> 0 | AK35: =IFERROR(INDEX(Assumptions!38:38,AK34),0)*$G$35 -> 0 | AL35: =IFERROR(INDEX(Assumptions!38:38,AL34),0)*$G$35 -> 0 | AM35: =IFERROR(INDEX(Assumptions!38:38,AM34),0)*$G$35 -> 0 | AN35: =IFERROR(INDEX(Assumptions!38:38,AN34),0)*$G$35 -> 0 | AO35: =IFERROR(INDEX(Assumptions!38:38,AO34),0)*$G$35 -> 0 | AP35: =IFERROR(INDEX(Assumptions!38:38,AP34),0)*$G$35 -> 0 | AQ35: =IFERROR(INDEX(Assumptions!38:38,AQ34),0)*$G$35 -> 0 | AR35: =IFERROR(INDEX(Assumptions!38:38,AR34),0)*$G$35 -> 0 | AS35: =IFERROR(INDEX(Assumptions!38:38,AS34),0)*$G$35 -> 0 | AT35: =IFERROR(INDEX(Assumptions!38:38,AT34),0)*$G$35 -> 0 | AU35: =IFERROR(INDEX(Assumptions!38:38,AU34),0)*$G$35 -> 0 | AV35: =IFERROR(INDEX(Assumptions!38:38,AV34),0)*$G$35 -> 0 | AW35: =IFERROR(INDEX(Assumptions!38:38,AW34),0)*$G$35 -> 0 | AX35: =IFERROR(INDEX(Assumptions!38:38,AX34),0)*$G$35 -> 0 | AY35: =IFERROR(INDEX(Assumptions!38:38,AY34),0)*$G$35 -> 0 | AZ35: =IFERROR(INDEX(Assumptions!38:38,AZ34),0)*$G$35 -> 0 | BA35: =IFERROR(INDEX(Assumptions!38:38,BA34),0)*$G$35 -> 0 | BB35: =IFERROR(INDEX(Assumptions!38:38,BB34),0)*$G$35 -> 0 | BC35: =IFERROR(INDEX(Assumptions!38:38,BC34),0)*$G$35 -> 0 | BD35: =IFERROR(INDEX(Assumptions!38:38,BD34),0)*$G$35 -> 0 | BE35: =IFERROR(INDEX(Assumptions!38:38,BE34),0)*$G$35 -> 0 | BF35: =IFERROR(INDEX(Assumptions!38:38,BF34),0)*$G$35 -> 0 | BG35: =IFERROR(INDEX(Assumptions!38:38,BG34),0)*$G$35 -> 0 | BH35: =IFERROR(INDEX(Assumptions!38:38,BH34),0)*$G$35 -> 0 | BI35: =IFERROR(INDEX(Assumptions!38:38,BI34),0)*$G$35 -> 0 | BJ35: =IFERROR(INDEX(Assumptions!38:38,BJ34),0)*$G$35 -> 0 | BK35: =IFERROR(INDEX(Assumptions!38:38,BK34),0)*$G$35 -> 0 | BL35: =IFERROR(INDEX(Assumptions!38:38,BL34),0)*$G$35 -> 0 | BM35: =IFERROR(INDEX(Assumptions!38:38,BM34),0)*$G$35 -> 0 | BN35: =IFERROR(INDEX(Assumptions!38:38,BN34),0)*$G$35 -> 0 | BO35: =IFERROR(INDEX(Assumptions!38:38,BO34),0)*$G$35 -> 0 | BP35: =IFERROR(INDEX(Assumptions!38:38,BP34),0)*$G$35 -> 0 | BQ35: =IFERROR(INDEX(Assumptions!38:38,BQ34),0)*$G$35 -> 0 | BR35: =IFERROR(INDEX(Assumptions!38:38,BR34),0)*$G$35 -> 0 | BS35: =IFERROR(INDEX(Assumptions!38:38,BS34),0)*$G$35 -> 0 | BT35: =IFERROR(INDEX(Assumptions!38:38,BT34),0)*$G$35 -> 0 | BU35: =IFERROR(INDEX(Assumptions!38:38,BU34),0)*$G$35 -> 0 | BV35: =IFERROR(INDEX(Assumptions!38:38,BV34),0)*$G$35 -> 0 | BW35: =IFERROR(INDEX(Assumptions!38:38,BW34),0)*$G$35 -> 0 | BX35: =IFERROR(INDEX(Assumptions!38:38,BX34),0)*$G$35 -> 0 | BY35: =IFERROR(INDEX(Assumptions!38:38,BY34),0)*$G$35 -> 0 | BZ35: =IFERROR(INDEX(Assumptions!38:38,BZ34),0)*$G$35 -> 0 | CA35: =IFERROR(INDEX(Assumptions!38:38,CA34),0)*$G$35 -> 0 | CB35: =IFERROR(INDEX(Assumptions!38:38,CB34),0)*$G$35 -> 0 | CC35: =IFERROR(INDEX(Assumptions!38:38,CC34),0)*$G$35 -> 0 | CD35: =IFERROR(INDEX(Assumptions!38:38,CD34),0)*$G$35 -> 0 | CE35: =IFERROR(INDEX(Assumptions!38:38,CE34),0)*$G$35 -> 0 | CF35: =IFERROR(INDEX(Assumptions!38:38,CF34),0)*$G$35 -> 0 | CG35: =IFERROR(INDEX(Assumptions!38:38,CG34),0)*$G$35 -> 0 | CH35: =IFERROR(INDEX(Assumptions!38:38,CH34),0)*$G$35 -> 0 | CI35: =IFERROR(INDEX(Assumptions!38:38,CI34),0)*$G$35 -> 0 | CJ35: =IFERROR(INDEX(Assumptions!38:38,CJ34),0)*$G$35 -> 0 | CK35: =IFERROR(INDEX(Assumptions!38:38,CK34),0)*$G$35 -> 0 | CL35: =IFERROR(INDEX(Assumptions!38:38,CL34),0)*$G$35 -> 0 | CM35: =IFERROR(INDEX(Assumptions!38:38,CM34),0)*$G$35 -> 0 | CN35: =IFERROR(INDEX(Assumptions!38:38,CN34),0)*$G$35 -> 0 | CO35: =IFERROR(INDEX(Assumptions!38:38,CO34),0)*$G$35 -> 0 | CP35: =IFERROR(INDEX(Assumptions!38:38,CP34),0)*$G$35 -> 0 | CQ35: =IFERROR(INDEX(Assumptions!38:38,CQ34),0)*$G$35 -> 0 | CR35: =IFERROR(INDEX(Assumptions!38:38,CR34),0)*$G$35 -> 0 | CS35: =IFERROR(INDEX(Assumptions!38:38,CS34),0)*$G$35 -> 0 | CT35: =IFERROR(INDEX(Assumptions!38:38,CT34),0)*$G$35 -> 0 | CU35: =IFERROR(INDEX(Assumptions!38:38,CU34),0)*$G$35 -> 0 | CV35: =IFERROR(INDEX(Assumptions!38:38,CV34),0)*$G$35 -> 0 | CW35: =IFERROR(INDEX(Assumptions!38:38,CW34),0)*$G$35 -> 0 | CX35: =IFERROR(INDEX(Assumptions!38:38,CX34),0)*$G$35 -> 0 | CY35: =IFERROR(INDEX(Assumptions!38:38,CY34),0)*$G$35 -> 0 | CZ35: =IFERROR(INDEX(Assumptions!38:38,CZ34),0)*$G$35 -> 0 | DA35: =IFERROR(INDEX(Assumptions!38:38,DA34),0)*$G$35 -> 0 | DB35: =IFERROR(INDEX(Assumptions!38:38,DB34),0)*$G$35 -> 0 | DC35: =IFERROR(INDEX(Assumptions!38:38,DC34),0)*$G$35 -> 0 | DD35: =IFERROR(INDEX(Assumptions!38:38,DD34),0)*$G$35 -> 0 | DE35: =IFERROR(INDEX(Assumptions!38:38,DE34),0)*$G$35 -> 0 | DF35: =IFERROR(INDEX(Assumptions!38:38,DF34),0)*$G$35 -> 0 | DG35: =IFERROR(INDEX(Assumptions!38:38,DG34),0)*$G$35 -> 0 | DH35: =IFERROR(INDEX(Assumptions!38:38,DH34),0)*$G$35 -> 0 | DI35: =IFERROR(INDEX(Assumptions!38:38,DI34),0)*$G$35 -> 0 | DJ35: =IFERROR(INDEX(Assumptions!38:38,DJ34),0)*$G$35 -> 0 | DK35: =IFERROR(INDEX(Assumptions!38:38,DK34),0)*$G$35 -> 0 | DL35: =IFERROR(INDEX(Assumptions!38:38,DL34),0)*$G$35 -> 0 | DM35: =IFERROR(INDEX(Assumptions!38:38,DM34),0)*$G$35 -> 0 | DN35: =IFERROR(INDEX(Assumptions!38:38,DN34),0)*$G$35 -> 0 | DO35: =IFERROR(INDEX(Assumptions!38:38,DO34),0)*$G$35 -> 0 | DP35: =IFERROR(INDEX(Assumptions!38:38,DP34),0)*$G$35 -> 0 | DQ35: =IFERROR(INDEX(Assumptions!38:38,DQ34),0)*$G$35 -> 0 | DR35: =IFERROR(INDEX(Assumptions!38:38,DR34),0)*$G$35 -> 0 | DS35: =IFERROR(INDEX(Assumptions!38:38,DS34),0)*$G$35 -> 0 | DT35: =IFERROR(INDEX(Assumptions!38:38,DT34),0)*$G$35 -> 0 | DU35: =IFERROR(INDEX(Assumptions!38:38,DU34),0)*$G$35 -> 0 | DV35: =IFERROR(INDEX(Assumptions!38:38,DV34),0)*$G$35 -> 0 | DW35: =IFERROR(INDEX(Assumptions!38:38,DW34),0)*$G$35 -> 0 | DX35: =IFERROR(INDEX(Assumptions!38:38,DX34),0)*$G$35 -> 0 | DY35: =IFERROR(INDEX(Assumptions!38:38,DY34),0)*$G$35 -> 0 | DZ35: =IFERROR(INDEX(Assumptions!38:38,DZ34),0)*$G$35 -> 0 | EA35: =IFERROR(INDEX(Assumptions!38:38,EA34),0)*$G$35 -> 0 | EB35: =IFERROR(INDEX(Assumptions!38:38,EB34),0)*$G$35 -> 0 | EC35: =IFERROR(INDEX(Assumptions!38:38,EC34),0)*$G$35 -> 0 | ED35: =IFERROR(INDEX(Assumptions!38:38,ED34),0)*$G$35 -> 0 | EE35: =IFERROR(INDEX(Assumptions!38:38,EE34),0)*$G$35 -> 0 | EF35: =IFERROR(INDEX(Assumptions!38:38,EF34),0)*$G$35 -> 0 | EG35: =IFERROR(INDEX(Assumptions!38:38,EG34),0)*$G$35 -> 0 | EH35: =IFERROR(INDEX(Assumptions!38:38,EH34),0)*$G$35 -> 0 | EI35: =IFERROR(INDEX(Assumptions!38:38,EI34),0)*$G$35 -> 0 | EJ35: =IFERROR(INDEX(Assumptions!38:38,EJ34),0)*$G$35 -> 0 | EK35: =IFERROR(INDEX(Assumptions!38:38,EK34),0)*$G$35 -> 0 | EL35: =IFERROR(INDEX(Assumptions!38:38,EL34),0)*$G$35 -> 0 | EM35: =IFERROR(INDEX(Assumptions!38:38,EM34),0)*$G$35 -> 0 | EN35: =IFERROR(INDEX(Assumptions!38:38,EN34),0)*$G$35 -> 0 | EO35: =IFERROR(INDEX(Assumptions!38:38,EO34),0)*$G$35 -> 0 | EP35: =IFERROR(INDEX(Assumptions!38:38,EP34),0)*$G$35 -> 0 | EQ35: =IFERROR(INDEX(Assumptions!38:38,EQ34),0)*$G$35 -> 0 | ER35: =IFERROR(INDEX(Assumptions!38:38,ER34),0)*$G$35 -> 0 | ES35: =IFERROR(INDEX(Assumptions!38:38,ES34),0)*$G$35 -> 0 | ET35: =IFERROR(INDEX(Assumptions!38:38,ET34),0)*$G$35 -> 0 | EU35: =IFERROR(INDEX(Assumptions!38:38,EU34),0)*$G$35 -> 0 | EV35: =IFERROR(INDEX(Assumptions!38:38,EV34),0)*$G$35 -> 0 | EW35: =IFERROR(INDEX(Assumptions!38:38,EW34),0)*$G$35 -> 0 | EX35: =IFERROR(INDEX(Assumptions!38:38,EX34),0)*$G$35 -> 0 | EY35: =IFERROR(INDEX(Assumptions!38:38,EY34),0)*$G$35 -> 0 | EZ35: =IFERROR(INDEX(Assumptions!38:38,EZ34),0)*$G$35 -> 0 | FA35: =IFERROR(INDEX(Assumptions!38:38,FA34),0)*$G$35 -> 0 | FB35: =IFERROR(INDEX(Assumptions!38:38,FB34),0)*$G$35 -> 0 | FC35: =IFERROR(INDEX(Assumptions!38:38,FC34),0)*$G$35 -> 0 | FD35: =IFERROR(INDEX(Assumptions!38:38,FD34),0)*$G$35 -> 0 | FE35: =IFERROR(INDEX(Assumptions!38:38,FE34),0)*$G$35 -> 0 | FF35: =IFERROR(INDEX(Assumptions!38:38,FF34),0)*$G$35 -> 0 | FG35: =IFERROR(INDEX(Assumptions!38:38,FG34),0)*$G$35 -> 0 | FH35: =IFERROR(INDEX(Assumptions!38:38,FH34),0)*$G$35 -> 0 | FI35: =IFERROR(INDEX(Assumptions!38:38,FI34),0)*$G$35 -> 0 | FJ35: =IFERROR(INDEX(Assumptions!38:38,FJ34),0)*$G$35 -> 0 | FK35: =IFERROR(INDEX(Assumptions!38:38,FK34),0)*$G$35 -> 0 | FL35: =IFERROR(INDEX(Assumptions!38:38,FL34),0)*$G$35 -> 0 | FM35: =IFERROR(INDEX(Assumptions!38:38,FM34),0)*$G$35 -> 0 | FN35: =IFERROR(INDEX(Assumptions!38:38,FN34),0)*$G$35 -> 0 | FO35: =IFERROR(INDEX(Assumptions!38:38,FO34),0)*$G$35 -> 0 | FP35: =IFERROR(INDEX(Assumptions!38:38,FP34),0)*$G$35 -> 0 | FQ35: =IFERROR(INDEX(Assumptions!38:38,FQ34),0)*$G$35 -> 0 | FR35: =IFERROR(INDEX(Assumptions!38:38,FR34),0)*$G$35 -> 0 | FS35: =IFERROR(INDEX(Assumptions!38:38,FS34),0)*$G$35 -> 0 | FT35: =IFERROR(INDEX(Assumptions!38:38,FT34),0)*$G$35 -> 0 | FU35: =IFERROR(INDEX(Assumptions!38:38,FU34),0)*$G$35 -> 0 | FV35: =IFERROR(INDEX(Assumptions!38:38,FV34),0)*$G$35 -> 0 | FW35: =IFERROR(INDEX(Assumptions!38:38,FW34),0)*$G$35 -> 0 | FX35: =IFERROR(INDEX(Assumptions!38:38,FX34),0)*$G$35 -> 0 | FY35: =IFERROR(INDEX(Assumptions!38:38,FY34),0)*$G$35 -> 0 | FZ35: =IFERROR(INDEX(Assumptions!38:38,FZ34),0)*$G$35 -> 0 | GA35: =IFERROR(INDEX(Assumptions!38:38,GA34),0)*$G$35 -> 0 | GB35: =IFERROR(INDEX(Assumptions!38:38,GB34),0)*$G$35 -> 0 | GC35: =IFERROR(INDEX(Assumptions!38:38,GC34),0)*$G$35 -> 0 | GD35: =IFERROR(INDEX(Assumptions!38:38,GD34),0)*$G$35 -> 0 | GE35: =IFERROR(INDEX(Assumptions!38:38,GE34),0)*$G$35 -> 0 | GF35: =IFERROR(INDEX(Assumptions!38:38,GF34),0)*$G$35 -> 0 | GG35: =IFERROR(INDEX(Assumptions!38:38,GG34),0)*$G$35 -> 0 | GH35: =IFERROR(INDEX(Assumptions!38:38,GH34),0)*$G$35 -> 0 | GI35: =IFERROR(INDEX(Assumptions!38:38,GI34),0)*$G$35 -> 0 | GJ35: =IFERROR(INDEX(Assumptions!38:38,GJ34),0)*$G$35 -> 0 | GK35: =IFERROR(INDEX(Assumptions!38:38,GK34),0)*$G$35 -> 0 | GL35: =IFERROR(INDEX(Assumptions!38:38,GL34),0)*$G$35 -> 0 | GM35: =IFERROR(INDEX(Assumptions!38:38,GM34),0)*$G$35 -> 0 | GN35: =IFERROR(INDEX(Assumptions!38:38,GN34),0)*$G$35 -> 0 | GO35: =IFERROR(INDEX(Assumptions!38:38,GO34),0)*$G$35 -> 0 | GP35: =IFERROR(INDEX(Assumptions!38:38,GP34),0)*$G$35 -> 0 | GQ35: =IFERROR(INDEX(Assumptions!38:38,GQ34),0)*$G$35 -> 0 | GR35: =IFERROR(INDEX(Assumptions!38:38,GR34),0)*$G$35 -> 0 | GS35: =IFERROR(INDEX(Assumptions!38:38,GS34),0)*$G$35 -> 0 | GT35: =IFERROR(INDEX(Assumptions!38:38,GT34),0)*$G$35 -> 0 | GU35: =IFERROR(INDEX(Assumptions!38:38,GU34),0)*$G$35 -> 0 | GV35: =IFERROR(INDEX(Assumptions!38:38,GV34),0)*$G$35 -> 0 | GW35: =IFERROR(INDEX(Assumptions!38:38,GW34),0)*$G$35 -> 0 | GX35: =IFERROR(INDEX(Assumptions!38:38,GX34),0)*$G$35 -> 0 | GY35: =IFERROR(INDEX(Assumptions!38:38,GY34),0)*$G$35 -> 0 | GZ35: =IFERROR(INDEX(Assumptions!38:38,GZ34),0)*$G$35 -> 0 | HA35: =IFERROR(INDEX(Assumptions!38:38,HA34),0)*$G$35 -> 0
C36: Fixed Costs | G36: =Assumptions!E38 -> 30000 | J36: =$G$36*J8 -> 0 | K36: 0 | L36: 0 | M36: 0 | N36: 0 | O36: 0 | P36: 0 | Q36: 0 | R36: 0 | S36: 0 | T36: 0 | U36: 0 | V36: 0 | W36: 0 | X36: 0 | Y36: 0 | Z36: 0 | AA36: 0 | AB36: 0 | AC36: 0 | AD36: 0 | AE36: 0 | AF36: 0 | AG36: 0 | AH36: 0 | AI36: 0 | AJ36: 0 | AK36: 0 | AL36: 0 | AM36: 0 | AN36: 0 | AO36: 0 | AP36: =$G$36*AP8 -> 0 | AQ36: 0 | AR36: 0 | AS36: 0 | AT36: 30000 | AU36: 30000 | AV36: 30000 | AW36: 30000 | AX36: 30000 | AY36: 30000 | AZ36: 30000 | BA36: 30000 | BB36: 30000 | BC36: 30000 | BD36: 30000 | BE36: 30000 | BF36: 30000 | BG36: 30000 | BH36: 30000 | BI36: 30000 | BJ36: 30000 | BK36: 30000 | BL36: 30000 | BM36: 30000 | BN36: 30000 | BO36: 30000 | BP36: 30000 | BQ36: 30000 | BR36: 30000 | BS36: 30000 | BT36: 30000 | BU36: 30000 | BV36: =$G$36*BV8 -> 30000 | BW36: 30000 | BX36: 30000 | BY36: 30000 | BZ36: 30000 | CA36: 30000 | CB36: 30000 | CC36: 30000 | CD36: 30000 | CE36: 30000 | CF36: 30000 | CG36: 30000 | CH36: 30000 | CI36: 30000 | CJ36: 30000 | CK36: 30000 | CL36: 30000 | CM36: 30000 | CN36: 30000 | CO36: 30000 | CP36: 30000 | CQ36: 30000 | CR36: 30000 | CS36: 30000 | CT36: 30000 | CU36: 30000 | CV36: 30000 | CW36: 30000 | CX36: 30000 | CY36: 30000 | CZ36: 30000 | DA36: 30000 | DB36: =$G$36*DB8 -> 30000 | DC36: 30000 | DD36: 30000 | DE36: 30000 | DF36: 30000 | DG36: 30000 | DH36: 30000 | DI36: 30000 | DJ36: 30000 | DK36: 30000 | DL36: 30000 | DM36: 30000 | DN36: 30000 | DO36: 30000 | DP36: 30000 | DQ36: 30000 | DR36: 30000 | DS36: 30000 | DT36: 30000 | DU36: 30000 | DV36: 30000 | DW36: 30000 | DX36: 30000 | DY36: 30000 | DZ36: 30000 | EA36: 30000 | EB36: 30000 | EC36: 30000 | ED36: 30000 | EE36: 30000 | EF36: 30000 | EG36: 30000 | EH36: =$G$36*EH8 -> 30000 | EI36: 30000 | EJ36: 30000 | EK36: 30000 | EL36: 30000 | EM36: 30000 | EN36: 30000 | EO36: 30000 | EP36: 30000 | EQ36: 30000 | ER36: 30000 | ES36: 30000 | ET36: 30000 | EU36: 30000 | EV36: 30000 | EW36: 30000 | EX36: 0 | EY36: 0 | EZ36: 0 | FA36: 0 | FB36: 0 | FC36: 0 | FD36: 0 | FE36: 0 | FF36: 0 | FG36: 0 | FH36: 0 | FI36: 0 | FJ36: 0 | FK36: 0 | FL36: 0 | FM36: 0 | FN36: =$G$36*FN8 -> 0 | FO36: 0 | FP36: 0 | FQ36: 0 | FR36: 0 | FS36: 0 | FT36: 0 | FU36: 0 | FV36: 0 | FW36: 0 | FX36: 0 | FY36: 0 | FZ36: 0 | GA36: 0 | GB36: 0 | GC36: 0 | GD36: 0 | GE36: 0 | GF36: 0 | GG36: 0 | GH36: 0 | GI36: 0 | GJ36: 0 | GK36: 0 | GL36: 0 | GM36: 0 | GN36: 0 | GO36: 0 | GP36: 0 | GQ36: 0 | GR36: 0 | GS36: 0 | GT36: =$G$36*GT8 -> 0 | GU36: 0 | GV36: 0 | GW36: 0 | GX36: 0 | GY36: 0 | GZ36: 0 | HA36: 0
C37: Variable Costs | G37: =Assumptions!E37 -> 4 | J37: =$G$37*J20 -> 0 | K37: 0 | L37: 0 | M37: 0 | N37: 0 | O37: 0 | P37: 0 | Q37: 0 | R37: 0 | S37: 0 | T37: 0 | U37: 0 | V37: 0 | W37: 0 | X37: 0 | Y37: 0 | Z37: 0 | AA37: 0 | AB37: 0 | AC37: 0 | AD37: 0 | AE37: 0 | AF37: 0 | AG37: 0 | AH37: 0 | AI37: 0 | AJ37: 0 | AK37: 0 | AL37: 0 | AM37: 0 | AN37: 0 | AO37: 0 | AP37: =$G$37*AP20 -> 0 | AQ37: 0 | AR37: 0 | AS37: 0 | AT37: 26000 | AU37: 26000 | AV37: 26000 | AW37: 26000 | AX37: 26000 | AY37: 26129.03622 | AZ37: 26258.71284 | BA37: 26453.4756 | BB37: 26649.68292 | BC37: 26976.73408 | BD37: 26909.03785 | BE37: 26841.51151 | BF37: 26875.00067 | BG37: 26908.53161 | BH37: 26942.10439 | BI37: 26975.71906 | BJ37: 27009.37567 | BK37: 27043.07427 | BL37: 27076.81492 | BM37: 27110.59766 | BN37: 27144.42255 | BO37: 27178.28964 | BP37: 27212.19899 | BQ37: 27246.15065 | BR37: 27280.14466 | BS37: 27314.18109 | BT37: 27348.25999 | BU37: 27382.3814 | BV37: =$G$37*BV20 -> 27416.54539 | BW37: 27450.752 | BX37: 27485.00129 | BY37: 27519.29331 | BZ37: 27553.62811 | CA37: 27588.00576 | CB37: 27622.42629 | CC37: 27656.88977 | CD37: 27691.39625 | CE37: 27725.94578 | CF37: 27760.53842 | CG37: 27795.17422 | CH37: 27829.85323 | CI37: 27864.57551 | CJ37: 27899.34112 | CK37: 27934.15009 | CL37: 27969.0025 | CM37: 28003.89839 | CN37: 28038.83782 | CO37: 28073.82084 | CP37: 28108.84751 | CQ37: 28143.91788 | CR37: 28179.03201 | CS37: 28214.18995 | CT37: 28249.39175 | CU37: 28284.63747 | CV37: 28319.92717 | CW37: 28355.2609 | CX37: 28390.63871 | CY37: 28426.06066 | CZ37: 28461.52681 | DA37: 28497.0372 | DB37: =$G$37*DB20 -> 28532.5919 | DC37: 28568.19096 | DD37: 28603.83444 | DE37: 28639.52239 | DF37: 28675.25486 | DG37: 28711.03192 | DH37: 28746.85361 | DI37: 28782.72 | DJ37: 28818.63114 | DK37: 28854.58708 | DL37: 28890.58788 | DM37: 28926.6336 | DN37: 28962.72429 | DO37: 28998.86001 | DP37: 29035.04082 | DQ37: 29071.26677 | DR37: 29107.53791 | DS37: 29143.85431 | DT37: 29180.21602 | DU37: 29216.6231 | DV37: 29253.0756 | DW37: 29289.57358 | DX37: 29326.1171 | DY37: 29362.70622 | DZ37: 29399.34098 | EA37: 29436.02145 | EB37: 29472.74769 | EC37: 29509.51975 | ED37: 29546.33769 | EE37: 29583.20156 | EF37: 29620.11143 | EG37: 29657.06735 | EH37: =$G$37*EH20 -> 29694.06937 | EI37: 29731.11757 | EJ37: 29768.21199 | EK37: 29805.35268 | EL37: 29842.53972 | EM37: 29879.77316 | EN37: 29917.05305 | EO37: 29954.37945 | EP37: 29991.75242 | EQ37: 30029.17202 | ER37: 30066.63831 | ES37: 30104.15134 | ET37: 30141.71118 | EU37: 30179.31788 | EV37: 30216.9715 | EW37: 30254.6721 | EX37: 0 | EY37: 0 | EZ37: 0 | FA37: 0 | FB37: 0 | FC37: 0 | FD37: 0 | FE37: 0 | FF37: 0 | FG37: 0 | FH37: 0 | FI37: 0 | FJ37: 0 | FK37: 0 | FL37: 0 | FM37: 0 | FN37: =$G$37*FN20 -> 0 | FO37: 0 | FP37: 0 | FQ37: 0 | FR37: 0 | FS37: 0 | FT37: 0 | FU37: 0 | FV37: 0 | FW37: 0 | FX37: 0 | FY37: 0 | FZ37: 0 | GA37: 0 | GB37: 0 | GC37: 0 | GD37: 0 | GE37: 0 | GF37: 0 | GG37: 0 | GH37: 0 | GI37: 0 | GJ37: 0 | GK37: 0 | GL37: 0 | GM37: 0 | GN37: 0 | GO37: 0 | GP37: 0 | GQ37: 0 | GR37: 0 | GS37: 0 | GT37: =$G$37*GT20 -> 0 | GU37: 0 | GV37: 0 | GW37: 0 | GX37: 0 | GY37: 0 | GZ37: 0 | HA37: 0
C39: Total Operating Costs | J39: =SUM(J35:J38) -> 0 | K39: =SUM(K35:K38) -> 0 | L39: 0 | M39: 0 | N39: 0 | O39: 0 | P39: 0 | Q39: 0 | R39: 0 | S39: 0 | T39: 0 | U39: 0 | V39: 0 | W39: 0 | X39: 0 | Y39: 0 | Z39: 0 | AA39: 0 | AB39: 0 | AC39: 0 | AD39: 0 | AE39: 0 | AF39: 0 | AG39: 0 | AH39: 0 | AI39: 0 | AJ39: 0 | AK39: 0 | AL39: 0 | AM39: 0 | AN39: 0 | AO39: 0 | AP39: 0 | AQ39: 0 | AR39: 0 | AS39: 0 | AT39: 56000 | AU39: 56000 | AV39: 56000 | AW39: 56000 | AX39: 56000 | AY39: 56129.03622 | AZ39: 56258.71284 | BA39: 56453.4756 | BB39: 56649.68292 | BC39: 56976.73408 | BD39: 56909.03785 | BE39: 56841.51151 | BF39: 56875.00067 | BG39: 56908.53161 | BH39: 56942.10439 | BI39: 56975.71906 | BJ39: 57009.37567 | BK39: 57043.07427 | BL39: 57076.81492 | BM39: 57110.59766 | BN39: 57144.42255 | BO39: 57178.28964 | BP39: 57212.19899 | BQ39: 57246.15065 | BR39: 57280.14466 | BS39: 57314.18109 | BT39: 57348.25999 | BU39: 57382.3814 | BV39: 57416.54539 | BW39: =SUM(BW35:BW38) -> 57450.752 | BX39: 57485.00129 | BY39: 57519.29331 | BZ39: 57553.62811 | CA39: 57588.00576 | CB39: 57622.42629 | CC39: 57656.88977 | CD39: 57691.39625 | CE39: 57725.94578 | CF39: 57760.53842 | CG39: 57795.17422 | CH39: 57829.85323 | CI39: 57864.57551 | CJ39: 57899.34112 | CK39: 57934.15009 | CL39: 57969.0025 | CM39: 58003.89839 | CN39: 58038.83782 | CO39: 58073.82084 | CP39: 58108.84751 | CQ39: 58143.91788 | CR39: 58179.03201 | CS39: 58214.18995 | CT39: 58249.39175 | CU39: 58284.63747 | CV39: 58319.92717 | CW39: 58355.2609 | CX39: 58390.63871 | CY39: 58426.06066 | CZ39: 58461.52681 | DA39: 58497.0372 | DB39: 58532.5919 | DC39: 58568.19096 | DD39: 58603.83444 | DE39: 58639.52239 | DF39: 58675.25486 | DG39: 58711.03192 | DH39: 58746.85361 | DI39: 58782.72 | DJ39: 58818.63114 | DK39: 58854.58708 | DL39: 58890.58788 | DM39: 58926.6336 | DN39: 58962.72429 | DO39: 58998.86001 | DP39: 59035.04082 | DQ39: 59071.26677 | DR39: 59107.53791 | DS39: 59143.85431 | DT39: 59180.21602 | DU39: 59216.6231 | DV39: 59253.0756 | DW39: 59289.57358 | DX39: 59326.1171 | DY39: 59362.70622 | DZ39: 59399.34098 | EA39: 59436.02145 | EB39: 59472.74769 | EC39: 59509.51975 | ED39: 59546.33769 | EE39: 59583.20156 | EF39: 59620.11143 | EG39: 59657.06735 | EH39: 59694.06937 | EI39: =SUM(EI35:EI38) -> 59731.11757 | EJ39: 59768.21199 | EK39: 59805.35268 | EL39: 59842.53972 | EM39: 59879.77316 | EN39: 59917.05305 | EO39: 59954.37945 | EP39: 59991.75242 | EQ39: 60029.17202 | ER39: 60066.63831 | ES39: 60104.15134 | ET39: 60141.71118 | EU39: 60179.31788 | EV39: 60216.9715 | EW39: 60254.6721 | EX39: 0 | EY39: 0 | EZ39: 0 | FA39: 0 | FB39: 0 | FC39: 0 | FD39: 0 | FE39: 0 | FF39: 0 | FG39: 0 | FH39: 0 | FI39: 0 | FJ39: 0 | FK39: 0 | FL39: 0 | FM39: 0 | FN39: 0 | FO39: 0 | FP39: 0 | FQ39: 0 | FR39: 0 | FS39: 0 | FT39: 0 | FU39: 0 | FV39: 0 | FW39: 0 | FX39: 0 | FY39: 0 | FZ39: 0 | GA39: 0 | GB39: 0 | GC39: 0 | GD39: 0 | GE39: 0 | GF39: 0 | GG39: 0 | GH39: 0 | GI39: 0 | GJ39: 0 | GK39: 0 | GL39: 0 | GM39: 0 | GN39: 0 | GO39: 0 | GP39: 0 | GQ39: 0 | GR39: 0 | GS39: 0 | GT39: 0 | GU39: =SUM(GU35:GU38) -> 0 | GV39: 0 | GW39: 0 | GX39: 0 | GY39: 0 | GZ39: 0 | HA39: 0
C40: Pre-Tax Cash Flow | J40: =J23-J29-J39 -> -30406.99058 | K40: -35861.79545 | L40: -41874.31096 | M40: -48408.36045 | N40: -55405.1492 | O40: -62782.25911 | P40: -70433.74885 | Q40: -78231.51217 | R40: -86027.97511 | S40: -93660.12472 | T40: -100954.764 | U40: -107734.7875 | V40: -113826.1786 | W40: -119065.354 | X40: -123306.4272 | Y40: -126427.9443 | Z40: -128338.658 | AA40: -128981.9582 | AB40: -128338.658 | AC40: -126427.9443 | AD40: -123306.4272 | AE40: -119065.354 | AF40: -113826.1786 | AG40: -107734.7875 | AH40: -100954.764 | AI40: -93660.12472 | AJ40: -86027.97511 | AK40: -78231.51217 | AL40: -70433.74885 | AM40: -62782.25911 | AN40: -55405.1492 | AO40: -48408.36045 | AP40: =AP23-AP29-AP39 -> -41874.31096 | AQ40: -35861.79545 | AR40: -30406.99058 | AS40: -25525.36173 | AT40: 3800 | AU40: 3800 | AV40: 3800 | AW40: 3800 | AX40: 3800 | AY40: 3967.747087 | AZ40: 4136.326692 | BA40: 4389.518277 | BB40: 4644.587802 | BC40: 5069.754306 | BD40: 4981.74921 | BE40: 4893.964957 | BF40: 4937.500868 | BG40: 4981.091097 | BH40: 5024.735712 | BI40: 5068.434781 | BJ40: 5112.188372 | BK40: 5155.996553 | BL40: 5199.859391 | BM40: 5243.776955 | BN40: 5287.749314 | BO40: 5331.776535 | BP40: 5375.858688 | BQ40: 5419.99584 | BR40: 5464.18806 | BS40: 5508.435418 | BT40: 5552.737981 | BU40: 5597.095819 | BV40: =BV23-BV29-BV39 -> 5641.509001 | BW40: 5685.977595 | BX40: 5730.501671 | BY40: 5775.081298 | BZ40: 5819.716546 | CA40: 5864.407483 | CB40: 5909.154179 | CC40: 5953.956705 | CD40: 5998.815129 | CE40: 6043.72952 | CF40: 6088.69995 | CG40: 6133.726488 | CH40: 6178.809204 | CI40: 6223.948168 | CJ40: 6269.14345 | CK40: 6314.395121 | CL40: 6359.70325 | CM40: 6405.067909 | CN40: 6450.489167 | CO40: 6495.967096 | CP40: 6541.501766 | CQ40: 6587.093248 | CR40: 6632.741613 | CS40: 6678.446932 | CT40: 6724.209275 | CU40: 6770.028715 | CV40: 6815.905321 | CW40: 6861.839166 | CX40: 6907.830322 | CY40: 6953.878858 | CZ40: 6999.984848 | DA40: 7046.148362 | DB40: =DB23-DB29-DB39 -> 7092.369473 | DC40: 7138.648253 | DD40: 7184.984772 | DE40: 7231.379104 | DF40: 7277.831321 | DG40: 7324.341494 | DH40: 7370.909696 | DI40: 7417.536 | DJ40: 7464.220477 | DK40: 7510.963201 | DL40: 7557.764244 | DM40: 7604.62368 | DN40: 7651.54158 | DO40: 7698.518017 | DP40: 7745.553066 | DQ40: 7792.646798 | DR40: 7839.799287 | DS40: 7887.010607 | DT40: 7934.280831 | DU40: 7981.610032 | DV40: 8028.998284 | DW40: 8076.44566 | DX40: 8123.952235 | DY40: 8171.518082 | DZ40: 8219.143275 | EA40: 8266.827889 | EB40: 8314.571996 | EC40: 8362.375673 | ED40: 8410.238992 | EE40: 8458.162028 | EF40: 8506.144856 | EG40: 8554.187551 | EH40: =EH23-EH29-EH39 -> 8602.290187 | EI40: 8650.452838 | EJ40: 8698.675581 | EK40: 8746.958489 | EL40: 8795.301638 | EM40: 8843.705102 | EN40: 8892.168959 | EO40: 8940.693281 | EP40: 8989.278146 | EQ40: 9037.923628 | ER40: 9086.629803 | ES40: 9135.396748 | ET40: 9184.224537 | EU40: 9233.113246 | EV40: 9282.062952 | EW40: 9331.073731 | EX40: 0 | EY40: 0 | EZ40: 0 | FA40: 0 | FB40: 0 | FC40: 0 | FD40: 0 | FE40: 0 | FF40: 0 | FG40: 0 | FH40: 0 | FI40: 0 | FJ40: 0 | FK40: 0 | FL40: 0 | FM40: 0 | FN40: =FN23-FN29-FN39 -> 0 | FO40: 0 | FP40: 0 | FQ40: 0 | FR40: 0 | FS40: 0 | FT40: 0 | FU40: 0 | FV40: 0 | FW40: 0 | FX40: 0 | FY40: 0 | FZ40: 0 | GA40: 0 | GB40: 0 | GC40: 0 | GD40: 0 | GE40: 0 | GF40: 0 | GG40: 0 | GH40: 0 | GI40: 0 | GJ40: 0 | GK40: 0 | GL40: 0 | GM40: 0 | GN40: 0 | GO40: 0 | GP40: 0 | GQ40: 0 | GR40: 0 | GS40: 0 | GT40: =GT23-GT29-GT39 -> 0 | GU40: 0 | GV40: 0 | GW40: 0 | GX40: 0 | GY40: 0 | GZ40: 0 | HA40: 0
B42: Pre-Tax Project IRR | G42: =XIRR(J40:HA40,J6:HA6) -> 2.980232239e-09
A44: Debt Sizing
B46: Summary Sources & Uses of Funds
C47: Uses of Funds
D48: EPC Cost | F48: =SUM(29:29) -> 3000000
D49: Development Fee | F49: =Assumptions!$E$30 -> 160000
D50: Owners Costs
D51: Interest During Construction (IDC) | F51: =SUM(123:123) -> 16812.6196
D52: Fees During Construction
D53: DSRA
D54: Total | F54: =SUM(F48:F53) -> 3176812.62
C56: Sources of Funds | F56: Choosen | G56: Switch | H56: Level | I56: Sculpt
D57: Debt | E57: =F57/F54 -> 0.07540745632 | F57: =CHOOSE(repay_code,H57,I57,H57) -> 239555.3588 | G57: =Assumptions!E66 -> FALSE | H57: =debt_input -> 239555.3588 | I57: =G282 -> 239555.3588
D58: Equity | F58: =F54-F57 -> 2937257.261
D59: Total | F59: =SUM(F57:F58) -> 3176812.62
F60: =F59=F54 -> TRUE
D61: Repay Code | F61: =repay_code -> 3
D63: Structured Debt - No Debt/Cap | F63: =IF(repay_type,Input,H91) -> 239555.3588
D64: Total Debt from max Debt/Cap | E64: =Assumptions!E51 -> 0.95 | F64: =debt_dc(3:3,31:31,116:116,E64,F63) -> 3017971.989
G65: =F54*E64 -> 3017971.989
A66: Debt Funding and Cash Flow Pre-Cod
D67: EPC Cost | J67: =J29 -> 30406.99058 | K67: 35861.79545 | L67: 41874.31096 | M67: 48408.36045 | N67: 55405.1492 | O67: 62782.25911 | P67: 70433.74885 | Q67: 78231.51217 | R67: 86027.97511 | S67: 93660.12472 | T67: 100954.764 | U67: 107734.7875 | V67: 113826.1786 | W67: 119065.354 | X67: 123306.4272 | Y67: 126427.9443 | Z67: 128338.658 | AA67: 128981.9582 | AB67: 128338.658 | AC67: 126427.9443 | AD67: 123306.4272 | AE67: 119065.354 | AF67: 113826.1786 | AG67: 107734.7875 | AH67: 100954.764 | AI67: 93660.12472 | AJ67: 86027.97511 | AK67: 78231.51217 | AL67: 70433.74885 | AM67: 62782.25911 | AN67: 55405.1492 | AO67: 48408.36045 | AP67: =AP29 -> 41874.31096 | AQ67: 35861.79545 | AR67: 30406.99058 | AS67: 25525.36173 | AT67: 0 | AU67: 0 | AV67: 0 | AW67: 0 | AX67: 0 | AY67: 0 | AZ67: 0 | BA67: 0 | BB67: 0 | BC67: 0 | BD67: 0 | BE67: 0 | BF67: 0 | BG67: 0 | BH67: 0 | BI67: 0 | BJ67: 0 | BK67: 0 | BL67: 0 | BM67: 0 | BN67: 0 | BO67: 0 | BP67: 0 | BQ67: 0 | BR67: 0 | BS67: 0 | BT67: 0 | BU67: 0 | BV67: =BV29 -> 0 | BW67: 0 | BX67: 0 | BY67: 0 | BZ67: 0 | CA67: 0 | CB67: 0 | CC67: 0 | CD67: 0 | CE67: 0 | CF67: 0 | CG67: 0 | CH67: 0 | CI67: 0 | CJ67: 0 | CK67: 0 | CL67: 0 | CM67: 0 | CN67: 0 | CO67: 0 | CP67: 0 | CQ67: 0 | CR67: 0 | CS67: 0 | CT67: 0 | CU67: 0 | CV67: 0 | CW67: 0 | CX67: 0 | CY67: 0 | CZ67: 0 | DA67: 0 | DB67: =DB29 -> 0 | DC67: 0 | DD67: 0 | DE67: 0 | DF67: 0 | DG67: 0 | DH67: 0 | DI67: 0 | DJ67: 0 | DK67: 0 | DL67: 0 | DM67: 0 | DN67: 0 | DO67: 0 | DP67: 0 | DQ67: 0 | DR67: 0 | DS67: 0 | DT67: 0 | DU67: 0 | DV67: 0 | DW67: 0 | DX67: 0 | DY67: 0 | DZ67: 0 | EA67: 0 | EB67: 0 | EC67: 0 | ED67: 0 | EE67: 0 | EF67: 0 | EG67: 0 | EH67: =EH29 -> 0 | EI67: 0 | EJ67: 0 | EK67: 0 | EL67: 0 | EM67: 0 | EN67: 0 | EO67: 0 | EP67: 0 | EQ67: 0 | ER67: 0 | ES67: 0 | ET67: 0 | EU67: 0 | EV67: 0 | EW67: 0 | EX67: 0 | EY67: 0 | EZ67: 0 | FA67: 0 | FB67: 0 | FC67: 0 | FD67: 0 | FE67: 0 | FF67: 0 | FG67: 0 | FH67: 0 | FI67: 0 | FJ67: 0 | FK67: 0 | FL67: 0 | FM67: 0 | FN67: =FN29 -> 0 | FO67: 0 | FP67: 0 | FQ67: 0 | FR67: 0 | FS67: 0 | FT67: 0 | FU67: 0 | FV67: 0 | FW67: 0 | FX67: 0 | FY67: 0 | FZ67: 0 | GA67: 0 | GB67: 0 | GC67: 0 | GD67: 0 | GE67: 0 | GF67: 0 | GG67: 0 | GH67: 0 | GI67: 0 | GJ67: 0 | GK67: 0 | GL67: 0 | GM67: 0 | GN67: 0 | GO67: 0 | GP67: 0 | GQ67: 0 | GR67: 0 | GS67: 0 | GT67: =GT29 -> 0 | GU67: 0 | GV67: 0 | GW67: 0 | GX67: 0 | GY67: 0 | GZ67: 0 | HA67: 0
D68: Development Costs | J68: =F49 -> 160000
D69: Owners Costs
D70: Interests During Constructio (IDC) | J70: =J123 -> 0 | K70: =K123 -> 54.12936901 | L70: 64.32424869 | M70: 76.22838112 | N70: 89.99002925 | O70: 105.7407417 | P70: 123.5886373 | Q70: 143.6117171 | R70: 165.8515644 | S70: 190.3078094 | T70: 216.9337407 | U70: 245.6334101 | V70: 276.2605212 | W70: 308.6193081 | X70: 342.4675006 | Y70: 377.521356 | Z70: 413.4626039 | AA70: 449.9470342 | AB70: 486.6143434 | AC70: 523.0987737 | AD70: 559.0400216 | AE70: 594.0938769 | AF70: 627.9420695 | AG70: 660.3008563 | AH70: 690.9279675 | AI70: 719.6276368 | AJ70: 746.2535682 | AK70: 770.7098132 | AL70: 792.9496604 | AM70: 812.9727403 | AN70: 830.8206358 | AO70: 846.5713483 | AP70: 860.3329964 | AQ70: 872.2371289 | AR70: 882.4320086 | AS70: 891.0761828 | AT70: 0 | AU70: 0 | AV70: 0 | AW70: 0 | AX70: 0 | AY70: 0 | AZ70: 0 | BA70: 0 | BB70: 0 | BC70: 0 | BD70: 0 | BE70: 0 | BF70: 0 | BG70: 0 | BH70: 0 | BI70: 0 | BJ70: 0 | BK70: 0 | BL70: 0 | BM70: 0 | BN70: 0 | BO70: 0 | BP70: 0 | BQ70: 0 | BR70: 0 | BS70: 0 | BT70: 0 | BU70: 0 | BV70: 0 | BW70: =BW123 -> 0 | BX70: 0 | BY70: 0 | BZ70: 0 | CA70: 0 | CB70: 0 | CC70: 0 | CD70: 0 | CE70: 0 | CF70: 0 | CG70: 0 | CH70: 0 | CI70: 0 | CJ70: 0 | CK70: 0 | CL70: 0 | CM70: 0 | CN70: 0 | CO70: 0 | CP70: 0 | CQ70: 0 | CR70: 0 | CS70: 0 | CT70: 0 | CU70: 0 | CV70: 0 | CW70: 0 | CX70: 0 | CY70: 0 | CZ70: 0 | DA70: 0 | DB70: 0 | DC70: 0 | DD70: 0 | DE70: 0 | DF70: 0 | DG70: 0 | DH70: 0 | DI70: 0 | DJ70: 0 | DK70: 0 | DL70: 0 | DM70: 0 | DN70: 0 | DO70: 0 | DP70: 0 | DQ70: 0 | DR70: 0 | DS70: 0 | DT70: 0 | DU70: 0 | DV70: 0 | DW70: 0 | DX70: 0 | DY70: 0 | DZ70: 0 | EA70: 0 | EB70: 0 | EC70: 0 | ED70: 0 | EE70: 0 | EF70: 0 | EG70: 0 | EH70: 0 | EI70: =EI123 -> 0 | EJ70: 0 | EK70: 0 | EL70: 0 | EM70: 0 | EN70: 0 | EO70: 0 | EP70: 0 | EQ70: 0 | ER70: 0 | ES70: 0 | ET70: 0 | EU70: 0 | EV70: 0 | EW70: 0 | EX70: 0 | EY70: 0 | EZ70: 0 | FA70: 0 | FB70: 0 | FC70: 0 | FD70: 0 | FE70: 0 | FF70: 0 | FG70: 0 | FH70: 0 | FI70: 0 | FJ70: 0 | FK70: 0 | FL70: 0 | FM70: 0 | FN70: 0 | FO70: 0 | FP70: 0 | FQ70: 0 | FR70: 0 | FS70: 0 | FT70: 0 | FU70: 0 | FV70: 0 | FW70: 0 | FX70: 0 | FY70: 0 | FZ70: 0 | GA70: 0 | GB70: 0 | GC70: 0 | GD70: 0 | GE70: 0 | GF70: 0 | GG70: 0 | GH70: 0 | GI70: 0 | GJ70: 0 | GK70: 0 | GL70: 0 | GM70: 0 | GN70: 0 | GO70: 0 | GP70: 0 | GQ70: 0 | GR70: 0 | GS70: 0 | GT70: 0 | GU70: =GU123 -> 0 | GV70: 0 | GW70: 0 | GX70: 0 | GY70: 0 | GZ70: 0 | HA70: 0
D71: Fees During Construction
D72: DSRA
D73: Funding Requirements | J73: =SUM(J67:J72) -> 190406.9906 | K73: =SUM(K67:K72) -> 35915.92482 | L73: =SUM(L67:L72) -> 41938.63521 | M73: 48484.58883 | N73: 55495.13923 | O73: 62887.99985 | P73: 70557.33749 | Q73: 78375.12389 | R73: 86193.82668 | S73: 93850.43253 | T73: 101171.6977 | U73: 107980.4209 | V73: 114102.4391 | W73: 119373.9733 | X73: 123648.8947 | Y73: 126805.4656 | Z73: 128752.1206 | AA73: 129431.9052 | AB73: 128825.2723 | AC73: 126951.043 | AD73: 123865.4672 | AE73: 119659.4478 | AF73: 114454.1206 | AG73: 108395.0883 | AH73: 101645.692 | AI73: 94379.75236 | AJ73: 86774.22868 | AK73: 79002.22199 | AL73: 71226.69851 | AM73: 63595.23185 | AN73: 56235.96984 | AO73: 49254.9318 | AP73: 42734.64396 | AQ73: 36734.03258 | AR73: 31289.42259 | AS73: 26416.43791 | AT73: 0 | AU73: 0 | AV73: 0 | AW73: 0 | AX73: 0 | AY73: 0 | AZ73: 0 | BA73: 0 | BB73: 0 | BC73: 0 | BD73: 0 | BE73: 0 | BF73: 0 | BG73: 0 | BH73: 0 | BI73: 0 | BJ73: 0 | BK73: 0 | BL73: 0 | BM73: 0 | BN73: 0 | BO73: 0 | BP73: 0 | BQ73: 0 | BR73: 0 | BS73: 0 | BT73: 0 | BU73: 0 | BV73: 0 | BW73: =SUM(BW67:BW72) -> 0 | BX73: 0 | BY73: 0 | BZ73: 0 | CA73: 0 | CB73: 0 | CC73: 0 | CD73: 0 | CE73: 0 | CF73: 0 | CG73: 0 | CH73: 0 | CI73: 0 | CJ73: 0 | CK73: 0 | CL73: 0 | CM73: 0 | CN73: 0 | CO73: 0 | CP73: 0 | CQ73: 0 | CR73: 0 | CS73: 0 | CT73: 0 | CU73: 0 | CV73: 0 | CW73: 0 | CX73: 0 | CY73: 0 | CZ73: 0 | DA73: 0 | DB73: 0 | DC73: 0 | DD73: 0 | DE73: 0 | DF73: 0 | DG73: 0 | DH73: 0 | DI73: 0 | DJ73: 0 | DK73: 0 | DL73: 0 | DM73: 0 | DN73: 0 | DO73: 0 | DP73: 0 | DQ73: 0 | DR73: 0 | DS73: 0 | DT73: 0 | DU73: 0 | DV73: 0 | DW73: 0 | DX73: 0 | DY73: 0 | DZ73: 0 | EA73: 0 | EB73: 0 | EC73: 0 | ED73: 0 | EE73: 0 | EF73: 0 | EG73: 0 | EH73: 0 | EI73: =SUM(EI67:EI72) -> 0 | EJ73: 0 | EK73: 0 | EL73: 0 | EM73: 0 | EN73: 0 | EO73: 0 | EP73: 0 | EQ73: 0 | ER73: 0 | ES73: 0 | ET73: 0 | EU73: 0 | EV73: 0 | EW73: 0 | EX73: 0 | EY73: 0 | EZ73: 0 | FA73: 0 | FB73: 0 | FC73: 0 | FD73: 0 | FE73: 0 | FF73: 0 | FG73: 0 | FH73: 0 | FI73: 0 | FJ73: 0 | FK73: 0 | FL73: 0 | FM73: 0 | FN73: 0 | FO73: 0 | FP73: 0 | FQ73: 0 | FR73: 0 | FS73: 0 | FT73: 0 | FU73: 0 | FV73: 0 | FW73: 0 | FX73: 0 | FY73: 0 | FZ73: 0 | GA73: 0 | GB73: 0 | GC73: 0 | GD73: 0 | GE73: 0 | GF73: 0 | GG73: 0 | GH73: 0 | GI73: 0 | GJ73: 0 | GK73: 0 | GL73: 0 | GM73: 0 | GN73: 0 | GO73: 0 | GP73: 0 | GQ73: 0 | GR73: 0 | GS73: 0 | GT73: 0 | GU73: =SUM(GU67:GU72) -> 0 | GV73: 0 | GW73: 0 | GX73: 0 | GY73: 0 | GZ73: 0 | HA73: 0
B75: Debt Funding
D76: Pro-Rata % | J76: =(J67+J68)/SUM(67:68) -> 0.06025537677 | K76: 0.01134866945 | L76: 0.01325136423 | M76: 0.01531910141 | N76: 0.01753327506 | O76: 0.01986780352 | P76: 0.02228916103 | Q76: 0.02475680765 | R76: 0.02722404276 | S76: 0.02963927997 | T76: 0.03194771013 | U76: 0.03409328717 | V76: 0.03602094258 | W76: 0.03767890948 | X76: 0.03902102127 | Y76: 0.04000884312 | Z76: 0.04061349935 | AA76: 0.04081707537 | AB76: 0.04061349935 | AC76: 0.04000884312 | AD76: 0.03902102127 | AE76: 0.03767890948 | AF76: 0.03602094258 | AG76: 0.03409328717 | AH76: 0.03194771013 | AI76: 0.02963927997 | AJ76: 0.02722404276 | AK76: 0.02475680765 | AL76: 0.02228916103 | AM76: 0.01986780352 | AN76: 0.01753327506 | AO76: 0.01531910141 | AP76: =(AP67+AP68)/SUM(67:68) -> 0.01325136423 | AQ76: 0.01134866945 | AR76: 0.009622465374 | AS76: 0.008077646116 | AT76: 0 | AU76: 0 | AV76: 0 | AW76: 0 | AX76: 0 | AY76: 0 | AZ76: 0 | BA76: 0 | BB76: 0 | BC76: 0 | BD76: 0 | BE76: 0 | BF76: 0 | BG76: 0 | BH76: 0 | BI76: 0 | BJ76: 0 | BK76: 0 | BL76: 0 | BM76: 0 | BN76: 0 | BO76: 0 | BP76: 0 | BQ76: 0 | BR76: 0 | BS76: 0 | BT76: 0 | BU76: 0 | BV76: =(BV67+BV68)/SUM(67:68) -> 0 | BW76: 0 | BX76: 0 | BY76: 0 | BZ76: 0 | CA76: 0 | CB76: 0 | CC76: 0 | CD76: 0 | CE76: 0 | CF76: 0 | CG76: 0 | CH76: 0 | CI76: 0 | CJ76: 0 | CK76: 0 | CL76: 0 | CM76: 0 | CN76: 0 | CO76: 0 | CP76: 0 | CQ76: 0 | CR76: 0 | CS76: 0 | CT76: 0 | CU76: 0 | CV76: 0 | CW76: 0 | CX76: 0 | CY76: 0 | CZ76: 0 | DA76: 0 | DB76: =(DB67+DB68)/SUM(67:68) -> 0 | DC76: 0 | DD76: 0 | DE76: 0 | DF76: 0 | DG76: 0 | DH76: 0 | DI76: 0 | DJ76: 0 | DK76: 0 | DL76: 0 | DM76: 0 | DN76: 0 | DO76: 0 | DP76: 0 | DQ76: 0 | DR76: 0 | DS76: 0 | DT76: 0 | DU76: 0 | DV76: 0 | DW76: 0 | DX76: 0 | DY76: 0 | DZ76: 0 | EA76: 0 | EB76: 0 | EC76: 0 | ED76: 0 | EE76: 0 | EF76: 0 | EG76: 0 | EH76: =(EH67+EH68)/SUM(67:68) -> 0 | EI76: 0 | EJ76: 0 | EK76: 0 | EL76: 0 | EM76: 0 | EN76: 0 | EO76: 0 | EP76: 0 | EQ76: 0 | ER76: 0 | ES76: 0 | ET76: 0 | EU76: 0 | EV76: 0 | EW76: 0 | EX76: 0 | EY76: 0 | EZ76: 0 | FA76: 0 | FB76: 0 | FC76: 0 | FD76: 0 | FE76: 0 | FF76: 0 | FG76: 0 | FH76: 0 | FI76: 0 | FJ76: 0 | FK76: 0 | FL76: 0 | FM76: 0 | FN76: =(FN67+FN68)/SUM(67:68) -> 0 | FO76: 0 | FP76: 0 | FQ76: 0 | FR76: 0 | FS76: 0 | FT76: 0 | FU76: 0 | FV76: 0 | FW76: 0 | FX76: 0 | FY76: 0 | FZ76: 0 | GA76: 0 | GB76: 0 | GC76: 0 | GD76: 0 | GE76: 0 | GF76: 0 | GG76: 0 | GH76: 0 | GI76: 0 | GJ76: 0 | GK76: 0 | GL76: 0 | GM76: 0 | GN76: 0 | GO76: 0 | GP76: 0 | GQ76: 0 | GR76: 0 | GS76: 0 | GT76: =(GT67+GT68)/SUM(67:68) -> 0 | GU76: 0 | GV76: 0 | GW76: 0 | GX76: 0 | GY76: 0 | GZ76: 0 | HA76: 0
D77: Debt Funding | H77: =F57 -> 239555.3588 | J77: =$H$77*J76 -> 14434.4984 | K77: =$H$77*K76 -> 2718.634582 | L77: 3174.435313 | M77: 3669.772835 | N77: 4200.19 | O77: 4759.438801 | P77: 5339.487968 | Q77: 5930.62594 | R77: 6521.665332 | S77: 7100.24835 | T77: 7653.245164 | U77: 8167.229642 | V77: 8629.009827 | W77: 9026.184682 | X77: 9347.694752 | Y77: 9584.332771 | Z77: 9729.181412 | AA77: 9777.949136 | AB77: 9729.181412 | AC77: 9584.332771 | AD77: 9347.694752 | AE77: 9026.184682 | AF77: 8629.009827 | AG77: 8167.229642 | AH77: 7653.245164 | AI77: 7100.24835 | AJ77: 6521.665332 | AK77: 5930.62594 | AL77: 5339.487968 | AM77: 4759.438801 | AN77: 4200.19 | AO77: 3669.772835 | AP77: 3174.435313 | AQ77: 2718.634582 | AR77: 2305.113146 | AS77: 1935.043414 | AT77: 0 | AU77: 0 | AV77: 0 | AW77: 0 | AX77: 0 | AY77: 0 | AZ77: 0 | BA77: 0 | BB77: 0 | BC77: 0 | BD77: 0 | BE77: 0 | BF77: 0 | BG77: 0 | BH77: 0 | BI77: 0 | BJ77: 0 | BK77: 0 | BL77: 0 | BM77: 0 | BN77: 0 | BO77: 0 | BP77: 0 | BQ77: 0 | BR77: 0 | BS77: 0 | BT77: 0 | BU77: 0 | BV77: 0 | BW77: =$H$77*BW76 -> 0 | BX77: 0 | BY77: 0 | BZ77: 0 | CA77: 0 | CB77: 0 | CC77: 0 | CD77: 0 | CE77: 0 | CF77: 0 | CG77: 0 | CH77: 0 | CI77: 0 | CJ77: 0 | CK77: 0 | CL77: 0 | CM77: 0 | CN77: 0 | CO77: 0 | CP77: 0 | CQ77: 0 | CR77: 0 | CS77: 0 | CT77: 0 | CU77: 0 | CV77: 0 | CW77: 0 | CX77: 0 | CY77: 0 | CZ77: 0 | DA77: 0 | DB77: 0 | DC77: 0 | DD77: 0 | DE77: 0 | DF77: 0 | DG77: 0 | DH77: 0 | DI77: 0 | DJ77: 0 | DK77: 0 | DL77: 0 | DM77: 0 | DN77: 0 | DO77: 0 | DP77: 0 | DQ77: 0 | DR77: 0 | DS77: 0 | DT77: 0 | DU77: 0 | DV77: 0 | DW77: 0 | DX77: 0 | DY77: 0 | DZ77: 0 | EA77: 0 | EB77: 0 | EC77: 0 | ED77: 0 | EE77: 0 | EF77: 0 | EG77: 0 | EH77: 0 | EI77: =$H$77*EI76 -> 0 | EJ77: 0 | EK77: 0 | EL77: 0 | EM77: 0 | EN77: 0 | EO77: 0 | EP77: 0 | EQ77: 0 | ER77: 0 | ES77: 0 | ET77: 0 | EU77: 0 | EV77: 0 | EW77: 0 | EX77: 0 | EY77: 0 | EZ77: 0 | FA77: 0 | FB77: 0 | FC77: 0 | FD77: 0 | FE77: 0 | FF77: 0 | FG77: 0 | FH77: 0 | FI77: 0 | FJ77: 0 | FK77: 0 | FL77: 0 | FM77: 0 | FN77: 0 | FO77: 0 | FP77: 0 | FQ77: 0 | FR77: 0 | FS77: 0 | FT77: 0 | FU77: 0 | FV77: 0 | FW77: 0 | FX77: 0 | FY77: 0 | FZ77: 0 | GA77: 0 | GB77: 0 | GC77: 0 | GD77: 0 | GE77: 0 | GF77: 0 | GG77: 0 | GH77: 0 | GI77: 0 | GJ77: 0 | GK77: 0 | GL77: 0 | GM77: 0 | GN77: 0 | GO77: 0 | GP77: 0 | GQ77: 0 | GR77: 0 | GS77: 0 | GT77: 0 | GU77: =$H$77*GU76 -> 0 | GV77: 0 | GW77: 0 | GX77: 0 | GY77: 0 | GZ77: 0 | HA77: 0
D78: Equity Funding (Remainder) | J78: =J73-J77 -> 175972.4922 | K78: 33197.29024 | L78: 38764.1999 | M78: 44814.816 | N78: 51294.94923 | O78: 58128.56105 | P78: 65217.84952 | Q78: 72444.49795 | R78: 79672.16135 | S78: 86750.18418 | T78: 93518.45258 | U78: 99813.19123 | V78: 105473.4293 | W78: 110347.7886 | X78: 114301.2 | Y78: 117221.1329 | Z78: 119022.9392 | AA78: 119653.9561 | AB78: 119096.0909 | AC78: 117366.7103 | AD78: 114517.7725 | AE78: 110633.2632 | AF78: 105825.1108 | AG78: 100227.8587 | AH78: 93992.44681 | AI78: 87279.50401 | AJ78: 80252.56335 | AK78: 73071.59605 | AL78: 65887.21054 | AM78: 58835.79305 | AN78: 52035.77984 | AO78: 45585.15896 | AP78: =AP73-AP77 -> 39560.20865 | AQ78: 34015.398 | AR78: 28984.30945 | AS78: 24481.39449 | AT78: 0 | AU78: 0 | AV78: 0 | AW78: 0 | AX78: 0 | AY78: 0 | AZ78: 0 | BA78: 0 | BB78: 0 | BC78: 0 | BD78: 0 | BE78: 0 | BF78: 0 | BG78: 0 | BH78: 0 | BI78: 0 | BJ78: 0 | BK78: 0 | BL78: 0 | BM78: 0 | BN78: 0 | BO78: 0 | BP78: 0 | BQ78: 0 | BR78: 0 | BS78: 0 | BT78: 0 | BU78: 0 | BV78: =BV73-BV77 -> 0 | BW78: 0 | BX78: 0 | BY78: 0 | BZ78: 0 | CA78: 0 | CB78: 0 | CC78: 0 | CD78: 0 | CE78: 0 | CF78: 0 | CG78: 0 | CH78: 0 | CI78: 0 | CJ78: 0 | CK78: 0 | CL78: 0 | CM78: 0 | CN78: 0 | CO78: 0 | CP78: 0 | CQ78: 0 | CR78: 0 | CS78: 0 | CT78: 0 | CU78: 0 | CV78: 0 | CW78: 0 | CX78: 0 | CY78: 0 | CZ78: 0 | DA78: 0 | DB78: =DB73-DB77 -> 0 | DC78: 0 | DD78: 0 | DE78: 0 | DF78: 0 | DG78: 0 | DH78: 0 | DI78: 0 | DJ78: 0 | DK78: 0 | DL78: 0 | DM78: 0 | DN78: 0 | DO78: 0 | DP78: 0 | DQ78: 0 | DR78: 0 | DS78: 0 | DT78: 0 | DU78: 0 | DV78: 0 | DW78: 0 | DX78: 0 | DY78: 0 | DZ78: 0 | EA78: 0 | EB78: 0 | EC78: 0 | ED78: 0 | EE78: 0 | EF78: 0 | EG78: 0 | EH78: =EH73-EH77 -> 0 | EI78: 0 | EJ78: 0 | EK78: 0 | EL78: 0 | EM78: 0 | EN78: 0 | EO78: 0 | EP78: 0 | EQ78: 0 | ER78: 0 | ES78: 0 | ET78: 0 | EU78: 0 | EV78: 0 | EW78: 0 | EX78: 0 | EY78: 0 | EZ78: 0 | FA78: 0 | FB78: 0 | FC78: 0 | FD78: 0 | FE78: 0 | FF78: 0 | FG78: 0 | FH78: 0 | FI78: 0 | FJ78: 0 | FK78: 0 | FL78: 0 | FM78: 0 | FN78: =FN73-FN77 -> 0 | FO78: 0 | FP78: 0 | FQ78: 0 | FR78: 0 | FS78: 0 | FT78: 0 | FU78: 0 | FV78: 0 | FW78: 0 | FX78: 0 | FY78: 0 | FZ78: 0 | GA78: 0 | GB78: 0 | GC78: 0 | GD78: 0 | GE78: 0 | GF78: 0 | GG78: 0 | GH78: 0 | GI78: 0 | GJ78: 0 | GK78: 0 | GL78: 0 | GM78: 0 | GN78: 0 | GO78: 0 | GP78: 0 | GQ78: 0 | GR78: 0 | GS78: 0 | GT78: =GT73-GT77 -> 0 | GU78: 0 | GV78: 0 | GW78: 0 | GX78: 0 | GY78: 0 | GZ78: 0 | HA78: 0
A80: Debt Repayment
C81: Debt Repayment Switch | G81: =Assumptions!E6 -> 2020-01-01 | H81: =MIN(Assumptions!E64,H8) -> 2040-01-01 | J81: =AND(J5>=$G$81,J5<$H$81) -> FALSE | K81: FALSE | L81: FALSE | M81: FALSE | N81: FALSE | O81: FALSE | P81: FALSE | Q81: FALSE | R81: FALSE | S81: FALSE | T81: FALSE | U81: FALSE | V81: FALSE | W81: FALSE | X81: FALSE | Y81: FALSE | Z81: FALSE | AA81: FALSE | AB81: FALSE | AC81: FALSE | AD81: FALSE | AE81: FALSE | AF81: FALSE | AG81: FALSE | AH81: FALSE | AI81: FALSE | AJ81: FALSE | AK81: FALSE | AL81: FALSE | AM81: FALSE | AN81: FALSE | AO81: FALSE | AP81: =AND(AP5>=$G$81,AP5<$H$81) -> FALSE | AQ81: FALSE | AR81: FALSE | AS81: FALSE | AT81: TRUE | AU81: TRUE | AV81: TRUE | AW81: TRUE | AX81: TRUE | AY81: TRUE | AZ81: TRUE | BA81: TRUE | BB81: TRUE | BC81: TRUE | BD81: TRUE | BE81: TRUE | BF81: TRUE | BG81: TRUE | BH81: TRUE | BI81: TRUE | BJ81: TRUE | BK81: TRUE | BL81: TRUE | BM81: TRUE | BN81: TRUE | BO81: TRUE | BP81: TRUE | BQ81: TRUE | BR81: TRUE | BS81: TRUE | BT81: TRUE | BU81: TRUE | BV81: =AND(BV5>=$G$81,BV5<$H$81) -> TRUE | BW81: TRUE | BX81: TRUE | BY81: TRUE | BZ81: TRUE | CA81: TRUE | CB81: TRUE | CC81: TRUE | CD81: TRUE | CE81: TRUE | CF81: TRUE | CG81: TRUE | CH81: TRUE | CI81: TRUE | CJ81: TRUE | CK81: TRUE | CL81: TRUE | CM81: TRUE | CN81: TRUE | CO81: TRUE | CP81: TRUE | CQ81: TRUE | CR81: TRUE | CS81: TRUE | CT81: TRUE | CU81: TRUE | CV81: TRUE | CW81: TRUE | CX81: TRUE | CY81: TRUE | CZ81: TRUE | DA81: TRUE | DB81: =AND(DB5>=$G$81,DB5<$H$81) -> TRUE | DC81: TRUE | DD81: TRUE | DE81: TRUE | DF81: TRUE | DG81: TRUE | DH81: TRUE | DI81: TRUE | DJ81: TRUE | DK81: TRUE | DL81: TRUE | DM81: TRUE | DN81: TRUE | DO81: TRUE | DP81: TRUE | DQ81: TRUE | DR81: TRUE | DS81: TRUE | DT81: TRUE | DU81: TRUE | DV81: FALSE | DW81: FALSE | DX81: FALSE | DY81: FALSE | DZ81: FALSE | EA81: FALSE | EB81: FALSE | EC81: FALSE | ED81: FALSE | EE81: FALSE | EF81: FALSE | EG81: FALSE | EH81: =AND(EH5>=$G$81,EH5<$H$81) -> FALSE | EI81: FALSE | EJ81: FALSE | EK81: FALSE | EL81: FALSE | EM81: FALSE | EN81: FALSE | EO81: FALSE | EP81: FALSE | EQ81: FALSE | ER81: FALSE | ES81: FALSE | ET81: FALSE | EU81: FALSE | EV81: FALSE | EW81: FALSE | EX81: FALSE | EY81: FALSE | EZ81: FALSE | FA81: FALSE | FB81: FALSE | FC81: FALSE | FD81: FALSE | FE81: FALSE | FF81: FALSE | FG81: FALSE | FH81: FALSE | FI81: FALSE | FJ81: FALSE | FK81: FALSE | FL81: FALSE | FM81: FALSE | FN81: =AND(FN5>=$G$81,FN5<$H$81) -> FALSE | FO81: FALSE | FP81: FALSE | FQ81: FALSE | FR81: FALSE | FS81: FALSE | FT81: FALSE | FU81: FALSE | FV81: FALSE | FW81: FALSE | FX81: FALSE | FY81: FALSE | FZ81: FALSE | GA81: FALSE | GB81: FALSE | GC81: FALSE | GD81: FALSE | GE81: FALSE | GF81: FALSE | GG81: FALSE | GH81: FALSE | GI81: FALSE | GJ81: FALSE | GK81: FALSE | GL81: FALSE | GM81: FALSE | GN81: FALSE | GO81: FALSE | GP81: FALSE | GQ81: FALSE | GR81: FALSE | GS81: FALSE | GT81: =AND(GT5>=$G$81,GT5<$H$81) -> FALSE | GU81: FALSE | GV81: FALSE | GW81: FALSE | GX81: FALSE | GY81: FALSE | GZ81: FALSE | HA81: FALSE
C82: Debt Repayment Period | I82: Debt_period | J82: 0 | K82: =J82+K8 -> 0 | L82: 0 | M82: 0 | N82: 0 | O82: 0 | P82: 0 | Q82: 0 | R82: 0 | S82: 0 | T82: 0 | U82: 0 | V82: 0 | W82: 0 | X82: 0 | Y82: 0 | Z82: 0 | AA82: 0 | AB82: 0 | AC82: 0 | AD82: 0 | AE82: 0 | AF82: 0 | AG82: 0 | AH82: 0 | AI82: 0 | AJ82: 0 | AK82: 0 | AL82: 0 | AM82: 0 | AN82: 0 | AO82: 0 | AP82: 0 | AQ82: =AP82+AQ8 -> 0 | AR82: 0 | AS82: 0 | AT82: 1 | AU82: 2 | AV82: 3 | AW82: 4 | AX82: 5 | AY82: 6 | AZ82: 7 | BA82: 8 | BB82: 9 | BC82: 10 | BD82: 11 | BE82: 12 | BF82: 13 | BG82: 14 | BH82: 15 | BI82: 16 | BJ82: 17 | BK82: 18 | BL82: 19 | BM82: 20 | BN82: 21 | BO82: 22 | BP82: 23 | BQ82: 24 | BR82: 25 | BS82: 26 | BT82: 27 | BU82: 28 | BV82: 29 | BW82: =BV82+BW8 -> 30 | BX82: 31 | BY82: 32 | BZ82: 33 | CA82: 34 | CB82: 35 | CC82: 36 | CD82: 37 | CE82: 38 | CF82: 39 | CG82: 40 | CH82: 41 | CI82: 42 | CJ82: 43 | CK82: 44 | CL82: 45 | CM82: 46 | CN82: 47 | CO82: 48 | CP82: 49 | CQ82: 50 | CR82: 51 | CS82: 52 | CT82: 53 | CU82: 54 | CV82: 55 | CW82: 56 | CX82: 57 | CY82: 58 | CZ82: 59 | DA82: 60 | DB82: 61 | DC82: =DB82+DC8 -> 62 | DD82: 63 | DE82: 64 | DF82: 65 | DG82: 66 | DH82: 67 | DI82: 68 | DJ82: 69 | DK82: 70 | DL82: 71 | DM82: 72 | DN82: 73 | DO82: 74 | DP82: 75 | DQ82: 76 | DR82: 77 | DS82: 78 | DT82: 79 | DU82: 80 | DV82: 81 | DW82: 82 | DX82: 83 | DY82: 84 | DZ82: 85 | EA82: 86 | EB82: 87 | EC82: 88 | ED82: 89 | EE82: 90 | EF82: 91 | EG82: 92 | EH82: 93 | EI82: =EH82+EI8 -> 94 | EJ82: 95 | EK82: 96 | EL82: 97 | EM82: 98 | EN82: 99 | EO82: 100 | EP82: 101 | EQ82: 102 | ER82: 103 | ES82: 104 | ET82: 105 | EU82: 106 | EV82: 107 | EW82: 108 | EX82: 108 | EY82: 108 | EZ82: 108 | FA82: 108 | FB82: 108 | FC82: 108 | FD82: 108 | FE82: 108 | FF82: 108 | FG82: 108 | FH82: 108 | FI82: 108 | FJ82: 108 | FK82: 108 | FL82: 108 | FM82: 108 | FN82: 108 | FO82: =FN82+FO8 -> 108 | FP82: 108 | FQ82: 108 | FR82: 108 | FS82: 108 | FT82: 108 | FU82: 108 | FV82: 108 | FW82: 108 | FX82: 108 | FY82: 108 | FZ82: 108 | GA82: 108 | GB82: 108 | GC82: 108 | GD82: 108 | GE82: 108 | GF82: 108 | GG82: 108 | GH82: 108 | GI82: 108 | GJ82: 108 | GK82: 108 | GL82: 108 | GM82: 108 | GN82: 108 | GO82: 108 | GP82: 108 | GQ82: 108 | GR82: 108 | GS82: 108 | GT82: 108 | GU82: =GT82+GU8 -> 108 | GV82: 108 | GW82: 108 | GX82: 108 | GY82: 108 | GZ82: 108 | HA82: 108
C84: Level Debt Repayment | G84: =F57 -> 239555.3588 | H84: =COUNTIF(J81:HA81,TRUE) -> 80 | J84: =J81*$G$84/$H$84 -> 0 | K84: =K81*$G$84/$H$84 -> 0 | L84: 0 | M84: 0 | N84: 0 | O84: 0 | P84: 0 | Q84: 0 | R84: 0 | S84: 0 | T84: 0 | U84: 0 | V84: 0 | W84: 0 | X84: 0 | Y84: 0 | Z84: 0 | AA84: 0 | AB84: 0 | AC84: 0 | AD84: 0 | AE84: 0 | AF84: 0 | AG84: 0 | AH84: 0 | AI84: 0 | AJ84: 0 | AK84: 0 | AL84: 0 | AM84: 0 | AN84: 0 | AO84: 0 | AP84: 0 | AQ84: 0 | AR84: 0 | AS84: 0 | AT84: 2994.441985 | AU84: 2994.441985 | AV84: 2994.441985 | AW84: 2994.441985 | AX84: 2994.441985 | AY84: 2994.441985 | AZ84: 2994.441985 | BA84: 2994.441985 | BB84: 2994.441985 | BC84: 2994.441985 | BD84: 2994.441985 | BE84: 2994.441985 | BF84: 2994.441985 | BG84: 2994.441985 | BH84: 2994.441985 | BI84: 2994.441985 | BJ84: 2994.441985 | BK84: 2994.441985 | BL84: 2994.441985 | BM84: 2994.441985 | BN84: 2994.441985 | BO84: 2994.441985 | BP84: 2994.441985 | BQ84: 2994.441985 | BR84: 2994.441985 | BS84: 2994.441985 | BT84: 2994.441985 | BU84: 2994.441985 | BV84: 2994.441985 | BW84: =BW81*$G$84/$H$84 -> 2994.441985 | BX84: 2994.441985 | BY84: 2994.441985 | BZ84: 2994.441985 | CA84: 2994.441985 | CB84: 2994.441985 | CC84: 2994.441985 | CD84: 2994.441985 | CE84: 2994.441985 | CF84: 2994.441985 | CG84: 2994.441985 | CH84: 2994.441985 | CI84: 2994.441985 | CJ84: 2994.441985 | CK84: 2994.441985 | CL84: 2994.441985 | CM84: 2994.441985 | CN84: 2994.441985 | CO84: 2994.441985 | CP84: 2994.441985 | CQ84: 2994.441985 | CR84: 2994.441985 | CS84: 2994.441985 | CT84: 2994.441985 | CU84: 2994.441985 | CV84: 2994.441985 | CW84: 2994.441985 | CX84: 2994.441985 | CY84: 2994.441985 | CZ84: 2994.441985 | DA84: 2994.441985 | DB84: 2994.441985 | DC84: 2994.441985 | DD84: 2994.441985 | DE84: 2994.441985 | DF84: 2994.441985 | DG84: 2994.441985 | DH84: 2994.441985 | DI84: 2994.441985 | DJ84: 2994.441985 | DK84: 2994.441985 | DL84: 2994.441985 | DM84: 2994.441985 | DN84: 2994.441985 | DO84: 2994.441985 | DP84: 2994.441985 | DQ84: 2994.441985 | DR84: 2994.441985 | DS84: 2994.441985 | DT84: 2994.441985 | DU84: 2994.441985 | DV84: 0 | DW84: 0 | DX84: 0 | DY84: 0 | DZ84: 0 | EA84: 0 | EB84: 0 | EC84: 0 | ED84: 0 | EE84: 0 | EF84: 0 | EG84: 0 | EH84: 0 | EI84: =EI81*$G$84/$H$84 -> 0 | EJ84: 0 | EK84: 0 | EL84: 0 | EM84: 0 | EN84: 0 | EO84: 0 | EP84: 0 | EQ84: 0 | ER84: 0 | ES84: 0 | ET84: 0 | EU84: 0 | EV84: 0 | EW84: 0 | EX84: 0 | EY84: 0 | EZ84: 0 | FA84: 0 | FB84: 0 | FC84: 0 | FD84: 0 | FE84: 0 | FF84: 0 | FG84: 0 | FH84: 0 | FI84: 0 | FJ84: 0 | FK84: 0 | FL84: 0 | FM84: 0 | FN84: 0 | FO84: 0 | FP84: 0 | FQ84: 0 | FR84: 0 | FS84: 0 | FT84: 0 | FU84: 0 | FV84: 0 | FW84: 0 | FX84: 0 | FY84: 0 | FZ84: 0 | GA84: 0 | GB84: 0 | GC84: 0 | GD84: 0 | GE84: 0 | GF84: 0 | GG84: 0 | GH84: 0 | GI84: 0 | GJ84: 0 | GK84: 0 | GL84: 0 | GM84: 0 | GN84: 0 | GO84: 0 | GP84: 0 | GQ84: 0 | GR84: 0 | GS84: 0 | GT84: 0 | GU84: =GU81*$G$84/$H$84 -> 0 | GV84: 0 | GW84: 0 | GX84: 0 | GY84: 0 | GZ84: 0 | HA84: 0
C86: Sculpted debt Repayment | DU86: =DU87 -> 7981.610032
D87: CFADS | J87: =J196 -> 0 | K87: =K196 -> 0 | L87: 0 | M87: 0 | N87: 0 | O87: 0 | P87: 0 | Q87: 0 | R87: 0 | S87: 0 | T87: 0 | U87: 0 | V87: 0 | W87: 0 | X87: 0 | Y87: 0 | Z87: 0 | AA87: 0 | AB87: 0 | AC87: 0 | AD87: 0 | AE87: 0 | AF87: 0 | AG87: 0 | AH87: 0 | AI87: 0 | AJ87: 0 | AK87: 0 | AL87: 0 | AM87: 0 | AN87: 0 | AO87: 0 | AP87: 0 | AQ87: 0 | AR87: 0 | AS87: 0 | AT87: 3800 | AU87: 3800 | AV87: 3800 | AW87: 3800 | AX87: 3800 | AY87: 3967.747087 | AZ87: 4136.326692 | BA87: 4389.518277 | BB87: 4644.587802 | BC87: 5069.754306 | BD87: 4981.74921 | BE87: 4893.964957 | BF87: 4937.500868 | BG87: 4981.091097 | BH87: 5024.735712 | BI87: 5068.434781 | BJ87: 5112.188372 | BK87: 5155.996553 | BL87: 5199.859391 | BM87: 5243.776955 | BN87: 5287.749314 | BO87: 5331.776535 | BP87: 5375.858688 | BQ87: 5419.99584 | BR87: 5464.18806 | BS87: 5508.435418 | BT87: 5552.737981 | BU87: 5597.095819 | BV87: 5641.509001 | BW87: =BW196 -> 5685.977595 | BX87: 5730.501671 | BY87: 5775.081298 | BZ87: 5819.716546 | CA87: 5864.407483 | CB87: 5909.154179 | CC87: 5953.956705 | CD87: 5998.815129 | CE87: 6043.72952 | CF87: 6088.69995 | CG87: 6133.726488 | CH87: 6178.809204 | CI87: 6223.948168 | CJ87: 6269.14345 | CK87: 6314.395121 | CL87: 6359.70325 | CM87: 6405.067909 | CN87: 6450.489167 | CO87: 6495.967096 | CP87: 6541.501766 | CQ87: 6587.093248 | CR87: 6632.741613 | CS87: 6678.446932 | CT87: 6724.209275 | CU87: 6770.028715 | CV87: 6815.905321 | CW87: 6861.839166 | CX87: 6907.830322 | CY87: 6953.878858 | CZ87: 6999.984848 | DA87: 7046.148362 | DB87: 7092.369473 | DC87: 7138.648253 | DD87: 7184.984772 | DE87: 7231.379104 | DF87: 7277.831321 | DG87: 7324.341494 | DH87: 7370.909696 | DI87: 7417.536 | DJ87: 7464.220477 | DK87: 7510.963201 | DL87: 7557.764244 | DM87: 7604.62368 | DN87: 7651.54158 | DO87: 7698.518017 | DP87: 7745.553066 | DQ87: 7792.646798 | DR87: 7839.799287 | DS87: 7887.010607 | DT87: 7934.280831 | DU87: 7981.610032 | DV87: 8028.998284 | DW87: 8076.44566 | DX87: 8123.952235 | DY87: 8171.518082 | DZ87: 8219.143275 | EA87: 8266.827889 | EB87: 8314.571996 | EC87: 8362.375673 | ED87: 8410.238992 | EE87: 8458.162028 | EF87: 8506.144856 | EG87: 8554.187551 | EH87: 8602.290187 | EI87: =EI196 -> 8650.452838 | EJ87: 8698.675581 | EK87: 8746.958489 | EL87: 8795.301638 | EM87: 8843.705102 | EN87: 8892.168959 | EO87: 8940.693281 | EP87: 8989.278146 | EQ87: 9037.923628 | ER87: 9086.629803 | ES87: 9135.396748 | ET87: 9184.224537 | EU87: 9233.113246 | EV87: 9282.062952 | EW87: 9331.073731 | EX87: 0 | EY87: 0 | EZ87: 0 | FA87: 0 | FB87: 0 | FC87: 0 | FD87: 0 | FE87: 0 | FF87: 0 | FG87: 0 | FH87: 0 | FI87: 0 | FJ87: 0 | FK87: 0 | FL87: 0 | FM87: 0 | FN87: 0 | FO87: 0 | FP87: 0 | FQ87: 0 | FR87: 0 | FS87: 0 | FT87: 0 | FU87: 0 | FV87: 0 | FW87: 0 | FX87: 0 | FY87: 0 | FZ87: 0 | GA87: 0 | GB87: 0 | GC87: 0 | GD87: 0 | GE87: 0 | GF87: 0 | GG87: 0 | GH87: 0 | GI87: 0 | GJ87: 0 | GK87: 0 | GL87: 0 | GM87: 0 | GN87: 0 | GO87: 0 | GP87: 0 | GQ87: 0 | GR87: 0 | GS87: 0 | GT87: 0 | GU87: =GU196 -> 0 | GV87: 0 | GW87: 0 | GX87: 0 | GY87: 0 | GZ87: 0 | HA87: 0
D88: Target Debt Service | F88: Target DSCR | G88: =G278 -> 1.2 | H88: =Sculpt -> 239555.3588 | J88: =J87/$G$88*J81 -> 0 | K88: =K87/$G$88*K81 -> 0 | L88: 0 | M88: 0 | N88: 0 | O88: 0 | P88: 0 | Q88: 0 | R88: 0 | S88: 0 | T88: 0 | U88: 0 | V88: 0 | W88: 0 | X88: 0 | Y88: 0 | Z88: 0 | AA88: 0 | AB88: 0 | AC88: 0 | AD88: 0 | AE88: 0 | AF88: 0 | AG88: 0 | AH88: 0 | AI88: 0 | AJ88: 0 | AK88: 0 | AL88: 0 | AM88: 0 | AN88: 0 | AO88: 0 | AP88: 0 | AQ88: 0 | AR88: 0 | AS88: 0 | AT88: 3166.666667 | AU88: 3166.666667 | AV88: 3166.666667 | AW88: 3166.666667 | AX88: 3166.666667 | AY88: 3306.455906 | AZ88: 3446.93891 | BA88: 3657.931897 | BB88: 3870.489835 | BC88: 4224.795255 | BD88: 4151.457675 | BE88: 4078.30413 | BF88: 4114.584056 | BG88: 4150.909248 | BH88: 4187.27976 | BI88: 4223.695651 | BJ88: 4260.156977 | BK88: 4296.663794 | BL88: 4333.216159 | BM88: 4369.814129 | BN88: 4406.457762 | BO88: 4443.147113 | BP88: 4479.88224 | BQ88: 4516.6632 | BR88: 4553.49005 | BS88: 4590.362848 | BT88: 4627.281651 | BU88: 4664.246516 | BV88: 4701.257501 | BW88: =BW87/$G$88*BW81 -> 4738.314663 | BX88: 4775.418059 | BY88: 4812.567749 | BZ88: 4849.763788 | CA88: 4887.006236 | CB88: 4924.29515 | CC88: 4961.630587 | CD88: 4999.012607 | CE88: 5036.441267 | CF88: 5073.916625 | CG88: 5111.43874 | CH88: 5149.00767 | CI88: 5186.623473 | CJ88: 5224.286208 | CK88: 5261.995934 | CL88: 5299.752708 | CM88: 5337.556591 | CN88: 5375.407639 | CO88: 5413.305914 | CP88: 5451.251472 | CQ88: 5489.244374 | CR88: 5527.284678 | CS88: 5565.372443 | CT88: 5603.507729 | CU88: 5641.690596 | CV88: 5679.921101 | CW88: 5718.199305 | CX88: 5756.525268 | CY88: 5794.899049 | CZ88: 5833.320707 | DA88: 5871.790302 | DB88: 5910.307894 | DC88: 5948.873544 | DD88: 5987.48731 | DE88: 6026.149253 | DF88: 6064.859434 | DG88: 6103.617911 | DH88: 6142.424747 | DI88: 6181.28 | DJ88: 6220.183731 | DK88: 6259.136001 | DL88: 6298.13687 | DM88: 6337.1864 | DN88: 6376.28465 | DO88: 6415.431681 | DP88: 6454.627555 | DQ88: 6493.872332 | DR88: 6533.166073 | DS88: 6572.508839 | DT88: 6611.900693 | DU88: 6651.341693 | DV88: 0 | DW88: 0 | DX88: 0 | DY88: 0 | DZ88: 0 | EA88: 0 | EB88: 0 | EC88: 0 | ED88: 0 | EE88: 0 | EF88: 0 | EG88: 0 | EH88: 0 | EI88: =EI87/$G$88*EI81 -> 0 | EJ88: 0 | EK88: 0 | EL88: 0 | EM88: 0 | EN88: 0 | EO88: 0 | EP88: 0 | EQ88: 0 | ER88: 0 | ES88: 0 | ET88: 0 | EU88: 0 | EV88: 0 | EW88: 0 | EX88: 0 | EY88: 0 | EZ88: 0 | FA88: 0 | FB88: 0 | FC88: 0 | FD88: 0 | FE88: 0 | FF88: 0 | FG88: 0 | FH88: 0 | FI88: 0 | FJ88: 0 | FK88: 0 | FL88: 0 | FM88: 0 | FN88: 0 | FO88: 0 | FP88: 0 | FQ88: 0 | FR88: 0 | FS88: 0 | FT88: 0 | FU88: 0 | FV88: 0 | FW88: 0 | FX88: 0 | FY88: 0 | FZ88: 0 | GA88: 0 | GB88: 0 | GC88: 0 | GD88: 0 | GE88: 0 | GF88: 0 | GG88: 0 | GH88: 0 | GI88: 0 | GJ88: 0 | GK88: 0 | GL88: 0 | GM88: 0 | GN88: 0 | GO88: 0 | GP88: 0 | GQ88: 0 | GR88: 0 | GS88: 0 | GT88: 0 | GU88: =GU87/$G$88*GU81 -> 0 | GV88: 0 | GW88: 0 | GX88: 0 | GY88: 0 | GZ88: 0 | HA88: 0
D89: Sculpted Repayment | J89: =(J88-J124)*J81 -> 0 | K89: 0 | L89: 0 | M89: 0 | N89: 0 | O89: 0 | P89: 0 | Q89: 0 | R89: 0 | S89: 0 | T89: 0 | U89: 0 | V89: 0 | W89: 0 | X89: 0 | Y89: 0 | Z89: 0 | AA89: 0 | AB89: 0 | AC89: 0 | AD89: 0 | AE89: 0 | AF89: 0 | AG89: 0 | AH89: 0 | AI89: 0 | AJ89: 0 | AK89: 0 | AL89: 0 | AM89: 0 | AN89: 0 | AO89: 0 | AP89: =(AP88-AP124)*AP81 -> 0 | AQ89: 0 | AR89: 0 | AS89: 0 | AT89: 321.9467804 | AU89: 325.7698985 | AV89: 329.638416 | AW89: 333.5528722 | AX89: 337.5138126 | AY89: 481.3110284 | AZ89: 627.5096006 | BA89: 845.9542649 | BB89: 1068.55791 | BC89: 1435.552454 | BD89: 1379.26206 | BE89: 1322.487252 | BF89: 1230.255275 | BG89: 1281.958657 | BH89: 1334.353653 | BI89: 1387.448965 | BJ89: 1441.253402 | BK89: 1495.775887 | BL89: 1551.025451 | BM89: 1607.011239 | BN89: 1663.742512 | BO89: 4443.147113 | BP89: 4479.88224 | BQ89: 4516.6632 | BR89: 4553.49005 | BS89: 4590.362848 | BT89: 4627.281651 | BU89: 4664.246516 | BV89: =(BV88-BV124)*BV81 -> 4701.257501 | BW89: 4738.314663 | BX89: 4775.418059 | BY89: 4812.567749 | BZ89: 4849.763788 | CA89: 4887.006236 | CB89: 4924.29515 | CC89: 4961.630587 | CD89: 4999.012607 | CE89: 5036.441267 | CF89: 5073.916625 | CG89: 5111.43874 | CH89: 5149.00767 | CI89: 5186.623473 | CJ89: 5224.286208 | CK89: 5261.995934 | CL89: 5299.752708 | CM89: 5337.556591 | CN89: 5375.407639 | CO89: 5413.305914 | CP89: 5451.251472 | CQ89: 5489.244374 | CR89: 5527.284678 | CS89: 5565.372443 | CT89: 5603.507729 | CU89: 5641.690596 | CV89: 5679.921101 | CW89: 5718.199305 | CX89: 5756.525268 | CY89: 5794.899049 | CZ89: 5833.320707 | DA89: 5871.790302 | DB89: =(DB88-DB124)*DB81 -> 5910.307894 | DC89: 5948.873544 | DD89: 5987.48731 | DE89: 6026.149253 | DF89: 6064.859434 | DG89: 6103.617911 | DH89: 6142.424747 | DI89: 6181.28 | DJ89: 6220.183731 | DK89: 6259.136001 | DL89: 6298.13687 | DM89: 6337.1864 | DN89: 6376.28465 | DO89: 6415.431681 | DP89: 6454.627555 | DQ89: 6493.872332 | DR89: 6533.166073 | DS89: 6572.508839 | DT89: 6611.900693 | DU89: 6651.341693 | DV89: 0 | DW89: 0 | DX89: 0 | DY89: 0 | DZ89: 0 | EA89: 0 | EB89: 0 | EC89: 0 | ED89: 0 | EE89: 0 | EF89: 0 | EG89: 0 | EH89: =(EH88-EH124)*EH81 -> 0 | EI89: 0 | EJ89: 0 | EK89: 0 | EL89: 0 | EM89: 0 | EN89: 0 | EO89: 0 | EP89: 0 | EQ89: 0 | ER89: 0 | ES89: 0 | ET89: 0 | EU89: 0 | EV89: 0 | EW89: 0 | EX89: 0 | EY89: 0 | EZ89: 0 | FA89: 0 | FB89: 0 | FC89: 0 | FD89: 0 | FE89: 0 | FF89: 0 | FG89: 0 | FH89: 0 | FI89: 0 | FJ89: 0 | FK89: 0 | FL89: 0 | FM89: 0 | FN89: =(FN88-FN124)*FN81 -> 0 | FO89: 0 | FP89: 0 | FQ89: 0 | FR89: 0 | FS89: 0 | FT89: 0 | FU89: 0 | FV89: 0 | FW89: 0 | FX89: 0 | FY89: 0 | FZ89: 0 | GA89: 0 | GB89: 0 | GC89: 0 | GD89: 0 | GE89: 0 | GF89: 0 | GG89: 0 | GH89: 0 | GI89: 0 | GJ89: 0 | GK89: 0 | GL89: 0 | GM89: 0 | GN89: 0 | GO89: 0 | GP89: 0 | GQ89: 0 | GR89: 0 | GS89: 0 | GT89: =(GT88-GT124)*GT81 -> 0 | GU89: 0 | GV89: 0 | GW89: 0 | GX89: 0 | GY89: 0 | GZ89: 0 | HA89: 0
D90: Target Debt Service from Input DSCR | F90: Target DSCR | G90: =Assumptions!E52 -> 1.2 | J90: =J87/$G$90*J81 -> 0 | K90: =K87/$G$90*K81 -> 0 | L90: 0 | M90: 0 | N90: 0 | O90: 0 | P90: 0 | Q90: 0 | R90: 0 | S90: 0 | T90: 0 | U90: 0 | V90: 0 | W90: 0 | X90: 0 | Y90: 0 | Z90: 0 | AA90: 0 | AB90: 0 | AC90: 0 | AD90: 0 | AE90: 0 | AF90: 0 | AG90: 0 | AH90: 0 | AI90: 0 | AJ90: 0 | AK90: 0 | AL90: 0 | AM90: 0 | AN90: 0 | AO90: 0 | AP90: 0 | AQ90: 0 | AR90: 0 | AS90: 0 | AT90: 3166.666667 | AU90: 3166.666667 | AV90: 3166.666667 | AW90: 3166.666667 | AX90: 3166.666667 | AY90: 3306.455906 | AZ90: 3446.93891 | BA90: 3657.931897 | BB90: 3870.489835 | BC90: 4224.795255 | BD90: 4151.457675 | BE90: 4078.30413 | BF90: 4114.584056 | BG90: 4150.909248 | BH90: 4187.27976 | BI90: 4223.695651 | BJ90: 4260.156977 | BK90: 4296.663794 | BL90: 4333.216159 | BM90: 4369.814129 | BN90: 4406.457762 | BO90: 4443.147113 | BP90: 4479.88224 | BQ90: 4516.6632 | BR90: 4553.49005 | BS90: 4590.362848 | BT90: 4627.281651 | BU90: 4664.246516 | BV90: 4701.257501 | BW90: =BW87/$G$90*BW81 -> 4738.314663 | BX90: 4775.418059 | BY90: 4812.567749 | BZ90: 4849.763788 | CA90: 4887.006236 | CB90: 4924.29515 | CC90: 4961.630587 | CD90: 4999.012607 | CE90: 5036.441267 | CF90: 5073.916625 | CG90: 5111.43874 | CH90: 5149.00767 | CI90: 5186.623473 | CJ90: 5224.286208 | CK90: 5261.995934 | CL90: 5299.752708 | CM90: 5337.556591 | CN90: 5375.407639 | CO90: 5413.305914 | CP90: 5451.251472 | CQ90: 5489.244374 | CR90: 5527.284678 | CS90: 5565.372443 | CT90: 5603.507729 | CU90: 5641.690596 | CV90: 5679.921101 | CW90: 5718.199305 | CX90: 5756.525268 | CY90: 5794.899049 | CZ90: 5833.320707 | DA90: 5871.790302 | DB90: 5910.307894 | DC90: 5948.873544 | DD90: 5987.48731 | DE90: 6026.149253 | DF90: 6064.859434 | DG90: 6103.617911 | DH90: 6142.424747 | DI90: 6181.28 | DJ90: 6220.183731 | DK90: 6259.136001 | DL90: 6298.13687 | DM90: 6337.1864 | DN90: 6376.28465 | DO90: 6415.431681 | DP90: 6454.627555 | DQ90: 6493.872332 | DR90: 6533.166073 | DS90: 6572.508839 | DT90: 6611.900693 | DU90: 6651.341693 | DV90: 0 | DW90: 0 | DX90: 0 | DY90: 0 | DZ90: 0 | EA90: 0 | EB90: 0 | EC90: 0 | ED90: 0 | EE90: 0 | EF90: 0 | EG90: 0 | EH90: 0 | EI90: =EI87/$G$90*EI81 -> 0 | EJ90: 0 | EK90: 0 | EL90: 0 | EM90: 0 | EN90: 0 | EO90: 0 | EP90: 0 | EQ90: 0 | ER90: 0 | ES90: 0 | ET90: 0 | EU90: 0 | EV90: 0 | EW90: 0 | EX90: 0 | EY90: 0 | EZ90: 0 | FA90: 0 | FB90: 0 | FC90: 0 | FD90: 0 | FE90: 0 | FF90: 0 | FG90: 0 | FH90: 0 | FI90: 0 | FJ90: 0 | FK90: 0 | FL90: 0 | FM90: 0 | FN90: 0 | FO90: 0 | FP90: 0 | FQ90: 0 | FR90: 0 | FS90: 0 | FT90: 0 | FU90: 0 | FV90: 0 | FW90: 0 | FX90: 0 | FY90: 0 | FZ90: 0 | GA90: 0 | GB90: 0 | GC90: 0 | GD90: 0 | GE90: 0 | GF90: 0 | GG90: 0 | GH90: 0 | GI90: 0 | GJ90: 0 | GK90: 0 | GL90: 0 | GM90: 0 | GN90: 0 | GO90: 0 | GP90: 0 | GQ90: 0 | GR90: 0 | GS90: 0 | GT90: 0 | GU90: =GU87/$G$90*GU81 -> 0 | GV90: 0 | GW90: 0 | GX90: 0 | GY90: 0 | GZ90: 0 | HA90: 0
D91: Sculpt Debt from Input DSCR | H91: =SUMPRODUCT(J90:HA90/J126:HA126) -> 239555.3588
C93: Fixed Repayment
D94: Sub-total Structuring Repayment | F94: Repay Type | G94: =repay_type -> FALSE | I94: structured | J94: =IF($G$94,J84,J89) -> 0 | K94: =IF($G$94,K84,K89) -> 0 | L94: 0 | M94: 0 | N94: 0 | O94: 0 | P94: 0 | Q94: 0 | R94: 0 | S94: 0 | T94: 0 | U94: 0 | V94: 0 | W94: 0 | X94: 0 | Y94: 0 | Z94: 0 | AA94: 0 | AB94: 0 | AC94: 0 | AD94: 0 | AE94: 0 | AF94: 0 | AG94: 0 | AH94: 0 | AI94: 0 | AJ94: 0 | AK94: 0 | AL94: 0 | AM94: 0 | AN94: 0 | AO94: 0 | AP94: 0 | AQ94: 0 | AR94: 0 | AS94: 0 | AT94: =IF($G$94,AT84,AT89) -> 321.9467804 | AU94: 325.7698985 | AV94: 329.638416 | AW94: 333.5528722 | AX94: 337.5138126 | AY94: 481.3110284 | AZ94: 627.5096006 | BA94: 845.9542649 | BB94: 1068.55791 | BC94: 1435.552454 | BD94: 1379.26206 | BE94: 1322.487252 | BF94: 1230.255275 | BG94: 1281.958657 | BH94: 1334.353653 | BI94: 1387.448965 | BJ94: 1441.253402 | BK94: 1495.775887 | BL94: 1551.025451 | BM94: 1607.011239 | BN94: 1663.742512 | BO94: 4443.147113 | BP94: 4479.88224 | BQ94: 4516.6632 | BR94: 4553.49005 | BS94: 4590.362848 | BT94: 4627.281651 | BU94: 4664.246516 | BV94: 4701.257501 | BW94: =IF($G$94,BW84,BW89) -> 4738.314663 | BX94: 4775.418059 | BY94: 4812.567749 | BZ94: 4849.763788 | CA94: 4887.006236 | CB94: 4924.29515 | CC94: 4961.630587 | CD94: 4999.012607 | CE94: 5036.441267 | CF94: 5073.916625 | CG94: 5111.43874 | CH94: 5149.00767 | CI94: 5186.623473 | CJ94: 5224.286208 | CK94: 5261.995934 | CL94: 5299.752708 | CM94: 5337.556591 | CN94: 5375.407639 | CO94: 5413.305914 | CP94: 5451.251472 | CQ94: 5489.244374 | CR94: 5527.284678 | CS94: 5565.372443 | CT94: 5603.507729 | CU94: 5641.690596 | CV94: 5679.921101 | CW94: 5718.199305 | CX94: 5756.525268 | CY94: 5794.899049 | CZ94: 5833.320707 | DA94: 5871.790302 | DB94: 5910.307894 | DC94: 5948.873544 | DD94: 5987.48731 | DE94: 6026.149253 | DF94: 6064.859434 | DG94: 6103.617911 | DH94: 6142.424747 | DI94: 6181.28 | DJ94: 6220.183731 | DK94: 6259.136001 | DL94: 6298.13687 | DM94: 6337.1864 | DN94: 6376.28465 | DO94: 6415.431681 | DP94: 6454.627555 | DQ94: 6493.872332 | DR94: 6533.166073 | DS94: 6572.508839 | DT94: 6611.900693 | DU94: 6651.341693 | DV94: 0 | DW94: 0 | DX94: 0 | DY94: 0 | DZ94: 0 | EA94: 0 | EB94: 0 | EC94: 0 | ED94: 0 | EE94: 0 | EF94: 0 | EG94: 0 | EH94: 0 | EI94: =IF($G$94,EI84,EI89) -> 0 | EJ94: 0 | EK94: 0 | EL94: 0 | EM94: 0 | EN94: 0 | EO94: 0 | EP94: 0 | EQ94: 0 | ER94: 0 | ES94: 0 | ET94: 0 | EU94: 0 | EV94: 0 | EW94: 0 | EX94: 0 | EY94: 0 | EZ94: 0 | FA94: 0 | FB94: 0 | FC94: 0 | FD94: 0 | FE94: 0 | FF94: 0 | FG94: 0 | FH94: 0 | FI94: 0 | FJ94: 0 | FK94: 0 | FL94: 0 | FM94: 0 | FN94: 0 | FO94: 0 | FP94: 0 | FQ94: 0 | FR94: 0 | FS94: 0 | FT94: 0 | FU94: 0 | FV94: 0 | FW94: 0 | FX94: 0 | FY94: 0 | FZ94: 0 | GA94: 0 | GB94: 0 | GC94: 0 | GD94: 0 | GE94: 0 | GF94: 0 | GG94: 0 | GH94: 0 | GI94: 0 | GJ94: 0 | GK94: 0 | GL94: 0 | GM94: 0 | GN94: 0 | GO94: 0 | GP94: 0 | GQ94: 0 | GR94: 0 | GS94: 0 | GT94: 0 | GU94: =IF($G$94,GU84,GU89) -> 0 | GV94: 0 | GW94: 0 | GX94: 0 | GY94: 0 | GZ94: 0 | HA94: 0
D95: Fixed Period | I95: Fix_period | J95: 0 | K95: 0 | L95: 0 | M95: 0 | N95: 0 | O95: 0 | P95: 0 | Q95: 0 | R95: 0 | S95: 0 | T95: 0 | U95: 0 | V95: 0 | W95: 0 | X95: 0 | Y95: 0 | Z95: 0 | AA95: 0 | AB95: 0 | AC95: 0 | AD95: 0 | AE95: 0 | AF95: 0 | AG95: 0 | AH95: 0 | AI95: 0 | AJ95: 0 | AK95: 0 | AL95: 0 | AM95: 0 | AN95: 0 | AO95: 0 | AP95: 0 | AQ95: 0 | AR95: 0 | AS95: 0 | AT95: 1 | AU95: 2 | AV95: 3 | AW95: 4 | AX95: 5 | AY95: 6 | AZ95: 7 | BA95: 8 | BB95: 9 | BC95: 10 | BD95: 11 | BE95: 12 | BF95: 13 | BG95: 14 | BH95: 15 | BI95: 16 | BJ95: 17 | BK95: 18 | BL95: 19 | BM95: 20 | BN95: 21 | BO95: 22 | BP95: 23 | BQ95: 24 | BR95: 25 | BS95: 26 | BT95: 27 | BU95: 28 | BV95: 29 | BW95: 30 | BX95: 31 | BY95: 32 | BZ95: 33 | CA95: 34 | CB95: 35 | CC95: 36 | CD95: 37 | CE95: 38 | CF95: 39 | CG95: 40 | CH95: 41 | CI95: 42 | CJ95: 43 | CK95: 44 | CL95: 45 | CM95: 46 | CN95: 47 | CO95: 48 | CP95: 49 | CQ95: 50 | CR95: 51 | CS95: 52 | CT95: 53 | CU95: 54 | CV95: 55 | CW95: 56 | CX95: 57 | CY95: 58 | CZ95: 59 | DA95: 60 | DB95: 61 | DC95: 62 | DD95: 63 | DE95: 64 | DF95: 65 | DG95: 66 | DH95: 67 | DI95: 68 | DJ95: 69 | DK95: 70 | DL95: 71 | DM95: 72 | DN95: 73 | DO95: 74 | DP95: 75 | DQ95: 76 | DR95: 77 | DS95: 78 | DT95: 79 | DU95: 80 | DV95: 81 | DW95: 82 | DX95: 83 | DY95: 84 | DZ95: 85 | EA95: 86 | EB95: 87 | EC95: 88 | ED95: 89 | EE95: 90 | EF95: 91 | EG95: 92 | EH95: 93 | EI95: 94 | EJ95: 95 | EK95: 96 | EL95: 97 | EM95: 98 | EN95: 99 | EO95: 100 | EP95: 101 | EQ95: 102 | ER95: 103 | ES95: 104 | ET95: 105 | EU95: 106 | EV95: 107 | EW95: 108 | EX95: 108 | EY95: 108 | EZ95: 108 | FA95: 108 | FB95: 108 | FC95: 108 | FD95: 108 | FE95: 108 | FF95: 108 | FG95: 108 | FH95: 108 | FI95: 108 | FJ95: 108 | FK95: 108 | FL95: 108 | FM95: 108 | FN95: 108 | FO95: 108 | FP95: 108 | FQ95: 108 | FR95: 108 | FS95: 108 | FT95: 108 | FU95: 108 | FV95: 108 | FW95: 108 | FX95: 108 | FY95: 108 | FZ95: 108 | GA95: 108 | GB95: 108 | GC95: 108 | GD95: 108 | GE95: 108 | GF95: 108 | GG95: 108 | GH95: 108 | GI95: 108 | GJ95: 108 | GK95: 108 | GL95: 108 | GM95: 108 | GN95: 108 | GO95: 108 | GP95: 108 | GQ95: 108 | GR95: 108 | GS95: 108 | GT95: 108 | GU95: 108 | GV95: 108 | GW95: 108 | GX95: 108 | GY95: 108 | GZ95: 108 | HA95: 108
D96: Fixed Fepayment | H96: =SUM(fixed) -> 239555.3588 | I96: fixed | J96: 0 | K96: 0 | L96: 0 | M96: 0 | N96: 0 | O96: 0 | P96: 0 | Q96: 0 | R96: 0 | S96: 0 | T96: 0 | U96: 0 | V96: 0 | W96: 0 | X96: 0 | Y96: 0 | Z96: 0 | AA96: 0 | AB96: 0 | AC96: 0 | AD96: 0 | AE96: 0 | AF96: 0 | AG96: 0 | AH96: 0 | AI96: 0 | AJ96: 0 | AK96: 0 | AL96: 0 | AM96: 0 | AN96: 0 | AO96: 0 | AP96: 0 | AQ96: 0 | AR96: 0 | AS96: 0 | AT96: 321.9467804 | AU96: 325.7698985 | AV96: 329.638416 | AW96: 333.5528722 | AX96: 337.5138126 | AY96: 481.3110284 | AZ96: 627.5096006 | BA96: 845.9542649 | BB96: 1068.55791 | BC96: 1435.552454 | BD96: 1379.26206 | BE96: 1322.487252 | BF96: 1230.255275 | BG96: 1281.958657 | BH96: 1334.353653 | BI96: 1387.448965 | BJ96: 1441.253402 | BK96: 1495.775887 | BL96: 1551.025451 | BM96: 1607.011239 | BN96: 1663.742512 | BO96: 1721.228645 | BP96: 1779.47913 | BQ96: 1838.503579 | BR96: 1765.552808 | BS96: 1825.598486 | BT96: 1886.478269 | BU96: 1948.203162 | BV96: 2010.784313 | BW96: 2074.233019 | BX96: 2138.560724 | BY96: 2203.779023 | BZ96: 2269.899662 | CA96: 2336.934543 | CB96: 2404.895722 | CC96: 2473.795416 | CD96: 2426.723782 | CE96: 2497.519893 | CF96: 2569.33615 | CG96: 2642.186637 | CH96: 2716.085633 | CI96: 2791.047614 | CJ96: 2867.087254 | CK96: 2944.219429 | CL96: 3022.459221 | CM96: 3101.821917 | CN96: 3182.323018 | CO96: 3263.978233 | CP96: 3251.146766 | CQ96: 3335.874902 | CR96: 3421.868408 | CS96: 3509.145532 | CT96: 3597.724785 | CU96: 3687.624945 | CV96: 3778.865059 | CW96: 3871.464449 | CX96: 3965.442713 | CY96: 4060.819732 | CZ96: 4157.615674 | DA96: 4255.850995 | DB96: 4355.546445 | DC96: 4456.723075 | DD96: 4559.402235 | DE96: 4663.605586 | DF96: 4769.355096 | DG96: 4876.673054 | DH96: 4985.582064 | DI96: 5096.105059 | DJ96: 5208.265301 | DK96: 5322.086384 | DL96: 5437.592245 | DM96: 5554.807163 | DN96: 5673.755766 | DO96: 5794.463037 | DP96: 5916.954317 | DQ96: 6041.255312 | DR96: 6167.392098 | DS96: 6295.391126 | DT96: 6425.279227 | DU96: 6557.083616 | DV96: 0 | DW96: 0 | DX96: 0 | DY96: 0 | DZ96: 0 | EA96: 0 | EB96: 0 | EC96: 0 | ED96: 0 | EE96: 0 | EF96: 0 | EG96: 0 | EH96: 0 | EI96: 0 | EJ96: 0 | EK96: 0 | EL96: 0 | EM96: 0 | EN96: 0 | EO96: 0 | EP96: 0 | EQ96: 0 | ER96: 0 | ES96: 0 | ET96: 0 | EU96: 0 | EV96: 0 | EW96: 0 | EX96: 0 | EY96: 0 | EZ96: 0 | FA96: 0 | FB96: 0 | FC96: 0 | FD96: 0 | FE96: 0 | FF96: 0 | FG96: 0 | FH96: 0 | FI96: 0 | FJ96: 0 | FK96: 0 | FL96: 0 | FM96: 0 | FN96: 0 | FO96: 0 | FP96: 0 | FQ96: 0 | FR96: 0 | FS96: 0 | FT96: 0 | FU96: 0 | FV96: 0 | FW96: 0 | FX96: 0 | FY96: 0 | FZ96: 0 | GA96: 0 | GB96: 0 | GC96: 0 | GD96: 0 | GE96: 0 | GF96: 0 | GG96: 0 | GH96: 0 | GI96: 0 | GJ96: 0 | GK96: 0 | GL96: 0 | GM96: 0 | GN96: 0 | GO96: 0 | GP96: 0 | GQ96: 0 | GR96: 0 | GS96: 0 | GT96: 0 | GU96: 0 | GV96: 0 | GW96: 0 | GX96: 0 | GY96: 0 | GZ96: 0 | HA96: 0
D97: Applied Repayment with Choose | I97: =AND(J97:HA97) -> FALSE | J97: =J96=J94 -> TRUE | K97: =K96=K94 -> TRUE | L97: TRUE | M97: TRUE | N97: TRUE | O97: TRUE | P97: TRUE | Q97: TRUE | R97: TRUE | S97: TRUE | T97: TRUE | U97: TRUE | V97: TRUE | W97: TRUE | X97: TRUE | Y97: TRUE | Z97: TRUE | AA97: TRUE | AB97: TRUE | AC97: TRUE | AD97: TRUE | AE97: TRUE | AF97: TRUE | AG97: TRUE | AH97: TRUE | AI97: TRUE | AJ97: TRUE | AK97: TRUE | AL97: TRUE | AM97: TRUE | AN97: TRUE | AO97: TRUE | AP97: TRUE | AQ97: TRUE | AR97: TRUE | AS97: TRUE | AT97: TRUE | AU97: TRUE | AV97: TRUE | AW97: TRUE | AX97: TRUE | AY97: TRUE | AZ97: TRUE | BA97: TRUE | BB97: TRUE | BC97: TRUE | BD97: TRUE | BE97: TRUE | BF97: TRUE | BG97: TRUE | BH97: TRUE | BI97: TRUE | BJ97: TRUE | BK97: TRUE | BL97: TRUE | BM97: TRUE | BN97: TRUE | BO97: FALSE | BP97: FALSE | BQ97: FALSE | BR97: FALSE | BS97: FALSE | BT97: FALSE | BU97: FALSE | BV97: FALSE | BW97: =BW96=BW94 -> FALSE | BX97: FALSE | BY97: FALSE | BZ97: FALSE | CA97: FALSE | CB97: FALSE | CC97: FALSE | CD97: FALSE | CE97: FALSE | CF97: FALSE | CG97: FALSE | CH97: FALSE | CI97: FALSE | CJ97: FALSE | CK97: FALSE | CL97: FALSE | CM97: FALSE | CN97: FALSE | CO97: FALSE | CP97: FALSE | CQ97: FALSE | CR97: FALSE | CS97: FALSE | CT97: FALSE | CU97: FALSE | CV97: FALSE | CW97: FALSE | CX97: FALSE | CY97: FALSE | CZ97: FALSE | DA97: FALSE | DB97: FALSE | DC97: FALSE | DD97: FALSE | DE97: FALSE | DF97: FALSE | DG97: FALSE | DH97: FALSE | DI97: FALSE | DJ97: FALSE | DK97: FALSE | DL97: FALSE | DM97: FALSE | DN97: FALSE | DO97: FALSE | DP97: FALSE | DQ97: FALSE | DR97: FALSE | DS97: FALSE | DT97: FALSE | DU97: FALSE | DV97: TRUE | DW97: TRUE | DX97: TRUE | DY97: TRUE | DZ97: TRUE | EA97: TRUE | EB97: TRUE | EC97: TRUE | ED97: TRUE | EE97: TRUE | EF97: TRUE | EG97: TRUE | EH97: TRUE | EI97: =EI96=EI94 -> TRUE | EJ97: TRUE | EK97: TRUE | EL97: TRUE | EM97: TRUE | EN97: TRUE | EO97: TRUE | EP97: TRUE | EQ97: TRUE | ER97: TRUE | ES97: TRUE | ET97: TRUE | EU97: TRUE | EV97: TRUE | EW97: TRUE | EX97: TRUE | EY97: TRUE | EZ97: TRUE | FA97: TRUE | FB97: TRUE | FC97: TRUE | FD97: TRUE | FE97: TRUE | FF97: TRUE | FG97: TRUE | FH97: TRUE | FI97: TRUE | FJ97: TRUE | FK97: TRUE | FL97: TRUE | FM97: TRUE | FN97: TRUE | FO97: TRUE | FP97: TRUE | FQ97: TRUE | FR97: TRUE | FS97: TRUE | FT97: TRUE | FU97: TRUE | FV97: TRUE | FW97: TRUE | FX97: TRUE | FY97: TRUE | FZ97: TRUE | GA97: TRUE | GB97: TRUE | GC97: TRUE | GD97: TRUE | GE97: TRUE | GF97: TRUE | GG97: TRUE | GH97: TRUE | GI97: TRUE | GJ97: TRUE | GK97: TRUE | GL97: TRUE | GM97: TRUE | GN97: TRUE | GO97: TRUE | GP97: TRUE | GQ97: TRUE | GR97: TRUE | GS97: TRUE | GT97: TRUE | GU97: =GU96=GU94 -> TRUE | GV97: TRUE | GW97: TRUE | GX97: TRUE | GY97: TRUE | GZ97: TRUE | HA97: TRUE
A99: Debt Schedule and Interest
C100: Switch for Mini-perm Repayment | G100: =Assumptions!E63 -> 2025-01-01 | H100: =Assumptions!E64 -> 2040-01-01 | J100: =AND(J5>=$G$100,J5<$H$100) -> FALSE | K100: FALSE | L100: FALSE | M100: FALSE | N100: FALSE | O100: FALSE | P100: FALSE | Q100: FALSE | R100: FALSE | S100: FALSE | T100: FALSE | U100: FALSE | V100: FALSE | W100: FALSE | X100: FALSE | Y100: FALSE | Z100: FALSE | AA100: FALSE | AB100: FALSE | AC100: FALSE | AD100: FALSE | AE100: FALSE | AF100: FALSE | AG100: FALSE | AH100: FALSE | AI100: FALSE | AJ100: FALSE | AK100: FALSE | AL100: FALSE | AM100: FALSE | AN100: FALSE | AO100: FALSE | AP100: =AND(AP5>=$G$100,AP5<$H$100) -> FALSE | AQ100: FALSE | AR100: FALSE | AS100: FALSE | AT100: FALSE | AU100: FALSE | AV100: FALSE | AW100: FALSE | AX100: FALSE | AY100: FALSE | AZ100: FALSE | BA100: FALSE | BB100: FALSE | BC100: FALSE | BD100: FALSE | BE100: FALSE | BF100: FALSE | BG100: FALSE | BH100: FALSE | BI100: FALSE | BJ100: FALSE | BK100: FALSE | BL100: FALSE | BM100: FALSE | BN100: TRUE | BO100: TRUE | BP100: TRUE | BQ100: TRUE | BR100: TRUE | BS100: TRUE | BT100: TRUE | BU100: TRUE | BV100: =AND(BV5>=$G$100,BV5<$H$100) -> TRUE | BW100: TRUE | BX100: TRUE | BY100: TRUE | BZ100: TRUE | CA100: TRUE | CB100: TRUE | CC100: TRUE | CD100: TRUE | CE100: TRUE | CF100: TRUE | CG100: TRUE | CH100: TRUE | CI100: TRUE | CJ100: TRUE | CK100: TRUE | CL100: TRUE | CM100: TRUE | CN100: TRUE | CO100: TRUE | CP100: TRUE | CQ100: TRUE | CR100: TRUE | CS100: TRUE | CT100: TRUE | CU100: TRUE | CV100: TRUE | CW100: TRUE | CX100: TRUE | CY100: TRUE | CZ100: TRUE | DA100: TRUE | DB100: =AND(DB5>=$G$100,DB5<$H$100) -> TRUE | DC100: TRUE | DD100: TRUE | DE100: TRUE | DF100: TRUE | DG100: TRUE | DH100: TRUE | DI100: TRUE | DJ100: TRUE | DK100: TRUE | DL100: TRUE | DM100: TRUE | DN100: TRUE | DO100: TRUE | DP100: TRUE | DQ100: TRUE | DR100: TRUE | DS100: TRUE | DT100: TRUE | DU100: TRUE | DV100: FALSE | DW100: FALSE | DX100: FALSE | DY100: FALSE | DZ100: FALSE | EA100: FALSE | EB100: FALSE | EC100: FALSE | ED100: FALSE | EE100: FALSE | EF100: FALSE | EG100: FALSE | EH100: =AND(EH5>=$G$100,EH5<$H$100) -> FALSE | EI100: FALSE | EJ100: FALSE | EK100: FALSE | EL100: FALSE | EM100: FALSE | EN100: FALSE | EO100: FALSE | EP100: FALSE | EQ100: FALSE | ER100: FALSE | ES100: FALSE | ET100: FALSE | EU100: FALSE | EV100: FALSE | EW100: FALSE | EX100: FALSE | EY100: FALSE | EZ100: FALSE | FA100: FALSE | FB100: FALSE | FC100: FALSE | FD100: FALSE | FE100: FALSE | FF100: FALSE | FG100: FALSE | FH100: FALSE | FI100: FALSE | FJ100: FALSE | FK100: FALSE | FL100: FALSE | FM100: FALSE | FN100: =AND(FN5>=$G$100,FN5<$H$100) -> FALSE | FO100: FALSE | FP100: FALSE | FQ100: FALSE | FR100: FALSE | FS100: FALSE | FT100: FALSE | FU100: FALSE | FV100: FALSE | FW100: FALSE | FX100: FALSE | FY100: FALSE | FZ100: FALSE | GA100: FALSE | GB100: FALSE | GC100: FALSE | GD100: FALSE | GE100: FALSE | GF100: FALSE | GG100: FALSE | GH100: FALSE | GI100: FALSE | GJ100: FALSE | GK100: FALSE | GL100: FALSE | GM100: FALSE | GN100: FALSE | GO100: FALSE | GP100: FALSE | GQ100: FALSE | GR100: FALSE | GS100: FALSE | GT100: =AND(GT5>=$G$100,GT5<$H$100) -> FALSE | GU100: FALSE | GV100: FALSE | GW100: FALSE | GX100: FALSE | GY100: FALSE | GZ100: FALSE | HA100: FALSE
C101: Switch for Mini-perm Re-financing | F101: =AND(F106,Assumptions!$E$62) -> TRUE | G101: =Assumptions!E63 -> 2025-01-01 | J101: =AND(J5=$G$101,$F$101) -> FALSE | K101: FALSE | L101: FALSE | M101: FALSE | N101: FALSE | O101: FALSE | P101: FALSE | Q101: FALSE | R101: FALSE | S101: FALSE | T101: FALSE | U101: FALSE | V101: FALSE | W101: FALSE | X101: FALSE | Y101: FALSE | Z101: FALSE | AA101: FALSE | AB101: FALSE | AC101: FALSE | AD101: FALSE | AE101: FALSE | AF101: FALSE | AG101: FALSE | AH101: FALSE | AI101: FALSE | AJ101: FALSE | AK101: FALSE | AL101: FALSE | AM101: FALSE | AN101: FALSE | AO101: FALSE | AP101: =AND(AP5=$G$101,$F$101) -> FALSE | AQ101: FALSE | AR101: FALSE | AS101: FALSE | AT101: FALSE | AU101: FALSE | AV101: FALSE | AW101: FALSE | AX101: FALSE | AY101: FALSE | AZ101: FALSE | BA101: FALSE | BB101: FALSE | BC101: FALSE | BD101: FALSE | BE101: FALSE | BF101: FALSE | BG101: FALSE | BH101: FALSE | BI101: FALSE | BJ101: FALSE | BK101: FALSE | BL101: FALSE | BM101: FALSE | BN101: TRUE | BO101: FALSE | BP101: FALSE | BQ101: FALSE | BR101: FALSE | BS101: FALSE | BT101: FALSE | BU101: FALSE | BV101: =AND(BV5=$G$101,$F$101) -> FALSE | BW101: FALSE | BX101: FALSE | BY101: FALSE | BZ101: FALSE | CA101: FALSE | CB101: FALSE | CC101: FALSE | CD101: FALSE | CE101: FALSE | CF101: FALSE | CG101: FALSE | CH101: FALSE | CI101: FALSE | CJ101: FALSE | CK101: FALSE | CL101: FALSE | CM101: FALSE | CN101: FALSE | CO101: FALSE | CP101: FALSE | CQ101: FALSE | CR101: FALSE | CS101: FALSE | CT101: FALSE | CU101: FALSE | CV101: FALSE | CW101: FALSE | CX101: FALSE | CY101: FALSE | CZ101: FALSE | DA101: FALSE | DB101: =AND(DB5=$G$101,$F$101) -> FALSE | DC101: FALSE | DD101: FALSE | DE101: FALSE | DF101: FALSE | DG101: FALSE | DH101: FALSE | DI101: FALSE | DJ101: FALSE | DK101: FALSE | DL101: FALSE | DM101: FALSE | DN101: FALSE | DO101: FALSE | DP101: FALSE | DQ101: FALSE | DR101: FALSE | DS101: FALSE | DT101: FALSE | DU101: FALSE | DV101: FALSE | DW101: FALSE | DX101: FALSE | DY101: FALSE | DZ101: FALSE | EA101: FALSE | EB101: FALSE | EC101: FALSE | ED101: FALSE | EE101: FALSE | EF101: FALSE | EG101: FALSE | EH101: =AND(EH5=$G$101,$F$101) -> FALSE | EI101: FALSE | EJ101: FALSE | EK101: FALSE | EL101: FALSE | EM101: FALSE | EN101: FALSE | EO101: FALSE | EP101: FALSE | EQ101: FALSE | ER101: FALSE | ES101: FALSE | ET101: FALSE | EU101: FALSE | EV101: FALSE | EW101: FALSE | EX101: FALSE | EY101: FALSE | EZ101: FALSE | FA101: FALSE | FB101: FALSE | FC101: FALSE | FD101: FALSE | FE101: FALSE | FF101: FALSE | FG101: FALSE | FH101: FALSE | FI101: FALSE | FJ101: FALSE | FK101: FALSE | FL101: FALSE | FM101: FALSE | FN101: =AND(FN5=$G$101,$F$101) -> FALSE | FO101: FALSE | FP101: FALSE | FQ101: FALSE | FR101: FALSE | FS101: FALSE | FT101: FALSE | FU101: FALSE | FV101: FALSE | FW101: FALSE | FX101: FALSE | FY101: FALSE | FZ101: FALSE | GA101: FALSE | GB101: FALSE | GC101: FALSE | GD101: FALSE | GE101: FALSE | GF101: FALSE | GG101: FALSE | GH101: FALSE | GI101: FALSE | GJ101: FALSE | GK101: FALSE | GL101: FALSE | GM101: FALSE | GN101: FALSE | GO101: FALSE | GP101: FALSE | GQ101: FALSE | GR101: FALSE | GS101: FALSE | GT101: =AND(GT5=$G$101,$F$101) -> FALSE | GU101: FALSE | GV101: FALSE | GW101: FALSE | GX101: FALSE | GY101: FALSE | GZ101: FALSE | HA101: FALSE
C103: Initial Mini-perm Debt
D104: Opening Balance | J104: =I109 -> 0 | K104: =J109 -> 14434.4984 | L104: 17153.13299 | M104: 20327.5683 | N104: 23997.34113 | O104: 28197.53113 | P104: 32956.96993 | Q104: 38296.4579 | R104: 44227.08384 | S104: 50748.74917 | T104: 57848.99752 | U104: 65502.24269 | V104: 73669.47233 | W104: 82298.48216 | X104: 91324.66684 | Y104: 100672.3616 | Z104: 110256.6944 | AA104: 119985.8758 | AB104: 129763.8249 | AC104: 139493.0063 | AD104: 149077.3391 | AE104: 158425.0338 | AF104: 167451.2185 | AG104: 176080.2284 | AH104: 184247.458 | AI104: 191900.7032 | AJ104: 199000.9515 | AK104: 205522.6168 | AL104: 211453.2428 | AM104: 216792.7307 | AN104: 221552.1696 | AO104: 225752.3596 | AP104: 229422.1324 | AQ104: 232596.5677 | AR104: 235315.2023 | AS104: 237620.3154 | AT104: 239555.3588 | AU104: 239233.4121 | AV104: 238907.6422 | AW104: 238578.0037 | AX104: 238244.4509 | AY104: 237906.9371 | AZ104: 237425.626 | BA104: 236798.1164 | BB104: 235952.1622 | BC104: 234883.6043 | BD104: 233448.0518 | BE104: 232068.7897 | BF104: 230746.3025 | BG104: 229516.0472 | BH104: 228234.0886 | BI104: 226899.7349 | BJ104: 225512.2859 | BK104: 224071.0325 | BL104: 222575.2567 | BM104: 221024.2312 | BN104: 219417.22 | BO104: 0 | BP104: 0 | BQ104: 0 | BR104: 0 | BS104: 0 | BT104: 0 | BU104: 0 | BV104: 0 | BW104: =BV109 -> 0 | BX104: 0 | BY104: 0 | BZ104: 0 | CA104: 0 | CB104: 0 | CC104: 0 | CD104: 0 | CE104: 0 | CF104: 0 | CG104: 0 | CH104: 0 | CI104: 0 | CJ104: 0 | CK104: 0 | CL104: 0 | CM104: 0 | CN104: 0 | CO104: 0 | CP104: 0 | CQ104: 0 | CR104: 0 | CS104: 0 | CT104: 0 | CU104: 0 | CV104: 0 | CW104: 0 | CX104: 0 | CY104: 0 | CZ104: 0 | DA104: 0 | DB104: 0 | DC104: 0 | DD104: 0 | DE104: 0 | DF104: 0 | DG104: 0 | DH104: 0 | DI104: 0 | DJ104: 0 | DK104: 0 | DL104: 0 | DM104: 0 | DN104: 0 | DO104: 0 | DP104: 0 | DQ104: 0 | DR104: 0 | DS104: 0 | DT104: 0 | DU104: 0 | DV104: 0 | DW104: 0 | DX104: 0 | DY104: 0 | DZ104: 0 | EA104: 0 | EB104: 0 | EC104: 0 | ED104: 0 | EE104: 0 | EF104: 0 | EG104: 0 | EH104: 0 | EI104: =EH109 -> 0 | EJ104: 0 | EK104: 0 | EL104: 0 | EM104: 0 | EN104: 0 | EO104: 0 | EP104: 0 | EQ104: 0 | ER104: 0 | ES104: 0 | ET104: 0 | EU104: 0 | EV104: 0 | EW104: 0 | EX104: 0 | EY104: 0 | EZ104: 0 | FA104: 0 | FB104: 0 | FC104: 0 | FD104: 0 | FE104: 0 | FF104: 0 | FG104: 0 | FH104: 0 | FI104: 0 | FJ104: 0 | FK104: 0 | FL104: 0 | FM104: 0 | FN104: 0 | FO104: 0 | FP104: 0 | FQ104: 0 | FR104: 0 | FS104: 0 | FT104: 0 | FU104: 0 | FV104: 0 | FW104: 0 | FX104: 0 | FY104: 0 | FZ104: 0 | GA104: 0 | GB104: 0 | GC104: 0 | GD104: 0 | GE104: 0 | GF104: 0 | GG104: 0 | GH104: 0 | GI104: 0 | GJ104: 0 | GK104: 0 | GL104: 0 | GM104: 0 | GN104: 0 | GO104: 0 | GP104: 0 | GQ104: 0 | GR104: 0 | GS104: 0 | GT104: 0 | GU104: =GT109 -> 0 | GV104: 0 | GW104: 0 | GX104: 0 | GY104: 0 | GZ104: 0 | HA104: 0
D105: Add Debt Draws | J105: =J77 -> 14434.4984 | K105: 2718.634582 | L105: 3174.435313 | M105: 3669.772835 | N105: 4200.19 | O105: 4759.438801 | P105: 5339.487968 | Q105: 5930.62594 | R105: 6521.665332 | S105: 7100.24835 | T105: 7653.245164 | U105: 8167.229642 | V105: 8629.009827 | W105: 9026.184682 | X105: 9347.694752 | Y105: 9584.332771 | Z105: 9729.181412 | AA105: 9777.949136 | AB105: 9729.181412 | AC105: 9584.332771 | AD105: 9347.694752 | AE105: 9026.184682 | AF105: 8629.009827 | AG105: 8167.229642 | AH105: 7653.245164 | AI105: 7100.24835 | AJ105: 6521.665332 | AK105: 5930.62594 | AL105: 5339.487968 | AM105: 4759.438801 | AN105: 4200.19 | AO105: 3669.772835 | AP105: =AP77 -> 3174.435313 | AQ105: 2718.634582 | AR105: 2305.113146 | AS105: 1935.043414 | AT105: 0 | AU105: 0 | AV105: 0 | AW105: 0 | AX105: 0 | AY105: 0 | AZ105: 0 | BA105: 0 | BB105: 0 | BC105: 0 | BD105: 0 | BE105: 0 | BF105: 0 | BG105: 0 | BH105: 0 | BI105: 0 | BJ105: 0 | BK105: 0 | BL105: 0 | BM105: 0 | BN105: 0 | BO105: 0 | BP105: 0 | BQ105: 0 | BR105: 0 | BS105: 0 | BT105: 0 | BU105: 0 | BV105: =BV77 -> 0 | BW105: 0 | BX105: 0 | BY105: 0 | BZ105: 0 | CA105: 0 | CB105: 0 | CC105: 0 | CD105: 0 | CE105: 0 | CF105: 0 | CG105: 0 | CH105: 0 | CI105: 0 | CJ105: 0 | CK105: 0 | CL105: 0 | CM105: 0 | CN105: 0 | CO105: 0 | CP105: 0 | CQ105: 0 | CR105: 0 | CS105: 0 | CT105: 0 | CU105: 0 | CV105: 0 | CW105: 0 | CX105: 0 | CY105: 0 | CZ105: 0 | DA105: 0 | DB105: =DB77 -> 0 | DC105: 0 | DD105: 0 | DE105: 0 | DF105: 0 | DG105: 0 | DH105: 0 | DI105: 0 | DJ105: 0 | DK105: 0 | DL105: 0 | DM105: 0 | DN105: 0 | DO105: 0 | DP105: 0 | DQ105: 0 | DR105: 0 | DS105: 0 | DT105: 0 | DU105: 0 | DV105: 0 | DW105: 0 | DX105: 0 | DY105: 0 | DZ105: 0 | EA105: 0 | EB105: 0 | EC105: 0 | ED105: 0 | EE105: 0 | EF105: 0 | EG105: 0 | EH105: =EH77 -> 0 | EI105: 0 | EJ105: 0 | EK105: 0 | EL105: 0 | EM105: 0 | EN105: 0 | EO105: 0 | EP105: 0 | EQ105: 0 | ER105: 0 | ES105: 0 | ET105: 0 | EU105: 0 | EV105: 0 | EW105: 0 | EX105: 0 | EY105: 0 | EZ105: 0 | FA105: 0 | FB105: 0 | FC105: 0 | FD105: 0 | FE105: 0 | FF105: 0 | FG105: 0 | FH105: 0 | FI105: 0 | FJ105: 0 | FK105: 0 | FL105: 0 | FM105: 0 | FN105: =FN77 -> 0 | FO105: 0 | FP105: 0 | FQ105: 0 | FR105: 0 | FS105: 0 | FT105: 0 | FU105: 0 | FV105: 0 | FW105: 0 | FX105: 0 | FY105: 0 | FZ105: 0 | GA105: 0 | GB105: 0 | GC105: 0 | GD105: 0 | GE105: 0 | GF105: 0 | GG105: 0 | GH105: 0 | GI105: 0 | GJ105: 0 | GK105: 0 | GL105: 0 | GM105: 0 | GN105: 0 | GO105: 0 | GP105: 0 | GQ105: 0 | GR105: 0 | GS105: 0 | GT105: =GT77 -> 0 | GU105: 0 | GV105: 0 | GW105: 0 | GX105: 0 | GY105: 0 | GZ105: 0 | HA105: 0
D106: Less Scheduled Repayment | E106: Fixed | F106: =fix -> TRUE | G106: =SUM(J106:HA106) -> 21801.88139 | J106: =MIN(IF($F$106,LOOKUP(J82,95:95,96:96),J94),J104) -> 0 | K106: =MIN(IF($F$106,LOOKUP(K82,95:95,96:96),K94),K104) -> 0 | L106: 0 | M106: 0 | N106: 0 | O106: 0 | P106: 0 | Q106: 0 | R106: 0 | S106: 0 | T106: 0 | U106: 0 | V106: 0 | W106: 0 | X106: 0 | Y106: 0 | Z106: 0 | AA106: 0 | AB106: 0 | AC106: 0 | AD106: 0 | AE106: 0 | AF106: 0 | AG106: 0 | AH106: 0 | AI106: 0 | AJ106: 0 | AK106: 0 | AL106: 0 | AM106: 0 | AN106: 0 | AO106: 0 | AP106: 0 | AQ106: 0 | AR106: 0 | AS106: 0 | AT106: 321.9467804 | AU106: 325.7698985 | AV106: 329.638416 | AW106: 333.5528722 | AX106: 337.5138126 | AY106: 481.3110284 | AZ106: 627.5096006 | BA106: 845.9542649 | BB106: 1068.55791 | BC106: 1435.552454 | BD106: 1379.26206 | BE106: 1322.487252 | BF106: 1230.255275 | BG106: 1281.958657 | BH106: 1334.353653 | BI106: 1387.448965 | BJ106: 1441.253402 | BK106: 1495.775887 | BL106: 1551.025451 | BM106: 1607.011239 | BN106: 1663.742512 | BO106: 0 | BP106: 0 | BQ106: 0 | BR106: 0 | BS106: 0 | BT106: 0 | BU106: 0 | BV106: 0 | BW106: =MIN(IF($F$106,LOOKUP(BW82,95:95,96:96),BW94),BW104) -> 0 | BX106: 0 | BY106: 0 | BZ106: 0 | CA106: 0 | CB106: 0 | CC106: 0 | CD106: 0 | CE106: 0 | CF106: 0 | CG106: 0 | CH106: 0 | CI106: 0 | CJ106: 0 | CK106: 0 | CL106: 0 | CM106: 0 | CN106: 0 | CO106: 0 | CP106: 0 | CQ106: 0 | CR106: 0 | CS106: 0 | CT106: 0 | CU106: 0 | CV106: 0 | CW106: 0 | CX106: 0 | CY106: 0 | CZ106: 0 | DA106: 0 | DB106: 0 | DC106: 0 | DD106: 0 | DE106: 0 | DF106: 0 | DG106: 0 | DH106: 0 | DI106: 0 | DJ106: 0 | DK106: 0 | DL106: 0 | DM106: 0 | DN106: 0 | DO106: 0 | DP106: 0 | DQ106: 0 | DR106: 0 | DS106: 0 | DT106: 0 | DU106: 0 | DV106: 0 | DW106: 0 | DX106: 0 | DY106: 0 | DZ106: 0 | EA106: 0 | EB106: 0 | EC106: 0 | ED106: 0 | EE106: 0 | EF106: 0 | EG106: 0 | EH106: 0 | EI106: =MIN(IF($F$106,LOOKUP(EI82,95:95,96:96),EI94),EI104) -> 0 | EJ106: 0 | EK106: 0 | EL106: 0 | EM106: 0 | EN106: 0 | EO106: 0 | EP106: 0 | EQ106: 0 | ER106: 0 | ES106: 0 | ET106: 0 | EU106: 0 | EV106: 0 | EW106: 0 | EX106: 0 | EY106: 0 | EZ106: 0 | FA106: 0 | FB106: 0 | FC106: 0 | FD106: 0 | FE106: 0 | FF106: 0 | FG106: 0 | FH106: 0 | FI106: 0 | FJ106: 0 | FK106: 0 | FL106: 0 | FM106: 0 | FN106: 0 | FO106: 0 | FP106: 0 | FQ106: 0 | FR106: 0 | FS106: 0 | FT106: 0 | FU106: 0 | FV106: 0 | FW106: 0 | FX106: 0 | FY106: 0 | FZ106: 0 | GA106: 0 | GB106: 0 | GC106: 0 | GD106: 0 | GE106: 0 | GF106: 0 | GG106: 0 | GH106: 0 | GI106: 0 | GJ106: 0 | GK106: 0 | GL106: 0 | GM106: 0 | GN106: 0 | GO106: 0 | GP106: 0 | GQ106: 0 | GR106: 0 | GS106: 0 | GT106: 0 | GU106: =MIN(IF($F$106,LOOKUP(GU82,95:95,96:96),GU94),GU104) -> 0 | GV106: 0 | GW106: 0 | GX106: 0 | GY106: 0 | GZ106: 0 | HA106: 0
D107: Less Prepayment from Cash Flow Sweep | J107: =J201 -> 0 | K107: =K201 -> 0 | L107: 0 | M107: 0 | N107: 0 | O107: 0 | P107: 0 | Q107: 0 | R107: 0 | S107: 0 | T107: 0 | U107: 0 | V107: 0 | W107: 0 | X107: 0 | Y107: 0 | Z107: 0 | AA107: 0 | AB107: 0 | AC107: 0 | AD107: 0 | AE107: 0 | AF107: 0 | AG107: 0 | AH107: 0 | AI107: 0 | AJ107: 0 | AK107: 0 | AL107: 0 | AM107: 0 | AN107: 0 | AO107: 0 | AP107: 0 | AQ107: 0 | AR107: 0 | AS107: 0 | AT107: 0 | AU107: 0 | AV107: 0 | AW107: 0 | AX107: 0 | AY107: 0 | AZ107: 0 | BA107: 0 | BB107: 0 | BC107: 0 | BD107: 0 | BE107: 0 | BF107: 0 | BG107: 0 | BH107: 0 | BI107: 0 | BJ107: 0 | BK107: 0 | BL107: 0 | BM107: 0 | BN107: 0 | BO107: 0 | BP107: 0 | BQ107: 0 | BR107: 0 | BS107: 0 | BT107: 0 | BU107: 0 | BV107: 0 | BW107: =BW201 -> 0 | BX107: 0 | BY107: 0 | BZ107: 0 | CA107: 0 | CB107: 0 | CC107: 0 | CD107: 0 | CE107: 0 | CF107: 0 | CG107: 0 | CH107: 0 | CI107: 0 | CJ107: 0 | CK107: 0 | CL107: 0 | CM107: 0 | CN107: 0 | CO107: 0 | CP107: 0 | CQ107: 0 | CR107: 0 | CS107: 0 | CT107: 0 | CU107: 0 | CV107: 0 | CW107: 0 | CX107: 0 | CY107: 0 | CZ107: 0 | DA107: 0 | DB107: 0 | DC107: 0 | DD107: 0 | DE107: 0 | DF107: 0 | DG107: 0 | DH107: 0 | DI107: 0 | DJ107: 0 | DK107: 0 | DL107: 0 | DM107: 0 | DN107: 0 | DO107: 0 | DP107: 0 | DQ107: 0 | DR107: 0 | DS107: 0 | DT107: 0 | DU107: 0 | DV107: 0 | DW107: 0 | DX107: 0 | DY107: 0 | DZ107: 0 | EA107: 0 | EB107: 0 | EC107: 0 | ED107: 0 | EE107: 0 | EF107: 0 | EG107: 0 | EH107: 0 | EI107: =EI201 -> 0 | EJ107: 0 | EK107: 0 | EL107: 0 | EM107: 0 | EN107: 0 | EO107: 0 | EP107: 0 | EQ107: 0 | ER107: 0 | ES107: 0 | ET107: 0 | EU107: 0 | EV107: 0 | EW107: 0 | EX107: 0 | EY107: 0 | EZ107: 0 | FA107: 0 | FB107: 0 | FC107: 0 | FD107: 0 | FE107: 0 | FF107: 0 | FG107: 0 | FH107: 0 | FI107: 0 | FJ107: 0 | FK107: 0 | FL107: 0 | FM107: 0 | FN107: 0 | FO107: 0 | FP107: 0 | FQ107: 0 | FR107: 0 | FS107: 0 | FT107: 0 | FU107: 0 | FV107: 0 | FW107: 0 | FX107: 0 | FY107: 0 | FZ107: 0 | GA107: 0 | GB107: 0 | GC107: 0 | GD107: 0 | GE107: 0 | GF107: 0 | GG107: 0 | GH107: 0 | GI107: 0 | GJ107: 0 | GK107: 0 | GL107: 0 | GM107: 0 | GN107: 0 | GO107: 0 | GP107: 0 | GQ107: 0 | GR107: 0 | GS107: 0 | GT107: 0 | GU107: =GU201 -> 0 | GV107: 0 | GW107: 0 | GX107: 0 | GY107: 0 | GZ107: 0 | HA107: 0
D108: Less Bullet Repayment | J108: =(J104+J105-J106-J107)*J101 -> 0 | K108: 0 | L108: 0 | M108: 0 | N108: 0 | O108: 0 | P108: 0 | Q108: 0 | R108: 0 | S108: 0 | T108: 0 | U108: 0 | V108: 0 | W108: 0 | X108: 0 | Y108: 0 | Z108: 0 | AA108: 0 | AB108: 0 | AC108: 0 | AD108: 0 | AE108: 0 | AF108: 0 | AG108: 0 | AH108: 0 | AI108: 0 | AJ108: 0 | AK108: 0 | AL108: 0 | AM108: 0 | AN108: 0 | AO108: 0 | AP108: =(AP104+AP105-AP106-AP107)*AP101 -> 0 | AQ108: 0 | AR108: 0 | AS108: 0 | AT108: 0 | AU108: 0 | AV108: 0 | AW108: 0 | AX108: 0 | AY108: 0 | AZ108: 0 | BA108: 0 | BB108: 0 | BC108: 0 | BD108: 0 | BE108: 0 | BF108: 0 | BG108: 0 | BH108: 0 | BI108: 0 | BJ108: 0 | BK108: 0 | BL108: 0 | BM108: 0 | BN108: 217753.4774 | BO108: 0 | BP108: 0 | BQ108: 0 | BR108: 0 | BS108: 0 | BT108: 0 | BU108: 0 | BV108: =(BV104+BV105-BV106-BV107)*BV101 -> 0 | BW108: 0 | BX108: 0 | BY108: 0 | BZ108: 0 | CA108: 0 | CB108: 0 | CC108: 0 | CD108: 0 | CE108: 0 | CF108: 0 | CG108: 0 | CH108: 0 | CI108: 0 | CJ108: 0 | CK108: 0 | CL108: 0 | CM108: 0 | CN108: 0 | CO108: 0 | CP108: 0 | CQ108: 0 | CR108: 0 | CS108: 0 | CT108: 0 | CU108: 0 | CV108: 0 | CW108: 0 | CX108: 0 | CY108: 0 | CZ108: 0 | DA108: 0 | DB108: =(DB104+DB105-DB106-DB107)*DB101 -> 0 | DC108: 0 | DD108: 0 | DE108: 0 | DF108: 0 | DG108: 0 | DH108: 0 | DI108: 0 | DJ108: 0 | DK108: 0 | DL108: 0 | DM108: 0 | DN108: 0 | DO108: 0 | DP108: 0 | DQ108: 0 | DR108: 0 | DS108: 0 | DT108: 0 | DU108: 0 | DV108: 0 | DW108: 0 | DX108: 0 | DY108: 0 | DZ108: 0 | EA108: 0 | EB108: 0 | EC108: 0 | ED108: 0 | EE108: 0 | EF108: 0 | EG108: 0 | EH108: =(EH104+EH105-EH106-EH107)*EH101 -> 0 | EI108: 0 | EJ108: 0 | EK108: 0 | EL108: 0 | EM108: 0 | EN108: 0 | EO108: 0 | EP108: 0 | EQ108: 0 | ER108: 0 | ES108: 0 | ET108: 0 | EU108: 0 | EV108: 0 | EW108: 0 | EX108: 0 | EY108: 0 | EZ108: 0 | FA108: 0 | FB108: 0 | FC108: 0 | FD108: 0 | FE108: 0 | FF108: 0 | FG108: 0 | FH108: 0 | FI108: 0 | FJ108: 0 | FK108: 0 | FL108: 0 | FM108: 0 | FN108: =(FN104+FN105-FN106-FN107)*FN101 -> 0 | FO108: 0 | FP108: 0 | FQ108: 0 | FR108: 0 | FS108: 0 | FT108: 0 | FU108: 0 | FV108: 0 | FW108: 0 | FX108: 0 | FY108: 0 | FZ108: 0 | GA108: 0 | GB108: 0 | GC108: 0 | GD108: 0 | GE108: 0 | GF108: 0 | GG108: 0 | GH108: 0 | GI108: 0 | GJ108: 0 | GK108: 0 | GL108: 0 | GM108: 0 | GN108: 0 | GO108: 0 | GP108: 0 | GQ108: 0 | GR108: 0 | GS108: 0 | GT108: =(GT104+GT105-GT106-GT107)*GT101 -> 0 | GU108: 0 | GV108: 0 | GW108: 0 | GX108: 0 | GY108: 0 | GZ108: 0 | HA108: 0
D109: Closing Balance | J109: =J104+J105-J106-J108-J107 -> 14434.4984 | K109: 17153.13299 | L109: 20327.5683 | M109: 23997.34113 | N109: 28197.53113 | O109: 32956.96993 | P109: 38296.4579 | Q109: 44227.08384 | R109: 50748.74917 | S109: 57848.99752 | T109: 65502.24269 | U109: 73669.47233 | V109: 82298.48216 | W109: 91324.66684 | X109: 100672.3616 | Y109: 110256.6944 | Z109: 119985.8758 | AA109: 129763.8249 | AB109: 139493.0063 | AC109: 149077.3391 | AD109: 158425.0338 | AE109: 167451.2185 | AF109: 176080.2284 | AG109: 184247.458 | AH109: 191900.7032 | AI109: 199000.9515 | AJ109: 205522.6168 | AK109: 211453.2428 | AL109: 216792.7307 | AM109: 221552.1696 | AN109: 225752.3596 | AO109: 229422.1324 | AP109: =AP104+AP105-AP106-AP108-AP107 -> 232596.5677 | AQ109: 235315.2023 | AR109: 237620.3154 | AS109: 239555.3588 | AT109: 239233.4121 | AU109: 238907.6422 | AV109: 238578.0037 | AW109: 238244.4509 | AX109: 237906.9371 | AY109: 237425.626 | AZ109: 236798.1164 | BA109: 235952.1622 | BB109: 234883.6043 | BC109: 233448.0518 | BD109: 232068.7897 | BE109: 230746.3025 | BF109: 229516.0472 | BG109: 228234.0886 | BH109: 226899.7349 | BI109: 225512.2859 | BJ109: 224071.0325 | BK109: 222575.2567 | BL109: 221024.2312 | BM109: 219417.22 | BN109: 0 | BO109: 0 | BP109: 0 | BQ109: 0 | BR109: 0 | BS109: 0 | BT109: 0 | BU109: 0 | BV109: =BV104+BV105-BV106-BV108-BV107 -> 0 | BW109: 0 | BX109: 0 | BY109: 0 | BZ109: 0 | CA109: 0 | CB109: 0 | CC109: 0 | CD109: 0 | CE109: 0 | CF109: 0 | CG109: 0 | CH109: 0 | CI109: 0 | CJ109: 0 | CK109: 0 | CL109: 0 | CM109: 0 | CN109: 0 | CO109: 0 | CP109: 0 | CQ109: 0 | CR109: 0 | CS109: 0 | CT109: 0 | CU109: 0 | CV109: 0 | CW109: 0 | CX109: 0 | CY109: 0 | CZ109: 0 | DA109: 0 | DB109: =DB104+DB105-DB106-DB108-DB107 -> 0 | DC109: 0 | DD109: 0 | DE109: 0 | DF109: 0 | DG109: 0 | DH109: 0 | DI109: 0 | DJ109: 0 | DK109: 0 | DL109: 0 | DM109: 0 | DN109: 0 | DO109: 0 | DP109: 0 | DQ109: 0 | DR109: 0 | DS109: 0 | DT109: 0 | DU109: 0 | DV109: 0 | DW109: 0 | DX109: 0 | DY109: 0 | DZ109: 0 | EA109: 0 | EB109: 0 | EC109: 0 | ED109: 0 | EE109: 0 | EF109: 0 | EG109: 0 | EH109: =EH104+EH105-EH106-EH108-EH107 -> 0 | EI109: 0 | EJ109: 0 | EK109: 0 | EL109: 0 | EM109: 0 | EN109: 0 | EO109: 0 | EP109: 0 | EQ109: 0 | ER109: 0 | ES109: 0 | ET109: 0 | EU109: 0 | EV109: 0 | EW109: 0 | EX109: 0 | EY109: 0 | EZ109: 0 | FA109: 0 | FB109: 0 | FC109: 0 | FD109: 0 | FE109: 0 | FF109: 0 | FG109: 0 | FH109: 0 | FI109: 0 | FJ109: 0 | FK109: 0 | FL109: 0 | FM109: 0 | FN109: =FN104+FN105-FN106-FN108-FN107 -> 0 | FO109: 0 | FP109: 0 | FQ109: 0 | FR109: 0 | FS109: 0 | FT109: 0 | FU109: 0 | FV109: 0 | FW109: 0 | FX109: 0 | FY109: 0 | FZ109: 0 | GA109: 0 | GB109: 0 | GC109: 0 | GD109: 0 | GE109: 0 | GF109: 0 | GG109: 0 | GH109: 0 | GI109: 0 | GJ109: 0 | GK109: 0 | GL109: 0 | GM109: 0 | GN109: 0 | GO109: 0 | GP109: 0 | GQ109: 0 | GR109: 0 | GS109: 0 | GT109: =GT104+GT105-GT106-GT108-GT107 -> 0 | GU109: 0 | GV109: 0 | GW109: 0 | GX109: 0 | GY109: 0 | GZ109: 0 | HA109: 0
D111: Debt Balance Test | G111: =H81 -> 2040-01-01 | H111: =ROUND(SUMIF(5:5,G111,109:109),2)=0 -> TRUE
D113: Annual Interest Rate - No Default | G113: =Assumptions!E73 -> 0.025 | J113: =LOOKUP(J5,Assumptions!74:74,Assumptions!75:75)+$G$113 -> 0.045 | K113: =LOOKUP(K5,Assumptions!74:74,Assumptions!75:75)+$G$113 -> 0.045 | L113: =LOOKUP(L5,Assumptions!74:74,Assumptions!75:75)+$G$113 -> 0.045 | M113: =LOOKUP(M5,Assumptions!74:74,Assumptions!75:75)+$G$113 -> 0.045 | N113: =LOOKUP(N5,Assumptions!74:74,Assumptions!75:75)+$G$113 -> 0.045 | O113: =LOOKUP(O5,Assumptions!74:74,Assumptions!75:75)+$G$113 -> 0.045 | P113: =LOOKUP(P5,Assumptions!74:74,Assumptions!75:75)+$G$113 -> 0.045 | Q113: =LOOKUP(Q5,Assumptions!74:74,Assumptions!75:75)+$G$113 -> 0.045 | R113: =LOOKUP(R5,Assumptions!74:74,Assumptions!75:75)+$G$113 -> 0.045 | S113: =LOOKUP(S5,Assumptions!74:74,Assumptions!75:75)+$G$113 -> 0.045 | T113: =LOOKUP(T5,Assumptions!74:74,Assumptions!75:75)+$G$113 -> 0.045 | U113: =LOOKUP(U5,Assumptions!74:74,Assumptions!75:75)+$G$113 -> 0.045 | V113: =LOOKUP(V5,Assumptions!74:74,Assumptions!75:75)+$G$113 -> 0.045 | W113: =LOOKUP(W5,Assumptions!74:74,Assumptions!75:75)+$G$113 -> 0.045 | X113: =LOOKUP(X5,Assumptions!74:74,Assumptions!75:75)+$G$113 -> 0.045 | Y113: =LOOKUP(Y5,Assumptions!74:74,Assumptions!75:75)+$G$113 -> 0.045 | Z113: =LOOKUP(Z5,Assumptions!74:74,Assumptions!75:75)+$G$113 -> 0.045 | AA113: =LOOKUP(AA5,Assumptions!74:74,Assumptions!75:75)+$G$113 -> 0.045 | AB113: =LOOKUP(AB5,Assumptions!74:74,Assumptions!75:75)+$G$113 -> 0.045 | AC113: =LOOKUP(AC5,Assumptions!74:74,Assumptions!75:75)+$G$113 -> 0.045 | AD113: =LOOKUP(AD5,Assumptions!74:74,Assumptions!75:75)+$G$113 -> 0.045 | AE113: =LOOKUP(AE5,Assumptions!74:74,Assumptions!75:75)+$G$113 -> 0.045 | AF113: =LOOKUP(AF5,Assumptions!74:74,Assumptions!75:75)+$G$113 -> 0.045 | AG113: =LOOKUP(AG5,Assumptions!74:74,Assumptions!75:75)+$G$113 -> 0.045 | AH113: =LOOKUP(AH5,Assumptions!74:74,Assumptions!75:75)+$G$113 -> 0.045 | AI113: =LOOKUP(AI5,Assumptions!74:74,Assumptions!75:75)+$G$113 -> 0.045 | AJ113: =LOOKUP(AJ5,Assumptions!74:74,Assumptions!75:75)+$G$113 -> 0.045 | AK113: =LOOKUP(AK5,Assumptions!74:74,Assumptions!75:75)+$G$113 -> 0.045 | AL113: =LOOKUP(AL5,Assumptions!74:74,Assumptions!75:75)+$G$113 -> 0.045 | AM113: =LOOKUP(AM5,Assumptions!74:74,Assumptions!75:75)+$G$113 -> 0.045 | AN113: =LOOKUP(AN5,Assumptions!74:74,Assumptions!75:75)+$G$113 -> 0.045 | AO113: =LOOKUP(AO5,Assumptions!74:74,Assumptions!75:75)+$G$113 -> 0.045 | AP113: =LOOKUP(AP5,Assumptions!74:74,Assumptions!75:75)+$G$113 -> 0.045 | AQ113: =LOOKUP(AQ5,Assumptions!74:74,Assumptions!75:75)+$G$113 -> 0.045 | AR113: =LOOKUP(AR5,Assumptions!74:74,Assumptions!75:75)+$G$113 -> 0.045 | AS113: =LOOKUP(AS5,Assumptions!74:74,Assumptions!75:75)+$G$113 -> 0.045 | AT113: =LOOKUP(AT5,Assumptions!74:74,Assumptions!75:75)+$G$113 -> 0.0475 | AU113: =LOOKUP(AU5,Assumptions!74:74,Assumptions!75:75)+$G$113 -> 0.0475 | AV113: =LOOKUP(AV5,Assumptions!74:74,Assumptions!75:75)+$G$113 -> 0.0475 | AW113: =LOOKUP(AW5,Assumptions!74:74,Assumptions!75:75)+$G$113 -> 0.0475 | AX113: =LOOKUP(AX5,Assumptions!74:74,Assumptions!75:75)+$G$113 -> 0.0475 | AY113: =LOOKUP(AY5,Assumptions!74:74,Assumptions!75:75)+$G$113 -> 0.0475 | AZ113: =LOOKUP(AZ5,Assumptions!74:74,Assumptions!75:75)+$G$113 -> 0.0475 | BA113: =LOOKUP(BA5,Assumptions!74:74,Assumptions!75:75)+$G$113 -> 0.0475 | BB113: =LOOKUP(BB5,Assumptions!74:74,Assumptions!75:75)+$G$113 -> 0.0475 | BC113: =LOOKUP(BC5,Assumptions!74:74,Assumptions!75:75)+$G$113 -> 0.0475 | BD113: =LOOKUP(BD5,Assumptions!74:74,Assumptions!75:75)+$G$113 -> 0.0475 | BE113: =LOOKUP(BE5,Assumptions!74:74,Assumptions!75:75)+$G$113 -> 0.0475 | BF113: =LOOKUP(BF5,Assumptions!74:74,Assumptions!75:75)+$G$113 -> 0.05 | BG113: =LOOKUP(BG5,Assumptions!74:74,Assumptions!75:75)+$G$113 -> 0.05 | BH113: =LOOKUP(BH5,Assumptions!74:74,Assumptions!75:75)+$G$113 -> 0.05 | BI113: =LOOKUP(BI5,Assumptions!74:74,Assumptions!75:75)+$G$113 -> 0.05 | BJ113: =LOOKUP(BJ5,Assumptions!74:74,Assumptions!75:75)+$G$113 -> 0.05 | BK113: =LOOKUP(BK5,Assumptions!74:74,Assumptions!75:75)+$G$113 -> 0.05 | BL113: =LOOKUP(BL5,Assumptions!74:74,Assumptions!75:75)+$G$113 -> 0.05 | BM113: =LOOKUP(BM5,Assumptions!74:74,Assumptions!75:75)+$G$113 -> 0.05 | BN113: =LOOKUP(BN5,Assumptions!74:74,Assumptions!75:75)+$G$113 -> 0.05 | BO113: =LOOKUP(BO5,Assumptions!74:74,Assumptions!75:75)+$G$113 -> 0.05 | BP113: =LOOKUP(BP5,Assumptions!74:74,Assumptions!75:75)+$G$113 -> 0.05 | BQ113: =LOOKUP(BQ5,Assumptions!74:74,Assumptions!75:75)+$G$113 -> 0.05 | BR113: =LOOKUP(BR5,Assumptions!74:74,Assumptions!75:75)+$G$113 -> 0.0525 | BS113: =LOOKUP(BS5,Assumptions!74:74,Assumptions!75:75)+$G$113 -> 0.0525 | BT113: =LOOKUP(BT5,Assumptions!74:74,Assumptions!75:75)+$G$113 -> 0.0525 | BU113: =LOOKUP(BU5,Assumptions!74:74,Assumptions!75:75)+$G$113 -> 0.0525 | BV113: =LOOKUP(BV5,Assumptions!74:74,Assumptions!75:75)+$G$113 -> 0.0525 | BW113: =LOOKUP(BW5,Assumptions!74:74,Assumptions!75:75)+$G$113 -> 0.0525 | BX113: =LOOKUP(BX5,Assumptions!74:74,Assumptions!75:75)+$G$113 -> 0.0525 | BY113: =LOOKUP(BY5,Assumptions!74:74,Assumptions!75:75)+$G$113 -> 0.0525 | BZ113: =LOOKUP(BZ5,Assumptions!74:74,Assumptions!75:75)+$G$113 -> 0.0525 | CA113: =LOOKUP(CA5,Assumptions!74:74,Assumptions!75:75)+$G$113 -> 0.0525 | CB113: =LOOKUP(CB5,Assumptions!74:74,Assumptions!75:75)+$G$113 -> 0.0525 | CC113: =LOOKUP(CC5,Assumptions!74:74,Assumptions!75:75)+$G$113 -> 0.0525 | CD113: =LOOKUP(CD5,Assumptions!74:74,Assumptions!75:75)+$G$113 -> 0.055 | CE113: =LOOKUP(CE5,Assumptions!74:74,Assumptions!75:75)+$G$113 -> 0.055 | CF113: =LOOKUP(CF5,Assumptions!74:74,Assumptions!75:75)+$G$113 -> 0.055 | CG113: =LOOKUP(CG5,Assumptions!74:74,Assumptions!75:75)+$G$113 -> 0.055 | CH113: =LOOKUP(CH5,Assumptions!74:74,Assumptions!75:75)+$G$113 -> 0.055 | CI113: =LOOKUP(CI5,Assumptions!74:74,Assumptions!75:75)+$G$113 -> 0.055 | CJ113: =LOOKUP(CJ5,Assumptions!74:74,Assumptions!75:75)+$G$113 -> 0.055 | CK113: =LOOKUP(CK5,Assumptions!74:74,Assumptions!75:75)+$G$113 -> 0.055 | CL113: =LOOKUP(CL5,Assumptions!74:74,Assumptions!75:75)+$G$113 -> 0.055 | CM113: =LOOKUP(CM5,Assumptions!74:74,Assumptions!75:75)+$G$113 -> 0.055 | CN113: =LOOKUP(CN5,Assumptions!74:74,Assumptions!75:75)+$G$113 -> 0.055 | CO113: =LOOKUP(CO5,Assumptions!74:74,Assumptions!75:75)+$G$113 -> 0.055 | CP113: =LOOKUP(CP5,Assumptions!74:74,Assumptions!75:75)+$G$113 -> 0.0575 | CQ113: =LOOKUP(CQ5,Assumptions!74:74,Assumptions!75:75)+$G$113 -> 0.0575 | CR113: =LOOKUP(CR5,Assumptions!74:74,Assumptions!75:75)+$G$113 -> 0.0575 | CS113: =LOOKUP(CS5,Assumptions!74:74,Assumptions!75:75)+$G$113 -> 0.0575 | CT113: =LOOKUP(CT5,Assumptions!74:74,Assumptions!75:75)+$G$113 -> 0.0575 | CU113: =LOOKUP(CU5,Assumptions!74:74,Assumptions!75:75)+$G$113 -> 0.0575 | CV113: =LOOKUP(CV5,Assumptions!74:74,Assumptions!75:75)+$G$113 -> 0.0575 | CW113: =LOOKUP(CW5,Assumptions!74:74,Assumptions!75:75)+$G$113 -> 0.0575 | CX113: =LOOKUP(CX5,Assumptions!74:74,Assumptions!75:75)+$G$113 -> 0.0575 | CY113: =LOOKUP(CY5,Assumptions!74:74,Assumptions!75:75)+$G$113 -> 0.0575 | CZ113: =LOOKUP(CZ5,Assumptions!74:74,Assumptions!75:75)+$G$113 -> 0.0575 | DA113: =LOOKUP(DA5,Assumptions!74:74,Assumptions!75:75)+$G$113 -> 0.0575 | DB113: =LOOKUP(DB5,Assumptions!74:74,Assumptions!75:75)+$G$113 -> 0.0575 | DC113: =LOOKUP(DC5,Assumptions!74:74,Assumptions!75:75)+$G$113 -> 0.0575 | DD113: =LOOKUP(DD5,Assumptions!74:74,Assumptions!75:75)+$G$113 -> 0.0575 | DE113: =LOOKUP(DE5,Assumptions!74:74,Assumptions!75:75)+$G$113 -> 0.0575 | DF113: =LOOKUP(DF5,Assumptions!74:74,Assumptions!75:75)+$G$113 -> 0.0575 | DG113: =LOOKUP(DG5,Assumptions!74:74,Assumptions!75:75)+$G$113 -> 0.0575 | DH113: =LOOKUP(DH5,Assumptions!74:74,Assumptions!75:75)+$G$113 -> 0.0575 | DI113: =LOOKUP(DI5,Assumptions!74:74,Assumptions!75:75)+$G$113 -> 0.0575 | DJ113: =LOOKUP(DJ5,Assumptions!74:74,Assumptions!75:75)+$G$113 -> 0.0575 | DK113: =LOOKUP(DK5,Assumptions!74:74,Assumptions!75:75)+$G$113 -> 0.0575 | DL113: =LOOKUP(DL5,Assumptions!74:74,Assumptions!75:75)+$G$113 -> 0.0575 | DM113: =LOOKUP(DM5,Assumptions!74:74,Assumptions!75:75)+$G$113 -> 0.0575 | DN113: =LOOKUP(DN5,Assumptions!74:74,Assumptions!75:75)+$G$113 -> 0.0575 | DO113: =LOOKUP(DO5,Assumptions!74:74,Assumptions!75:75)+$G$113 -> 0.0575 | DP113: =LOOKUP(DP5,Assumptions!74:74,Assumptions!75:75)+$G$113 -> 0.0575 | DQ113: =LOOKUP(DQ5,Assumptions!74:74,Assumptions!75:75)+$G$113 -> 0.0575 | DR113: =LOOKUP(DR5,Assumptions!74:74,Assumptions!75:75)+$G$113 -> 0.0575 | DS113: =LOOKUP(DS5,Assumptions!74:74,Assumptions!75:75)+$G$113 -> 0.0575 | DT113: =LOOKUP(DT5,Assumptions!74:74,Assumptions!75:75)+$G$113 -> 0.0575 | DU113: =LOOKUP(DU5,Assumptions!74:74,Assumptions!75:75)+$G$113 -> 0.0575 | DV113: =LOOKUP(DV5,Assumptions!74:74,Assumptions!75:75)+$G$113 -> 0.0575 | DW113: =LOOKUP(DW5,Assumptions!74:74,Assumptions!75:75)+$G$113 -> 0.0575 | DX113: =LOOKUP(DX5,Assumptions!74:74,Assumptions!75:75)+$G$113 -> 0.0575 | DY113: =LOOKUP(DY5,Assumptions!74:74,Assumptions!75:75)+$G$113 -> 0.0575 | DZ113: =LOOKUP(DZ5,Assumptions!74:74,Assumptions!75:75)+$G$113 -> 0.0575 | EA113: =LOOKUP(EA5,Assumptions!74:74,Assumptions!75:75)+$G$113 -> 0.0575 | EB113: =LOOKUP(EB5,Assumptions!74:74,Assumptions!75:75)+$G$113 -> 0.0575 | EC113: =LOOKUP(EC5,Assumptions!74:74,Assumptions!75:75)+$G$113 -> 0.0575 | ED113: =LOOKUP(ED5,Assumptions!74:74,Assumptions!75:75)+$G$113 -> 0.0575 | EE113: =LOOKUP(EE5,Assumptions!74:74,Assumptions!75:75)+$G$113 -> 0.0575 | EF113: =LOOKUP(EF5,Assumptions!74:74,Assumptions!75:75)+$G$113 -> 0.0575 | EG113: =LOOKUP(EG5,Assumptions!74:74,Assumptions!75:75)+$G$113 -> 0.0575 | EH113: =LOOKUP(EH5,Assumptions!74:74,Assumptions!75:75)+$G$113 -> 0.0575 | EI113: =LOOKUP(EI5,Assumptions!74:74,Assumptions!75:75)+$G$113 -> 0.0575 | EJ113: =LOOKUP(EJ5,Assumptions!74:74,Assumptions!75:75)+$G$113 -> 0.0575 | EK113: =LOOKUP(EK5,Assumptions!74:74,Assumptions!75:75)+$G$113 -> 0.0575 | EL113: =LOOKUP(EL5,Assumptions!74:74,Assumptions!75:75)+$G$113 -> 0.0575 | EM113: =LOOKUP(EM5,Assumptions!74:74,Assumptions!75:75)+$G$113 -> 0.0575 | EN113: =LOOKUP(EN5,Assumptions!74:74,Assumptions!75:75)+$G$113 -> 0.0575 | EO113: =LOOKUP(EO5,Assumptions!74:74,Assumptions!75:75)+$G$113 -> 0.0575 | EP113: =LOOKUP(EP5,Assumptions!74:74,Assumptions!75:75)+$G$113 -> 0.0575 | EQ113: =LOOKUP(EQ5,Assumptions!74:74,Assumptions!75:75)+$G$113 -> 0.0575 | ER113: =LOOKUP(ER5,Assumptions!74:74,Assumptions!75:75)+$G$113 -> 0.0575 | ES113: =LOOKUP(ES5,Assumptions!74:74,Assumptions!75:75)+$G$113 -> 0.0575 | ET113: =LOOKUP(ET5,Assumptions!74:74,Assumptions!75:75)+$G$113 -> 0.0575 | EU113: =LOOKUP(EU5,Assumptions!74:74,Assumptions!75:75)+$G$113 -> 0.0575 | EV113: =LOOKUP(EV5,Assumptions!74:74,Assumptions!75:75)+$G$113 -> 0.0575 | EW113: =LOOKUP(EW5,Assumptions!74:74,Assumptions!75:75)+$G$113 -> 0.0575 | EX113: =LOOKUP(EX5,Assumptions!74:74,Assumptions!75:75)+$G$113 -> 0.0575 | EY113: =LOOKUP(EY5,Assumptions!74:74,Assumptions!75:75)+$G$113 -> 0.0575 | EZ113: =LOOKUP(EZ5,Assumptions!74:74,Assumptions!75:75)+$G$113 -> 0.0575 | FA113: =LOOKUP(FA5,Assumptions!74:74,Assumptions!75:75)+$G$113 -> 0.0575 | FB113: =LOOKUP(FB5,Assumptions!74:74,Assumptions!75:75)+$G$113 -> 0.0575 | FC113: =LOOKUP(FC5,Assumptions!74:74,Assumptions!75:75)+$G$113 -> 0.0575 | FD113: =LOOKUP(FD5,Assumptions!74:74,Assumptions!75:75)+$G$113 -> 0.0575 | FE113: =LOOKUP(FE5,Assumptions!74:74,Assumptions!75:75)+$G$113 -> 0.0575 | FF113: =LOOKUP(FF5,Assumptions!74:74,Assumptions!75:75)+$G$113 -> 0.0575 | FG113: =LOOKUP(FG5,Assumptions!74:74,Assumptions!75:75)+$G$113 -> 0.0575 | FH113: =LOOKUP(FH5,Assumptions!74:74,Assumptions!75:75)+$G$113 -> 0.0575 | FI113: =LOOKUP(FI5,Assumptions!74:74,Assumptions!75:75)+$G$113 -> 0.0575 | FJ113: =LOOKUP(FJ5,Assumptions!74:74,Assumptions!75:75)+$G$113 -> 0.0575 | FK113: =LOOKUP(FK5,Assumptions!74:74,Assumptions!75:75)+$G$113 -> 0.0575 | FL113: =LOOKUP(FL5,Assumptions!74:74,Assumptions!75:75)+$G$113 -> 0.0575 | FM113: =LOOKUP(FM5,Assumptions!74:74,Assumptions!75:75)+$G$113 -> 0.0575 | FN113: =LOOKUP(FN5,Assumptions!74:74,Assumptions!75:75)+$G$113 -> 0.0575 | FO113: =LOOKUP(FO5,Assumptions!74:74,Assumptions!75:75)+$G$113 -> 0.0575 | FP113: =LOOKUP(FP5,Assumptions!74:74,Assumptions!75:75)+$G$113 -> 0.0575 | FQ113: =LOOKUP(FQ5,Assumptions!74:74,Assumptions!75:75)+$G$113 -> 0.0575 | FR113: =LOOKUP(FR5,Assumptions!74:74,Assumptions!75:75)+$G$113 -> 0.0575 | FS113: =LOOKUP(FS5,Assumptions!74:74,Assumptions!75:75)+$G$113 -> 0.0575 | FT113: =LOOKUP(FT5,Assumptions!74:74,Assumptions!75:75)+$G$113 -> 0.0575 | FU113: =LOOKUP(FU5,Assumptions!74:74,Assumptions!75:75)+$G$113 -> 0.0575 | FV113: =LOOKUP(FV5,Assumptions!74:74,Assumptions!75:75)+$G$113 -> 0.0575 | FW113: =LOOKUP(FW5,Assumptions!74:74,Assumptions!75:75)+$G$113 -> 0.0575 | FX113: =LOOKUP(FX5,Assumptions!74:74,Assumptions!75:75)+$G$113 -> 0.0575 | FY113: =LOOKUP(FY5,Assumptions!74:74,Assumptions!75:75)+$G$113 -> 0.0575 | FZ113: =LOOKUP(FZ5,Assumptions!74:74,Assumptions!75:75)+$G$113 -> 0.0575 | GA113: =LOOKUP(GA5,Assumptions!74:74,Assumptions!75:75)+$G$113 -> 0.0575 | GB113: =LOOKUP(GB5,Assumptions!74:74,Assumptions!75:75)+$G$113 -> 0.0575 | GC113: =LOOKUP(GC5,Assumptions!74:74,Assumptions!75:75)+$G$113 -> 0.0575 | GD113: =LOOKUP(GD5,Assumptions!74:74,Assumptions!75:75)+$G$113 -> 0.0575 | GE113: =LOOKUP(GE5,Assumptions!74:74,Assumptions!75:75)+$G$113 -> 0.0575 | GF113: =LOOKUP(GF5,Assumptions!74:74,Assumptions!75:75)+$G$113 -> 0.0575 | GG113: =LOOKUP(GG5,Assumptions!74:74,Assumptions!75:75)+$G$113 -> 0.0575 | GH113: =LOOKUP(GH5,Assumptions!74:74,Assumptions!75:75)+$G$113 -> 0.0575 | GI113: =LOOKUP(GI5,Assumptions!74:74,Assumptions!75:75)+$G$113 -> 0.0575 | GJ113: =LOOKUP(GJ5,Assumptions!74:74,Assumptions!75:75)+$G$113 -> 0.0575 | GK113: =LOOKUP(GK5,Assumptions!74:74,Assumptions!75:75)+$G$113 -> 0.0575 | GL113: =LOOKUP(GL5,Assumptions!74:74,Assumptions!75:75)+$G$113 -> 0.0575 | GM113: =LOOKUP(GM5,Assumptions!74:74,Assumptions!75:75)+$G$113 -> 0.0575 | GN113: =LOOKUP(GN5,Assumptions!74:74,Assumptions!75:75)+$G$113 -> 0.0575 | GO113: =LOOKUP(GO5,Assumptions!74:74,Assumptions!75:75)+$G$113 -> 0.0575 | GP113: =LOOKUP(GP5,Assumptions!74:74,Assumptions!75:75)+$G$113 -> 0.0575 | GQ113: =LOOKUP(GQ5,Assumptions!74:74,Assumptions!75:75)+$G$113 -> 0.0575 | GR113: =LOOKUP(GR5,Assumptions!74:74,Assumptions!75:75)+$G$113 -> 0.0575 | GS113: =LOOKUP(GS5,Assumptions!74:74,Assumptions!75:75)+$G$113 -> 0.0575 | GT113: =LOOKUP(GT5,Assumptions!74:74,Assumptions!75:75)+$G$113 -> 0.0575 | GU113: =LOOKUP(GU5,Assumptions!74:74,Assumptions!75:75)+$G$113 -> 0.0575 | GV113: =LOOKUP(GV5,Assumptions!74:74,Assumptions!75:75)+$G$113 -> 0.0575 | GW113: =LOOKUP(GW5,Assumptions!74:74,Assumptions!75:75)+$G$113 -> 0.0575 | GX113: =LOOKUP(GX5,Assumptions!74:74,Assumptions!75:75)+$G$113 -> 0.0575 | GY113: =LOOKUP(GY5,Assumptions!74:74,Assumptions!75:75)+$G$113 -> 0.0575 | GZ113: =LOOKUP(GZ5,Assumptions!74:74,Assumptions!75:75)+$G$113 -> 0.0575 | HA113: =LOOKUP(HA5,Assumptions!74:74,Assumptions!75:75)+$G$113 -> 0.0575
D114: Annual Interest Rate - Default | G114: =G113 -> 0.025 | J114: =LOOKUP(J5,Assumptions!74:74,Assumptions!76:76)+$G$114 -> 0.055 | K114: =LOOKUP(K5,Assumptions!74:74,Assumptions!76:76)+$G$114 -> 0.055 | L114: =LOOKUP(L5,Assumptions!74:74,Assumptions!76:76)+$G$114 -> 0.055 | M114: =LOOKUP(M5,Assumptions!74:74,Assumptions!76:76)+$G$114 -> 0.055 | N114: =LOOKUP(N5,Assumptions!74:74,Assumptions!76:76)+$G$114 -> 0.055 | O114: =LOOKUP(O5,Assumptions!74:74,Assumptions!76:76)+$G$114 -> 0.055 | P114: =LOOKUP(P5,Assumptions!74:74,Assumptions!76:76)+$G$114 -> 0.055 | Q114: =LOOKUP(Q5,Assumptions!74:74,Assumptions!76:76)+$G$114 -> 0.055 | R114: =LOOKUP(R5,Assumptions!74:74,Assumptions!76:76)+$G$114 -> 0.055 | S114: =LOOKUP(S5,Assumptions!74:74,Assumptions!76:76)+$G$114 -> 0.055 | T114: =LOOKUP(T5,Assumptions!74:74,Assumptions!76:76)+$G$114 -> 0.055 | U114: =LOOKUP(U5,Assumptions!74:74,Assumptions!76:76)+$G$114 -> 0.055 | V114: =LOOKUP(V5,Assumptions!74:74,Assumptions!76:76)+$G$114 -> 0.055 | W114: =LOOKUP(W5,Assumptions!74:74,Assumptions!76:76)+$G$114 -> 0.055 | X114: =LOOKUP(X5,Assumptions!74:74,Assumptions!76:76)+$G$114 -> 0.055 | Y114: =LOOKUP(Y5,Assumptions!74:74,Assumptions!76:76)+$G$114 -> 0.055 | Z114: =LOOKUP(Z5,Assumptions!74:74,Assumptions!76:76)+$G$114 -> 0.055 | AA114: =LOOKUP(AA5,Assumptions!74:74,Assumptions!76:76)+$G$114 -> 0.055 | AB114: =LOOKUP(AB5,Assumptions!74:74,Assumptions!76:76)+$G$114 -> 0.055 | AC114: =LOOKUP(AC5,Assumptions!74:74,Assumptions!76:76)+$G$114 -> 0.055 | AD114: =LOOKUP(AD5,Assumptions!74:74,Assumptions!76:76)+$G$114 -> 0.055 | AE114: =LOOKUP(AE5,Assumptions!74:74,Assumptions!76:76)+$G$114 -> 0.055 | AF114: =LOOKUP(AF5,Assumptions!74:74,Assumptions!76:76)+$G$114 -> 0.055 | AG114: =LOOKUP(AG5,Assumptions!74:74,Assumptions!76:76)+$G$114 -> 0.055 | AH114: =LOOKUP(AH5,Assumptions!74:74,Assumptions!76:76)+$G$114 -> 0.055 | AI114: =LOOKUP(AI5,Assumptions!74:74,Assumptions!76:76)+$G$114 -> 0.055 | AJ114: =LOOKUP(AJ5,Assumptions!74:74,Assumptions!76:76)+$G$114 -> 0.055 | AK114: =LOOKUP(AK5,Assumptions!74:74,Assumptions!76:76)+$G$114 -> 0.055 | AL114: =LOOKUP(AL5,Assumptions!74:74,Assumptions!76:76)+$G$114 -> 0.055 | AM114: =LOOKUP(AM5,Assumptions!74:74,Assumptions!76:76)+$G$114 -> 0.055 | AN114: =LOOKUP(AN5,Assumptions!74:74,Assumptions!76:76)+$G$114 -> 0.055 | AO114: =LOOKUP(AO5,Assumptions!74:74,Assumptions!76:76)+$G$114 -> 0.055 | AP114: =LOOKUP(AP5,Assumptions!74:74,Assumptions!76:76)+$G$114 -> 0.055 | AQ114: =LOOKUP(AQ5,Assumptions!74:74,Assumptions!76:76)+$G$114 -> 0.055 | AR114: =LOOKUP(AR5,Assumptions!74:74,Assumptions!76:76)+$G$114 -> 0.055 | AS114: =LOOKUP(AS5,Assumptions!74:74,Assumptions!76:76)+$G$114 -> 0.055 | AT114: =LOOKUP(AT5,Assumptions!74:74,Assumptions!76:76)+$G$114 -> 0.0575 | AU114: =LOOKUP(AU5,Assumptions!74:74,Assumptions!76:76)+$G$114 -> 0.0575 | AV114: =LOOKUP(AV5,Assumptions!74:74,Assumptions!76:76)+$G$114 -> 0.0575 | AW114: =LOOKUP(AW5,Assumptions!74:74,Assumptions!76:76)+$G$114 -> 0.0575 | AX114: =LOOKUP(AX5,Assumptions!74:74,Assumptions!76:76)+$G$114 -> 0.0575 | AY114: =LOOKUP(AY5,Assumptions!74:74,Assumptions!76:76)+$G$114 -> 0.0575 | AZ114: =LOOKUP(AZ5,Assumptions!74:74,Assumptions!76:76)+$G$114 -> 0.0575 | BA114: =LOOKUP(BA5,Assumptions!74:74,Assumptions!76:76)+$G$114 -> 0.0575 | BB114: =LOOKUP(BB5,Assumptions!74:74,Assumptions!76:76)+$G$114 -> 0.0575 | BC114: =LOOKUP(BC5,Assumptions!74:74,Assumptions!76:76)+$G$114 -> 0.0575 | BD114: =LOOKUP(BD5,Assumptions!74:74,Assumptions!76:76)+$G$114 -> 0.0575 | BE114: =LOOKUP(BE5,Assumptions!74:74,Assumptions!76:76)+$G$114 -> 0.0575 | BF114: =LOOKUP(BF5,Assumptions!74:74,Assumptions!76:76)+$G$114 -> 0.06 | BG114: =LOOKUP(BG5,Assumptions!74:74,Assumptions!76:76)+$G$114 -> 0.06 | BH114: =LOOKUP(BH5,Assumptions!74:74,Assumptions!76:76)+$G$114 -> 0.06 | BI114: =LOOKUP(BI5,Assumptions!74:74,Assumptions!76:76)+$G$114 -> 0.06 | BJ114: =LOOKUP(BJ5,Assumptions!74:74,Assumptions!76:76)+$G$114 -> 0.06 | BK114: =LOOKUP(BK5,Assumptions!74:74,Assumptions!76:76)+$G$114 -> 0.06 | BL114: =LOOKUP(BL5,Assumptions!74:74,Assumptions!76:76)+$G$114 -> 0.06 | BM114: =LOOKUP(BM5,Assumptions!74:74,Assumptions!76:76)+$G$114 -> 0.06 | BN114: =LOOKUP(BN5,Assumptions!74:74,Assumptions!76:76)+$G$114 -> 0.06 | BO114: =LOOKUP(BO5,Assumptions!74:74,Assumptions!76:76)+$G$114 -> 0.06 | BP114: =LOOKUP(BP5,Assumptions!74:74,Assumptions!76:76)+$G$114 -> 0.06 | BQ114: =LOOKUP(BQ5,Assumptions!74:74,Assumptions!76:76)+$G$114 -> 0.06 | BR114: =LOOKUP(BR5,Assumptions!74:74,Assumptions!76:76)+$G$114 -> 0.0625 | BS114: =LOOKUP(BS5,Assumptions!74:74,Assumptions!76:76)+$G$114 -> 0.0625 | BT114: =LOOKUP(BT5,Assumptions!74:74,Assumptions!76:76)+$G$114 -> 0.0625 | BU114: =LOOKUP(BU5,Assumptions!74:74,Assumptions!76:76)+$G$114 -> 0.0625 | BV114: =LOOKUP(BV5,Assumptions!74:74,Assumptions!76:76)+$G$114 -> 0.0625 | BW114: =LOOKUP(BW5,Assumptions!74:74,Assumptions!76:76)+$G$114 -> 0.0625 | BX114: =LOOKUP(BX5,Assumptions!74:74,Assumptions!76:76)+$G$114 -> 0.0625 | BY114: =LOOKUP(BY5,Assumptions!74:74,Assumptions!76:76)+$G$114 -> 0.0625 | BZ114: =LOOKUP(BZ5,Assumptions!74:74,Assumptions!76:76)+$G$114 -> 0.0625 | CA114: =LOOKUP(CA5,Assumptions!74:74,Assumptions!76:76)+$G$114 -> 0.0625 | CB114: =LOOKUP(CB5,Assumptions!74:74,Assumptions!76:76)+$G$114 -> 0.0625 | CC114: =LOOKUP(CC5,Assumptions!74:74,Assumptions!76:76)+$G$114 -> 0.0625 | CD114: =LOOKUP(CD5,Assumptions!74:74,Assumptions!76:76)+$G$114 -> 0.065 | CE114: =LOOKUP(CE5,Assumptions!74:74,Assumptions!76:76)+$G$114 -> 0.065 | CF114: =LOOKUP(CF5,Assumptions!74:74,Assumptions!76:76)+$G$114 -> 0.065 | CG114: =LOOKUP(CG5,Assumptions!74:74,Assumptions!76:76)+$G$114 -> 0.065 | CH114: =LOOKUP(CH5,Assumptions!74:74,Assumptions!76:76)+$G$114 -> 0.065 | CI114: =LOOKUP(CI5,Assumptions!74:74,Assumptions!76:76)+$G$114 -> 0.065 | CJ114: =LOOKUP(CJ5,Assumptions!74:74,Assumptions!76:76)+$G$114 -> 0.065 | CK114: =LOOKUP(CK5,Assumptions!74:74,Assumptions!76:76)+$G$114 -> 0.065 | CL114: =LOOKUP(CL5,Assumptions!74:74,Assumptions!76:76)+$G$114 -> 0.065 | CM114: =LOOKUP(CM5,Assumptions!74:74,Assumptions!76:76)+$G$114 -> 0.065 | CN114: =LOOKUP(CN5,Assumptions!74:74,Assumptions!76:76)+$G$114 -> 0.065 | CO114: =LOOKUP(CO5,Assumptions!74:74,Assumptions!76:76)+$G$114 -> 0.065 | CP114: =LOOKUP(CP5,Assumptions!74:74,Assumptions!76:76)+$G$114 -> 0.0675 | CQ114: =LOOKUP(CQ5,Assumptions!74:74,Assumptions!76:76)+$G$114 -> 0.0675 | CR114: =LOOKUP(CR5,Assumptions!74:74,Assumptions!76:76)+$G$114 -> 0.0675 | CS114: =LOOKUP(CS5,Assumptions!74:74,Assumptions!76:76)+$G$114 -> 0.0675 | CT114: =LOOKUP(CT5,Assumptions!74:74,Assumptions!76:76)+$G$114 -> 0.0675 | CU114: =LOOKUP(CU5,Assumptions!74:74,Assumptions!76:76)+$G$114 -> 0.0675 | CV114: =LOOKUP(CV5,Assumptions!74:74,Assumptions!76:76)+$G$114 -> 0.0675 | CW114: =LOOKUP(CW5,Assumptions!74:74,Assumptions!76:76)+$G$114 -> 0.0675 | CX114: =LOOKUP(CX5,Assumptions!74:74,Assumptions!76:76)+$G$114 -> 0.0675 | CY114: =LOOKUP(CY5,Assumptions!74:74,Assumptions!76:76)+$G$114 -> 0.0675 | CZ114: =LOOKUP(CZ5,Assumptions!74:74,Assumptions!76:76)+$G$114 -> 0.0675 | DA114: =LOOKUP(DA5,Assumptions!74:74,Assumptions!76:76)+$G$114 -> 0.0675 | DB114: =LOOKUP(DB5,Assumptions!74:74,Assumptions!76:76)+$G$114 -> 0.0675 | DC114: =LOOKUP(DC5,Assumptions!74:74,Assumptions!76:76)+$G$114 -> 0.0675 | DD114: =LOOKUP(DD5,Assumptions!74:74,Assumptions!76:76)+$G$114 -> 0.0675 | DE114: =LOOKUP(DE5,Assumptions!74:74,Assumptions!76:76)+$G$114 -> 0.0675 | DF114: =LOOKUP(DF5,Assumptions!74:74,Assumptions!76:76)+$G$114 -> 0.0675 | DG114: =LOOKUP(DG5,Assumptions!74:74,Assumptions!76:76)+$G$114 -> 0.0675 | DH114: =LOOKUP(DH5,Assumptions!74:74,Assumptions!76:76)+$G$114 -> 0.0675 | DI114: =LOOKUP(DI5,Assumptions!74:74,Assumptions!76:76)+$G$114 -> 0.0675 | DJ114: =LOOKUP(DJ5,Assumptions!74:74,Assumptions!76:76)+$G$114 -> 0.0675 | DK114: =LOOKUP(DK5,Assumptions!74:74,Assumptions!76:76)+$G$114 -> 0.0675 | DL114: =LOOKUP(DL5,Assumptions!74:74,Assumptions!76:76)+$G$114 -> 0.0675 | DM114: =LOOKUP(DM5,Assumptions!74:74,Assumptions!76:76)+$G$114 -> 0.0675 | DN114: =LOOKUP(DN5,Assumptions!74:74,Assumptions!76:76)+$G$114 -> 0.0675 | DO114: =LOOKUP(DO5,Assumptions!74:74,Assumptions!76:76)+$G$114 -> 0.0675 | DP114: =LOOKUP(DP5,Assumptions!74:74,Assumptions!76:76)+$G$114 -> 0.0675 | DQ114: =LOOKUP(DQ5,Assumptions!74:74,Assumptions!76:76)+$G$114 -> 0.0675 | DR114: =LOOKUP(DR5,Assumptions!74:74,Assumptions!76:76)+$G$114 -> 0.0675 | DS114: =LOOKUP(DS5,Assumptions!74:74,Assumptions!76:76)+$G$114 -> 0.0675 | DT114: =LOOKUP(DT5,Assumptions!74:74,Assumptions!76:76)+$G$114 -> 0.0675 | DU114: =LOOKUP(DU5,Assumptions!74:74,Assumptions!76:76)+$G$114 -> 0.0675 | DV114: =LOOKUP(DV5,Assumptions!74:74,Assumptions!76:76)+$G$114 -> 0.0675 | DW114: =LOOKUP(DW5,Assumptions!74:74,Assumptions!76:76)+$G$114 -> 0.0675 | DX114: =LOOKUP(DX5,Assumptions!74:74,Assumptions!76:76)+$G$114 -> 0.0675 | DY114: =LOOKUP(DY5,Assumptions!74:74,Assumptions!76:76)+$G$114 -> 0.0675 | DZ114: =LOOKUP(DZ5,Assumptions!74:74,Assumptions!76:76)+$G$114 -> 0.0675 | EA114: =LOOKUP(EA5,Assumptions!74:74,Assumptions!76:76)+$G$114 -> 0.0675 | EB114: =LOOKUP(EB5,Assumptions!74:74,Assumptions!76:76)+$G$114 -> 0.0675 | EC114: =LOOKUP(EC5,Assumptions!74:74,Assumptions!76:76)+$G$114 -> 0.0675 | ED114: =LOOKUP(ED5,Assumptions!74:74,Assumptions!76:76)+$G$114 -> 0.0675 | EE114: =LOOKUP(EE5,Assumptions!74:74,Assumptions!76:76)+$G$114 -> 0.0675 | EF114: =LOOKUP(EF5,Assumptions!74:74,Assumptions!76:76)+$G$114 -> 0.0675 | EG114: =LOOKUP(EG5,Assumptions!74:74,Assumptions!76:76)+$G$114 -> 0.0675 | EH114: =LOOKUP(EH5,Assumptions!74:74,Assumptions!76:76)+$G$114 -> 0.0675 | EI114: =LOOKUP(EI5,Assumptions!74:74,Assumptions!76:76)+$G$114 -> 0.0675 | EJ114: =LOOKUP(EJ5,Assumptions!74:74,Assumptions!76:76)+$G$114 -> 0.0675 | EK114: =LOOKUP(EK5,Assumptions!74:74,Assumptions!76:76)+$G$114 -> 0.0675 | EL114: =LOOKUP(EL5,Assumptions!74:74,Assumptions!76:76)+$G$114 -> 0.0675 | EM114: =LOOKUP(EM5,Assumptions!74:74,Assumptions!76:76)+$G$114 -> 0.0675 | EN114: =LOOKUP(EN5,Assumptions!74:74,Assumptions!76:76)+$G$114 -> 0.0675 | EO114: =LOOKUP(EO5,Assumptions!74:74,Assumptions!76:76)+$G$114 -> 0.0675 | EP114: =LOOKUP(EP5,Assumptions!74:74,Assumptions!76:76)+$G$114 -> 0.0675 | EQ114: =LOOKUP(EQ5,Assumptions!74:74,Assumptions!76:76)+$G$114 -> 0.0675 | ER114: =LOOKUP(ER5,Assumptions!74:74,Assumptions!76:76)+$G$114 -> 0.0675 | ES114: =LOOKUP(ES5,Assumptions!74:74,Assumptions!76:76)+$G$114 -> 0.0675 | ET114: =LOOKUP(ET5,Assumptions!74:74,Assumptions!76:76)+$G$114 -> 0.0675 | EU114: =LOOKUP(EU5,Assumptions!74:74,Assumptions!76:76)+$G$114 -> 0.0675 | EV114: =LOOKUP(EV5,Assumptions!74:74,Assumptions!76:76)+$G$114 -> 0.0675 | EW114: =LOOKUP(EW5,Assumptions!74:74,Assumptions!76:76)+$G$114 -> 0.0675 | EX114: =LOOKUP(EX5,Assumptions!74:74,Assumptions!76:76)+$G$114 -> 0.0675 | EY114: =LOOKUP(EY5,Assumptions!74:74,Assumptions!76:76)+$G$114 -> 0.0675 | EZ114: =LOOKUP(EZ5,Assumptions!74:74,Assumptions!76:76)+$G$114 -> 0.0675 | FA114: =LOOKUP(FA5,Assumptions!74:74,Assumptions!76:76)+$G$114 -> 0.0675 | FB114: =LOOKUP(FB5,Assumptions!74:74,Assumptions!76:76)+$G$114 -> 0.0675 | FC114: =LOOKUP(FC5,Assumptions!74:74,Assumptions!76:76)+$G$114 -> 0.0675 | FD114: =LOOKUP(FD5,Assumptions!74:74,Assumptions!76:76)+$G$114 -> 0.0675 | FE114: =LOOKUP(FE5,Assumptions!74:74,Assumptions!76:76)+$G$114 -> 0.0675 | FF114: =LOOKUP(FF5,Assumptions!74:74,Assumptions!76:76)+$G$114 -> 0.0675 | FG114: =LOOKUP(FG5,Assumptions!74:74,Assumptions!76:76)+$G$114 -> 0.0675 | FH114: =LOOKUP(FH5,Assumptions!74:74,Assumptions!76:76)+$G$114 -> 0.0675 | FI114: =LOOKUP(FI5,Assumptions!74:74,Assumptions!76:76)+$G$114 -> 0.0675 | FJ114: =LOOKUP(FJ5,Assumptions!74:74,Assumptions!76:76)+$G$114 -> 0.0675 | FK114: =LOOKUP(FK5,Assumptions!74:74,Assumptions!76:76)+$G$114 -> 0.0675 | FL114: =LOOKUP(FL5,Assumptions!74:74,Assumptions!76:76)+$G$114 -> 0.0675 | FM114: =LOOKUP(FM5,Assumptions!74:74,Assumptions!76:76)+$G$114 -> 0.0675 | FN114: =LOOKUP(FN5,Assumptions!74:74,Assumptions!76:76)+$G$114 -> 0.0675 | FO114: =LOOKUP(FO5,Assumptions!74:74,Assumptions!76:76)+$G$114 -> 0.0675 | FP114: =LOOKUP(FP5,Assumptions!74:74,Assumptions!76:76)+$G$114 -> 0.0675 | FQ114: =LOOKUP(FQ5,Assumptions!74:74,Assumptions!76:76)+$G$114 -> 0.0675 | FR114: =LOOKUP(FR5,Assumptions!74:74,Assumptions!76:76)+$G$114 -> 0.0675 | FS114: =LOOKUP(FS5,Assumptions!74:74,Assumptions!76:76)+$G$114 -> 0.0675 | FT114: =LOOKUP(FT5,Assumptions!74:74,Assumptions!76:76)+$G$114 -> 0.0675 | FU114: =LOOKUP(FU5,Assumptions!74:74,Assumptions!76:76)+$G$114 -> 0.0675 | FV114: =LOOKUP(FV5,Assumptions!74:74,Assumptions!76:76)+$G$114 -> 0.0675 | FW114: =LOOKUP(FW5,Assumptions!74:74,Assumptions!76:76)+$G$114 -> 0.0675 | FX114: =LOOKUP(FX5,Assumptions!74:74,Assumptions!76:76)+$G$114 -> 0.0675 | FY114: =LOOKUP(FY5,Assumptions!74:74,Assumptions!76:76)+$G$114 -> 0.0675 | FZ114: =LOOKUP(FZ5,Assumptions!74:74,Assumptions!76:76)+$G$114 -> 0.0675 | GA114: =LOOKUP(GA5,Assumptions!74:74,Assumptions!76:76)+$G$114 -> 0.0675 | GB114: =LOOKUP(GB5,Assumptions!74:74,Assumptions!76:76)+$G$114 -> 0.0675 | GC114: =LOOKUP(GC5,Assumptions!74:74,Assumptions!76:76)+$G$114 -> 0.0675 | GD114: =LOOKUP(GD5,Assumptions!74:74,Assumptions!76:76)+$G$114 -> 0.0675 | GE114: =LOOKUP(GE5,Assumptions!74:74,Assumptions!76:76)+$G$114 -> 0.0675 | GF114: =LOOKUP(GF5,Assumptions!74:74,Assumptions!76:76)+$G$114 -> 0.0675 | GG114: =LOOKUP(GG5,Assumptions!74:74,Assumptions!76:76)+$G$114 -> 0.0675 | GH114: =LOOKUP(GH5,Assumptions!74:74,Assumptions!76:76)+$G$114 -> 0.0675 | GI114: =LOOKUP(GI5,Assumptions!74:74,Assumptions!76:76)+$G$114 -> 0.0675 | GJ114: =LOOKUP(GJ5,Assumptions!74:74,Assumptions!76:76)+$G$114 -> 0.0675 | GK114: =LOOKUP(GK5,Assumptions!74:74,Assumptions!76:76)+$G$114 -> 0.0675 | GL114: =LOOKUP(GL5,Assumptions!74:74,Assumptions!76:76)+$G$114 -> 0.0675 | GM114: =LOOKUP(GM5,Assumptions!74:74,Assumptions!76:76)+$G$114 -> 0.0675 | GN114: =LOOKUP(GN5,Assumptions!74:74,Assumptions!76:76)+$G$114 -> 0.0675 | GO114: =LOOKUP(GO5,Assumptions!74:74,Assumptions!76:76)+$G$114 -> 0.0675 | GP114: =LOOKUP(GP5,Assumptions!74:74,Assumptions!76:76)+$G$114 -> 0.0675 | GQ114: =LOOKUP(GQ5,Assumptions!74:74,Assumptions!76:76)+$G$114 -> 0.0675 | GR114: =LOOKUP(GR5,Assumptions!74:74,Assumptions!76:76)+$G$114 -> 0.0675 | GS114: =LOOKUP(GS5,Assumptions!74:74,Assumptions!76:76)+$G$114 -> 0.0675 | GT114: =LOOKUP(GT5,Assumptions!74:74,Assumptions!76:76)+$G$114 -> 0.0675 | GU114: =LOOKUP(GU5,Assumptions!74:74,Assumptions!76:76)+$G$114 -> 0.0675 | GV114: =LOOKUP(GV5,Assumptions!74:74,Assumptions!76:76)+$G$114 -> 0.0675 | GW114: =LOOKUP(GW5,Assumptions!74:74,Assumptions!76:76)+$G$114 -> 0.0675 | GX114: =LOOKUP(GX5,Assumptions!74:74,Assumptions!76:76)+$G$114 -> 0.0675 | GY114: =LOOKUP(GY5,Assumptions!74:74,Assumptions!76:76)+$G$114 -> 0.0675 | GZ114: =LOOKUP(GZ5,Assumptions!74:74,Assumptions!76:76)+$G$114 -> 0.0675 | HA114: =LOOKUP(HA5,Assumptions!74:74,Assumptions!76:76)+$G$114 -> 0.0675
D115: Periods in Year | J115: =12/J4 -> 12 | K115: 12 | L115: 12 | M115: 12 | N115: 12 | O115: 12 | P115: 12 | Q115: 12 | R115: 12 | S115: 12 | T115: 12 | U115: 12 | V115: 12 | W115: 12 | X115: 12 | Y115: 12 | Z115: 12 | AA115: 12 | AB115: 12 | AC115: 12 | AD115: 12 | AE115: 12 | AF115: 12 | AG115: 12 | AH115: 12 | AI115: 12 | AJ115: 12 | AK115: 12 | AL115: 12 | AM115: 12 | AN115: 12 | AO115: 12 | AP115: =12/AP4 -> 12 | AQ115: 12 | AR115: 12 | AS115: 12 | AT115: 4 | AU115: 4 | AV115: 4 | AW115: 4 | AX115: 4 | AY115: 4 | AZ115: 4 | BA115: 4 | BB115: 4 | BC115: 4 | BD115: 4 | BE115: 4 | BF115: 4 | BG115: 4 | BH115: 4 | BI115: 4 | BJ115: 4 | BK115: 4 | BL115: 4 | BM115: 4 | BN115: 4 | BO115: 4 | BP115: 4 | BQ115: 4 | BR115: 4 | BS115: 4 | BT115: 4 | BU115: 4 | BV115: =12/BV4 -> 4 | BW115: 4 | BX115: 4 | BY115: 4 | BZ115: 4 | CA115: 4 | CB115: 4 | CC115: 4 | CD115: 4 | CE115: 4 | CF115: 4 | CG115: 4 | CH115: 4 | CI115: 4 | CJ115: 4 | CK115: 4 | CL115: 4 | CM115: 4 | CN115: 4 | CO115: 4 | CP115: 4 | CQ115: 4 | CR115: 4 | CS115: 4 | CT115: 4 | CU115: 4 | CV115: 4 | CW115: 4 | CX115: 4 | CY115: 4 | CZ115: 4 | DA115: 4 | DB115: =12/DB4 -> 4 | DC115: 4 | DD115: 4 | DE115: 4 | DF115: 4 | DG115: 4 | DH115: 4 | DI115: 4 | DJ115: 4 | DK115: 4 | DL115: 4 | DM115: 4 | DN115: 4 | DO115: 4 | DP115: 4 | DQ115: 4 | DR115: 4 | DS115: 4 | DT115: 4 | DU115: 4 | DV115: 4 | DW115: 4 | DX115: 4 | DY115: 4 | DZ115: 4 | EA115: 4 | EB115: 4 | EC115: 4 | ED115: 4 | EE115: 4 | EF115: 4 | EG115: 4 | EH115: =12/EH4 -> 4 | EI115: 4 | EJ115: 4 | EK115: 4 | EL115: 4 | EM115: 4 | EN115: 4 | EO115: 4 | EP115: 4 | EQ115: 4 | ER115: 4 | ES115: 4 | ET115: 4 | EU115: 4 | EV115: 4 | EW115: 4 | EX115: 4 | EY115: 4 | EZ115: 4 | FA115: 4 | FB115: 4 | FC115: 4 | FD115: 4 | FE115: 4 | FF115: 4 | FG115: 4 | FH115: 4 | FI115: 4 | FJ115: 4 | FK115: 4 | FL115: 4 | FM115: 4 | FN115: =12/FN4 -> 4 | FO115: 4 | FP115: 4 | FQ115: 4 | FR115: 4 | FS115: 4 | FT115: 4 | FU115: 4 | FV115: 4 | FW115: 4 | FX115: 4 | FY115: 4 | FZ115: 4 | GA115: 4 | GB115: 4 | GC115: 4 | GD115: 4 | GE115: 4 | GF115: 4 | GG115: 4 | GH115: 4 | GI115: 4 | GJ115: 4 | GK115: 4 | GL115: 4 | GM115: 4 | GN115: 4 | GO115: 4 | GP115: 4 | GQ115: 4 | GR115: 4 | GS115: 4 | GT115: =12/GT4 -> 4 | GU115: 4 | GV115: 4 | GW115: 4 | GX115: 4 | GY115: 4 | GZ115: 4 | HA115: 4
D116: Periodic Interest Rate - No Default | J116: =J113/J115 -> 0.00375 | K116: =K113/K115 -> 0.00375 | L116: 0.00375 | M116: 0.00375 | N116: 0.00375 | O116: 0.00375 | P116: 0.00375 | Q116: 0.00375 | R116: 0.00375 | S116: 0.00375 | T116: 0.00375 | U116: 0.00375 | V116: 0.00375 | W116: 0.00375 | X116: 0.00375 | Y116: 0.00375 | Z116: 0.00375 | AA116: 0.00375 | AB116: 0.00375 | AC116: 0.00375 | AD116: 0.00375 | AE116: 0.00375 | AF116: 0.00375 | AG116: 0.00375 | AH116: 0.00375 | AI116: 0.00375 | AJ116: 0.00375 | AK116: 0.00375 | AL116: 0.00375 | AM116: 0.00375 | AN116: 0.00375 | AO116: 0.00375 | AP116: 0.00375 | AQ116: 0.00375 | AR116: 0.00375 | AS116: 0.00375 | AT116: 0.011875 | AU116: 0.011875 | AV116: 0.011875 | AW116: 0.011875 | AX116: 0.011875 | AY116: 0.011875 | AZ116: 0.011875 | BA116: 0.011875 | BB116: 0.011875 | BC116: 0.011875 | BD116: 0.011875 | BE116: 0.011875 | BF116: 0.0125 | BG116: 0.0125 | BH116: 0.0125 | BI116: 0.0125 | BJ116: 0.0125 | BK116: 0.0125 | BL116: 0.0125 | BM116: 0.0125 | BN116: 0.0125 | BO116: 0.0125 | BP116: 0.0125 | BQ116: 0.0125 | BR116: 0.013125 | BS116: 0.013125 | BT116: 0.013125 | BU116: 0.013125 | BV116: 0.013125 | BW116: =BW113/BW115 -> 0.013125 | BX116: 0.013125 | BY116: 0.013125 | BZ116: 0.013125 | CA116: 0.013125 | CB116: 0.013125 | CC116: 0.013125 | CD116: 0.01375 | CE116: 0.01375 | CF116: 0.01375 | CG116: 0.01375 | CH116: 0.01375 | CI116: 0.01375 | CJ116: 0.01375 | CK116: 0.01375 | CL116: 0.01375 | CM116: 0.01375 | CN116: 0.01375 | CO116: 0.01375 | CP116: 0.014375 | CQ116: 0.014375 | CR116: 0.014375 | CS116: 0.014375 | CT116: 0.014375 | CU116: 0.014375 | CV116: 0.014375 | CW116: 0.014375 | CX116: 0.014375 | CY116: 0.014375 | CZ116: 0.014375 | DA116: 0.014375 | DB116: 0.014375 | DC116: 0.014375 | DD116: 0.014375 | DE116: 0.014375 | DF116: 0.014375 | DG116: 0.014375 | DH116: 0.014375 | DI116: 0.014375 | DJ116: 0.014375 | DK116: 0.014375 | DL116: 0.014375 | DM116: 0.014375 | DN116: 0.014375 | DO116: 0.014375 | DP116: 0.014375 | DQ116: 0.014375 | DR116: 0.014375 | DS116: 0.014375 | DT116: 0.014375 | DU116: 0.014375 | DV116: 0.014375 | DW116: 0.014375 | DX116: 0.014375 | DY116: 0.014375 | DZ116: 0.014375 | EA116: 0.014375 | EB116: 0.014375 | EC116: 0.014375 | ED116: 0.014375 | EE116: 0.014375 | EF116: 0.014375 | EG116: 0.014375 | EH116: 0.014375 | EI116: =EI113/EI115 -> 0.014375 | EJ116: 0.014375 | EK116: 0.014375 | EL116: 0.014375 | EM116: 0.014375 | EN116: 0.014375 | EO116: 0.014375 | EP116: 0.014375 | EQ116: 0.014375 | ER116: 0.014375 | ES116: 0.014375 | ET116: 0.014375 | EU116: 0.014375 | EV116: 0.014375 | EW116: 0.014375 | EX116: 0.014375 | EY116: 0.014375 | EZ116: 0.014375 | FA116: 0.014375 | FB116: 0.014375 | FC116: 0.014375 | FD116: 0.014375 | FE116: 0.014375 | FF116: 0.014375 | FG116: 0.014375 | FH116: 0.014375 | FI116: 0.014375 | FJ116: 0.014375 | FK116: 0.014375 | FL116: 0.014375 | FM116: 0.014375 | FN116: 0.014375 | FO116: 0.014375 | FP116: 0.014375 | FQ116: 0.014375 | FR116: 0.014375 | FS116: 0.014375 | FT116: 0.014375 | FU116: 0.014375 | FV116: 0.014375 | FW116: 0.014375 | FX116: 0.014375 | FY116: 0.014375 | FZ116: 0.014375 | GA116: 0.014375 | GB116: 0.014375 | GC116: 0.014375 | GD116: 0.014375 | GE116: 0.014375 | GF116: 0.014375 | GG116: 0.014375 | GH116: 0.014375 | GI116: 0.014375 | GJ116: 0.014375 | GK116: 0.014375 | GL116: 0.014375 | GM116: 0.014375 | GN116: 0.014375 | GO116: 0.014375 | GP116: 0.014375 | GQ116: 0.014375 | GR116: 0.014375 | GS116: 0.014375 | GT116: 0.014375 | GU116: =GU113/GU115 -> 0.014375 | GV116: 0.014375 | GW116: 0.014375 | GX116: 0.014375 | GY116: 0.014375 | GZ116: 0.014375 | HA116: 0.014375
D117: Periodic Interest Rate - Default | J117: =J114/J115 -> 0.004583333333 | K117: =K114/K115 -> 0.004583333333 | L117: 0.004583333333 | M117: 0.004583333333 | N117: 0.004583333333 | O117: 0.004583333333 | P117: 0.004583333333 | Q117: 0.004583333333 | R117: 0.004583333333 | S117: 0.004583333333 | T117: 0.004583333333 | U117: 0.004583333333 | V117: 0.004583333333 | W117: 0.004583333333 | X117: 0.004583333333 | Y117: 0.004583333333 | Z117: 0.004583333333 | AA117: 0.004583333333 | AB117: 0.004583333333 | AC117: 0.004583333333 | AD117: 0.004583333333 | AE117: 0.004583333333 | AF117: 0.004583333333 | AG117: 0.004583333333 | AH117: 0.004583333333 | AI117: 0.004583333333 | AJ117: 0.004583333333 | AK117: 0.004583333333 | AL117: 0.004583333333 | AM117: 0.004583333333 | AN117: 0.004583333333 | AO117: 0.004583333333 | AP117: 0.004583333333 | AQ117: 0.004583333333 | AR117: 0.004583333333 | AS117: 0.004583333333 | AT117: 0.014375 | AU117: 0.014375 | AV117: 0.014375 | AW117: 0.014375 | AX117: 0.014375 | AY117: 0.014375 | AZ117: 0.014375 | BA117: 0.014375 | BB117: 0.014375 | BC117: 0.014375 | BD117: 0.014375 | BE117: 0.014375 | BF117: 0.015 | BG117: 0.015 | BH117: 0.015 | BI117: 0.015 | BJ117: 0.015 | BK117: 0.015 | BL117: 0.015 | BM117: 0.015 | BN117: 0.015 | BO117: 0.015 | BP117: 0.015 | BQ117: 0.015 | BR117: 0.015625 | BS117: 0.015625 | BT117: 0.015625 | BU117: 0.015625 | BV117: 0.015625 | BW117: =BW114/BW115 -> 0.015625 | BX117: 0.015625 | BY117: 0.015625 | BZ117: 0.015625 | CA117: 0.015625 | CB117: 0.015625 | CC117: 0.015625 | CD117: 0.01625 | CE117: 0.01625 | CF117: 0.01625 | CG117: 0.01625 | CH117: 0.01625 | CI117: 0.01625 | CJ117: 0.01625 | CK117: 0.01625 | CL117: 0.01625 | CM117: 0.01625 | CN117: 0.01625 | CO117: 0.01625 | CP117: 0.016875 | CQ117: 0.016875 | CR117: 0.016875 | CS117: 0.016875 | CT117: 0.016875 | CU117: 0.016875 | CV117: 0.016875 | CW117: 0.016875 | CX117: 0.016875 | CY117: 0.016875 | CZ117: 0.016875 | DA117: 0.016875 | DB117: 0.016875 | DC117: 0.016875 | DD117: 0.016875 | DE117: 0.016875 | DF117: 0.016875 | DG117: 0.016875 | DH117: 0.016875 | DI117: 0.016875 | DJ117: 0.016875 | DK117: 0.016875 | DL117: 0.016875 | DM117: 0.016875 | DN117: 0.016875 | DO117: 0.016875 | DP117: 0.016875 | DQ117: 0.016875 | DR117: 0.016875 | DS117: 0.016875 | DT117: 0.016875 | DU117: 0.016875 | DV117: 0.016875 | DW117: 0.016875 | DX117: 0.016875 | DY117: 0.016875 | DZ117: 0.016875 | EA117: 0.016875 | EB117: 0.016875 | EC117: 0.016875 | ED117: 0.016875 | EE117: 0.016875 | EF117: 0.016875 | EG117: 0.016875 | EH117: 0.016875 | EI117: =EI114/EI115 -> 0.016875 | EJ117: 0.016875 | EK117: 0.016875 | EL117: 0.016875 | EM117: 0.016875 | EN117: 0.016875 | EO117: 0.016875 | EP117: 0.016875 | EQ117: 0.016875 | ER117: 0.016875 | ES117: 0.016875 | ET117: 0.016875 | EU117: 0.016875 | EV117: 0.016875 | EW117: 0.016875 | EX117: 0.016875 | EY117: 0.016875 | EZ117: 0.016875 | FA117: 0.016875 | FB117: 0.016875 | FC117: 0.016875 | FD117: 0.016875 | FE117: 0.016875 | FF117: 0.016875 | FG117: 0.016875 | FH117: 0.016875 | FI117: 0.016875 | FJ117: 0.016875 | FK117: 0.016875 | FL117: 0.016875 | FM117: 0.016875 | FN117: 0.016875 | FO117: 0.016875 | FP117: 0.016875 | FQ117: 0.016875 | FR117: 0.016875 | FS117: 0.016875 | FT117: 0.016875 | FU117: 0.016875 | FV117: 0.016875 | FW117: 0.016875 | FX117: 0.016875 | FY117: 0.016875 | FZ117: 0.016875 | GA117: 0.016875 | GB117: 0.016875 | GC117: 0.016875 | GD117: 0.016875 | GE117: 0.016875 | GF117: 0.016875 | GG117: 0.016875 | GH117: 0.016875 | GI117: 0.016875 | GJ117: 0.016875 | GK117: 0.016875 | GL117: 0.016875 | GM117: 0.016875 | GN117: 0.016875 | GO117: 0.016875 | GP117: 0.016875 | GQ117: 0.016875 | GR117: 0.016875 | GS117: 0.016875 | GT117: 0.016875 | GU117: =GU114/GU115 -> 0.016875 | GV117: 0.016875 | GW117: 0.016875 | GX117: 0.016875 | GY117: 0.016875 | GZ117: 0.016875 | HA117: 0.016875
D118: Default Switch | J118: =I135>0.1 -> FALSE | K118: =J135>0.1 -> FALSE | L118: FALSE | M118: FALSE | N118: FALSE | O118: FALSE | P118: FALSE | Q118: FALSE | R118: FALSE | S118: FALSE | T118: FALSE | U118: FALSE | V118: FALSE | W118: FALSE | X118: FALSE | Y118: FALSE | Z118: FALSE | AA118: FALSE | AB118: FALSE | AC118: FALSE | AD118: FALSE | AE118: FALSE | AF118: FALSE | AG118: FALSE | AH118: FALSE | AI118: FALSE | AJ118: FALSE | AK118: FALSE | AL118: FALSE | AM118: FALSE | AN118: FALSE | AO118: FALSE | AP118: FALSE | AQ118: FALSE | AR118: FALSE | AS118: FALSE | AT118: FALSE | AU118: FALSE | AV118: FALSE | AW118: FALSE | AX118: FALSE | AY118: FALSE | AZ118: FALSE | BA118: FALSE | BB118: FALSE | BC118: FALSE | BD118: FALSE | BE118: FALSE | BF118: FALSE | BG118: FALSE | BH118: FALSE | BI118: FALSE | BJ118: FALSE | BK118: FALSE | BL118: FALSE | BM118: FALSE | BN118: FALSE | BO118: FALSE | BP118: FALSE | BQ118: FALSE | BR118: FALSE | BS118: FALSE | BT118: FALSE | BU118: FALSE | BV118: FALSE | BW118: =BV135>0.1 -> FALSE | BX118: FALSE | BY118: FALSE | BZ118: FALSE | CA118: FALSE | CB118: FALSE | CC118: FALSE | CD118: FALSE | CE118: FALSE | CF118: FALSE | CG118: FALSE | CH118: FALSE | CI118: FALSE | CJ118: FALSE | CK118: FALSE | CL118: FALSE | CM118: FALSE | CN118: FALSE | CO118: FALSE | CP118: FALSE | CQ118: FALSE | CR118: FALSE | CS118: FALSE | CT118: FALSE | CU118: FALSE | CV118: FALSE | CW118: FALSE | CX118: FALSE | CY118: FALSE | CZ118: FALSE | DA118: FALSE | DB118: FALSE | DC118: FALSE | DD118: FALSE | DE118: FALSE | DF118: FALSE | DG118: FALSE | DH118: FALSE | DI118: FALSE | DJ118: FALSE | DK118: FALSE | DL118: FALSE | DM118: FALSE | DN118: FALSE | DO118: FALSE | DP118: FALSE | DQ118: FALSE | DR118: FALSE | DS118: FALSE | DT118: FALSE | DU118: FALSE | DV118: FALSE | DW118: FALSE | DX118: FALSE | DY118: FALSE | DZ118: FALSE | EA118: FALSE | EB118: FALSE | EC118: FALSE | ED118: FALSE | EE118: FALSE | EF118: FALSE | EG118: FALSE | EH118: FALSE | EI118: =EH135>0.1 -> FALSE | EJ118: FALSE | EK118: FALSE | EL118: FALSE | EM118: FALSE | EN118: FALSE | EO118: FALSE | EP118: FALSE | EQ118: FALSE | ER118: FALSE | ES118: FALSE | ET118: FALSE | EU118: FALSE | EV118: FALSE | EW118: FALSE | EX118: FALSE | EY118: FALSE | EZ118: FALSE | FA118: FALSE | FB118: FALSE | FC118: FALSE | FD118: FALSE | FE118: FALSE | FF118: FALSE | FG118: FALSE | FH118: FALSE | FI118: FALSE | FJ118: FALSE | FK118: FALSE | FL118: FALSE | FM118: FALSE | FN118: FALSE | FO118: FALSE | FP118: FALSE | FQ118: FALSE | FR118: FALSE | FS118: FALSE | FT118: FALSE | FU118: FALSE | FV118: FALSE | FW118: FALSE | FX118: FALSE | FY118: FALSE | FZ118: FALSE | GA118: FALSE | GB118: FALSE | GC118: FALSE | GD118: FALSE | GE118: FALSE | GF118: FALSE | GG118: FALSE | GH118: FALSE | GI118: FALSE | GJ118: FALSE | GK118: FALSE | GL118: FALSE | GM118: FALSE | GN118: FALSE | GO118: FALSE | GP118: FALSE | GQ118: FALSE | GR118: FALSE | GS118: FALSE | GT118: FALSE | GU118: =GT135>0.1 -> FALSE | GV118: FALSE | GW118: FALSE | GX118: FALSE | GY118: FALSE | GZ118: FALSE | HA118: FALSE
D120: Interest Rate Applied | J120: =IF(J118,J117,J116) -> 0.00375 | K120: =IF(K118,K117,K116) -> 0.00375 | L120: 0.00375 | M120: 0.00375 | N120: 0.00375 | O120: 0.00375 | P120: 0.00375 | Q120: 0.00375 | R120: 0.00375 | S120: 0.00375 | T120: 0.00375 | U120: 0.00375 | V120: 0.00375 | W120: 0.00375 | X120: 0.00375 | Y120: 0.00375 | Z120: 0.00375 | AA120: 0.00375 | AB120: 0.00375 | AC120: 0.00375 | AD120: 0.00375 | AE120: 0.00375 | AF120: 0.00375 | AG120: 0.00375 | AH120: 0.00375 | AI120: 0.00375 | AJ120: 0.00375 | AK120: 0.00375 | AL120: 0.00375 | AM120: 0.00375 | AN120: 0.00375 | AO120: 0.00375 | AP120: 0.00375 | AQ120: 0.00375 | AR120: 0.00375 | AS120: 0.00375 | AT120: 0.011875 | AU120: 0.011875 | AV120: 0.011875 | AW120: 0.011875 | AX120: 0.011875 | AY120: 0.011875 | AZ120: 0.011875 | BA120: 0.011875 | BB120: =IF(BB118,BB117,BB116) -> 0.011875 | BC120: 0.011875 | BD120: 0.011875 | BE120: 0.011875 | BF120: 0.0125 | BG120: 0.0125 | BH120: 0.0125 | BI120: 0.0125 | BJ120: 0.0125 | BK120: 0.0125 | BL120: 0.0125 | BM120: 0.0125 | BN120: 0.0125 | BO120: 0.0125 | BP120: 0.0125 | BQ120: 0.0125 | BR120: 0.013125 | BS120: 0.013125 | BT120: 0.013125 | BU120: 0.013125 | BV120: 0.013125 | BW120: =IF(BW118,BW117,BW116) -> 0.013125 | BX120: 0.013125 | BY120: 0.013125 | BZ120: 0.013125 | CA120: 0.013125 | CB120: 0.013125 | CC120: 0.013125 | CD120: 0.01375 | CE120: 0.01375 | CF120: 0.01375 | CG120: 0.01375 | CH120: 0.01375 | CI120: 0.01375 | CJ120: 0.01375 | CK120: 0.01375 | CL120: 0.01375 | CM120: 0.01375 | CN120: 0.01375 | CO120: 0.01375 | CP120: 0.014375 | CQ120: 0.014375 | CR120: 0.014375 | CS120: 0.014375 | CT120: 0.014375 | CU120: 0.014375 | CV120: 0.014375 | CW120: 0.014375 | CX120: 0.014375 | CY120: 0.014375 | CZ120: 0.014375 | DA120: 0.014375 | DB120: 0.014375 | DC120: 0.014375 | DD120: 0.014375 | DE120: 0.014375 | DF120: 0.014375 | DG120: 0.014375 | DH120: 0.014375 | DI120: 0.014375 | DJ120: 0.014375 | DK120: 0.014375 | DL120: 0.014375 | DM120: 0.014375 | DN120: 0.014375 | DO120: 0.014375 | DP120: 0.014375 | DQ120: 0.014375 | DR120: 0.014375 | DS120: 0.014375 | DT120: 0.014375 | DU120: 0.014375 | DV120: 0.014375 | DW120: 0.014375 | DX120: 0.014375 | DY120: 0.014375 | DZ120: 0.014375 | EA120: 0.014375 | EB120: 0.014375 | EC120: 0.014375 | ED120: 0.014375 | EE120: 0.014375 | EF120: 0.014375 | EG120: 0.014375 | EH120: 0.014375 | EI120: =IF(EI118,EI117,EI116) -> 0.014375 | EJ120: 0.014375 | EK120: 0.014375 | EL120: 0.014375 | EM120: 0.014375 | EN120: 0.014375 | EO120: 0.014375 | EP120: 0.014375 | EQ120: 0.014375 | ER120: 0.014375 | ES120: 0.014375 | ET120: 0.014375 | EU120: 0.014375 | EV120: 0.014375 | EW120: 0.014375 | EX120: 0.014375 | EY120: 0.014375 | EZ120: 0.014375 | FA120: 0.014375 | FB120: 0.014375 | FC120: 0.014375 | FD120: 0.014375 | FE120: 0.014375 | FF120: 0.014375 | FG120: 0.014375 | FH120: 0.014375 | FI120: 0.014375 | FJ120: 0.014375 | FK120: 0.014375 | FL120: 0.014375 | FM120: 0.014375 | FN120: 0.014375 | FO120: 0.014375 | FP120: 0.014375 | FQ120: 0.014375 | FR120: 0.014375 | FS120: 0.014375 | FT120: 0.014375 | FU120: 0.014375 | FV120: 0.014375 | FW120: 0.014375 | FX120: 0.014375 | FY120: 0.014375 | FZ120: 0.014375 | GA120: 0.014375 | GB120: 0.014375 | GC120: 0.014375 | GD120: 0.014375 | GE120: 0.014375 | GF120: 0.014375 | GG120: 0.014375 | GH120: 0.014375 | GI120: 0.014375 | GJ120: 0.014375 | GK120: =IF(GK118,GK117,GK116) -> 0.014375 | GL120: 0.014375 | GM120: 0.014375 | GN120: 0.014375 | GO120: 0.014375 | GP120: 0.014375 | GQ120: 0.014375 | GR120: 0.014375 | GS120: 0.014375 | GT120: 0.014375 | GU120: =IF(GU118,GU117,GU116) -> 0.014375 | GV120: 0.014375 | GW120: 0.014375 | GX120: 0.014375 | GY120: 0.014375 | GZ120: 0.014375 | HA120: 0.014375
D122: Interest Payment | J122: =J120*J104 -> 0 | K122: 54.12936901 | L122: 64.32424869 | M122: 76.22838112 | N122: 89.99002925 | O122: 105.7407417 | P122: 123.5886373 | Q122: 143.6117171 | R122: 165.8515644 | S122: 190.3078094 | T122: 216.9337407 | U122: 245.6334101 | V122: 276.2605212 | W122: 308.6193081 | X122: 342.4675006 | Y122: 377.521356 | Z122: 413.4626039 | AA122: 449.9470342 | AB122: 486.6143434 | AC122: 523.0987737 | AD122: 559.0400216 | AE122: 594.0938769 | AF122: 627.9420695 | AG122: 660.3008563 | AH122: 690.9279675 | AI122: 719.6276368 | AJ122: 746.2535682 | AK122: 770.7098132 | AL122: 792.9496604 | AM122: 812.9727403 | AN122: 830.8206358 | AO122: 846.5713483 | AP122: =AP120*AP104 -> 860.3329964 | AQ122: 872.2371289 | AR122: 882.4320086 | AS122: 891.0761828 | AT122: 2844.719886 | AU122: 2840.896768 | AV122: 2837.028251 | AW122: 2833.113794 | AX122: 2829.152854 | AY122: 2825.144878 | AZ122: 2819.429309 | BA122: 2811.977633 | BB122: 2801.931926 | BC122: 2789.242801 | BD122: 2772.195615 | BE122: 2755.816878 | BF122: 2884.328781 | BG122: 2868.95059 | BH122: 2852.926107 | BI122: 2836.246686 | BJ122: 2818.903574 | BK122: 2800.887907 | BL122: 2782.190708 | BM122: 2762.80289 | BN122: 2742.715249 | BO122: 0 | BP122: 0 | BQ122: 0 | BR122: 0 | BS122: 0 | BT122: 0 | BU122: 0 | BV122: =BV120*BV104 -> 0 | BW122: 0 | BX122: 0 | BY122: 0 | BZ122: 0 | CA122: 0 | CB122: 0 | CC122: 0 | CD122: 0 | CE122: 0 | CF122: 0 | CG122: 0 | CH122: 0 | CI122: 0 | CJ122: 0 | CK122: 0 | CL122: 0 | CM122: 0 | CN122: 0 | CO122: 0 | CP122: 0 | CQ122: 0 | CR122: 0 | CS122: 0 | CT122: 0 | CU122: 0 | CV122: 0 | CW122: 0 | CX122: 0 | CY122: 0 | CZ122: 0 | DA122: 0 | DB122: =DB120*DB104 -> 0 | DC122: 0 | DD122: 0 | DE122: 0 | DF122: 0 | DG122: 0 | DH122: 0 | DI122: 0 | DJ122: 0 | DK122: 0 | DL122: 0 | DM122: 0 | DN122: 0 | DO122: 0 | DP122: 0 | DQ122: 0 | DR122: 0 | DS122: 0 | DT122: 0 | DU122: 0 | DV122: 0 | DW122: 0 | DX122: 0 | DY122: 0 | DZ122: 0 | EA122: 0 | EB122: 0 | EC122: 0 | ED122: 0 | EE122: 0 | EF122: 0 | EG122: 0 | EH122: =EH120*EH104 -> 0 | EI122: 0 | EJ122: 0 | EK122: 0 | EL122: 0 | EM122: 0 | EN122: 0 | EO122: 0 | EP122: 0 | EQ122: 0 | ER122: 0 | ES122: 0 | ET122: 0 | EU122: 0 | EV122: 0 | EW122: 0 | EX122: 0 | EY122: 0 | EZ122: 0 | FA122: 0 | FB122: 0 | FC122: 0 | FD122: 0 | FE122: 0 | FF122: 0 | FG122: 0 | FH122: 0 | FI122: 0 | FJ122: 0 | FK122: 0 | FL122: 0 | FM122: 0 | FN122: =FN120*FN104 -> 0 | FO122: 0 | FP122: 0 | FQ122: 0 | FR122: 0 | FS122: 0 | FT122: 0 | FU122: 0 | FV122: 0 | FW122: 0 | FX122: 0 | FY122: 0 | FZ122: 0 | GA122: 0 | GB122: 0 | GC122: 0 | GD122: 0 | GE122: 0 | GF122: 0 | GG122: 0 | GH122: 0 | GI122: 0 | GJ122: 0 | GK122: 0 | GL122: 0 | GM122: 0 | GN122: 0 | GO122: 0 | GP122: 0 | GQ122: 0 | GR122: 0 | GS122: 0 | GT122: =GT120*GT104 -> 0 | GU122: 0 | GV122: 0 | GW122: 0 | GX122: 0 | GY122: 0 | GZ122: 0 | HA122: 0
D123: Interest During Construction | J123: =J3*J122 -> 0 | K123: 54.12936901 | L123: 64.32424869 | M123: 76.22838112 | N123: 89.99002925 | O123: 105.7407417 | P123: 123.5886373 | Q123: 143.6117171 | R123: 165.8515644 | S123: 190.3078094 | T123: 216.9337407 | U123: 245.6334101 | V123: 276.2605212 | W123: 308.6193081 | X123: 342.4675006 | Y123: 377.521356 | Z123: 413.4626039 | AA123: 449.9470342 | AB123: 486.6143434 | AC123: 523.0987737 | AD123: 559.0400216 | AE123: 594.0938769 | AF123: 627.9420695 | AG123: 660.3008563 | AH123: 690.9279675 | AI123: 719.6276368 | AJ123: 746.2535682 | AK123: 770.7098132 | AL123: 792.9496604 | AM123: 812.9727403 | AN123: 830.8206358 | AO123: 846.5713483 | AP123: =AP3*AP122 -> 860.3329964 | AQ123: 872.2371289 | AR123: 882.4320086 | AS123: 891.0761828 | AT123: 0 | AU123: 0 | AV123: 0 | AW123: 0 | AX123: 0 | AY123: 0 | AZ123: 0 | BA123: 0 | BB123: 0 | BC123: 0 | BD123: 0 | BE123: 0 | BF123: 0 | BG123: 0 | BH123: 0 | BI123: 0 | BJ123: 0 | BK123: 0 | BL123: 0 | BM123: 0 | BN123: 0 | BO123: 0 | BP123: 0 | BQ123: 0 | BR123: 0 | BS123: 0 | BT123: 0 | BU123: 0 | BV123: =BV3*BV122 -> 0 | BW123: 0 | BX123: 0 | BY123: 0 | BZ123: 0 | CA123: 0 | CB123: 0 | CC123: 0 | CD123: 0 | CE123: 0 | CF123: 0 | CG123: 0 | CH123: 0 | CI123: 0 | CJ123: 0 | CK123: 0 | CL123: 0 | CM123: 0 | CN123: 0 | CO123: 0 | CP123: 0 | CQ123: 0 | CR123: 0 | CS123: 0 | CT123: 0 | CU123: 0 | CV123: 0 | CW123: 0 | CX123: 0 | CY123: 0 | CZ123: 0 | DA123: 0 | DB123: =DB3*DB122 -> 0 | DC123: 0 | DD123: 0 | DE123: 0 | DF123: 0 | DG123: 0 | DH123: 0 | DI123: 0 | DJ123: 0 | DK123: 0 | DL123: 0 | DM123: 0 | DN123: 0 | DO123: 0 | DP123: 0 | DQ123: 0 | DR123: 0 | DS123: 0 | DT123: 0 | DU123: 0 | DV123: 0 | DW123: 0 | DX123: 0 | DY123: 0 | DZ123: 0 | EA123: 0 | EB123: 0 | EC123: 0 | ED123: 0 | EE123: 0 | EF123: 0 | EG123: 0 | EH123: =EH3*EH122 -> 0 | EI123: 0 | EJ123: 0 | EK123: 0 | EL123: 0 | EM123: 0 | EN123: 0 | EO123: 0 | EP123: 0 | EQ123: 0 | ER123: 0 | ES123: 0 | ET123: 0 | EU123: 0 | EV123: 0 | EW123: 0 | EX123: 0 | EY123: 0 | EZ123: 0 | FA123: 0 | FB123: 0 | FC123: 0 | FD123: 0 | FE123: 0 | FF123: 0 | FG123: 0 | FH123: 0 | FI123: 0 | FJ123: 0 | FK123: 0 | FL123: 0 | FM123: 0 | FN123: =FN3*FN122 -> 0 | FO123: 0 | FP123: 0 | FQ123: 0 | FR123: 0 | FS123: 0 | FT123: 0 | FU123: 0 | FV123: 0 | FW123: 0 | FX123: 0 | FY123: 0 | FZ123: 0 | GA123: 0 | GB123: 0 | GC123: 0 | GD123: 0 | GE123: 0 | GF123: 0 | GG123: 0 | GH123: 0 | GI123: 0 | GJ123: 0 | GK123: 0 | GL123: 0 | GM123: 0 | GN123: 0 | GO123: 0 | GP123: 0 | GQ123: 0 | GR123: 0 | GS123: 0 | GT123: =GT3*GT122 -> 0 | GU123: 0 | GV123: 0 | GW123: 0 | GX123: 0 | GY123: 0 | GZ123: 0 | HA123: 0
D124: Interest Expense after COD | J124: =J122*J8 -> 0 | K124: 0 | L124: 0 | M124: 0 | N124: 0 | O124: 0 | P124: 0 | Q124: 0 | R124: 0 | S124: 0 | T124: 0 | U124: 0 | V124: 0 | W124: 0 | X124: 0 | Y124: 0 | Z124: 0 | AA124: 0 | AB124: 0 | AC124: 0 | AD124: 0 | AE124: 0 | AF124: 0 | AG124: 0 | AH124: 0 | AI124: 0 | AJ124: 0 | AK124: 0 | AL124: 0 | AM124: 0 | AN124: 0 | AO124: 0 | AP124: =AP122*AP8 -> 0 | AQ124: 0 | AR124: 0 | AS124: 0 | AT124: 2844.719886 | AU124: 2840.896768 | AV124: 2837.028251 | AW124: 2833.113794 | AX124: 2829.152854 | AY124: 2825.144878 | AZ124: 2819.429309 | BA124: 2811.977633 | BB124: 2801.931926 | BC124: 2789.242801 | BD124: 2772.195615 | BE124: 2755.816878 | BF124: 2884.328781 | BG124: 2868.95059 | BH124: 2852.926107 | BI124: 2836.246686 | BJ124: 2818.903574 | BK124: 2800.887907 | BL124: 2782.190708 | BM124: 2762.80289 | BN124: 2742.715249 | BO124: 0 | BP124: 0 | BQ124: 0 | BR124: 0 | BS124: 0 | BT124: 0 | BU124: 0 | BV124: =BV122*BV8 -> 0 | BW124: 0 | BX124: 0 | BY124: 0 | BZ124: 0 | CA124: 0 | CB124: 0 | CC124: 0 | CD124: 0 | CE124: 0 | CF124: 0 | CG124: 0 | CH124: 0 | CI124: 0 | CJ124: 0 | CK124: 0 | CL124: 0 | CM124: 0 | CN124: 0 | CO124: 0 | CP124: 0 | CQ124: 0 | CR124: 0 | CS124: 0 | CT124: 0 | CU124: 0 | CV124: 0 | CW124: 0 | CX124: 0 | CY124: 0 | CZ124: 0 | DA124: 0 | DB124: =DB122*DB8 -> 0 | DC124: 0 | DD124: 0 | DE124: 0 | DF124: 0 | DG124: 0 | DH124: 0 | DI124: 0 | DJ124: 0 | DK124: 0 | DL124: 0 | DM124: 0 | DN124: 0 | DO124: 0 | DP124: 0 | DQ124: 0 | DR124: 0 | DS124: 0 | DT124: 0 | DU124: 0 | DV124: 0 | DW124: 0 | DX124: 0 | DY124: 0 | DZ124: 0 | EA124: 0 | EB124: 0 | EC124: 0 | ED124: 0 | EE124: 0 | EF124: 0 | EG124: 0 | EH124: =EH122*EH8 -> 0 | EI124: 0 | EJ124: 0 | EK124: 0 | EL124: 0 | EM124: 0 | EN124: 0 | EO124: 0 | EP124: 0 | EQ124: 0 | ER124: 0 | ES124: 0 | ET124: 0 | EU124: 0 | EV124: 0 | EW124: 0 | EX124: 0 | EY124: 0 | EZ124: 0 | FA124: 0 | FB124: 0 | FC124: 0 | FD124: 0 | FE124: 0 | FF124: 0 | FG124: 0 | FH124: 0 | FI124: 0 | FJ124: 0 | FK124: 0 | FL124: 0 | FM124: 0 | FN124: =FN122*FN8 -> 0 | FO124: 0 | FP124: 0 | FQ124: 0 | FR124: 0 | FS124: 0 | FT124: 0 | FU124: 0 | FV124: 0 | FW124: 0 | FX124: 0 | FY124: 0 | FZ124: 0 | GA124: 0 | GB124: 0 | GC124: 0 | GD124: 0 | GE124: 0 | GF124: 0 | GG124: 0 | GH124: 0 | GI124: 0 | GJ124: 0 | GK124: 0 | GL124: 0 | GM124: 0 | GN124: 0 | GO124: 0 | GP124: 0 | GQ124: 0 | GR124: 0 | GS124: 0 | GT124: =GT122*GT8 -> 0 | GU124: 0 | GV124: 0 | GW124: 0 | GX124: 0 | GY124: 0 | GZ124: 0 | HA124: 0
C126: NPV Factor | I126: 1 | J126: =I126*(1+J116*J81) -> 1 | K126: 1 | L126: 1 | M126: 1 | N126: 1 | O126: 1 | P126: 1 | Q126: 1 | R126: 1 | S126: 1 | T126: 1 | U126: 1 | V126: 1 | W126: 1 | X126: 1 | Y126: 1 | Z126: 1 | AA126: 1 | AB126: 1 | AC126: 1 | AD126: 1 | AE126: 1 | AF126: 1 | AG126: 1 | AH126: 1 | AI126: 1 | AJ126: 1 | AK126: 1 | AL126: 1 | AM126: 1 | AN126: 1 | AO126: 1 | AP126: =AO126*(1+AP116*AP81) -> 1 | AQ126: 1 | AR126: 1 | AS126: 1 | AT126: 1.011875 | AU126: 1.023891016 | AV126: 1.036049721 | AW126: 1.048352812 | AX126: 1.060802002 | AY126: 1.073399025 | AZ126: 1.086145639 | BA126: 1.099043618 | BB126: 1.112094761 | BC126: 1.125300886 | BD126: 1.138663834 | BE126: 1.152185467 | BF126: 1.166587786 | BG126: 1.181170133 | BH126: 1.19593476 | BI126: 1.210883944 | BJ126: 1.226019994 | BK126: 1.241345244 | BL126: 1.256862059 | BM126: 1.272572835 | BN126: 1.288479995 | BO126: 1.304585995 | BP126: 1.32089332 | BQ126: 1.337404487 | BR126: 1.354957921 | BS126: 1.372741743 | BT126: 1.390758979 | BU126: 1.40901269 | BV126: =BU126*(1+BV116*BV81) -> 1.427505982 | BW126: 1.446241998 | BX126: 1.465223924 | BY126: 1.484454988 | BZ126: 1.50393846 | CA126: 1.523677652 | CB126: 1.543675921 | CC126: 1.563936668 | CD126: 1.585440797 | CE126: 1.607240608 | CF126: 1.629340166 | CG126: 1.651743593 | CH126: 1.674455068 | CI126: 1.697478825 | CJ126: 1.720819159 | CK126: 1.744480422 | CL126: 1.768467028 | CM126: 1.79278345 | CN126: 1.817434222 | CO126: 1.842423943 | CP126: 1.868908787 | CQ126: 1.895774351 | CR126: 1.923026107 | CS126: 1.950669607 | CT126: 1.978710483 | CU126: 2.007154446 | CV126: 2.036007291 | CW126: 2.065274896 | CX126: 2.094963223 | CY126: 2.125078319 | CZ126: 2.15562632 | DA126: 2.186613448 | DB126: =DA126*(1+DB116*DB81) -> 2.218046017 | DC126: 2.249930428 | DD126: 2.282273178 | DE126: 2.315080855 | DF126: 2.348360142 | DG126: 2.382117819 | DH126: 2.416360763 | DI126: 2.451095949 | DJ126: 2.486330453 | DK126: 2.522071453 | DL126: 2.55832623 | DM126: 2.59510217 | DN126: 2.632406764 | DO126: 2.670247611 | DP126: 2.70863242 | DQ126: 2.747569011 | DR126: 2.787065316 | DS126: 2.82712938 | DT126: 2.867769365 | DU126: 2.908993549 | DV126: 2.908993549 | DW126: 2.908993549 | DX126: 2.908993549 | DY126: 2.908993549 | DZ126: 2.908993549 | EA126: 2.908993549 | EB126: 2.908993549 | EC126: 2.908993549 | ED126: 2.908993549 | EE126: 2.908993549 | EF126: 2.908993549 | EG126: 2.908993549 | EH126: =EG126*(1+EH116*EH81) -> 2.908993549 | EI126: 2.908993549 | EJ126: 2.908993549 | EK126: 2.908993549 | EL126: 2.908993549 | EM126: 2.908993549 | EN126: 2.908993549 | EO126: 2.908993549 | EP126: 2.908993549 | EQ126: 2.908993549 | ER126: 2.908993549 | ES126: 2.908993549 | ET126: 2.908993549 | EU126: 2.908993549 | EV126: 2.908993549 | EW126: 2.908993549 | EX126: 2.908993549 | EY126: 2.908993549 | EZ126: 2.908993549 | FA126: 2.908993549 | FB126: 2.908993549 | FC126: 2.908993549 | FD126: 2.908993549 | FE126: 2.908993549 | FF126: 2.908993549 | FG126: 2.908993549 | FH126: 2.908993549 | FI126: 2.908993549 | FJ126: 2.908993549 | FK126: 2.908993549 | FL126: 2.908993549 | FM126: 2.908993549 | FN126: =FM126*(1+FN116*FN81) -> 2.908993549 | FO126: 2.908993549 | FP126: 2.908993549 | FQ126: 2.908993549 | FR126: 2.908993549 | FS126: 2.908993549 | FT126: 2.908993549 | FU126: 2.908993549 | FV126: 2.908993549 | FW126: 2.908993549 | FX126: 2.908993549 | FY126: 2.908993549 | FZ126: 2.908993549 | GA126: 2.908993549 | GB126: 2.908993549 | GC126: 2.908993549 | GD126: 2.908993549 | GE126: 2.908993549 | GF126: 2.908993549 | GG126: 2.908993549 | GH126: 2.908993549 | GI126: 2.908993549 | GJ126: 2.908993549 | GK126: 2.908993549 | GL126: 2.908993549 | GM126: 2.908993549 | GN126: 2.908993549 | GO126: 2.908993549 | GP126: 2.908993549 | GQ126: 2.908993549 | GR126: 2.908993549 | GS126: 2.908993549 | GT126: =GS126*(1+GT116*GT81) -> 2.908993549 | GU126: 2.908993549 | GV126: 2.908993549 | GW126: 2.908993549 | GX126: 2.908993549 | GY126: 2.908993549 | GZ126: 2.908993549 | HA126: 2.908993549
C127: Debt Service | J127: =J124+J106 -> 0 | K127: 0 | L127: 0 | M127: 0 | N127: 0 | O127: 0 | P127: 0 | Q127: 0 | R127: 0 | S127: 0 | T127: 0 | U127: 0 | V127: 0 | W127: 0 | X127: 0 | Y127: 0 | Z127: 0 | AA127: 0 | AB127: 0 | AC127: 0 | AD127: 0 | AE127: 0 | AF127: 0 | AG127: 0 | AH127: 0 | AI127: 0 | AJ127: 0 | AK127: 0 | AL127: 0 | AM127: 0 | AN127: 0 | AO127: 0 | AP127: =AP124+AP106 -> 0 | AQ127: 0 | AR127: 0 | AS127: 0 | AT127: 3166.666667 | AU127: 3166.666667 | AV127: 3166.666667 | AW127: 3166.666667 | AX127: 3166.666667 | AY127: 3306.455906 | AZ127: 3446.93891 | BA127: 3657.931897 | BB127: 3870.489835 | BC127: 4224.795255 | BD127: 4151.457675 | BE127: 4078.30413 | BF127: 4114.584056 | BG127: 4150.909248 | BH127: 4187.27976 | BI127: 4223.695651 | BJ127: 4260.156977 | BK127: 4296.663794 | BL127: 4333.216159 | BM127: 4369.814129 | BN127: 4406.457762 | BO127: 0 | BP127: 0 | BQ127: 0 | BR127: 0 | BS127: 0 | BT127: 0 | BU127: 0 | BV127: =BV124+BV106 -> 0 | BW127: 0 | BX127: 0 | BY127: 0 | BZ127: 0 | CA127: 0 | CB127: 0 | CC127: 0 | CD127: 0 | CE127: 0 | CF127: 0 | CG127: 0 | CH127: 0 | CI127: 0 | CJ127: 0 | CK127: 0 | CL127: 0 | CM127: 0 | CN127: 0 | CO127: 0 | CP127: 0 | CQ127: 0 | CR127: 0 | CS127: 0 | CT127: 0 | CU127: 0 | CV127: 0 | CW127: 0 | CX127: 0 | CY127: 0 | CZ127: 0 | DA127: 0 | DB127: =DB124+DB106 -> 0 | DC127: 0 | DD127: 0 | DE127: 0 | DF127: 0 | DG127: 0 | DH127: 0 | DI127: 0 | DJ127: 0 | DK127: 0 | DL127: 0 | DM127: 0 | DN127: 0 | DO127: 0 | DP127: 0 | DQ127: 0 | DR127: 0 | DS127: 0 | DT127: 0 | DU127: 0 | DV127: 0 | DW127: 0 | DX127: 0 | DY127: 0 | DZ127: 0 | EA127: 0 | EB127: 0 | EC127: 0 | ED127: 0 | EE127: 0 | EF127: 0 | EG127: 0 | EH127: =EH124+EH106 -> 0 | EI127: 0 | EJ127: 0 | EK127: 0 | EL127: 0 | EM127: 0 | EN127: 0 | EO127: 0 | EP127: 0 | EQ127: 0 | ER127: 0 | ES127: 0 | ET127: 0 | EU127: 0 | EV127: 0 | EW127: 0 | EX127: 0 | EY127: 0 | EZ127: 0 | FA127: 0 | FB127: 0 | FC127: 0 | FD127: 0 | FE127: 0 | FF127: 0 | FG127: 0 | FH127: 0 | FI127: 0 | FJ127: 0 | FK127: 0 | FL127: 0 | FM127: 0 | FN127: =FN124+FN106 -> 0 | FO127: 0 | FP127: 0 | FQ127: 0 | FR127: 0 | FS127: 0 | FT127: 0 | FU127: 0 | FV127: 0 | FW127: 0 | FX127: 0 | FY127: 0 | FZ127: 0 | GA127: 0 | GB127: 0 | GC127: 0 | GD127: 0 | GE127: 0 | GF127: 0 | GG127: 0 | GH127: 0 | GI127: 0 | GJ127: 0 | GK127: 0 | GL127: 0 | GM127: 0 | GN127: 0 | GO127: 0 | GP127: 0 | GQ127: 0 | GR127: 0 | GS127: 0 | GT127: =GT124+GT106 -> 0 | GU127: 0 | GV127: 0 | GW127: 0 | GX127: 0 | GY127: 0 | GZ127: 0 | HA127: 0
C128: Debt Size from NPV of Debt Service | G128: =SUMPRODUCT(J88:HA88/J126:HA126) -> 239555.3588 | I128: =AND(J128:HA128) -> FALSE | J128: =J127=J88 -> TRUE | K128: TRUE | L128: TRUE | M128: TRUE | N128: TRUE | O128: TRUE | P128: TRUE | Q128: TRUE | R128: TRUE | S128: TRUE | T128: TRUE | U128: TRUE | V128: TRUE | W128: TRUE | X128: TRUE | Y128: TRUE | Z128: TRUE | AA128: TRUE | AB128: TRUE | AC128: TRUE | AD128: TRUE | AE128: TRUE | AF128: TRUE | AG128: TRUE | AH128: TRUE | AI128: TRUE | AJ128: TRUE | AK128: TRUE | AL128: TRUE | AM128: TRUE | AN128: TRUE | AO128: TRUE | AP128: =AP127=AP88 -> TRUE | AQ128: TRUE | AR128: TRUE | AS128: TRUE | AT128: TRUE | AU128: TRUE | AV128: TRUE | AW128: TRUE | AX128: TRUE | AY128: TRUE | AZ128: TRUE | BA128: TRUE | BB128: TRUE | BC128: TRUE | BD128: TRUE | BE128: TRUE | BF128: TRUE | BG128: TRUE | BH128: TRUE | BI128: TRUE | BJ128: TRUE | BK128: TRUE | BL128: TRUE | BM128: TRUE | BN128: TRUE | BO128: FALSE | BP128: FALSE | BQ128: FALSE | BR128: FALSE | BS128: FALSE | BT128: FALSE | BU128: FALSE | BV128: =BV127=BV88 -> FALSE | BW128: FALSE | BX128: FALSE | BY128: FALSE | BZ128: FALSE | CA128: FALSE | CB128: FALSE | CC128: FALSE | CD128: FALSE | CE128: FALSE | CF128: FALSE | CG128: FALSE | CH128: FALSE | CI128: FALSE | CJ128: FALSE | CK128: FALSE | CL128: FALSE | CM128: FALSE | CN128: FALSE | CO128: FALSE | CP128: FALSE | CQ128: FALSE | CR128: FALSE | CS128: FALSE | CT128: FALSE | CU128: FALSE | CV128: FALSE | CW128: FALSE | CX128: FALSE | CY128: FALSE | CZ128: FALSE | DA128: FALSE | DB128: =DB127=DB88 -> FALSE | DC128: FALSE | DD128: FALSE | DE128: FALSE | DF128: FALSE | DG128: FALSE | DH128: FALSE | DI128: FALSE | DJ128: FALSE | DK128: FALSE | DL128: FALSE | DM128: FALSE | DN128: FALSE | DO128: FALSE | DP128: FALSE | DQ128: FALSE | DR128: FALSE | DS128: FALSE | DT128: FALSE | DU128: FALSE | DV128: TRUE | DW128: TRUE | DX128: TRUE | DY128: TRUE | DZ128: TRUE | EA128: TRUE | EB128: TRUE | EC128: TRUE | ED128: TRUE | EE128: TRUE | EF128: TRUE | EG128: TRUE | EH128: =EH127=EH88 -> TRUE | EI128: TRUE | EJ128: TRUE | EK128: TRUE | EL128: TRUE | EM128: TRUE | EN128: TRUE | EO128: TRUE | EP128: TRUE | EQ128: TRUE | ER128: TRUE | ES128: TRUE | ET128: TRUE | EU128: TRUE | EV128: TRUE | EW128: TRUE | EX128: TRUE | EY128: TRUE | EZ128: TRUE | FA128: TRUE | FB128: TRUE | FC128: TRUE | FD128: TRUE | FE128: TRUE | FF128: TRUE | FG128: TRUE | FH128: TRUE | FI128: TRUE | FJ128: TRUE | FK128: TRUE | FL128: TRUE | FM128: TRUE | FN128: =FN127=FN88 -> TRUE | FO128: TRUE | FP128: TRUE | FQ128: TRUE | FR128: TRUE | FS128: TRUE | FT128: TRUE | FU128: TRUE | FV128: TRUE | FW128: TRUE | FX128: TRUE | FY128: TRUE | FZ128: TRUE | GA128: TRUE | GB128: TRUE | GC128: TRUE | GD128: TRUE | GE128: TRUE | GF128: TRUE | GG128: TRUE | GH128: TRUE | GI128: TRUE | GJ128: TRUE | GK128: TRUE | GL128: TRUE | GM128: TRUE | GN128: TRUE | GO128: TRUE | GP128: TRUE | GQ128: TRUE | GR128: TRUE | GS128: TRUE | GT128: =GT127=GT88 -> TRUE | GU128: TRUE | GV128: TRUE | GW128: TRUE | GX128: TRUE | GY128: TRUE | GZ128: TRUE | HA128: TRUE
G129: =SUMPRODUCT(J127:HA127/J126:HA126) -> 70555.0808
B130: Defaulted Debt
C131: Opening Balance | J131: =I135 -> 0 | K131: =J135 -> 0 | L131: 0 | M131: 0 | N131: 0 | O131: 0 | P131: 0 | Q131: 0 | R131: 0 | S131: 0 | T131: 0 | U131: 0 | V131: 0 | W131: 0 | X131: 0 | Y131: 0 | Z131: 0 | AA131: 0 | AB131: 0 | AC131: 0 | AD131: 0 | AE131: 0 | AF131: 0 | AG131: 0 | AH131: 0 | AI131: 0 | AJ131: 0 | AK131: 0 | AL131: 0 | AM131: 0 | AN131: 0 | AO131: 0 | AP131: 0 | AQ131: 0 | AR131: 0 | AS131: 0 | AT131: 0 | AU131: 0 | AV131: 0 | AW131: 0 | AX131: 0 | AY131: 0 | AZ131: 0 | BA131: 0 | BB131: 0 | BC131: 0 | BD131: 0 | BE131: 0 | BF131: 0 | BG131: 0 | BH131: 0 | BI131: 0 | BJ131: 0 | BK131: 0 | BL131: 0 | BM131: 0 | BN131: 0 | BO131: 0 | BP131: 0 | BQ131: 0 | BR131: 0 | BS131: 0 | BT131: 0 | BU131: 0 | BV131: 0 | BW131: =BV135 -> 0 | BX131: 0 | BY131: 0 | BZ131: 0 | CA131: 0 | CB131: 0 | CC131: 0 | CD131: 0 | CE131: 0 | CF131: 0 | CG131: 0 | CH131: 0 | CI131: 0 | CJ131: 0 | CK131: 0 | CL131: 0 | CM131: 0 | CN131: 0 | CO131: 0 | CP131: 0 | CQ131: 0 | CR131: 0 | CS131: 0 | CT131: 0 | CU131: 0 | CV131: 0 | CW131: 0 | CX131: 0 | CY131: 0 | CZ131: 0 | DA131: 0 | DB131: 0 | DC131: 0 | DD131: 0 | DE131: 0 | DF131: 0 | DG131: 0 | DH131: 0 | DI131: 0 | DJ131: 0 | DK131: 0 | DL131: 0 | DM131: 0 | DN131: 0 | DO131: 0 | DP131: 0 | DQ131: 0 | DR131: 0 | DS131: 0 | DT131: 0 | DU131: 0 | DV131: 0 | DW131: 0 | DX131: 0 | DY131: 0 | DZ131: 0 | EA131: 0 | EB131: 0 | EC131: 0 | ED131: 0 | EE131: 0 | EF131: 0 | EG131: 0 | EH131: 0 | EI131: =EH135 -> 0 | EJ131: 0 | EK131: 0 | EL131: 0 | EM131: 0 | EN131: 0 | EO131: 0 | EP131: 0 | EQ131: 0 | ER131: 0 | ES131: 0 | ET131: 0 | EU131: 0 | EV131: 0 | EW131: 0 | EX131: 0 | EY131: 0 | EZ131: 0 | FA131: 0 | FB131: 0 | FC131: 0 | FD131: 0 | FE131: 0 | FF131: 0 | FG131: 0 | FH131: 0 | FI131: 0 | FJ131: 0 | FK131: 0 | FL131: 0 | FM131: 0 | FN131: 0 | FO131: 0 | FP131: 0 | FQ131: 0 | FR131: 0 | FS131: 0 | FT131: 0 | FU131: 0 | FV131: 0 | FW131: 0 | FX131: 0 | FY131: 0 | FZ131: 0 | GA131: 0 | GB131: 0 | GC131: 0 | GD131: 0 | GE131: 0 | GF131: 0 | GG131: 0 | GH131: 0 | GI131: 0 | GJ131: 0 | GK131: 0 | GL131: 0 | GM131: 0 | GN131: 0 | GO131: 0 | GP131: 0 | GQ131: 0 | GR131: 0 | GS131: 0 | GT131: 0 | GU131: =GT135 -> 0 | GV131: 0 | GW131: 0 | GX131: 0 | GY131: 0 | GZ131: 0 | HA131: 0
C132: Add Defaulted Debt | J132: =J205 -> 0 | K132: =K205 -> 0 | L132: 0 | M132: 0 | N132: 0 | O132: 0 | P132: 0 | Q132: 0 | R132: 0 | S132: 0 | T132: 0 | U132: 0 | V132: 0 | W132: 0 | X132: 0 | Y132: 0 | Z132: 0 | AA132: 0 | AB132: 0 | AC132: 0 | AD132: 0 | AE132: 0 | AF132: 0 | AG132: 0 | AH132: 0 | AI132: 0 | AJ132: 0 | AK132: 0 | AL132: 0 | AM132: 0 | AN132: 0 | AO132: 0 | AP132: 0 | AQ132: 0 | AR132: 0 | AS132: 0 | AT132: 0 | AU132: 0 | AV132: 0 | AW132: 0 | AX132: 0 | AY132: 0 | AZ132: 0 | BA132: 0 | BB132: 0 | BC132: 0 | BD132: 0 | BE132: 0 | BF132: 0 | BG132: 0 | BH132: 0 | BI132: 0 | BJ132: 0 | BK132: 0 | BL132: 0 | BM132: 0 | BN132: 0 | BO132: 0 | BP132: 0 | BQ132: 0 | BR132: 0 | BS132: 0 | BT132: 0 | BU132: 0 | BV132: 0 | BW132: =BW205 -> 0 | BX132: 0 | BY132: 0 | BZ132: 0 | CA132: 0 | CB132: 0 | CC132: 0 | CD132: 0 | CE132: 0 | CF132: 0 | CG132: 0 | CH132: 0 | CI132: 0 | CJ132: 0 | CK132: 0 | CL132: 0 | CM132: 0 | CN132: 0 | CO132: 0 | CP132: 0 | CQ132: 0 | CR132: 0 | CS132: 0 | CT132: 0 | CU132: 0 | CV132: 0 | CW132: 0 | CX132: 0 | CY132: 0 | CZ132: 0 | DA132: 0 | DB132: 0 | DC132: 0 | DD132: 0 | DE132: 0 | DF132: 0 | DG132: 0 | DH132: 0 | DI132: 0 | DJ132: 0 | DK132: 0 | DL132: 0 | DM132: 0 | DN132: 0 | DO132: 0 | DP132: 0 | DQ132: 0 | DR132: 0 | DS132: 0 | DT132: 0 | DU132: 0 | DV132: 0 | DW132: 0 | DX132: 0 | DY132: 0 | DZ132: 0 | EA132: 0 | EB132: 0 | EC132: 0 | ED132: 0 | EE132: 0 | EF132: 0 | EG132: 0 | EH132: 0 | EI132: =EI205 -> 0 | EJ132: 0 | EK132: 0 | EL132: 0 | EM132: 0 | EN132: 0 | EO132: 0 | EP132: 0 | EQ132: 0 | ER132: 0 | ES132: 0 | ET132: 0 | EU132: 0 | EV132: 0 | EW132: 0 | EX132: 0 | EY132: 0 | EZ132: 0 | FA132: 0 | FB132: 0 | FC132: 0 | FD132: 0 | FE132: 0 | FF132: 0 | FG132: 0 | FH132: 0 | FI132: 0 | FJ132: 0 | FK132: 0 | FL132: 0 | FM132: 0 | FN132: 0 | FO132: 0 | FP132: 0 | FQ132: 0 | FR132: 0 | FS132: 0 | FT132: 0 | FU132: 0 | FV132: 0 | FW132: 0 | FX132: 0 | FY132: 0 | FZ132: 0 | GA132: 0 | GB132: 0 | GC132: 0 | GD132: 0 | GE132: 0 | GF132: 0 | GG132: 0 | GH132: 0 | GI132: 0 | GJ132: 0 | GK132: 0 | GL132: 0 | GM132: 0 | GN132: 0 | GO132: 0 | GP132: 0 | GQ132: 0 | GR132: 0 | GS132: 0 | GT132: 0 | GU132: =GU205 -> 0 | GV132: 0 | GW132: 0 | GX132: 0 | GY132: 0 | GZ132: 0 | HA132: 0
C133: Less Repayment of Defaulted Debt | J133: =J206 -> 0 | K133: =K206 -> 0 | L133: 0 | M133: 0 | N133: 0 | O133: 0 | P133: 0 | Q133: 0 | R133: 0 | S133: 0 | T133: 0 | U133: 0 | V133: 0 | W133: 0 | X133: 0 | Y133: 0 | Z133: 0 | AA133: 0 | AB133: 0 | AC133: 0 | AD133: 0 | AE133: 0 | AF133: 0 | AG133: 0 | AH133: 0 | AI133: 0 | AJ133: 0 | AK133: 0 | AL133: 0 | AM133: 0 | AN133: 0 | AO133: 0 | AP133: 0 | AQ133: 0 | AR133: 0 | AS133: 0 | AT133: 0 | AU133: 0 | AV133: 0 | AW133: 0 | AX133: 0 | AY133: 0 | AZ133: 0 | BA133: 0 | BB133: 0 | BC133: 0 | BD133: 0 | BE133: 0 | BF133: 0 | BG133: 0 | BH133: 0 | BI133: 0 | BJ133: 0 | BK133: 0 | BL133: 0 | BM133: 0 | BN133: 0 | BO133: 0 | BP133: 0 | BQ133: 0 | BR133: 0 | BS133: 0 | BT133: 0 | BU133: 0 | BV133: 0 | BW133: =BW206 -> 0 | BX133: 0 | BY133: 0 | BZ133: 0 | CA133: 0 | CB133: 0 | CC133: 0 | CD133: 0 | CE133: 0 | CF133: 0 | CG133: 0 | CH133: 0 | CI133: 0 | CJ133: 0 | CK133: 0 | CL133: 0 | CM133: 0 | CN133: 0 | CO133: 0 | CP133: 0 | CQ133: 0 | CR133: 0 | CS133: 0 | CT133: 0 | CU133: 0 | CV133: 0 | CW133: 0 | CX133: 0 | CY133: 0 | CZ133: 0 | DA133: 0 | DB133: 0 | DC133: 0 | DD133: 0 | DE133: 0 | DF133: 0 | DG133: 0 | DH133: 0 | DI133: 0 | DJ133: 0 | DK133: 0 | DL133: 0 | DM133: 0 | DN133: 0 | DO133: 0 | DP133: 0 | DQ133: 0 | DR133: 0 | DS133: 0 | DT133: 0 | DU133: 0 | DV133: 0 | DW133: 0 | DX133: 0 | DY133: 0 | DZ133: 0 | EA133: 0 | EB133: 0 | EC133: 0 | ED133: 0 | EE133: 0 | EF133: 0 | EG133: 0 | EH133: 0 | EI133: =EI206 -> 0 | EJ133: 0 | EK133: 0 | EL133: 0 | EM133: 0 | EN133: 0 | EO133: 0 | EP133: 0 | EQ133: 0 | ER133: 0 | ES133: 0 | ET133: 0 | EU133: 0 | EV133: 0 | EW133: 0 | EX133: 0 | EY133: 0 | EZ133: 0 | FA133: 0 | FB133: 0 | FC133: 0 | FD133: 0 | FE133: 0 | FF133: 0 | FG133: 0 | FH133: 0 | FI133: 0 | FJ133: 0 | FK133: 0 | FL133: 0 | FM133: 0 | FN133: 0 | FO133: 0 | FP133: 0 | FQ133: 0 | FR133: 0 | FS133: 0 | FT133: 0 | FU133: 0 | FV133: 0 | FW133: 0 | FX133: 0 | FY133: 0 | FZ133: 0 | GA133: 0 | GB133: 0 | GC133: 0 | GD133: 0 | GE133: 0 | GF133: 0 | GG133: 0 | GH133: 0 | GI133: 0 | GJ133: 0 | GK133: 0 | GL133: 0 | GM133: 0 | GN133: 0 | GO133: 0 | GP133: 0 | GQ133: 0 | GR133: 0 | GS133: 0 | GT133: 0 | GU133: =GU206 -> 0 | GV133: 0 | GW133: 0 | GX133: 0 | GY133: 0 | GZ133: 0 | HA133: 0
C134: Less: Re-financed Defaulted Debt | J134: =SUM(J131:J133)*J101 -> 0 | K134: 0 | L134: 0 | M134: 0 | N134: 0 | O134: 0 | P134: 0 | Q134: 0 | R134: 0 | S134: 0 | T134: 0 | U134: 0 | V134: 0 | W134: 0 | X134: 0 | Y134: 0 | Z134: 0 | AA134: 0 | AB134: 0 | AC134: 0 | AD134: 0 | AE134: 0 | AF134: 0 | AG134: 0 | AH134: 0 | AI134: 0 | AJ134: 0 | AK134: 0 | AL134: 0 | AM134: 0 | AN134: 0 | AO134: 0 | AP134: =SUM(AP131:AP133)*AP101 -> 0 | AQ134: 0 | AR134: 0 | AS134: 0 | AT134: 0 | AU134: 0 | AV134: 0 | AW134: 0 | AX134: 0 | AY134: 0 | AZ134: 0 | BA134: 0 | BB134: 0 | BC134: 0 | BD134: 0 | BE134: 0 | BF134: 0 | BG134: 0 | BH134: 0 | BI134: 0 | BJ134: 0 | BK134: 0 | BL134: 0 | BM134: 0 | BN134: 0 | BO134: 0 | BP134: 0 | BQ134: 0 | BR134: 0 | BS134: 0 | BT134: 0 | BU134: 0 | BV134: =SUM(BV131:BV133)*BV101 -> 0 | BW134: 0 | BX134: 0 | BY134: 0 | BZ134: 0 | CA134: 0 | CB134: 0 | CC134: 0 | CD134: 0 | CE134: 0 | CF134: 0 | CG134: 0 | CH134: 0 | CI134: 0 | CJ134: 0 | CK134: 0 | CL134: 0 | CM134: 0 | CN134: 0 | CO134: 0 | CP134: 0 | CQ134: 0 | CR134: 0 | CS134: 0 | CT134: 0 | CU134: 0 | CV134: 0 | CW134: 0 | CX134: 0 | CY134: 0 | CZ134: 0 | DA134: 0 | DB134: =SUM(DB131:DB133)*DB101 -> 0 | DC134: 0 | DD134: 0 | DE134: 0 | DF134: 0 | DG134: 0 | DH134: 0 | DI134: 0 | DJ134: 0 | DK134: 0 | DL134: 0 | DM134: 0 | DN134: 0 | DO134: 0 | DP134: 0 | DQ134: 0 | DR134: 0 | DS134: 0 | DT134: 0 | DU134: 0 | DV134: 0 | DW134: 0 | DX134: 0 | DY134: 0 | DZ134: 0 | EA134: 0 | EB134: 0 | EC134: 0 | ED134: 0 | EE134: 0 | EF134: 0 | EG134: 0 | EH134: =SUM(EH131:EH133)*EH101 -> 0 | EI134: 0 | EJ134: 0 | EK134: 0 | EL134: 0 | EM134: 0 | EN134: 0 | EO134: 0 | EP134: 0 | EQ134: 0 | ER134: 0 | ES134: 0 | ET134: 0 | EU134: 0 | EV134: 0 | EW134: 0 | EX134: 0 | EY134: 0 | EZ134: 0 | FA134: 0 | FB134: 0 | FC134: 0 | FD134: 0 | FE134: 0 | FF134: 0 | FG134: 0 | FH134: 0 | FI134: 0 | FJ134: 0 | FK134: 0 | FL134: 0 | FM134: 0 | FN134: =SUM(FN131:FN133)*FN101 -> 0 | FO134: 0 | FP134: 0 | FQ134: 0 | FR134: 0 | FS134: 0 | FT134: 0 | FU134: 0 | FV134: 0 | FW134: 0 | FX134: 0 | FY134: 0 | FZ134: 0 | GA134: 0 | GB134: 0 | GC134: 0 | GD134: 0 | GE134: 0 | GF134: 0 | GG134: 0 | GH134: 0 | GI134: 0 | GJ134: 0 | GK134: 0 | GL134: 0 | GM134: 0 | GN134: 0 | GO134: 0 | GP134: 0 | GQ134: 0 | GR134: 0 | GS134: 0 | GT134: =SUM(GT131:GT133)*GT101 -> 0 | GU134: 0 | GV134: 0 | GW134: 0 | GX134: 0 | GY134: 0 | GZ134: 0 | HA134: 0
C135: Closing Balance | J135: =J131+J132-J133-J134 -> 0 | K135: =K131+K132-K133-K134 -> 0 | L135: 0 | M135: 0 | N135: 0 | O135: 0 | P135: 0 | Q135: 0 | R135: 0 | S135: 0 | T135: 0 | U135: 0 | V135: 0 | W135: 0 | X135: 0 | Y135: 0 | Z135: 0 | AA135: 0 | AB135: 0 | AC135: 0 | AD135: 0 | AE135: 0 | AF135: 0 | AG135: 0 | AH135: 0 | AI135: 0 | AJ135: 0 | AK135: 0 | AL135: 0 | AM135: 0 | AN135: 0 | AO135: 0 | AP135: 0 | AQ135: 0 | AR135: 0 | AS135: 0 | AT135: 0 | AU135: 0 | AV135: 0 | AW135: 0 | AX135: 0 | AY135: 0 | AZ135: 0 | BA135: 0 | BB135: 0 | BC135: 0 | BD135: 0 | BE135: 0 | BF135: 0 | BG135: 0 | BH135: 0 | BI135: 0 | BJ135: 0 | BK135: 0 | BL135: 0 | BM135: 0 | BN135: 0 | BO135: 0 | BP135: 0 | BQ135: 0 | BR135: 0 | BS135: 0 | BT135: 0 | BU135: 0 | BV135: 0 | BW135: =BW131+BW132-BW133-BW134 -> 0 | BX135: 0 | BY135: 0 | BZ135: 0 | CA135: 0 | CB135: 0 | CC135: 0 | CD135: 0 | CE135: 0 | CF135: 0 | CG135: 0 | CH135: 0 | CI135: 0 | CJ135: 0 | CK135: 0 | CL135: 0 | CM135: 0 | CN135: 0 | CO135: 0 | CP135: 0 | CQ135: 0 | CR135: 0 | CS135: 0 | CT135: 0 | CU135: 0 | CV135: 0 | CW135: 0 | CX135: 0 | CY135: 0 | CZ135: 0 | DA135: 0 | DB135: 0 | DC135: 0 | DD135: 0 | DE135: 0 | DF135: 0 | DG135: 0 | DH135: 0 | DI135: 0 | DJ135: 0 | DK135: 0 | DL135: 0 | DM135: 0 | DN135: 0 | DO135: 0 | DP135: 0 | DQ135: 0 | DR135: 0 | DS135: 0 | DT135: 0 | DU135: 0 | DV135: 0 | DW135: 0 | DX135: 0 | DY135: 0 | DZ135: 0 | EA135: 0 | EB135: 0 | EC135: 0 | ED135: 0 | EE135: 0 | EF135: 0 | EG135: 0 | EH135: 0 | EI135: =EI131+EI132-EI133-EI134 -> 0 | EJ135: 0 | EK135: 0 | EL135: 0 | EM135: 0 | EN135: 0 | EO135: 0 | EP135: 0 | EQ135: 0 | ER135: 0 | ES135: 0 | ET135: 0 | EU135: 0 | EV135: 0 | EW135: 0 | EX135: 0 | EY135: 0 | EZ135: 0 | FA135: 0 | FB135: 0 | FC135: 0 | FD135: 0 | FE135: 0 | FF135: 0 | FG135: 0 | FH135: 0 | FI135: 0 | FJ135: 0 | FK135: 0 | FL135: 0 | FM135: 0 | FN135: 0 | FO135: 0 | FP135: 0 | FQ135: 0 | FR135: 0 | FS135: 0 | FT135: 0 | FU135: 0 | FV135: 0 | FW135: 0 | FX135: 0 | FY135: 0 | FZ135: 0 | GA135: 0 | GB135: 0 | GC135: 0 | GD135: 0 | GE135: 0 | GF135: 0 | GG135: 0 | GH135: 0 | GI135: 0 | GJ135: 0 | GK135: 0 | GL135: 0 | GM135: 0 | GN135: 0 | GO135: 0 | GP135: 0 | GQ135: 0 | GR135: 0 | GS135: 0 | GT135: 0 | GU135: =GU131+GU132-GU133-GU134 -> 0 | GV135: 0 | GW135: 0 | GX135: 0 | GY135: 0 | GZ135: 0 | HA135: 0
C137: Interest on Defaulted Debt | J137: =J131*J120 -> 0 | K137: =K131*K120 -> 0 | L137: 0 | M137: 0 | N137: 0 | O137: 0 | P137: 0 | Q137: 0 | R137: 0 | S137: 0 | T137: 0 | U137: 0 | V137: 0 | W137: 0 | X137: 0 | Y137: 0 | Z137: 0 | AA137: 0 | AB137: 0 | AC137: 0 | AD137: 0 | AE137: 0 | AF137: 0 | AG137: 0 | AH137: 0 | AI137: 0 | AJ137: 0 | AK137: 0 | AL137: 0 | AM137: 0 | AN137: 0 | AO137: 0 | AP137: 0 | AQ137: 0 | AR137: 0 | AS137: 0 | AT137: 0 | AU137: 0 | AV137: 0 | AW137: 0 | AX137: 0 | AY137: 0 | AZ137: 0 | BA137: 0 | BB137: 0 | BC137: 0 | BD137: 0 | BE137: 0 | BF137: 0 | BG137: 0 | BH137: 0 | BI137: 0 | BJ137: 0 | BK137: 0 | BL137: 0 | BM137: 0 | BN137: 0 | BO137: 0 | BP137: 0 | BQ137: 0 | BR137: 0 | BS137: 0 | BT137: 0 | BU137: 0 | BV137: 0 | BW137: =BW131*BW120 -> 0 | BX137: 0 | BY137: 0 | BZ137: 0 | CA137: 0 | CB137: 0 | CC137: 0 | CD137: 0 | CE137: 0 | CF137: 0 | CG137: 0 | CH137: 0 | CI137: 0 | CJ137: 0 | CK137: 0 | CL137: 0 | CM137: 0 | CN137: 0 | CO137: 0 | CP137: 0 | CQ137: 0 | CR137: 0 | CS137: 0 | CT137: 0 | CU137: 0 | CV137: 0 | CW137: 0 | CX137: 0 | CY137: 0 | CZ137: 0 | DA137: 0 | DB137: 0 | DC137: 0 | DD137: 0 | DE137: 0 | DF137: 0 | DG137: 0 | DH137: 0 | DI137: 0 | DJ137: 0 | DK137: 0 | DL137: 0 | DM137: 0 | DN137: 0 | DO137: 0 | DP137: 0 | DQ137: 0 | DR137: 0 | DS137: 0 | DT137: 0 | DU137: 0 | DV137: 0 | DW137: 0 | DX137: 0 | DY137: 0 | DZ137: 0 | EA137: 0 | EB137: 0 | EC137: 0 | ED137: 0 | EE137: 0 | EF137: 0 | EG137: 0 | EH137: 0 | EI137: =EI131*EI120 -> 0 | EJ137: 0 | EK137: 0 | EL137: 0 | EM137: 0 | EN137: 0 | EO137: 0 | EP137: 0 | EQ137: 0 | ER137: 0 | ES137: 0 | ET137: 0 | EU137: 0 | EV137: 0 | EW137: 0 | EX137: 0 | EY137: 0 | EZ137: 0 | FA137: 0 | FB137: 0 | FC137: 0 | FD137: 0 | FE137: 0 | FF137: 0 | FG137: 0 | FH137: 0 | FI137: 0 | FJ137: 0 | FK137: 0 | FL137: 0 | FM137: 0 | FN137: 0 | FO137: 0 | FP137: 0 | FQ137: 0 | FR137: 0 | FS137: 0 | FT137: 0 | FU137: 0 | FV137: 0 | FW137: 0 | FX137: 0 | FY137: 0 | FZ137: 0 | GA137: 0 | GB137: 0 | GC137: 0 | GD137: 0 | GE137: 0 | GF137: 0 | GG137: 0 | GH137: 0 | GI137: 0 | GJ137: 0 | GK137: 0 | GL137: 0 | GM137: 0 | GN137: 0 | GO137: 0 | GP137: 0 | GQ137: 0 | GR137: 0 | GS137: 0 | GT137: 0 | GU137: =GU131*GU120 -> 0 | GV137: 0 | GW137: 0 | GX137: 0 | GY137: 0 | GZ137: 0 | HA137: 0
B139: Re-financed Miniperm with Sweep
C140: Opening Balance | J140: =I143 -> 0 | K140: =J143 -> 0 | L140: 0 | M140: 0 | N140: 0 | O140: 0 | P140: 0 | Q140: 0 | R140: 0 | S140: 0 | T140: 0 | U140: 0 | V140: 0 | W140: 0 | X140: 0 | Y140: 0 | Z140: 0 | AA140: 0 | AB140: 0 | AC140: 0 | AD140: 0 | AE140: 0 | AF140: 0 | AG140: 0 | AH140: 0 | AI140: 0 | AJ140: 0 | AK140: 0 | AL140: 0 | AM140: 0 | AN140: 0 | AO140: 0 | AP140: 0 | AQ140: 0 | AR140: 0 | AS140: 0 | AT140: 0 | AU140: 0 | AV140: 0 | AW140: 0 | AX140: 0 | AY140: 0 | AZ140: 0 | BA140: 0 | BB140: 0 | BC140: 0 | BD140: 0 | BE140: 0 | BF140: 0 | BG140: 0 | BH140: 0 | BI140: 0 | BJ140: 0 | BK140: 0 | BL140: 0 | BM140: 0 | BN140: 0 | BO140: 217753.4774 | BP140: 215143.6194 | BQ140: 212457.0559 | BR140: 209692.7733 | BS140: 206980.8029 | BT140: 204188.9905 | BU140: 201316.233 | BV140: 198361.4128 | BW140: =BV143 -> 195323.3973 | BX140: 192201.0393 | BY140: 188993.1763 | BZ140: 185698.6304 | CA140: 182316.2084 | CB140: 178844.7011 | CC140: 175282.8837 | CD140: 171629.5148 | CE140: 167990.6055 | CF140: 164256.7468 | CG140: 160426.5771 | CH140: 156498.7161 | CI140: 152471.7642 | CJ140: 148344.3028 | CK140: 144114.8935 | CL140: 139782.0782 | CM140: 135344.3785 | CN140: 130800.2958 | CO140: 126148.3107 | CP140: 121386.8829 | CQ140: 116590.3176 | CR140: 111679.2101 | CS140: 106651.8572 | CT140: 101506.5307 | CU140: 96241.47777 | CV140: 90854.9203 | CW140: 85345.05446 | CX140: 79710.05045 | CY140: 73948.0521 | CZ140: 68057.1765 | DA140: 62035.51356 | DB140: 55881.1257 | DC140: 49592.04741 | DD140: 43166.28484 | DE140: 36601.81542 | DF140: 29896.58741 | DG140: 23048.51953 | DH140: 16055.50051 | DI140: 8915.388629 | DJ140: 1626.011341 | DK140: 0 | DL140: 0 | DM140: 0 | DN140: 0 | DO140: 0 | DP140: 0 | DQ140: 0 | DR140: 0 | DS140: 0 | DT140: 0 | DU140: 0 | DV140: 0 | DW140: 0 | DX140: 0 | DY140: 0 | DZ140: 0 | EA140: 0 | EB140: 0 | EC140: 0 | ED140: 0 | EE140: 0 | EF140: 0 | EG140: 0 | EH140: 0 | EI140: =EH143 -> 0 | EJ140: 0 | EK140: 0 | EL140: 0 | EM140: 0 | EN140: 0 | EO140: 0 | EP140: 0 | EQ140: 0 | ER140: 0 | ES140: 0 | ET140: 0 | EU140: 0 | EV140: 0 | EW140: 0 | EX140: 0 | EY140: 0 | EZ140: 0 | FA140: 0 | FB140: 0 | FC140: 0 | FD140: 0 | FE140: 0 | FF140: 0 | FG140: 0 | FH140: 0 | FI140: 0 | FJ140: 0 | FK140: 0 | FL140: 0 | FM140: 0 | FN140: 0 | FO140: 0 | FP140: 0 | FQ140: 0 | FR140: 0 | FS140: 0 | FT140: 0 | FU140: 0 | FV140: 0 | FW140: 0 | FX140: 0 | FY140: 0 | FZ140: 0 | GA140: 0 | GB140: 0 | GC140: 0 | GD140: 0 | GE140: 0 | GF140: 0 | GG140: 0 | GH140: 0 | GI140: 0 | GJ140: 0 | GK140: 0 | GL140: 0 | GM140: 0 | GN140: 0 | GO140: 0 | GP140: 0 | GQ140: 0 | GR140: 0 | GS140: 0 | GT140: 0 | GU140: =GT143 -> 0 | GV140: 0 | GW140: 0 | GX140: 0 | GY140: 0 | GZ140: 0 | HA140: 0
C141: Add: Re-financing | J141: =J101*(J104+J105+-J106-J107+J131+J132-J133) -> 0 | K141: =K101*(K104+K105+-K106-K107+K131+K132-K133) -> 0 | L141: 0 | M141: 0 | N141: 0 | O141: 0 | P141: 0 | Q141: 0 | R141: 0 | S141: 0 | T141: 0 | U141: 0 | V141: 0 | W141: 0 | X141: 0 | Y141: 0 | Z141: 0 | AA141: 0 | AB141: 0 | AC141: 0 | AD141: 0 | AE141: 0 | AF141: 0 | AG141: 0 | AH141: 0 | AI141: 0 | AJ141: 0 | AK141: 0 | AL141: 0 | AM141: 0 | AN141: 0 | AO141: 0 | AP141: 0 | AQ141: 0 | AR141: 0 | AS141: 0 | AT141: 0 | AU141: 0 | AV141: 0 | AW141: 0 | AX141: 0 | AY141: 0 | AZ141: 0 | BA141: 0 | BB141: 0 | BC141: 0 | BD141: 0 | BE141: 0 | BF141: 0 | BG141: 0 | BH141: 0 | BI141: 0 | BJ141: 0 | BK141: 0 | BL141: 0 | BM141: 0 | BN141: 217753.4774 | BO141: 0 | BP141: 0 | BQ141: 0 | BR141: 0 | BS141: 0 | BT141: 0 | BU141: 0 | BV141: 0 | BW141: =BW101*(BW104+BW105+-BW106-BW107+BW131+BW132-BW133) -> 0 | BX141: 0 | BY141: 0 | BZ141: 0 | CA141: 0 | CB141: 0 | CC141: 0 | CD141: 0 | CE141: 0 | CF141: 0 | CG141: 0 | CH141: 0 | CI141: 0 | CJ141: 0 | CK141: 0 | CL141: 0 | CM141: 0 | CN141: 0 | CO141: 0 | CP141: 0 | CQ141: 0 | CR141: 0 | CS141: 0 | CT141: 0 | CU141: 0 | CV141: 0 | CW141: 0 | CX141: 0 | CY141: 0 | CZ141: 0 | DA141: 0 | DB141: 0 | DC141: 0 | DD141: 0 | DE141: 0 | DF141: 0 | DG141: 0 | DH141: 0 | DI141: 0 | DJ141: 0 | DK141: 0 | DL141: 0 | DM141: 0 | DN141: 0 | DO141: 0 | DP141: 0 | DQ141: 0 | DR141: 0 | DS141: 0 | DT141: 0 | DU141: 0 | DV141: 0 | DW141: 0 | DX141: 0 | DY141: 0 | DZ141: 0 | EA141: 0 | EB141: 0 | EC141: 0 | ED141: 0 | EE141: 0 | EF141: 0 | EG141: 0 | EH141: 0 | EI141: =EI101*(EI104+EI105+-EI106-EI107+EI131+EI132-EI133) -> 0 | EJ141: 0 | EK141: 0 | EL141: 0 | EM141: 0 | EN141: 0 | EO141: 0 | EP141: 0 | EQ141: 0 | ER141: 0 | ES141: 0 | ET141: 0 | EU141: 0 | EV141: 0 | EW141: 0 | EX141: 0 | EY141: 0 | EZ141: 0 | FA141: 0 | FB141: 0 | FC141: 0 | FD141: 0 | FE141: 0 | FF141: 0 | FG141: 0 | FH141: 0 | FI141: 0 | FJ141: 0 | FK141: 0 | FL141: 0 | FM141: 0 | FN141: 0 | FO141: 0 | FP141: 0 | FQ141: 0 | FR141: 0 | FS141: 0 | FT141: 0 | FU141: 0 | FV141: 0 | FW141: 0 | FX141: 0 | FY141: 0 | FZ141: 0 | GA141: 0 | GB141: 0 | GC141: 0 | GD141: 0 | GE141: 0 | GF141: 0 | GG141: 0 | GH141: 0 | GI141: 0 | GJ141: 0 | GK141: 0 | GL141: 0 | GM141: 0 | GN141: 0 | GO141: 0 | GP141: 0 | GQ141: 0 | GR141: 0 | GS141: 0 | GT141: 0 | GU141: =GU101*(GU104+GU105+-GU106-GU107+GU131+GU132-GU133) -> 0 | GV141: 0 | GW141: 0 | GX141: 0 | GY141: 0 | GZ141: 0 | HA141: 0
C142: Less: Repayment from Sweep | J142: =J208 -> 0 | K142: =K208 -> 0 | L142: 0 | M142: 0 | N142: 0 | O142: 0 | P142: 0 | Q142: 0 | R142: 0 | S142: 0 | T142: 0 | U142: 0 | V142: 0 | W142: 0 | X142: 0 | Y142: 0 | Z142: 0 | AA142: 0 | AB142: 0 | AC142: 0 | AD142: 0 | AE142: 0 | AF142: 0 | AG142: 0 | AH142: 0 | AI142: 0 | AJ142: 0 | AK142: 0 | AL142: 0 | AM142: 0 | AN142: 0 | AO142: 0 | AP142: 0 | AQ142: 0 | AR142: 0 | AS142: 0 | AT142: 0 | AU142: 0 | AV142: 0 | AW142: 0 | AX142: 0 | AY142: 0 | AZ142: 0 | BA142: 0 | BB142: 0 | BC142: 0 | BD142: 0 | BE142: 0 | BF142: 0 | BG142: 0 | BH142: 0 | BI142: 0 | BJ142: 0 | BK142: 0 | BL142: 0 | BM142: 0 | BN142: 0 | BO142: 2609.858067 | BP142: 2686.563446 | BQ142: 2764.282641 | BR142: 2711.970411 | BS142: 2791.81238 | BT142: 2872.757481 | BU142: 2954.820261 | BV142: 3038.015458 | BW142: =BW208 -> 3122.358005 | BX142: 3207.86303 | BY142: 3294.54586 | BZ142: 3382.422022 | CA142: 3471.507248 | CB142: 3561.817477 | CC142: 3653.368857 | CD142: 3638.9093 | CE142: 3733.858695 | CF142: 3830.169682 | CG142: 3927.861053 | CH142: 4026.951858 | CI142: 4127.46141 | CJ142: 4229.409287 | CK142: 4332.815335 | CL142: 4437.699675 | CM142: 4544.082704 | CN142: 4651.9851 | CO142: 4761.427824 | CP142: 4796.565325 | CQ142: 4911.107434 | CR142: 5027.352968 | CS142: 5145.326485 | CT142: 5265.052897 | CU142: 5386.557472 | CV142: 5509.865842 | CW142: 5635.004009 | CX142: 5761.998346 | CY142: 5890.875609 | CZ142: 6021.662936 | DA142: 6154.387855 | DB142: 6289.078291 | DC142: 6425.762571 | DD142: 6564.469428 | DE142: 6705.228008 | DF142: 6848.067877 | DG142: 6993.019026 | DH142: 7140.111876 | DI142: 7289.377288 | DJ142: 1626.011341 | DK142: 0 | DL142: 0 | DM142: 0 | DN142: 0 | DO142: 0 | DP142: 0 | DQ142: 0 | DR142: 0 | DS142: 0 | DT142: 0 | DU142: 0 | DV142: 0 | DW142: 0 | DX142: 0 | DY142: 0 | DZ142: 0 | EA142: 0 | EB142: 0 | EC142: 0 | ED142: 0 | EE142: 0 | EF142: 0 | EG142: 0 | EH142: 0 | EI142: =EI208 -> 0 | EJ142: 0 | EK142: 0 | EL142: 0 | EM142: 0 | EN142: 0 | EO142: 0 | EP142: 0 | EQ142: 0 | ER142: 0 | ES142: 0 | ET142: 0 | EU142: 0 | EV142: 0 | EW142: 0 | EX142: 0 | EY142: 0 | EZ142: 0 | FA142: 0 | FB142: 0 | FC142: 0 | FD142: 0 | FE142: 0 | FF142: 0 | FG142: 0 | FH142: 0 | FI142: 0 | FJ142: 0 | FK142: 0 | FL142: 0 | FM142: 0 | FN142: 0 | FO142: 0 | FP142: 0 | FQ142: 0 | FR142: 0 | FS142: 0 | FT142: 0 | FU142: 0 | FV142: 0 | FW142: 0 | FX142: 0 | FY142: 0 | FZ142: 0 | GA142: 0 | GB142: 0 | GC142: 0 | GD142: 0 | GE142: 0 | GF142: 0 | GG142: 0 | GH142: 0 | GI142: 0 | GJ142: 0 | GK142: 0 | GL142: 0 | GM142: 0 | GN142: 0 | GO142: 0 | GP142: 0 | GQ142: 0 | GR142: 0 | GS142: 0 | GT142: 0 | GU142: =GU208 -> 0 | GV142: 0 | GW142: 0 | GX142: 0 | GY142: 0 | GZ142: 0 | HA142: 0
C143: Closing Balance | J143: =J140+J141-J142 -> 0 | K143: =K140+K141-K142 -> 0 | L143: 0 | M143: 0 | N143: 0 | O143: 0 | P143: 0 | Q143: 0 | R143: 0 | S143: 0 | T143: 0 | U143: 0 | V143: 0 | W143: 0 | X143: 0 | Y143: 0 | Z143: 0 | AA143: 0 | AB143: 0 | AC143: 0 | AD143: 0 | AE143: 0 | AF143: 0 | AG143: 0 | AH143: 0 | AI143: 0 | AJ143: 0 | AK143: 0 | AL143: 0 | AM143: 0 | AN143: 0 | AO143: 0 | AP143: 0 | AQ143: 0 | AR143: 0 | AS143: 0 | AT143: 0 | AU143: 0 | AV143: 0 | AW143: 0 | AX143: 0 | AY143: 0 | AZ143: 0 | BA143: 0 | BB143: 0 | BC143: 0 | BD143: 0 | BE143: 0 | BF143: 0 | BG143: 0 | BH143: 0 | BI143: 0 | BJ143: 0 | BK143: 0 | BL143: 0 | BM143: 0 | BN143: 217753.4774 | BO143: 215143.6194 | BP143: 212457.0559 | BQ143: 209692.7733 | BR143: 206980.8029 | BS143: 204188.9905 | BT143: 201316.233 | BU143: 198361.4128 | BV143: 195323.3973 | BW143: =BW140+BW141-BW142 -> 192201.0393 | BX143: 188993.1763 | BY143: 185698.6304 | BZ143: 182316.2084 | CA143: 178844.7011 | CB143: 175282.8837 | CC143: 171629.5148 | CD143: 167990.6055 | CE143: 164256.7468 | CF143: 160426.5771 | CG143: 156498.7161 | CH143: 152471.7642 | CI143: 148344.3028 | CJ143: 144114.8935 | CK143: 139782.0782 | CL143: 135344.3785 | CM143: 130800.2958 | CN143: 126148.3107 | CO143: 121386.8829 | CP143: 116590.3176 | CQ143: 111679.2101 | CR143: 106651.8572 | CS143: 101506.5307 | CT143: 96241.47777 | CU143: 90854.9203 | CV143: 85345.05446 | CW143: 79710.05045 | CX143: 73948.0521 | CY143: 68057.1765 | CZ143: 62035.51356 | DA143: 55881.1257 | DB143: 49592.04741 | DC143: 43166.28484 | DD143: 36601.81542 | DE143: 29896.58741 | DF143: 23048.51953 | DG143: 16055.50051 | DH143: 8915.388629 | DI143: 1626.011341 | DJ143: 0 | DK143: 0 | DL143: 0 | DM143: 0 | DN143: 0 | DO143: 0 | DP143: 0 | DQ143: 0 | DR143: 0 | DS143: 0 | DT143: 0 | DU143: 0 | DV143: 0 | DW143: 0 | DX143: 0 | DY143: 0 | DZ143: 0 | EA143: 0 | EB143: 0 | EC143: 0 | ED143: 0 | EE143: 0 | EF143: 0 | EG143: 0 | EH143: 0 | EI143: =EI140+EI141-EI142 -> 0 | EJ143: 0 | EK143: 0 | EL143: 0 | EM143: 0 | EN143: 0 | EO143: 0 | EP143: 0 | EQ143: 0 | ER143: 0 | ES143: 0 | ET143: 0 | EU143: 0 | EV143: 0 | EW143: 0 | EX143: 0 | EY143: 0 | EZ143: 0 | FA143: 0 | FB143: 0 | FC143: 0 | FD143: 0 | FE143: 0 | FF143: 0 | FG143: 0 | FH143: 0 | FI143: 0 | FJ143: 0 | FK143: 0 | FL143: 0 | FM143: 0 | FN143: 0 | FO143: 0 | FP143: 0 | FQ143: 0 | FR143: 0 | FS143: 0 | FT143: 0 | FU143: 0 | FV143: 0 | FW143: 0 | FX143: 0 | FY143: 0 | FZ143: 0 | GA143: 0 | GB143: 0 | GC143: 0 | GD143: 0 | GE143: 0 | GF143: 0 | GG143: 0 | GH143: 0 | GI143: 0 | GJ143: 0 | GK143: 0 | GL143: 0 | GM143: 0 | GN143: 0 | GO143: 0 | GP143: 0 | GQ143: 0 | GR143: 0 | GS143: 0 | GT143: 0 | GU143: =GU140+GU141-GU142 -> 0 | GV143: 0 | GW143: 0 | GX143: 0 | GY143: 0 | GZ143: 0 | HA143: 0
C145: Interest Rate | J145: =J120 -> 0.00375 | K145: 0.00375 | L145: 0.00375 | M145: 0.00375 | N145: 0.00375 | O145: 0.00375 | P145: 0.00375 | Q145: 0.00375 | R145: 0.00375 | S145: 0.00375 | T145: 0.00375 | U145: 0.00375 | V145: 0.00375 | W145: 0.00375 | X145: 0.00375 | Y145: 0.00375 | Z145: 0.00375 | AA145: 0.00375 | AB145: 0.00375 | AC145: 0.00375 | AD145: 0.00375 | AE145: 0.00375 | AF145: 0.00375 | AG145: 0.00375 | AH145: 0.00375 | AI145: 0.00375 | AJ145: 0.00375 | AK145: 0.00375 | AL145: 0.00375 | AM145: 0.00375 | AN145: 0.00375 | AO145: 0.00375 | AP145: =AP120 -> 0.00375 | AQ145: 0.00375 | AR145: 0.00375 | AS145: 0.00375 | AT145: 0.011875 | AU145: 0.011875 | AV145: 0.011875 | AW145: 0.011875 | AX145: 0.011875 | AY145: 0.011875 | AZ145: 0.011875 | BA145: 0.011875 | BB145: 0.011875 | BC145: 0.011875 | BD145: 0.011875 | BE145: 0.011875 | BF145: 0.0125 | BG145: 0.0125 | BH145: 0.0125 | BI145: 0.0125 | BJ145: 0.0125 | BK145: 0.0125 | BL145: 0.0125 | BM145: 0.0125 | BN145: 0.0125 | BO145: 0.0125 | BP145: 0.0125 | BQ145: 0.0125 | BR145: 0.013125 | BS145: 0.013125 | BT145: 0.013125 | BU145: 0.013125 | BV145: =BV120 -> 0.013125 | BW145: 0.013125 | BX145: 0.013125 | BY145: 0.013125 | BZ145: 0.013125 | CA145: 0.013125 | CB145: 0.013125 | CC145: 0.013125 | CD145: 0.01375 | CE145: 0.01375 | CF145: 0.01375 | CG145: 0.01375 | CH145: 0.01375 | CI145: 0.01375 | CJ145: 0.01375 | CK145: 0.01375 | CL145: 0.01375 | CM145: 0.01375 | CN145: 0.01375 | CO145: 0.01375 | CP145: 0.014375 | CQ145: 0.014375 | CR145: 0.014375 | CS145: 0.014375 | CT145: 0.014375 | CU145: 0.014375 | CV145: 0.014375 | CW145: 0.014375 | CX145: 0.014375 | CY145: 0.014375 | CZ145: 0.014375 | DA145: 0.014375 | DB145: =DB120 -> 0.014375 | DC145: 0.014375 | DD145: 0.014375 | DE145: 0.014375 | DF145: 0.014375 | DG145: 0.014375 | DH145: 0.014375 | DI145: 0.014375 | DJ145: 0.014375 | DK145: 0.014375 | DL145: 0.014375 | DM145: 0.014375 | DN145: 0.014375 | DO145: 0.014375 | DP145: 0.014375 | DQ145: 0.014375 | DR145: 0.014375 | DS145: 0.014375 | DT145: 0.014375 | DU145: 0.014375 | DV145: 0.014375 | DW145: 0.014375 | DX145: 0.014375 | DY145: 0.014375 | DZ145: 0.014375 | EA145: 0.014375 | EB145: 0.014375 | EC145: 0.014375 | ED145: 0.014375 | EE145: 0.014375 | EF145: 0.014375 | EG145: 0.014375 | EH145: =EH120 -> 0.014375 | EI145: 0.014375 | EJ145: 0.014375 | EK145: 0.014375 | EL145: 0.014375 | EM145: 0.014375 | EN145: 0.014375 | EO145: 0.014375 | EP145: 0.014375 | EQ145: 0.014375 | ER145: 0.014375 | ES145: 0.014375 | ET145: 0.014375 | EU145: 0.014375 | EV145: 0.014375 | EW145: 0.014375 | EX145: 0.014375 | EY145: 0.014375 | EZ145: 0.014375 | FA145: 0.014375 | FB145: 0.014375 | FC145: 0.014375 | FD145: 0.014375 | FE145: 0.014375 | FF145: 0.014375 | FG145: 0.014375 | FH145: 0.014375 | FI145: 0.014375 | FJ145: 0.014375 | FK145: 0.014375 | FL145: 0.014375 | FM145: 0.014375 | FN145: =FN120 -> 0.014375 | FO145: 0.014375 | FP145: 0.014375 | FQ145: 0.014375 | FR145: 0.014375 | FS145: 0.014375 | FT145: 0.014375 | FU145: 0.014375 | FV145: 0.014375 | FW145: 0.014375 | FX145: 0.014375 | FY145: 0.014375 | FZ145: 0.014375 | GA145: 0.014375 | GB145: 0.014375 | GC145: 0.014375 | GD145: 0.014375 | GE145: 0.014375 | GF145: 0.014375 | GG145: 0.014375 | GH145: 0.014375 | GI145: 0.014375 | GJ145: 0.014375 | GK145: 0.014375 | GL145: 0.014375 | GM145: 0.014375 | GN145: 0.014375 | GO145: 0.014375 | GP145: 0.014375 | GQ145: 0.014375 | GR145: 0.014375 | GS145: 0.014375 | GT145: =GT120 -> 0.014375 | GU145: 0.014375 | GV145: 0.014375 | GW145: 0.014375 | GX145: 0.014375 | GY145: 0.014375 | GZ145: 0.014375 | HA145: 0.014375
